Workbook

Sheet Filtros
A2: Mes | B2: 12
A3: Comuna/Hospital | B3: (Todas)
A5: Etiquetas de fila | B5: Suma de Col01 | C5: Suma de Col02 | D5: Suma de Col03 | E5: Suma de Col04 | F5: Suma de Col05 | G5: Suma de Col06 | H5: Suma de Col07 | I5: Suma de Col08 | J5: Suma de Col09 | K5: Suma de Col10 | L5: Suma de Col11 | M5: Suma de Col12 | N5: Suma de Col13 | O5: Suma de Col14 | P5: Suma de Col15 | Q5: Suma de Col16 | R5: Suma de Col17 | S5: Suma de Col18 | T5: Suma de Col19 | U5: Suma de Col20 | V5: Suma de Col21 | W5: Suma de Col22 | X5: Suma de Col23 | Y5: Suma de Col24 | Z5: Suma de Col25 | AA5: Suma de Col26 | AB5: Suma de Col27 | AC5: Suma de Col28 | AD5: Suma de Col29 | AE5: Suma de Col30 | AF5: Suma de Col31 | AG5: Suma de Col32 | AH5: Suma de Col33 | AI5: Suma de Col34 | AJ5: Suma de Col35 | AK5: Suma de Col36 | AL5: Suma de Col37 | AM5: Suma de Col38 | AN5: Suma de Col39 | AO5: Suma de Col40 | AP5: Suma de Col41 | AQ5: Suma de col42 | AR5: Suma de col43 | AS5: Suma de col44 | AT5: Suma de col45 | AU5: Suma de col46 | AV5: Suma de col47 | AW5: Suma de col48 | AX5: Suma de col49 | AY5: Suma de col50
A6: P1010100 | B6: 6504 | C6: 1 | D6: 64 | E6: 350 | F6: 1052 | G6: 1228 | H6: 1256 | I6: 1088 | J6: 872 | K6: 493 | L6: 100 | P6: 105 | Q6: 121 | R6: 3
A7: P1010201 | B7: 13706 | C7: 192 | D7: 2300 | E7: 2628 | F7: 2367 | G7: 2150 | H7: 1794 | I7: 1302 | J7: 767 | K7: 189 | L7: 17 | P7: 205 | Q7: 275 | R7: 2
A8: P1010202 | B8: 4245 | C8: 6 | D8: 141 | E8: 350 | F8: 593 | G8: 604 | H8: 534 | I8: 688 | J8: 935 | K8: 368 | L8: 26 | P8: 37 | Q8: 114 | R8: 0
A9: P1010203 | B9: 6524 | C9: 74 | D9: 1142 | E9: 1514 | F9: 1393 | G9: 1027 | H9: 687 | I9: 423 | J9: 221 | K9: 40 | L9: 3 | P9: 105 | Q9: 185 | R9: 1
A10: P1010301 | B10: 1414 | C10: 21 | D10: 169 | E10: 206 | F10: 202 | G10: 221 | H10: 196 | I10: 165 | J10: 138 | K10: 82 | L10: 12 | M10: 1 | N10: 1 | O10: 0 | P10: 23 | Q10: 69 | R10: 2
A11: P1010302 | B11: 343 | C11: 9 | D11: 105 | E11: 59 | F11: 42 | G11: 46 | H11: 18 | I11: 20 | J11: 18 | K11: 18 | L11: 5 | M11: 1 | N11: 2 | O11: 0 | P11: 2 | Q11: 17 | R11: 5
A12: P1020100 | B12: 9 | C12: 9 | D12: 1 | E12: 6 | F12: 0
A13: P1020200 | B13: 221 | C13: 105 | D13: 11 | E13: 65 | F13: 23
A14: P1030101 | B14: 1359 | C14: 0 | D14: 43 | E14: 249 | F14: 432 | G14: 377 | H14: 193 | I14: 63 | J14: 2 | K14: 0
A15: P1030102 | B15: 1176 | C15: 0 | D15: 69 | E15: 271 | F15: 330 | G15: 314 | H15: 154 | I15: 35 | J15: 3 | K15: 0
A16: P1030103 | B16: 926 | C16: 6 | D16: 95 | E16: 259 | F16: 280 | G16: 205 | H16: 68 | I16: 13 | J16: 0 | K16: 0
A17: P1030104 | B17: 61 | C17: 3 | D17: 14 | E17: 24 | F17: 13 | G17: 6 | H17: 0 | I17: 1 | J17: 0 | K17: 0
A18: P1030201 | B18: 119 | C18: 0 | D18: 10 | E18: 27 | F18: 37 | G18: 23 | H18: 18 | I18: 4 | J18: 0 | K18: 0
A19: P1030202 | B19: 121 | C19: 0 | D19: 7 | E19: 34 | F19: 46 | G19: 24 | H19: 9 | I19: 1 | J19: 0 | K19: 0
A20: P1030203 | B20: 79 | C20: 1 | D20: 11 | E20: 19 | F20: 30 | G20: 12 | H20: 4 | I20: 1 | J20: 1 | K20: 0
A21: P1030204 | B21: 3 | C21: 0 | D21: 0 | E21: 2 | F21: 0 | G21: 0 | H21: 1 | I21: 0
A22: P1030301 | B22: 8440
A23: P1030303 | B23: 17
A24: P1030304 | B24: 101
A25: P1030401 | B25: 19
A26: P1030403 | B26: 401
A27: P1030404 | B27: 843
A28: P1040500 | B28: 8454 | C28: 131 | D28: 1717 | E28: 2177 | F28: 1829 | G28: 1306 | H28: 755 | I28: 378 | J28: 145 | K28: 15 | L28: 1 | P28: 70 | Q28: 421 | R28: 4
A29: P1040501 | B29: 803 | C29: 190 | D29: 20 | E29: 216 | F29: 99
A30: P1040502 | B30: 361 | C30: 361
A31: P1040503 | B31: 174 | C31: 348
A32: P1040504 | B32: 126 | C32: 378
A33: P1040505 | B33: 96 | C33: 312
A34: P1040506 | B34: 22
A35: P1040507 | B35: 1
A36: P1040508 | B36: 10072 | C36: 78 | D36: 1096 | E36: 1856 | F36: 2160 | G36: 1719 | H36: 1229 | I36: 910 | J36: 767 | K36: 248 | L36: 9 | P36: 169 | Q36: 597 | R36: 5
A37: P1050100 | B37: 27
A38: P1050101 | B38: 773
A39: P1050102 | B39: 569
A40: P1050103 | B40: 64
A41: P1050104 | B41: 174
A42: P1060010 | B42: 2413 | C42: 1 | D42: 29 | E42: 67 | F42: 138 | G42: 199 | H42: 364 | I42: 505 | J42: 621 | K42: 374 | L42: 102 | M42: 11 | N42: 2 | O42: 0 | P42: 34 | Q42: 38 | R42: 0
A43: P1060020 | B43: 164 | C43: 3 | D43: 26 | E43: 50 | F43: 36 | G43: 14 | H43: 14 | I43: 6 | J43: 9 | K43: 3 | L43: 3 | P43: 0 | Q43: 2 | R43: 0
A44: P1060040 | B44: 2207
A45: P1060050 | B45: 875
A46: P1060060 | B46: 378
A47: P1060070 | B47: 45
A48: P1060080 | B48: 16
A49: P1060090 | B49: 5168 | C49: 131 | D49: 1565 | E49: 1145 | F49: 913 | G49: 611 | H49: 418 | I49: 208 | J49: 135 | K49: 37 | L49: 5 | M49: 0 | N49: 0 | O49: 0 | P49: 32 | Q49: 89 | R49: 5
A50: P1060100 | B50: 1055 | C50: 206 | D50: 20 | E50: 329 | F50: 120
A51: P1060101 | B51: 902 | C51: 191 | D51: 14 | E51: 337 | F51: 137
A52: P1060102 | B52: 415 | C52: 113 | D52: 6 | E52: 194 | F52: 45
A53: P1060103 | B53: 112 | C53: 35 | D53: 5 | E53: 73 | F53: 14
A54: P1060104 | B54: 5 | C54: 4 | D54: 0 | E54: 4 | F54: 1
A55: P1060106 | B55: 7 | C55: 4 | D55: 2 | E55: 2
A56: P1060107 | B56: 169 | C56: 107 | D56: 51 | E56: 55
A57: P1060108 | B57: 631 | C57: 387 | D57: 216 | E57: 265
A58: P1060109 | B58: 801 | C58: 509 | D58: 254 | E58: 364
A59: P1060110 | B59: 700 | C59: 484 | D59: 224 | E59: 310
A60: P1060111 | B60: 334 | C60: 220 | D60: 109 | E60: 152
A61: P1060112 | B61: 68 | C61: 59 | D61: 22 | E61: 27
A62: P1060113 | B62: 5 | C62: 2 | D62: 0 | E62: 2
A63: P1060115 | B63: 50
A64: P1060116 | B64: 219
A65: P1060117 | B65: 24
A66: P1060118 | B66: 12
A67: P1060119 | B67: 1
A68: P1060120 | B68: 16
A69: P1060121 | B69: 5
A70: P1060122 | B70: 15
A71: P1060123 | B71: 18
A72: P1060124 | B72: 498 | C72: 0 | D72: 19 | E72: 49 | F72: 131 | G72: 138 | H72: 77 | I72: 57 | J72: 20 | K72: 7 | L72: 0 | P72: 9 | Q72: 20 | R72: 1
A73: P11000140 | B73: 49 | C73: 0 | D73: 49 | E73: 0 | F73: 0 | G73: 0 | H73: 7 | I73: 0 | J73: 12 | K73: 0 | L73: 8 | M73: 0 | N73: 10 | O73: 0 | P73: 7 | Q73: 0 | R73: 1 | S73: 0 | T73: 3 | U73: 0 | V73: 0 | W73: 0 | X73: 0 | Y73: 0 | Z73: 0 | AA73: 0 | AB73: 1 | AC73: 0 | AD73: 0 | AE73: 0 | AF73: 0 | AG73: 0 | AH73: 0 | AI73: 2 | AJ73: 28
A74: P11000150 | B74: 2 | D74: 2 | T74: 1 | V74: 1 | AQ74: 0 | AR74: 0 | AS74: 1 | AT74: 1 | AU74: 0
A75: P11000160 | B75: 1 | D75: 1 | T75: 1 | AQ75: 0 | AR75: 0 | AS75: 0 | AT75: 0 | AU75: 0
A76: P11000190 | B76: 3 | D76: 3 | T76: 2 | V76: 1 | AQ76: 0 | AR76: 0 | AS76: 1 | AT76: 1 | AU76: 0
A77: P1200190 | B77: 2084 | C77: 34 | D77: 440 | E77: 501 | F77: 455 | G77: 315 | H77: 213 | I77: 91 | J77: 34 | K77: 1 | L77: 0 | P77: 20 | Q77: 151 | R77: 1
A78: P1200200 | B78: 684 | C78: 11 | D78: 209 | E78: 115 | F78: 123 | G78: 80 | H78: 58 | I78: 27 | J78: 31 | K78: 25 | L78: 3 | M78: 2 | N78: 0 | O78: 0 | P78: 6 | Q78: 25 | R78: 2
A79: P1200210 | B79: 93 | C79: 5 | D79: 46 | E79: 13 | F79: 8 | G79: 3 | H79: 3 | I79: 3 | J79: 2 | K79: 5 | L79: 1 | M79: 1 | N79: 3 | O79: 0 | P79: 0 | Q79: 4 | R79: 3
A80: P1200220 | B80: 1198 | C80: 0 | D80: 34 | E80: 39 | F80: 52 | G80: 59 | H80: 77 | I80: 101 | J80: 190 | K80: 256 | L80: 225 | M80: 92 | N80: 49 | O80: 24 | P80: 10 | Q80: 14 | R80: 1
A81: P1200230 | B81: 20 | C81: 0 | D81: 0 | E81: 1 | F81: 4 | G81: 5 | H81: 0 | I81: 0 | J81: 0 | K81: 2 | L81: 3 | M81: 3 | N81: 1 | O81: 1 | P81: 0 | Q81: 0 | R81: 0
A82: P1200240 | B82: 2474 | C82: 0 | D82: 0 | E82: 24 | F82: 104 | G82: 313 | H82: 507 | I82: 603 | J82: 487 | K82: 306 | L82: 130 | P82: 32 | Q82: 77 | R82: 3
A83: P1200250 | B83: 1 | C83: 0 | D83: 0 | E83: 0 | F83: 1 | G83: 0 | H83: 0 | I83: 0 | J83: 0 | K83: 0 | L83: 0 | P83: 0 | Q83: 0 | R83: 0
A84: P1200260 | B84: 78 | C84: 0 | D84: 16 | E84: 27 | F84: 17 | G84: 8 | H84: 8 | I84: 2 | J84: 0 | K84: 0 | L84: 0 | P84: 0 | Q84: 0 | R84: 0
A85: P1200270 | B85: 286 | C85: 2 | D85: 33 | E85: 81 | F85: 75 | G85: 64 | H85: 21 | I85: 10 | J85: 0 | K85: 0 | L85: 0 | P85: 2 | Q85: 5 | R85: 1
A86: P1200280 | B86: 45 | C86: 4 | D86: 13 | E86: 15 | F86: 11 | G86: 2 | H86: 0 | I86: 2
A87: P1200290 | B87: 118 | C87: 3 | D87: 26 | E87: 46 | F87: 32 | G87: 11 | H87: 0 | I87: 1
A88: P1200300 | B88: 26 | C88: 1 | D88: 7 | E88: 9 | F88: 6 | G88: 3 | H88: 0 | I88: 0
A89: P1200310 | B89: 18 | C89: 0 | D89: 5 | E89: 6 | F89: 5 | G89: 2 | H89: 0 | I89: 0
A90: P1200330 | B90: 274 | C90: 6 | D90: 52 | E90: 124 | F90: 79 | G90: 13 | H90: 3 | I90: 2
A91: P1200340 | B91: 30
A92: P1200350 | B92: 22 | C92: 0 | D92: 5 | E92: 1 | F92: 1 | G92: 3 | H92: 0 | I92: 1 | J92: 2 | K92: 6 | L92: 2 | M92: 1 | N92: 0 | O92: 0 | P92: 0 | Q92: 0 | R92: 0
A93: P1206010 | B93: 11607 | C93: 0
A94: P1206020 | B94: 11230 | C94: 0
A95: P1206030 | B95: 10361 | C95: 0
A96: P1206040 | B96: 9518 | C96: 0
A97: P1206050 | B97: 9571 | C97: 0
A98: P1206060 | B98: 9095 | C98: 0
A99: P1206070 | B99: 8112 | C99: 0
A100: P1206080 | B100: 6099 | C100: 0
A101: P1207010 | B101: 3286 | C101: 2922 | D101: 233 | E101: 70 | F101: 7 | G101: 21 | H101: 17 | I101: 16 | J101: 0 | K101: 0 | L101: 0
A102: P1207020 | B102: 3416 | C102: 3019 | D102: 205 | E102: 69 | F102: 69 | G102: 13 | H102: 11 | I102: 27 | J102: 3 | K102: 0 | L102: 0
A103: P1207030 | B103: 7298
A104: P1207040 | B104: 5243
A105: P1207050 | B105: 3106
A106: P1207060 | B106: 1228
A107: P1207070 | B107: 413
A108: P1207080 | B108: 151
A109: P1207090 | B109: 6896
A110: P1207100 | B110: 5082
A111: P1207110 | B111: 2418
A112: P1207120 | B112: 708
A113: P1207130 | B113: 271
A114: P1207140 | B114: 118
A115: P1207150 | B115: 8441 | C115: 0
A116: P1207160 | B116: 2184 | C116: 0
A117: P1207170 | B117: 2171 | C117: 1936 | D117: 143 | E117: 49 | F117: 12 | G117: 21 | H117: 4 | I117: 5 | J117: 1 | K117: 0 | L117: 0
A118: P1207180 | B118: 20878
A119: P1207190 | B119: 1004
A120: P1208020 | B120: 3295 | C120: 2885 | D120: 238 | E120: 65 | F120: 68 | G120: 9 | H120: 8 | I120: 20 | J120: 1 | K120: 1 | L120: 0
A121: P1208030 | B121: 3137 | C121: 2773 | D121: 218 | E121: 42 | F121: 64 | G121: 18 | H121: 4 | I121: 17 | J121: 1 | K121: 0 | L121: 0
A122: P1208040 | B122: 3006 | C122: 2703 | D122: 156 | E122: 57 | F122: 67 | G122: 7 | H122: 4 | I122: 12 | J122: 0 | K122: 0 | L122: 0
A123: P1208050 | B123: 2910 | C123: 2661 | D123: 146 | E123: 40 | F123: 47 | G123: 2 | H123: 3 | I123: 8 | J123: 2 | K123: 1 | L123: 0
A124: P1208060 | B124: 2522 | C124: 2264 | D124: 171 | E124: 39 | F124: 37 | G124: 1 | H124: 2 | I124: 5 | J124: 3 | K124: 0 | L124: 0
A125: P1208070 | B125: 1972 | C125: 1726 | D125: 168 | E125: 39 | F125: 26 | G125: 5 | H125: 1 | I125: 6 | J125: 0 | K125: 1 | L125: 0
A126: P1208080 | B126: 723 | C126: 651 | D126: 61 | E126: 7 | F126: 0 | G126: 3 | H126: 0 | I126: 0 | J126: 1 | K126: 0 | L126: 0
A127: P1208090 | B127: 159 | C127: 143 | D127: 12 | E127: 4 | F127: 0 | G127: 0 | H127: 0 | I127: 0 | J127: 0 | K127: 0 | L127: 0
A128: P1208100 | B128: 44 | C128: 35 | D128: 6 | E128: 0 | F128: 0 | G128: 0 | H128: 0 | I128: 2 | J128: 1 | K128: 0 | L128: 0
A129: P1220020 | B129: 11526
A130: P1220030 | B130: 7869
A131: P1220070 | B131: 23553
A132: P1220090 | B132: 7950
A133: P1220091 | B133: 95 | C133: 84 | D133: 6 | E133: 4 | G133: 1 | H133: 0 | I133: 0 | L133: 0
A134: P1220092 | B134: 188 | C134: 165 | D134: 12 | E134: 5 | F134: 0 | G134: 2 | H134: 2 | I134: 2 | J134: 0 | K134: 0 | L134: 0
A135: P1220093 | B135: 223 | C135: 198 | D135: 15 | E135: 3 | F135: 1 | G135: 3 | H135: 0 | I135: 3 | J135: 0 | K135: 0 | L135: 0
A136: P1220094 | B136: 210 | C136: 194 | D136: 12 | E136: 2 | G136: 1 | H136: 0 | I136: 1 | L136: 0
A137: P1220095 | B137: 200 | C137: 180 | D137: 11 | E137: 5 | G137: 1 | H137: 0 | I137: 3 | L137: 0
A138: P1220096 | B138: 196 | C138: 170 | D138: 18 | E138: 8 | G138: 0 | H138: 0 | I138: 0 | L138: 0
A139: P1220097 | B139: 184 | C139: 161 | D139: 14 | E139: 4 | G139: 1 | H139: 0 | I139: 0 | J139: 2 | K139: 2 | L139: 0
A140: P1220098 | B140: 159 | C140: 142 | D140: 12 | E140: 2 | G140: 1 | H140: 0 | I140: 0 | J140: 1 | K140: 1 | L140: 0
A141: P1220099 | B141: 90 | C141: 82 | D141: 6 | E141: 1 | G141: 0 | H141: 1 | I141: 0 | L141: 0
A142: P1220100 | B142: 12 | C142: 11 | D142: 1 | E142: 0 | G142: 0 | H142: 0 | I142: 0
A143: P1220101 | B143: 4 | C143: 3 | D143: 1 | E143: 0 | G143: 0 | H143: 0 | I143: 0
A144: P1220102 | B144: 3 | C144: 3 | D144: 0 | E144: 0 | G144: 0 | H144: 0 | I144: 0
A145: P1230001 | B145: 596 | C145: 0
A146: P1230002 | B146: 225 | C146: 1
A147: P1230003 | B147: 61 | C147: 1
A148: P1230004 | B148: 11 | C148: 10 | D148: 1 | E148: 0 | F148: 0 | G148: 0 | H148: 0 | I148: 0 | J148: 0 | K148: 0 | L148: 0
A149: P1230005 | B149: 4 | C149: 2 | D149: 0 | E149: 0 | G149: 0 | H149: 0 | I149: 0 | J149: 2
A150: P1240010 | B150: 1988 | C150: 8
A151: P1240011 | B151: 2021 | C151: 1
A152: P1240012 | B152: 1724 | C152: 0
A153: P1240013 | B153: 1764 | C153: 4
A154: P1240014 | B154: 1606 | C154: 2
A155: P1240015 | B155: 1357 | C155: 4
A156: P1240016 | B156: 914 | C156: 3
A157: P1240017 | B157: 1415 | C157: 1118 | D157: 65 | E157: 14 | F157: 214 | G157: 0
A158: P1240018 | B158: 1518 | C158: 1315 | D158: 47 | E158: 17 | F158: 131 | G158: 0
A159: P1240019 | B159: 1289 | C159: 1153 | D159: 33 | E159: 9 | F159: 87 | G159: 0
A160: P1240020 | B160: 1294 | C160: 1166 | D160: 26 | E160: 4 | F160: 94 | G160: 0
A161: P1240021 | B161: 1130 | C161: 1044 | D161: 11 | E161: 4 | F161: 71 | G161: 0
A162: P1240022 | B162: 1001 | C162: 918 | D162: 10 | E162: 6 | F162: 63 | G162: 0
A163: P1240023 | B163: 665 | C163: 611 | D163: 10 | E163: 5 | F163: 36 | G163: 0
A164: P1240024 | B164: 48 | C164: 44 | D164: 2 | E164: 0 | F164: 2 | G164: 0
A165: P1240025 | B165: 1 | C165: 1
A166: P1240026 | B166: 3 | C166: 2 | D166: 0 | E166: 0 | F166: 1 | G166: 0
A167: P1240030 | B167: 1 | C167: 1
A168: P1310010 | B168: 6683 | C168: 3438 | D168: 3245 | E168: 3222 | F168: 3166 | G168: 176 | H168: 74 | I168: 40 | J168: 5 | K168: 42 | L168: 57
A169: P1310020 | B169: 2558 | C169: 1247 | D169: 1311 | E169: 188 | F169: 195 | G169: 377 | H169: 326 | I169: 405 | J169: 420 | K169: 259 | L169: 354 | M169: 18 | N169: 4 | O169: 0 | P169: 12 | Q169: 11 | R169: 32
A170: P1310030 | B170: 164 | C170: 85 | D170: 79 | E170: 21 | F170: 10 | G170: 23 | H170: 25 | I170: 20 | J170: 28 | K170: 21 | L170: 16 | M170: 0 | N170: 0 | O170: 0 | P170: 0 | Q170: 1 | R170: 2
A171: P1310040 | B171: 31 | C171: 30 | D171: 1 | E171: 0 | F171: 0 | G171: 0 | H171: 0 | I171: 0 | J171: 0 | K171: 21 | L171: 1 | M171: 9 | N171: 0 | O171: 0 | P171: 0 | Q171: 0 | R171: 0
A172: P1310050 | B172: 238 | C172: 20 | D172: 218 | I172: 0 | J172: 33 | K172: 20 | L172: 173 | M172: 0 | N172: 12 | O172: 0 | P172: 0 | Q172: 1 | R172: 2
A173: P1310060 | B173: 18 | C173: 0 | D173: 18 | I173: 0 | J173: 2 | K173: 0 | L173: 4 | M173: 0 | N173: 0 | O173: 0 | P173: 12 | Q173: 1 | R173: 0
A174: P1310070 | B174: 722 | C174: 386 | D174: 336 | E174: 164 | F174: 153 | G174: 222 | H174: 183 | Q174: 7 | R174: 7
A175: P1310080 | B175: 572 | C175: 263 | D175: 309 | I175: 162 | J175: 201 | K175: 100 | L175: 108 | M175: 1 | N175: 0 | O175: 0 | P175: 0 | Q175: 1 | R175: 6
A176: P1310090 | B176: 977 | C176: 473 | D176: 504 | E176: 8 | F176: 13 | G176: 140 | H176: 119 | I176: 176 | J176: 206 | K176: 135 | L176: 165 | M176: 14 | N176: 1 | O176: 0 | P176: 0 | Q176: 4 | R176: 15
A177: P1320010 | B177: 285 | C177: 127 | D177: 158 | E177: 12 | F177: 23 | G177: 39 | H177: 33 | I177: 48 | J177: 52 | K177: 26 | L177: 50 | M177: 2 | N177: 0 | O177: 0 | P177: 0 | Q177: 1 | R177: 4
A178: P1320030 | B178: 208 | C178: 95 | D178: 113 | E178: 1 | F178: 4 | G178: 20 | H178: 28 | I178: 30 | J178: 47 | K178: 42 | L178: 34 | M178: 2 | N178: 0 | O178: 0 | P178: 0 | Q178: 0 | R178: 0
A179: P1320040 | B179: 20 | C179: 13 | D179: 7 | E179: 1 | F179: 0 | G179: 3 | H179: 0 | I179: 2 | J179: 3 | K179: 7 | L179: 4 | M179: 0 | N179: 0 | O179: 0 | P179: 0 | Q179: 0 | R179: 0
A180: P1600100 | B180: 14392 | C180: 50 | D180: 1108 | E180: 2020 | F180: 2524 | G180: 2615 | H180: 2216 | I180: 1874 | J180: 1381 | K180: 604
A181: P1600101 | B181: 14522 | C181: 77 | D181: 1587 | E181: 2248 | F181: 2619 | G181: 2474 | H181: 2047 | I181: 1588 | J181: 1302 | K181: 580
A182: P1600102 | B182: 12951 | C182: 175 | D182: 2158 | E182: 2860 | F182: 2633 | G182: 1856 | H182: 1354 | I182: 952 | J182: 680 | K182: 283
A183: P1600103 | B183: 752 | C183: 14 | D183: 175 | E183: 249 | F183: 138 | G183: 87 | H183: 33 | I183: 17 | J183: 26 | K183: 13
A184: P2060000 | B184: 26393 | C184: 13432 | D184: 12961 | E184: 188 | F184: 131 | G184: 208 | H184: 215 | I184: 260 | J184: 265 | K184: 255 | L184: 233 | M184: 254 | N184: 266 | O184: 252 | P184: 259 | Q184: 306 | R184: 319 | S184: 1153 | T184: 1170 | U184: 1520 | V184: 1471 | W184: 1506 | X184: 1508 | Y184: 2802 | Z184: 2623 | AA184: 1493 | AB184: 1380 | AC184: 1101 | AD184: 1108 | AE184: 2134 | AF184: 2013 | AG184: 73 | AH184: 86 | AI184: 141 | AJ184: 140
A185: P2070101 | B185: 1147 | C185: 624 | D185: 523 | G185: 13 | H185: 10 | I185: 30 | J185: 19 | K185: 14 | L185: 16 | M185: 15 | N185: 12 | O185: 20 | P185: 16 | Q185: 11 | R185: 22 | S185: 47 | T185: 57 | U185: 70 | V185: 48 | W185: 73 | X185: 50 | Y185: 132 | Z185: 77 | AA185: 67 | AB185: 69 | AC185: 53 | AD185: 54 | AE185: 79 | AF185: 73 | AG185: 4 | AH185: 5 | AI185: 10 | AJ185: 11
A186: P2070102 | B186: 195 | C186: 117 | D186: 78 | G186: 5 | H186: 4 | I186: 0 | J186: 5 | K186: 3 | L186: 3 | M186: 3 | N186: 1 | O186: 1 | P186: 2 | Q186: 0 | R186: 1 | S186: 11 | T186: 7 | U186: 17 | V186: 7 | W186: 17 | X186: 7 | Y186: 23 | Z186: 16 | AA186: 14 | AB186: 6 | AC186: 9 | AD186: 8 | AE186: 14 | AF186: 11 | AG186: 0 | AH186: 0 | AI186: 2 | AJ186: 2
A187: P2070201 | B187: 4165 | C187: 2179 | D187: 1986 | G187: 8 | H187: 4 | I187: 22 | J187: 15 | K187: 28 | L187: 19 | M187: 22 | N187: 25 | O187: 24 | P187: 20 | Q187: 52 | R187: 36 | S187: 188 | T187: 152 | U187: 224 | V187: 224 | W187: 213 | X187: 228 | Y187: 435 | Z187: 403 | AA187: 293 | AB187: 233 | AC187: 216 | AD187: 210 | AE187: 454 | AF187: 417 | AG187: 7 | AH187: 17 | AI187: 11 | AJ187: 11
A188: P2070202 | B188: 6571 | C188: 3265 | D188: 3306 | G188: 23 | H188: 34 | I188: 48 | J188: 43 | K188: 61 | L188: 54 | M188: 67 | N188: 54 | O188: 65 | P188: 80 | Q188: 76 | R188: 83 | S188: 332 | T188: 322 | U188: 397 | V188: 421 | W188: 403 | X188: 404 | Y188: 685 | Z188: 691 | AA188: 340 | AB188: 354 | AC188: 268 | AD188: 289 | AE188: 500 | AF188: 477 | AG188: 15 | AH188: 17 | AI188: 18 | AJ188: 26
A189: P2070301 | B189: 727 | C189: 399 | D189: 328 | G189: 8 | H189: 13 | I189: 7 | J189: 9 | K189: 12 | L189: 11 | M189: 13 | N189: 14 | O189: 9 | P189: 7 | Q189: 8 | R189: 13 | S189: 37 | T189: 25 | U189: 53 | V189: 39 | W189: 37 | X189: 34 | Y189: 96 | Z189: 54 | AA189: 50 | AB189: 41 | AC189: 22 | AD189: 23 | AE189: 47 | AF189: 45 | AG189: 0 | AH189: 2 | AI189: 4 | AJ189: 5
A190: P2070302 | B190: 116 | C190: 66 | D190: 50 | G190: 2 | H190: 2 | I190: 2 | J190: 3 | K190: 0 | L190: 1 | M190: 2 | N190: 1 | O190: 1 | P190: 4 | Q190: 1 | R190: 1 | S190: 5 | T190: 1 | U190: 6 | V190: 5 | W190: 10 | X190: 4 | Y190: 16 | Z190: 10 | AA190: 5 | AB190: 5 | AC190: 5 | AD190: 6 | AE190: 11 | AF190: 7 | AG190: 0 | AH190: 0 | AI190: 0 | AJ190: 2
A191: P2070401 | B191: 2881 | C191: 1576 | D191: 1305 | G191: 21 | H191: 23 | I191: 39 | J191: 36 | K191: 25 | L191: 29 | M191: 34 | N191: 26 | O191: 30 | P191: 29 | Q191: 42 | R191: 35 | S191: 141 | T191: 153 | U191: 183 | V191: 156 | W191: 167 | X191: 144 | Y191: 361 | Z191: 208 | AA191: 174 | AB191: 137 | AC191: 145 | AD191: 135 | AE191: 214 | AF191: 194 | AG191: 5 | AH191: 4 | AI191: 11 | AJ191: 18
A192: P2070402 | B192: 555 | C192: 323 | D192: 232 | G192: 4 | H192: 5 | I192: 11 | J192: 8 | K192: 9 | L192: 11 | M192: 8 | N192: 4 | O192: 12 | P192: 2 | Q192: 14 | R192: 7 | S192: 34 | T192: 26 | U192: 52 | V192: 26 | W192: 45 | X192: 29 | Y192: 52 | Z192: 39 | AA192: 26 | AB192: 26 | AC192: 19 | AD192: 17 | AE192: 37 | AF192: 32 | AG192: 1 | AH192: 2 | AI192: 4 | AJ192: 1
A193: P2070501 | B193: 720 | C193: 403 | D193: 317 | G193: 13 | H193: 7 | I193: 23 | J193: 8 | K193: 13 | L193: 13 | M193: 10 | N193: 8 | O193: 18 | P193: 15 | Q193: 11 | R193: 19 | S193: 41 | T193: 41 | U193: 53 | V193: 37 | W193: 32 | X193: 26 | Y193: 88 | Z193: 47 | AA193: 44 | AB193: 39 | AC193: 20 | AD193: 19 | AE193: 37 | AF193: 38 | AG193: 0 | AH193: 2 | AI193: 6 | AJ193: 5
A194: P2070502 | B194: 66 | C194: 35 | D194: 31 | G194: 1 | H194: 2 | I194: 0 | J194: 2 | K194: 0 | L194: 0 | M194: 1 | N194: 1 | O194: 1 | P194: 1 | Q194: 0 | R194: 0 | S194: 6 | T194: 6 | U194: 2 | V194: 1 | W194: 4 | X194: 2 | Y194: 9 | Z194: 6 | AA194: 4 | AB194: 1 | AC194: 0 | AD194: 5 | AE194: 7 | AF194: 4 | AG194: 0 | AH194: 0 | AI194: 0 | AJ194: 1
A195: P2070503 | B195: 6641 | C195: 3308 | D195: 3333 | G195: 27 | H195: 34 | I195: 52 | J195: 44 | K195: 61 | L195: 56 | M195: 72 | N195: 58 | O195: 68 | P195: 80 | Q195: 80 | R195: 84 | S195: 323 | T195: 324 | U195: 400 | V195: 428 | W195: 411 | X195: 400 | Y195: 705 | Z195: 700 | AA195: 340 | AB195: 364 | AC195: 260 | AD195: 278 | AE195: 509 | AF195: 483 | AG195: 17 | AH195: 17 | AI195: 32 | AJ195: 27
A196: P2070504 | B196: 4061 | C196: 2121 | D196: 1940 | G196: 9 | H196: 3 | I196: 19 | J196: 16 | K196: 26 | L196: 17 | M196: 22 | N196: 17 | O196: 24 | P196: 19 | Q196: 48 | R196: 38 | S196: 182 | T196: 142 | U196: 213 | V196: 222 | W196: 212 | X196: 226 | Y196: 419 | Z196: 402 | AA196: 299 | AB196: 231 | AC196: 209 | AD196: 199 | AE196: 439 | AF196: 408 | AG196: 6 | AH196: 17 | AI196: 9 | AJ196: 10
A197: P2070505 | B197: 16105 | C197: 8085 | D197: 8020 | G197: 181 | H197: 184 | I197: 194 | J197: 208 | K197: 162 | L197: 158 | M197: 177 | N197: 200 | O197: 169 | P197: 160 | Q197: 206 | R197: 208 | S197: 649 | T197: 712 | U197: 932 | V197: 882 | W197: 930 | X197: 935 | Y197: 1695 | Z197: 1662 | AA197: 886 | AB197: 857 | AC197: 651 | AD197: 640 | AE197: 1253 | AF197: 1214 | AG197: 52 | AH197: 53 | AI197: 96 | AJ197: 101
A198: P2070506 | B198: 24 | C198: 14 | D198: 10 | G198: 0 | H198: 1 | I198: 0 | J198: 1 | K198: 1 | L198: 0 | M198: 1 | N198: 0 | O198: 0 | P198: 0 | Q198: 0 | R198: 0 | S198: 2 | T198: 1 | U198: 2 | V198: 1 | W198: 1 | X198: 2 | Y198: 1 | Z198: 1 | AA198: 1 | AB198: 1 | AC198: 2 | AD198: 1 | AE198: 3 | AF198: 1 | AG198: 0 | AH198: 0 | AI198: 0 | AJ198: 1
A199: P2090300 | B199: 6078 | C199: 398 | D199: 657 | E199: 743 | F199: 473 | G199: 667 | H199: 522 | I199: 723 | J199: 1895
A200: P2090400 | B200: 876 | C200: 24 | D200: 63 | E200: 91 | F200: 65 | G200: 103 | H200: 72 | I200: 111 | J200: 347 | K200: 175
A201: P2100100 | B201: 338 | C201: 3 | D201: 27 | E201: 44 | F201: 28 | G201: 39 | H201: 38 | I201: 46 | J201: 113 | K201: 103
A202: P2100200 | B202: 87 | C202: 56 | D202: 31
... 343 more rows

Sheet P1
D6: REM-P1. POBLACIÓN EN CONTROL PROGRAMA DE SALUD DE LA MUJER
B7: ATENCIÓN PRIMARIA DE SALUD
B8: SECCION A: POBLACIÓN EN CONTROL SEGÚN MÉTODO DE REGULACIÓN DE FERTILIDAD Y SALUD SEXUAL
B9: MÉTODOS | D9: TOTAL | E9: GRUPO DE EDAD (en años) | R9: Pueblos Originarios | S9: Población Migrantes | T9: PV-VIH (personas viviendo con VIH)
E10: Menor de 15 años | F10: 15 a 19 años | G10: 20 a 24 años | H10: 25 a 29 años | I10: 30 a 34 años | J10: 35 a 39 años | K10: 40 a 44 años | L10: 45 a 49 años | M10: 50 a 54 años | N10: 55 a 59 años | O10: 60 a 64 años | P10: 65 a 69 años | Q10: 70 y mas años
A11: P1010100 | B11: D . I . U T con Cobre | D11: =IFERROR(VLOOKUP($A11,Filtros!$A$5:$AY$22116,2,FALSE),0) -> 6504 | E11: =IFERROR(VLOOKUP($A11,Filtros!$A$5:$AY$22116,3,FALSE),0) -> 1 | F11: =IFERROR(VLOOKUP($A11,Filtros!$A$5:$AY$22116,4,FALSE),0) -> 64 | G11: =IFERROR(VLOOKUP($A11,Filtros!$A$5:$AY$22116,5,FALSE),0) -> 350 | H11: =IFERROR(VLOOKUP($A11,Filtros!$A$5:$AY$22116,6,FALSE),0) -> 1052 | I11: =IFERROR(VLOOKUP($A11,Filtros!$A$5:$AY$22116,7,FALSE),0) -> 1228 | J11: =IFERROR(VLOOKUP($A11,Filtros!$A$5:$AY$22116,8,FALSE),0) -> 1256 | K11: =IFERROR(VLOOKUP($A11,Filtros!$A$5:$AY$22116,9,FALSE),0) -> 1088 | L11: =IFERROR(VLOOKUP($A11,Filtros!$A$5:$AY$22116,10,FALSE),0) -> 872 | M11: =IFERROR(VLOOKUP($A11,Filtros!$A$5:$AY$22116,11,FALSE),0) -> 493 | N11: =IFERROR(VLOOKUP($A11,Filtros!$A$5:$AY$22116,12,FALSE),0) -> 100 | O11: =IFERROR(VLOOKUP($A11,Filtros!$A$5:$AY$22116,13,FALSE),0) -> 0 | P11: =IFERROR(VLOOKUP($A11,Filtros!$A$5:$AY$22116,14,FALSE),0) -> 0 | Q11: =IFERROR(VLOOKUP($A11,Filtros!$A$5:$AY$22116,15,FALSE),0) -> 0 | R11: =IFERROR(VLOOKUP($A11,Filtros!$A$5:$AY$22116,16,FALSE),0) -> 105 | S11: =IFERROR(VLOOKUP($A11,Filtros!$A$5:$AY$22116,17,FALSE),0) -> 121 | T11: =IFERROR(VLOOKUP($A11,Filtros!$A$5:$AY$22116,18,FALSE),0) -> 3 | CC11: =IF($R11>$D11,"* La celda 'Pueblos Originarios' debe ser menor o igual al Total en control. ","") ->  | CD11: =IF($S11>$D11,"* La celda 'Población Migrantes' debe ser menor o igual al Total en control. ","") ->  | CE11: =IF($T11>$D11,"* La celda 'Personas Viviendo con VIH' debe ser menor o igual al Total en control. ","") ->  | CF11: =IF(AND($D11<>0,$R11=""),"* No olvide escribir en la celda de 'Pueblos Originarios' (Digite CERO si no tiene). ","") ->  | CG11: =IF(AND($D11<>0,$S11=""),"* No olvide escribir en la celda de 'Población Migrantes' (Digite CERO si no tiene). ","") ->  | CH11: =IF(AND($D11<>0,$T11=""),"* No olvide escribir en la celda de 'PV-VIH' (Digite CERO si no tiene). ","") ->  | DC11: =IF($R11>$D11,1,0) -> 0 | DD11: =IF($S11>$D11,1,0) -> 0 | DE11: =IF($T11>$D11,1,0) -> 0 | DF11: =IF(AND($D11<>0,$R11=""),1,0) -> 0 | DG11: =IF(AND($D11<>0,$S11=""),1,0) -> 0 | DH11: =IF(AND($D11<>0,$T11=""),1,0) -> 0
A12: P1060124 | B12: D . I . U con Levonorgestrel | D12: =IFERROR(VLOOKUP($A12,Filtros!$A$5:$AY$22116,2,FALSE),0) -> 498 | E12: =IFERROR(VLOOKUP($A12,Filtros!$A$5:$AY$22116,3,FALSE),0) -> 0 | F12: =IFERROR(VLOOKUP($A12,Filtros!$A$5:$AY$22116,4,FALSE),0) -> 19 | G12: =IFERROR(VLOOKUP($A12,Filtros!$A$5:$AY$22116,5,FALSE),0) -> 49 | H12: =IFERROR(VLOOKUP($A12,Filtros!$A$5:$AY$22116,6,FALSE),0) -> 131 | I12: =IFERROR(VLOOKUP($A12,Filtros!$A$5:$AY$22116,7,FALSE),0) -> 138 | J12: =IFERROR(VLOOKUP($A12,Filtros!$A$5:$AY$22116,8,FALSE),0) -> 77 | K12: =IFERROR(VLOOKUP($A12,Filtros!$A$5:$AY$22116,9,FALSE),0) -> 57 | L12: =IFERROR(VLOOKUP($A12,Filtros!$A$5:$AY$22116,10,FALSE),0) -> 20 | M12: =IFERROR(VLOOKUP($A12,Filtros!$A$5:$AY$22116,11,FALSE),0) -> 7 | N12: =IFERROR(VLOOKUP($A12,Filtros!$A$5:$AY$22116,12,FALSE),0) -> 0 | O12: =IFERROR(VLOOKUP($A12,Filtros!$A$5:$AY$22116,13,FALSE),0) -> 0 | P12: =IFERROR(VLOOKUP($A12,Filtros!$A$5:$AY$22116,14,FALSE),0) -> 0 | Q12: =IFERROR(VLOOKUP($A12,Filtros!$A$5:$AY$22116,15,FALSE),0) -> 0 | R12: =IFERROR(VLOOKUP($A12,Filtros!$A$5:$AY$22116,16,FALSE),0) -> 9 | S12: =IFERROR(VLOOKUP($A12,Filtros!$A$5:$AY$22116,17,FALSE),0) -> 20 | T12: =IFERROR(VLOOKUP($A12,Filtros!$A$5:$AY$22116,18,FALSE),0) -> 1 | DC12: 0 | DD12: 0 | DE12: 0 | DF12: 0 | DG12: 0 | DH12: 0
A13: P1010201 | B13: HORMONAL | C13: Oral Combinado | D13: =IFERROR(VLOOKUP($A13,Filtros!$A$5:$AY$22116,2,FALSE),0) -> 13706 | E13: =IFERROR(VLOOKUP($A13,Filtros!$A$5:$AY$22116,3,FALSE),0) -> 192 | F13: =IFERROR(VLOOKUP($A13,Filtros!$A$5:$AY$22116,4,FALSE),0) -> 2300 | G13: =IFERROR(VLOOKUP($A13,Filtros!$A$5:$AY$22116,5,FALSE),0) -> 2628 | H13: =IFERROR(VLOOKUP($A13,Filtros!$A$5:$AY$22116,6,FALSE),0) -> 2367 | I13: =IFERROR(VLOOKUP($A13,Filtros!$A$5:$AY$22116,7,FALSE),0) -> 2150 | J13: =IFERROR(VLOOKUP($A13,Filtros!$A$5:$AY$22116,8,FALSE),0) -> 1794 | K13: =IFERROR(VLOOKUP($A13,Filtros!$A$5:$AY$22116,9,FALSE),0) -> 1302 | L13: =IFERROR(VLOOKUP($A13,Filtros!$A$5:$AY$22116,10,FALSE),0) -> 767 | M13: =IFERROR(VLOOKUP($A13,Filtros!$A$5:$AY$22116,11,FALSE),0) -> 189 | N13: =IFERROR(VLOOKUP($A13,Filtros!$A$5:$AY$22116,12,FALSE),0) -> 17 | O13: =IFERROR(VLOOKUP($A13,Filtros!$A$5:$AY$22116,13,FALSE),0) -> 0 | P13: =IFERROR(VLOOKUP($A13,Filtros!$A$5:$AY$22116,14,FALSE),0) -> 0 | Q13: =IFERROR(VLOOKUP($A13,Filtros!$A$5:$AY$22116,15,FALSE),0) -> 0 | R13: =IFERROR(VLOOKUP($A13,Filtros!$A$5:$AY$22116,16,FALSE),0) -> 205 | S13: =IFERROR(VLOOKUP($A13,Filtros!$A$5:$AY$22116,17,FALSE),0) -> 275 | T13: =IFERROR(VLOOKUP($A13,Filtros!$A$5:$AY$22116,18,FALSE),0) -> 2 | DC13: 0 | DD13: 0 | DE13: 0 | DF13: 0 | DG13: 0 | DH13: 0
A14: P1010202 | C14: Oral Progestágeno | D14: =IFERROR(VLOOKUP($A14,Filtros!$A$5:$AY$22116,2,FALSE),0) -> 4245 | E14: =IFERROR(VLOOKUP($A14,Filtros!$A$5:$AY$22116,3,FALSE),0) -> 6 | F14: =IFERROR(VLOOKUP($A14,Filtros!$A$5:$AY$22116,4,FALSE),0) -> 141 | G14: =IFERROR(VLOOKUP($A14,Filtros!$A$5:$AY$22116,5,FALSE),0) -> 350 | H14: =IFERROR(VLOOKUP($A14,Filtros!$A$5:$AY$22116,6,FALSE),0) -> 593 | I14: =IFERROR(VLOOKUP($A14,Filtros!$A$5:$AY$22116,7,FALSE),0) -> 604 | J14: =IFERROR(VLOOKUP($A14,Filtros!$A$5:$AY$22116,8,FALSE),0) -> 534 | K14: =IFERROR(VLOOKUP($A14,Filtros!$A$5:$AY$22116,9,FALSE),0) -> 688 | L14: =IFERROR(VLOOKUP($A14,Filtros!$A$5:$AY$22116,10,FALSE),0) -> 935 | M14: =IFERROR(VLOOKUP($A14,Filtros!$A$5:$AY$22116,11,FALSE),0) -> 368 | N14: =IFERROR(VLOOKUP($A14,Filtros!$A$5:$AY$22116,12,FALSE),0) -> 26 | O14: =IFERROR(VLOOKUP($A14,Filtros!$A$5:$AY$22116,13,FALSE),0) -> 0 | P14: =IFERROR(VLOOKUP($A14,Filtros!$A$5:$AY$22116,14,FALSE),0) -> 0 | Q14: =IFERROR(VLOOKUP($A14,Filtros!$A$5:$AY$22116,15,FALSE),0) -> 0 | R14: =IFERROR(VLOOKUP($A14,Filtros!$A$5:$AY$22116,16,FALSE),0) -> 37 | S14: =IFERROR(VLOOKUP($A14,Filtros!$A$5:$AY$22116,17,FALSE),0) -> 114 | T14: =IFERROR(VLOOKUP($A14,Filtros!$A$5:$AY$22116,18,FALSE),0) -> 0 | DC14: 0 | DD14: 0 | DE14: 0 | DF14: 0 | DG14: 0 | DH14: 0
A15: P1010203 | C15: Inyectable Combinado | D15: =IFERROR(VLOOKUP($A15,Filtros!$A$5:$AY$22116,2,FALSE),0) -> 6524 | E15: =IFERROR(VLOOKUP($A15,Filtros!$A$5:$AY$22116,3,FALSE),0) -> 74 | F15: =IFERROR(VLOOKUP($A15,Filtros!$A$5:$AY$22116,4,FALSE),0) -> 1142 | G15: =IFERROR(VLOOKUP($A15,Filtros!$A$5:$AY$22116,5,FALSE),0) -> 1514 | H15: =IFERROR(VLOOKUP($A15,Filtros!$A$5:$AY$22116,6,FALSE),0) -> 1393 | I15: =IFERROR(VLOOKUP($A15,Filtros!$A$5:$AY$22116,7,FALSE),0) -> 1027 | J15: =IFERROR(VLOOKUP($A15,Filtros!$A$5:$AY$22116,8,FALSE),0) -> 687 | K15: =IFERROR(VLOOKUP($A15,Filtros!$A$5:$AY$22116,9,FALSE),0) -> 423 | L15: =IFERROR(VLOOKUP($A15,Filtros!$A$5:$AY$22116,10,FALSE),0) -> 221 | M15: =IFERROR(VLOOKUP($A15,Filtros!$A$5:$AY$22116,11,FALSE),0) -> 40 | N15: =IFERROR(VLOOKUP($A15,Filtros!$A$5:$AY$22116,12,FALSE),0) -> 3 | O15: =IFERROR(VLOOKUP($A15,Filtros!$A$5:$AY$22116,13,FALSE),0) -> 0 | P15: =IFERROR(VLOOKUP($A15,Filtros!$A$5:$AY$22116,14,FALSE),0) -> 0 | Q15: =IFERROR(VLOOKUP($A15,Filtros!$A$5:$AY$22116,15,FALSE),0) -> 0 | R15: =IFERROR(VLOOKUP($A15,Filtros!$A$5:$AY$22116,16,FALSE),0) -> 105 | S15: =IFERROR(VLOOKUP($A15,Filtros!$A$5:$AY$22116,17,FALSE),0) -> 185 | T15: =IFERROR(VLOOKUP($A15,Filtros!$A$5:$AY$22116,18,FALSE),0) -> 1 | DC15: 0 | DD15: 0 | DE15: 0 | DF15: 0 | DG15: 0 | DH15: 0
A16: P1040508 | C16: Inyectable Progestágeno | D16: =IFERROR(VLOOKUP($A16,Filtros!$A$5:$AY$22116,2,FALSE),0) -> 10072 | E16: =IFERROR(VLOOKUP($A16,Filtros!$A$5:$AY$22116,3,FALSE),0) -> 78 | F16: =IFERROR(VLOOKUP($A16,Filtros!$A$5:$AY$22116,4,FALSE),0) -> 1096 | G16: =IFERROR(VLOOKUP($A16,Filtros!$A$5:$AY$22116,5,FALSE),0) -> 1856 | H16: =IFERROR(VLOOKUP($A16,Filtros!$A$5:$AY$22116,6,FALSE),0) -> 2160 | I16: =IFERROR(VLOOKUP($A16,Filtros!$A$5:$AY$22116,7,FALSE),0) -> 1719 | J16: =IFERROR(VLOOKUP($A16,Filtros!$A$5:$AY$22116,8,FALSE),0) -> 1229 | K16: =IFERROR(VLOOKUP($A16,Filtros!$A$5:$AY$22116,9,FALSE),0) -> 910 | L16: =IFERROR(VLOOKUP($A16,Filtros!$A$5:$AY$22116,10,FALSE),0) -> 767 | M16: =IFERROR(VLOOKUP($A16,Filtros!$A$5:$AY$22116,11,FALSE),0) -> 248 | N16: =IFERROR(VLOOKUP($A16,Filtros!$A$5:$AY$22116,12,FALSE),0) -> 9 | O16: =IFERROR(VLOOKUP($A16,Filtros!$A$5:$AY$22116,13,FALSE),0) -> 0 | P16: =IFERROR(VLOOKUP($A16,Filtros!$A$5:$AY$22116,14,FALSE),0) -> 0 | Q16: =IFERROR(VLOOKUP($A16,Filtros!$A$5:$AY$22116,15,FALSE),0) -> 0 | R16: =IFERROR(VLOOKUP($A16,Filtros!$A$5:$AY$22116,16,FALSE),0) -> 169 | S16: =IFERROR(VLOOKUP($A16,Filtros!$A$5:$AY$22116,17,FALSE),0) -> 597 | T16: =IFERROR(VLOOKUP($A16,Filtros!$A$5:$AY$22116,18,FALSE),0) -> 5 | DC16: 0 | DD16: 0 | DE16: 0 | DF16: 0 | DG16: 0 | DH16: 0
A17: P1040500 | C17: Implante Etonogestrel (3 años) | D17: =IFERROR(VLOOKUP($A17,Filtros!$A$5:$AY$22116,2,FALSE),0) -> 8454 | E17: =IFERROR(VLOOKUP($A17,Filtros!$A$5:$AY$22116,3,FALSE),0) -> 131 | F17: =IFERROR(VLOOKUP($A17,Filtros!$A$5:$AY$22116,4,FALSE),0) -> 1717 | G17: =IFERROR(VLOOKUP($A17,Filtros!$A$5:$AY$22116,5,FALSE),0) -> 2177 | H17: =IFERROR(VLOOKUP($A17,Filtros!$A$5:$AY$22116,6,FALSE),0) -> 1829 | I17: =IFERROR(VLOOKUP($A17,Filtros!$A$5:$AY$22116,7,FALSE),0) -> 1306 | J17: =IFERROR(VLOOKUP($A17,Filtros!$A$5:$AY$22116,8,FALSE),0) -> 755 | K17: =IFERROR(VLOOKUP($A17,Filtros!$A$5:$AY$22116,9,FALSE),0) -> 378 | L17: =IFERROR(VLOOKUP($A17,Filtros!$A$5:$AY$22116,10,FALSE),0) -> 145 | M17: =IFERROR(VLOOKUP($A17,Filtros!$A$5:$AY$22116,11,FALSE),0) -> 15 | N17: =IFERROR(VLOOKUP($A17,Filtros!$A$5:$AY$22116,12,FALSE),0) -> 1 | O17: =IFERROR(VLOOKUP($A17,Filtros!$A$5:$AY$22116,13,FALSE),0) -> 0 | P17: =IFERROR(VLOOKUP($A17,Filtros!$A$5:$AY$22116,14,FALSE),0) -> 0 | Q17: =IFERROR(VLOOKUP($A17,Filtros!$A$5:$AY$22116,15,FALSE),0) -> 0 | R17: =IFERROR(VLOOKUP($A17,Filtros!$A$5:$AY$22116,16,FALSE),0) -> 70 | S17: =IFERROR(VLOOKUP($A17,Filtros!$A$5:$AY$22116,17,FALSE),0) -> 421 | T17: =IFERROR(VLOOKUP($A17,Filtros!$A$5:$AY$22116,18,FALSE),0) -> 4 | DC17: 0 | DD17: 0 | DE17: 0 | DF17: 0 | DG17: 0 | DH17: 0
A18: P1200190 | C18: Implante Levonorgestrel (5 años) | D18: =IFERROR(VLOOKUP($A18,Filtros!$A$5:$AY$22116,2,FALSE),0) -> 2084 | E18: =IFERROR(VLOOKUP($A18,Filtros!$A$5:$AY$22116,3,FALSE),0) -> 34 | F18: =IFERROR(VLOOKUP($A18,Filtros!$A$5:$AY$22116,4,FALSE),0) -> 440 | G18: =IFERROR(VLOOKUP($A18,Filtros!$A$5:$AY$22116,5,FALSE),0) -> 501 | H18: =IFERROR(VLOOKUP($A18,Filtros!$A$5:$AY$22116,6,FALSE),0) -> 455 | I18: =IFERROR(VLOOKUP($A18,Filtros!$A$5:$AY$22116,7,FALSE),0) -> 315 | J18: =IFERROR(VLOOKUP($A18,Filtros!$A$5:$AY$22116,8,FALSE),0) -> 213 | K18: =IFERROR(VLOOKUP($A18,Filtros!$A$5:$AY$22116,9,FALSE),0) -> 91 | L18: =IFERROR(VLOOKUP($A18,Filtros!$A$5:$AY$22116,10,FALSE),0) -> 34 | M18: =IFERROR(VLOOKUP($A18,Filtros!$A$5:$AY$22116,11,FALSE),0) -> 1 | N18: =IFERROR(VLOOKUP($A18,Filtros!$A$5:$AY$22116,12,FALSE),0) -> 0 | O18: =IFERROR(VLOOKUP($A18,Filtros!$A$5:$AY$22116,13,FALSE),0) -> 0 | P18: =IFERROR(VLOOKUP($A18,Filtros!$A$5:$AY$22116,14,FALSE),0) -> 0 | Q18: =IFERROR(VLOOKUP($A18,Filtros!$A$5:$AY$22116,15,FALSE),0) -> 0 | R18: =IFERROR(VLOOKUP($A18,Filtros!$A$5:$AY$22116,16,FALSE),0) -> 20 | S18: =IFERROR(VLOOKUP($A18,Filtros!$A$5:$AY$22116,17,FALSE),0) -> 151 | T18: =IFERROR(VLOOKUP($A18,Filtros!$A$5:$AY$22116,18,FALSE),0) -> 1 | DC18: 0 | DD18: 0 | DE18: 0 | DF18: 0 | DG18: 0 | DH18: 0
A19: P1010301 | B19: SÓLO PRESERVATIVO MAC | C19: Mujer | D19: =IFERROR(VLOOKUP($A19,Filtros!$A$5:$AY$22116,2,FALSE),0) -> 1414 | E19: =IFERROR(VLOOKUP($A19,Filtros!$A$5:$AY$22116,3,FALSE),0) -> 21 | F19: =IFERROR(VLOOKUP($A19,Filtros!$A$5:$AY$22116,4,FALSE),0) -> 169 | G19: =IFERROR(VLOOKUP($A19,Filtros!$A$5:$AY$22116,5,FALSE),0) -> 206 | H19: =IFERROR(VLOOKUP($A19,Filtros!$A$5:$AY$22116,6,FALSE),0) -> 202 | I19: =IFERROR(VLOOKUP($A19,Filtros!$A$5:$AY$22116,7,FALSE),0) -> 221 | J19: =IFERROR(VLOOKUP($A19,Filtros!$A$5:$AY$22116,8,FALSE),0) -> 196 | K19: =IFERROR(VLOOKUP($A19,Filtros!$A$5:$AY$22116,9,FALSE),0) -> 165 | L19: =IFERROR(VLOOKUP($A19,Filtros!$A$5:$AY$22116,10,FALSE),0) -> 138 | M19: =IFERROR(VLOOKUP($A19,Filtros!$A$5:$AY$22116,11,FALSE),0) -> 82 | N19: =IFERROR(VLOOKUP($A19,Filtros!$A$5:$AY$22116,12,FALSE),0) -> 12 | O19: =IFERROR(VLOOKUP($A19,Filtros!$A$5:$AY$22116,13,FALSE),0) -> 1 | P19: =IFERROR(VLOOKUP($A19,Filtros!$A$5:$AY$22116,14,FALSE),0) -> 1 | Q19: =IFERROR(VLOOKUP($A19,Filtros!$A$5:$AY$22116,15,FALSE),0) -> 0 | R19: =IFERROR(VLOOKUP($A19,Filtros!$A$5:$AY$22116,16,FALSE),0) -> 23 | S19: =IFERROR(VLOOKUP($A19,Filtros!$A$5:$AY$22116,17,FALSE),0) -> 69 | T19: =IFERROR(VLOOKUP($A19,Filtros!$A$5:$AY$22116,18,FALSE),0) -> 2 | DC19: 0 | DD19: 0 | DE19: 0 | DF19: 0 | DG19: 0 | DH19: 0
A20: P1010302 | C20: Hombres | D20: =IFERROR(VLOOKUP($A20,Filtros!$A$5:$AY$22116,2,FALSE),0) -> 343 | E20: =IFERROR(VLOOKUP($A20,Filtros!$A$5:$AY$22116,3,FALSE),0) -> 9 | F20: =IFERROR(VLOOKUP($A20,Filtros!$A$5:$AY$22116,4,FALSE),0) -> 105 | G20: =IFERROR(VLOOKUP($A20,Filtros!$A$5:$AY$22116,5,FALSE),0) -> 59 | H20: =IFERROR(VLOOKUP($A20,Filtros!$A$5:$AY$22116,6,FALSE),0) -> 42 | I20: =IFERROR(VLOOKUP($A20,Filtros!$A$5:$AY$22116,7,FALSE),0) -> 46 | J20: =IFERROR(VLOOKUP($A20,Filtros!$A$5:$AY$22116,8,FALSE),0) -> 18 | K20: =IFERROR(VLOOKUP($A20,Filtros!$A$5:$AY$22116,9,FALSE),0) -> 20 | L20: =IFERROR(VLOOKUP($A20,Filtros!$A$5:$AY$22116,10,FALSE),0) -> 18 | M20: =IFERROR(VLOOKUP($A20,Filtros!$A$5:$AY$22116,11,FALSE),0) -> 18 | N20: =IFERROR(VLOOKUP($A20,Filtros!$A$5:$AY$22116,12,FALSE),0) -> 5 | O20: =IFERROR(VLOOKUP($A20,Filtros!$A$5:$AY$22116,13,FALSE),0) -> 1 | P20: =IFERROR(VLOOKUP($A20,Filtros!$A$5:$AY$22116,14,FALSE),0) -> 2 | Q20: =IFERROR(VLOOKUP($A20,Filtros!$A$5:$AY$22116,15,FALSE),0) -> 0 | R20: =IFERROR(VLOOKUP($A20,Filtros!$A$5:$AY$22116,16,FALSE),0) -> 2 | S20: =IFERROR(VLOOKUP($A20,Filtros!$A$5:$AY$22116,17,FALSE),0) -> 17 | T20: =IFERROR(VLOOKUP($A20,Filtros!$A$5:$AY$22116,18,FALSE),0) -> 5 | DC20: 0 | DD20: 0 | DE20: 0 | DF20: 0 | DG20: 0 | DH20: 0
A21: P1200240 | B21: ESTERILIZACIÓN QUIRURGICA | C21: Mujer | D21: =IFERROR(VLOOKUP($A21,Filtros!$A$5:$AY$22116,2,FALSE),0) -> 2474 | E21: =IFERROR(VLOOKUP($A21,Filtros!$A$5:$AY$22116,3,FALSE),0) -> 0 | F21: =IFERROR(VLOOKUP($A21,Filtros!$A$5:$AY$22116,4,FALSE),0) -> 0 | G21: =IFERROR(VLOOKUP($A21,Filtros!$A$5:$AY$22116,5,FALSE),0) -> 24 | H21: =IFERROR(VLOOKUP($A21,Filtros!$A$5:$AY$22116,6,FALSE),0) -> 104 | I21: =IFERROR(VLOOKUP($A21,Filtros!$A$5:$AY$22116,7,FALSE),0) -> 313 | J21: =IFERROR(VLOOKUP($A21,Filtros!$A$5:$AY$22116,8,FALSE),0) -> 507 | K21: =IFERROR(VLOOKUP($A21,Filtros!$A$5:$AY$22116,9,FALSE),0) -> 603 | L21: =IFERROR(VLOOKUP($A21,Filtros!$A$5:$AY$22116,10,FALSE),0) -> 487 | M21: =IFERROR(VLOOKUP($A21,Filtros!$A$5:$AY$22116,11,FALSE),0) -> 306 | N21: =IFERROR(VLOOKUP($A21,Filtros!$A$5:$AY$22116,12,FALSE),0) -> 130 | O21: =IFERROR(VLOOKUP($A21,Filtros!$A$5:$AY$22116,13,FALSE),0) -> 0 | P21: =IFERROR(VLOOKUP($A21,Filtros!$A$5:$AY$22116,14,FALSE),0) -> 0 | Q21: =IFERROR(VLOOKUP($A21,Filtros!$A$5:$AY$22116,15,FALSE),0) -> 0 | R21: =IFERROR(VLOOKUP($A21,Filtros!$A$5:$AY$22116,16,FALSE),0) -> 32 | S21: =IFERROR(VLOOKUP($A21,Filtros!$A$5:$AY$22116,17,FALSE),0) -> 77 | T21: =IFERROR(VLOOKUP($A21,Filtros!$A$5:$AY$22116,18,FALSE),0) -> 3 | DC21: 0 | DD21: 0 | DE21: 0 | DF21: 0 | DG21: 0 | DH21: 0
A22: P1200250 | C22: Hombres | D22: =IFERROR(VLOOKUP($A22,Filtros!$A$5:$AY$22116,2,FALSE),0) -> 1 | E22: =IFERROR(VLOOKUP($A22,Filtros!$A$5:$AY$22116,3,FALSE),0) -> 0 | F22: =IFERROR(VLOOKUP($A22,Filtros!$A$5:$AY$22116,4,FALSE),0) -> 0 | G22: =IFERROR(VLOOKUP($A22,Filtros!$A$5:$AY$22116,5,FALSE),0) -> 0 | H22: =IFERROR(VLOOKUP($A22,Filtros!$A$5:$AY$22116,6,FALSE),0) -> 1 | I22: =IFERROR(VLOOKUP($A22,Filtros!$A$5:$AY$22116,7,FALSE),0) -> 0 | J22: =IFERROR(VLOOKUP($A22,Filtros!$A$5:$AY$22116,8,FALSE),0) -> 0 | K22: =IFERROR(VLOOKUP($A22,Filtros!$A$5:$AY$22116,9,FALSE),0) -> 0 | L22: =IFERROR(VLOOKUP($A22,Filtros!$A$5:$AY$22116,10,FALSE),0) -> 0 | M22: =IFERROR(VLOOKUP($A22,Filtros!$A$5:$AY$22116,11,FALSE),0) -> 0 | N22: =IFERROR(VLOOKUP($A22,Filtros!$A$5:$AY$22116,12,FALSE),0) -> 0 | O22: =IFERROR(VLOOKUP($A22,Filtros!$A$5:$AY$22116,13,FALSE),0) -> 0 | P22: =IFERROR(VLOOKUP($A22,Filtros!$A$5:$AY$22116,14,FALSE),0) -> 0 | Q22: =IFERROR(VLOOKUP($A22,Filtros!$A$5:$AY$22116,15,FALSE),0) -> 0 | R22: =IFERROR(VLOOKUP($A22,Filtros!$A$5:$AY$22116,16,FALSE),0) -> 0 | S22: =IFERROR(VLOOKUP($A22,Filtros!$A$5:$AY$22116,17,FALSE),0) -> 0 | T22: =IFERROR(VLOOKUP($A22,Filtros!$A$5:$AY$22116,18,FALSE),0) -> 0 | DC22: 0 | DD22: 0 | DE22: 0 | DF22: 0 | DG22: 0 | DH22: 0
B23: TOTAL | D23: =SUM(E23:Q23) -> 56819 | E23: =SUM(E11:E22,E29:E30,E33) -> 562 | F23: =SUM(F11:F22,F29:F30,F33) -> 7453 | G23: 9843 | H23: 10461 | I23: 9153 | J23: 7327 | K23: 5756 | L23: =SUM(L11:L22,L29:L30,L33) -> 4439 | M23: =SUM(M11:M22,M29:M30,M33) -> 1803 | N23: =SUM(N19:N20) -> 17 | O23: =SUM(O19:O20) -> 2 | P23: =SUM(P19:P20) -> 3 | Q23: =SUM(Q19:Q20) -> 0 | R23: =SUM(R11:R22,R29:R30,R33) -> 783 | S23: 2076 | T23: =SUM(T11:T22,T29:T30,T33) -> 32
A24: P1060010 | B24: Mujeres en control con enfermedad cardiovascular (DM-HTA) | D24: =IFERROR(VLOOKUP($A24,Filtros!$A$5:$AY$22116,2,FALSE),0) -> 2413 | E24: =IFERROR(VLOOKUP($A24,Filtros!$A$5:$AY$22116,3,FALSE),0) -> 1 | F24: =IFERROR(VLOOKUP($A24,Filtros!$A$5:$AY$22116,4,FALSE),0) -> 29 | G24: =IFERROR(VLOOKUP($A24,Filtros!$A$5:$AY$22116,5,FALSE),0) -> 67 | H24: =IFERROR(VLOOKUP($A24,Filtros!$A$5:$AY$22116,6,FALSE),0) -> 138 | I24: =IFERROR(VLOOKUP($A24,Filtros!$A$5:$AY$22116,7,FALSE),0) -> 199 | J24: =IFERROR(VLOOKUP($A24,Filtros!$A$5:$AY$22116,8,FALSE),0) -> 364 | K24: =IFERROR(VLOOKUP($A24,Filtros!$A$5:$AY$22116,9,FALSE),0) -> 505 | L24: =IFERROR(VLOOKUP($A24,Filtros!$A$5:$AY$22116,10,FALSE),0) -> 621 | M24: =IFERROR(VLOOKUP($A24,Filtros!$A$5:$AY$22116,11,FALSE),0) -> 374 | N24: =IFERROR(VLOOKUP($A24,Filtros!$A$5:$AY$22116,12,FALSE),0) -> 102 | O24: =IFERROR(VLOOKUP($A24,Filtros!$A$5:$AY$22116,13,FALSE),0) -> 11 | P24: =IFERROR(VLOOKUP($A24,Filtros!$A$5:$AY$22116,14,FALSE),0) -> 2 | Q24: =IFERROR(VLOOKUP($A24,Filtros!$A$5:$AY$22116,15,FALSE),0) -> 0 | R24: =IFERROR(VLOOKUP($A24,Filtros!$A$5:$AY$22116,16,FALSE),0) -> 34 | S24: =IFERROR(VLOOKUP($A24,Filtros!$A$5:$AY$22116,17,FALSE),0) -> 38 | T24: =IFERROR(VLOOKUP($A24,Filtros!$A$5:$AY$22116,18,FALSE),0) -> 0 | CC24: =IF($R24>$D24,"* La celda 'Pueblos Originarios' debe ser menor o igual al Total en control. ","") ->  | CD24: =IF($S24>$D24,"* La celda 'Población Migrantes' debe ser menor o igual al Total en control. ","") ->  | CE24: =IF($T24>$D24,"* La celda 'Personas Viviendo con VIH' debe ser menor o igual al Total en control. ","") ->  | CF24: =IF(AND($D24<>0,$R24=""),"* No olvide escribir en la celda de 'Pueblos Originarios' (Digite CERO si no tiene). ","") ->  | CG24: =IF(AND($D24<>0,$S24=""),"* No olvide escribir en la celda de 'Población Migrantes' (Digite CERO si no tiene). ","") ->  | CH24: =IF(AND($D24<>0,$T24=""),"* No olvide escribir en la celda de 'PV-VIH' (Digite CERO si no tiene). ","") ->  | DC24: =IF($R24>$D24,1,0) -> 0 | DD24: =IF($S24>$D24,1,0) -> 0 | DE24: =IF($T24>$D24,1,0) -> 0 | DF24: =IF(AND($D24<>0,$R24=""),1,0) -> 0 | DG24: =IF(AND($D24<>0,$S24=""),1,0) -> 0 | DH24: =IF(AND($D24<>0,$T24=""),1,0) -> 0
A25: P1060020 | B25: Mujeres con Retiro de Implante Anticipado en el semestre (antes de los 3 años) | D25: =IFERROR(VLOOKUP($A25,Filtros!$A$5:$AY$22116,2,FALSE),0) -> 164 | E25: =IFERROR(VLOOKUP($A25,Filtros!$A$5:$AY$22116,3,FALSE),0) -> 3 | F25: =IFERROR(VLOOKUP($A25,Filtros!$A$5:$AY$22116,4,FALSE),0) -> 26 | G25: =IFERROR(VLOOKUP($A25,Filtros!$A$5:$AY$22116,5,FALSE),0) -> 50 | H25: =IFERROR(VLOOKUP($A25,Filtros!$A$5:$AY$22116,6,FALSE),0) -> 36 | I25: =IFERROR(VLOOKUP($A25,Filtros!$A$5:$AY$22116,7,FALSE),0) -> 14 | J25: =IFERROR(VLOOKUP($A25,Filtros!$A$5:$AY$22116,8,FALSE),0) -> 14 | K25: =IFERROR(VLOOKUP($A25,Filtros!$A$5:$AY$22116,9,FALSE),0) -> 6 | L25: =IFERROR(VLOOKUP($A25,Filtros!$A$5:$AY$22116,10,FALSE),0) -> 9 | M25: =IFERROR(VLOOKUP($A25,Filtros!$A$5:$AY$22116,11,FALSE),0) -> 3 | N25: =IFERROR(VLOOKUP($A25,Filtros!$A$5:$AY$22116,12,FALSE),0) -> 3 | O25: =IFERROR(VLOOKUP($A25,Filtros!$A$5:$AY$22116,13,FALSE),0) -> 0 | P25: =IFERROR(VLOOKUP($A25,Filtros!$A$5:$AY$22116,14,FALSE),0) -> 0 | Q25: =IFERROR(VLOOKUP($A25,Filtros!$A$5:$AY$22116,15,FALSE),0) -> 0 | R25: =IFERROR(VLOOKUP($A25,Filtros!$A$5:$AY$22116,16,FALSE),0) -> 0 | S25: =IFERROR(VLOOKUP($A25,Filtros!$A$5:$AY$22116,17,FALSE),0) -> 2 | T25: =IFERROR(VLOOKUP($A25,Filtros!$A$5:$AY$22116,18,FALSE),0) -> 0 | DC25: 0 | DD25: 0 | DE25: 0 | DF25: 0 | DG25: 0 | DH25: 0
A26: P1200260 | B26: Mujeres con Retiro de Implante Anticipado en el semestre (antes de los 5 años) | D26: =IFERROR(VLOOKUP($A26,Filtros!$A$5:$AY$22116,2,FALSE),0) -> 78 | E26: =IFERROR(VLOOKUP($A26,Filtros!$A$5:$AY$22116,3,FALSE),0) -> 0 | F26: =IFERROR(VLOOKUP($A26,Filtros!$A$5:$AY$22116,4,FALSE),0) -> 16 | G26: =IFERROR(VLOOKUP($A26,Filtros!$A$5:$AY$22116,5,FALSE),0) -> 27 | H26: =IFERROR(VLOOKUP($A26,Filtros!$A$5:$AY$22116,6,FALSE),0) -> 17 | I26: =IFERROR(VLOOKUP($A26,Filtros!$A$5:$AY$22116,7,FALSE),0) -> 8 | J26: =IFERROR(VLOOKUP($A26,Filtros!$A$5:$AY$22116,8,FALSE),0) -> 8 | K26: =IFERROR(VLOOKUP($A26,Filtros!$A$5:$AY$22116,9,FALSE),0) -> 2 | L26: =IFERROR(VLOOKUP($A26,Filtros!$A$5:$AY$22116,10,FALSE),0) -> 0 | M26: =IFERROR(VLOOKUP($A26,Filtros!$A$5:$AY$22116,11,FALSE),0) -> 0 | N26: =IFERROR(VLOOKUP($A26,Filtros!$A$5:$AY$22116,12,FALSE),0) -> 0 | O26: =IFERROR(VLOOKUP($A26,Filtros!$A$5:$AY$22116,13,FALSE),0) -> 0 | P26: =IFERROR(VLOOKUP($A26,Filtros!$A$5:$AY$22116,14,FALSE),0) -> 0 | Q26: =IFERROR(VLOOKUP($A26,Filtros!$A$5:$AY$22116,15,FALSE),0) -> 0 | R26: =IFERROR(VLOOKUP($A26,Filtros!$A$5:$AY$22116,16,FALSE),0) -> 0 | S26: =IFERROR(VLOOKUP($A26,Filtros!$A$5:$AY$22116,17,FALSE),0) -> 0 | T26: =IFERROR(VLOOKUP($A26,Filtros!$A$5:$AY$22116,18,FALSE),0) -> 0 | DC26: 0 | DD26: 0 | DE26: 0 | DF26: 0 | DG26: 0 | DH26: 0
A27: P1060090 | B27: Método de Regulación de Fertilidad más Preservativo | D27: =IFERROR(VLOOKUP($A27,Filtros!$A$5:$AY$22116,2,FALSE),0) -> 5168 | E27: =IFERROR(VLOOKUP($A27,Filtros!$A$5:$AY$22116,3,FALSE),0) -> 131 | F27: =IFERROR(VLOOKUP($A27,Filtros!$A$5:$AY$22116,4,FALSE),0) -> 1565 | G27: =IFERROR(VLOOKUP($A27,Filtros!$A$5:$AY$22116,5,FALSE),0) -> 1145 | H27: =IFERROR(VLOOKUP($A27,Filtros!$A$5:$AY$22116,6,FALSE),0) -> 913 | I27: =IFERROR(VLOOKUP($A27,Filtros!$A$5:$AY$22116,7,FALSE),0) -> 611 | J27: =IFERROR(VLOOKUP($A27,Filtros!$A$5:$AY$22116,8,FALSE),0) -> 418 | K27: =IFERROR(VLOOKUP($A27,Filtros!$A$5:$AY$22116,9,FALSE),0) -> 208 | L27: =IFERROR(VLOOKUP($A27,Filtros!$A$5:$AY$22116,10,FALSE),0) -> 135 | M27: =IFERROR(VLOOKUP($A27,Filtros!$A$5:$AY$22116,11,FALSE),0) -> 37 | N27: =IFERROR(VLOOKUP($A27,Filtros!$A$5:$AY$22116,12,FALSE),0) -> 5 | O27: =IFERROR(VLOOKUP($A27,Filtros!$A$5:$AY$22116,13,FALSE),0) -> 0 | P27: =IFERROR(VLOOKUP($A27,Filtros!$A$5:$AY$22116,14,FALSE),0) -> 0 | Q27: =IFERROR(VLOOKUP($A27,Filtros!$A$5:$AY$22116,15,FALSE),0) -> 0 | R27: =IFERROR(VLOOKUP($A27,Filtros!$A$5:$AY$22116,16,FALSE),0) -> 32 | S27: =IFERROR(VLOOKUP($A27,Filtros!$A$5:$AY$22116,17,FALSE),0) -> 89 | T27: =IFERROR(VLOOKUP($A27,Filtros!$A$5:$AY$22116,18,FALSE),0) -> 5 | DC27: 0 | DD27: 0 | DE27: 0 | DF27: 0 | DG27: 0 | DH27: 0
A28: P1200270 | B28: Gestantes que reciben preservativo | D28: =IFERROR(VLOOKUP($A28,Filtros!$A$5:$AY$22116,2,FALSE),0) -> 286 | E28: =IFERROR(VLOOKUP($A28,Filtros!$A$5:$AY$22116,3,FALSE),0) -> 2 | F28: =IFERROR(VLOOKUP($A28,Filtros!$A$5:$AY$22116,4,FALSE),0) -> 33 | G28: =IFERROR(VLOOKUP($A28,Filtros!$A$5:$AY$22116,5,FALSE),0) -> 81 | H28: =IFERROR(VLOOKUP($A28,Filtros!$A$5:$AY$22116,6,FALSE),0) -> 75 | I28: =IFERROR(VLOOKUP($A28,Filtros!$A$5:$AY$22116,7,FALSE),0) -> 64 | J28: =IFERROR(VLOOKUP($A28,Filtros!$A$5:$AY$22116,8,FALSE),0) -> 21 | K28: =IFERROR(VLOOKUP($A28,Filtros!$A$5:$AY$22116,9,FALSE),0) -> 10 | L28: =IFERROR(VLOOKUP($A28,Filtros!$A$5:$AY$22116,10,FALSE),0) -> 0 | M28: =IFERROR(VLOOKUP($A28,Filtros!$A$5:$AY$22116,11,FALSE),0) -> 0 | N28: =IFERROR(VLOOKUP($A28,Filtros!$A$5:$AY$22116,12,FALSE),0) -> 0 | O28: =IFERROR(VLOOKUP($A28,Filtros!$A$5:$AY$22116,13,FALSE),0) -> 0 | P28: =IFERROR(VLOOKUP($A28,Filtros!$A$5:$AY$22116,14,FALSE),0) -> 0 | Q28: =IFERROR(VLOOKUP($A28,Filtros!$A$5:$AY$22116,15,FALSE),0) -> 0 | R28: =IFERROR(VLOOKUP($A28,Filtros!$A$5:$AY$22116,16,FALSE),0) -> 2 | S28: =IFERROR(VLOOKUP($A28,Filtros!$A$5:$AY$22116,17,FALSE),0) -> 5 | T28: =IFERROR(VLOOKUP($A28,Filtros!$A$5:$AY$22116,18,FALSE),0) -> 1 | DC28: 0 | DD28: 0 | DE28: 0 | DF28: 0 | DG28: 0 | DH28: 0
A29: P1200200 | B29: PRESERVATIVO/PRACTICA SEXUAL SEGURA | C29: Mujer | D29: =IFERROR(VLOOKUP($A29,Filtros!$A$5:$AY$22116,2,FALSE),0) -> 684 | E29: =IFERROR(VLOOKUP($A29,Filtros!$A$5:$AY$22116,3,FALSE),0) -> 11 | F29: =IFERROR(VLOOKUP($A29,Filtros!$A$5:$AY$22116,4,FALSE),0) -> 209 | G29: =IFERROR(VLOOKUP($A29,Filtros!$A$5:$AY$22116,5,FALSE),0) -> 115 | H29: =IFERROR(VLOOKUP($A29,Filtros!$A$5:$AY$22116,6,FALSE),0) -> 123 | I29: =IFERROR(VLOOKUP($A29,Filtros!$A$5:$AY$22116,7,FALSE),0) -> 80 | J29: =IFERROR(VLOOKUP($A29,Filtros!$A$5:$AY$22116,8,FALSE),0) -> 58 | K29: =IFERROR(VLOOKUP($A29,Filtros!$A$5:$AY$22116,9,FALSE),0) -> 27 | L29: =IFERROR(VLOOKUP($A29,Filtros!$A$5:$AY$22116,10,FALSE),0) -> 31 | M29: =IFERROR(VLOOKUP($A29,Filtros!$A$5:$AY$22116,11,FALSE),0) -> 25 | N29: =IFERROR(VLOOKUP($A29,Filtros!$A$5:$AY$22116,12,FALSE),0) -> 3 | O29: =IFERROR(VLOOKUP($A29,Filtros!$A$5:$AY$22116,13,FALSE),0) -> 2 | P29: =IFERROR(VLOOKUP($A29,Filtros!$A$5:$AY$22116,14,FALSE),0) -> 0 | Q29: =IFERROR(VLOOKUP($A29,Filtros!$A$5:$AY$22116,15,FALSE),0) -> 0 | R29: =IFERROR(VLOOKUP($A29,Filtros!$A$5:$AY$22116,16,FALSE),0) -> 6 | S29: =IFERROR(VLOOKUP($A29,Filtros!$A$5:$AY$22116,17,FALSE),0) -> 25 | T29: =IFERROR(VLOOKUP($A29,Filtros!$A$5:$AY$22116,18,FALSE),0) -> 2 | DC29: 0 | DD29: 0 | DE29: 0 | DF29: 0 | DG29: 0 | DH29: 0
A30: P1200210 | C30: Hombres | D30: =IFERROR(VLOOKUP($A30,Filtros!$A$5:$AY$22116,2,FALSE),0) -> 93 | E30: =IFERROR(VLOOKUP($A30,Filtros!$A$5:$AY$22116,3,FALSE),0) -> 5 | F30: =IFERROR(VLOOKUP($A30,Filtros!$A$5:$AY$22116,4,FALSE),0) -> 46 | G30: =IFERROR(VLOOKUP($A30,Filtros!$A$5:$AY$22116,5,FALSE),0) -> 13 | H30: =IFERROR(VLOOKUP($A30,Filtros!$A$5:$AY$22116,6,FALSE),0) -> 8 | I30: =IFERROR(VLOOKUP($A30,Filtros!$A$5:$AY$22116,7,FALSE),0) -> 3 | J30: =IFERROR(VLOOKUP($A30,Filtros!$A$5:$AY$22116,8,FALSE),0) -> 3 | K30: =IFERROR(VLOOKUP($A30,Filtros!$A$5:$AY$22116,9,FALSE),0) -> 3 | L30: =IFERROR(VLOOKUP($A30,Filtros!$A$5:$AY$22116,10,FALSE),0) -> 2 | M30: =IFERROR(VLOOKUP($A30,Filtros!$A$5:$AY$22116,11,FALSE),0) -> 5 | N30: =IFERROR(VLOOKUP($A30,Filtros!$A$5:$AY$22116,12,FALSE),0) -> 1 | O30: =IFERROR(VLOOKUP($A30,Filtros!$A$5:$AY$22116,13,FALSE),0) -> 1 | P30: =IFERROR(VLOOKUP($A30,Filtros!$A$5:$AY$22116,14,FALSE),0) -> 3 | Q30: =IFERROR(VLOOKUP($A30,Filtros!$A$5:$AY$22116,15,FALSE),0) -> 0 | R30: =IFERROR(VLOOKUP($A30,Filtros!$A$5:$AY$22116,16,FALSE),0) -> 0 | S30: =IFERROR(VLOOKUP($A30,Filtros!$A$5:$AY$22116,17,FALSE),0) -> 4 | T30: =IFERROR(VLOOKUP($A30,Filtros!$A$5:$AY$22116,18,FALSE),0) -> 3 | DC30: 0 | DD30: 0 | DE30: 0 | DF30: 0 | DG30: 0 | DH30: 0
A31: P1200220 | B31: LUBRICANTES | C31: Mujer | D31: =IFERROR(VLOOKUP($A31,Filtros!$A$5:$AY$22116,2,FALSE),0) -> 1198 | E31: =IFERROR(VLOOKUP($A31,Filtros!$A$5:$AY$22116,3,FALSE),0) -> 0 | F31: =IFERROR(VLOOKUP($A31,Filtros!$A$5:$AY$22116,4,FALSE),0) -> 34 | G31: =IFERROR(VLOOKUP($A31,Filtros!$A$5:$AY$22116,5,FALSE),0) -> 39 | H31: =IFERROR(VLOOKUP($A31,Filtros!$A$5:$AY$22116,6,FALSE),0) -> 52 | I31: =IFERROR(VLOOKUP($A31,Filtros!$A$5:$AY$22116,7,FALSE),0) -> 59 | J31: =IFERROR(VLOOKUP($A31,Filtros!$A$5:$AY$22116,8,FALSE),0) -> 77 | K31: =IFERROR(VLOOKUP($A31,Filtros!$A$5:$AY$22116,9,FALSE),0) -> 101 | L31: =IFERROR(VLOOKUP($A31,Filtros!$A$5:$AY$22116,10,FALSE),0) -> 190 | M31: =IFERROR(VLOOKUP($A31,Filtros!$A$5:$AY$22116,11,FALSE),0) -> 256 | N31: =IFERROR(VLOOKUP($A31,Filtros!$A$5:$AY$22116,12,FALSE),0) -> 225 | O31: =IFERROR(VLOOKUP($A31,Filtros!$A$5:$AY$22116,13,FALSE),0) -> 92 | P31: =IFERROR(VLOOKUP($A31,Filtros!$A$5:$AY$22116,14,FALSE),0) -> 49 | Q31: =IFERROR(VLOOKUP($A31,Filtros!$A$5:$AY$22116,15,FALSE),0) -> 24 | R31: =IFERROR(VLOOKUP($A31,Filtros!$A$5:$AY$22116,16,FALSE),0) -> 10 | S31: =IFERROR(VLOOKUP($A31,Filtros!$A$5:$AY$22116,17,FALSE),0) -> 14 | T31: =IFERROR(VLOOKUP($A31,Filtros!$A$5:$AY$22116,18,FALSE),0) -> 1 | DC31: 0 | DD31: 0 | DE31: 0 | DF31: 0 | DG31: 0 | DH31: 0
A32: P1200230 | C32: Hombres | D32: =IFERROR(VLOOKUP($A32,Filtros!$A$5:$AY$22116,2,FALSE),0) -> 20 | E32: =IFERROR(VLOOKUP($A32,Filtros!$A$5:$AY$22116,3,FALSE),0) -> 0 | F32: =IFERROR(VLOOKUP($A32,Filtros!$A$5:$AY$22116,4,FALSE),0) -> 0 | G32: =IFERROR(VLOOKUP($A32,Filtros!$A$5:$AY$22116,5,FALSE),0) -> 1 | H32: =IFERROR(VLOOKUP($A32,Filtros!$A$5:$AY$22116,6,FALSE),0) -> 4 | I32: =IFERROR(VLOOKUP($A32,Filtros!$A$5:$AY$22116,7,FALSE),0) -> 5 | J32: =IFERROR(VLOOKUP($A32,Filtros!$A$5:$AY$22116,8,FALSE),0) -> 0 | K32: =IFERROR(VLOOKUP($A32,Filtros!$A$5:$AY$22116,9,FALSE),0) -> 0 | L32: =IFERROR(VLOOKUP($A32,Filtros!$A$5:$AY$22116,10,FALSE),0) -> 0 | M32: =IFERROR(VLOOKUP($A32,Filtros!$A$5:$AY$22116,11,FALSE),0) -> 2 | N32: =IFERROR(VLOOKUP($A32,Filtros!$A$5:$AY$22116,12,FALSE),0) -> 3 | O32: =IFERROR(VLOOKUP($A32,Filtros!$A$5:$AY$22116,13,FALSE),0) -> 3 | P32: =IFERROR(VLOOKUP($A32,Filtros!$A$5:$AY$22116,14,FALSE),0) -> 1 | Q32: =IFERROR(VLOOKUP($A32,Filtros!$A$5:$AY$22116,15,FALSE),0) -> 1 | R32: =IFERROR(VLOOKUP($A32,Filtros!$A$5:$AY$22116,16,FALSE),0) -> 0 | S32: =IFERROR(VLOOKUP($A32,Filtros!$A$5:$AY$22116,17,FALSE),0) -> 0 | T32: =IFERROR(VLOOKUP($A32,Filtros!$A$5:$AY$22116,18,FALSE),0) -> 0 | DC32: 0 | DD32: 0 | DE32: 0 | DF32: 0 | DG32: 0 | DH32: 0
A33: P1200350 | B33: CONDON FEMENINO | D33: =IFERROR(VLOOKUP($A33,Filtros!$A$5:$AY$22116,2,FALSE),0) -> 22 | E33: =IFERROR(VLOOKUP($A33,Filtros!$A$5:$AY$22116,3,FALSE),0) -> 0 | F33: =IFERROR(VLOOKUP($A33,Filtros!$A$5:$AY$22116,4,FALSE),0) -> 5 | G33: =IFERROR(VLOOKUP($A33,Filtros!$A$5:$AY$22116,5,FALSE),0) -> 1 | H33: =IFERROR(VLOOKUP($A33,Filtros!$A$5:$AY$22116,6,FALSE),0) -> 1 | I33: =IFERROR(VLOOKUP($A33,Filtros!$A$5:$AY$22116,7,FALSE),0) -> 3 | J33: =IFERROR(VLOOKUP($A33,Filtros!$A$5:$AY$22116,8,FALSE),0) -> 0 | K33: =IFERROR(VLOOKUP($A33,Filtros!$A$5:$AY$22116,9,FALSE),0) -> 1 | L33: =IFERROR(VLOOKUP($A33,Filtros!$A$5:$AY$22116,10,FALSE),0) -> 2 | M33: =IFERROR(VLOOKUP($A33,Filtros!$A$5:$AY$22116,11,FALSE),0) -> 6 | N33: =IFERROR(VLOOKUP($A33,Filtros!$A$5:$AY$22116,12,FALSE),0) -> 2 | O33: =IFERROR(VLOOKUP($A33,Filtros!$A$5:$AY$22116,13,FALSE),0) -> 1 | P33: =IFERROR(VLOOKUP($A33,Filtros!$A$5:$AY$22116,14,FALSE),0) -> 0 | Q33: =IFERROR(VLOOKUP($A33,Filtros!$A$5:$AY$22116,15,FALSE),0) -> 0 | R33: =IFERROR(VLOOKUP($A33,Filtros!$A$5:$AY$22116,16,FALSE),0) -> 0 | S33: =IFERROR(VLOOKUP($A33,Filtros!$A$5:$AY$22116,17,FALSE),0) -> 0 | T33: =IFERROR(VLOOKUP($A33,Filtros!$A$5:$AY$22116,18,FALSE),0) -> 0 | DC33: 0 | DD33: 0 | DE33: 0 | DF33: 0 | DG33: 0 | DH33: 0
B34: SECCION B: GESTANTES EN CONTROL CON EVALUACIÓN RIESGO BIOPSICOSOCIAL
B35: GRUPOS DE EDAD | C35: TOTAL DE GESTANTES EN CONTROL | D35: EN RIESGO PSICO- SOCIAL | E35: QUE PRESENTAN VIOLENCIA DE GÉNERO | F35: GESTANTES QUE PRESENTAN ARO | G35: POBLACION MIGRANTES
A37: P1020100 | B37: Menos de 15 años | C37: =IFERROR(VLOOKUP($A37,Filtros!$A$5:$AY$22116,2,FALSE),0) -> 9 | D37: =IFERROR(VLOOKUP($A37,Filtros!$A$5:$AY$22116,3,FALSE),0) -> 9 | E37: =IFERROR(VLOOKUP($A37,Filtros!$A$5:$AY$22116,4,FALSE),0) -> 1 | F37: =IFERROR(VLOOKUP($A37,Filtros!$A$5:$AY$22116,5,FALSE),0) -> 6 | G37: =IFERROR(VLOOKUP($A37,Filtros!$A$5:$AY$22116,6,FALSE),0) -> 0 | H37: =($CB37&$CC37&$CD37&$CE37&$CF37&$CG37&$CH37&$CI37&$CJ37&$CK37&$CM37&$CN37&$CO37&$CP37&$CQ37&$CR37&$CS37&$CT37&$CU37&$CV37&$CW37&$CX37&$CY37&$CZ37&$DA37) ->  | CB37: =IF($D37<$E37,"* Las Gestantes Menores de 15 años con violencia de género deben estar incluidas en las Gestantes con riesgo psicosocial. ","") ->  | CC37: =IF($C37<$D37,"* Las Gestantes Menores de 15 años con Riesgo Psicosocial deben estar incluidas en el Total de Gestantes en Control misma edad. ","") ->  | CD37: =IF($C37<$F37,"* Las Gestantes Menores de 15 años que presentan ARO deben estar incluidas en el Total de Gestantes en Control misma edad. ","") ->  | CE37: =IF($C37<$G37,"* Las Gestantes Menores de 15 años que pertenecen a 'Población Migrantes' deben estar incluidas en el Total de Gestantes en Control misma edad. ","") ->  | CG37: =IF(AND(C37<>0,G37=""),"* No olvide escribir en la celda de 'Población Migrantes' (Digite CERO si no tiene). ","") ->  | DB37: =IF($D37<$E37,1,0) -> 0 | DC37: =IF($C37<$D37,1,0) -> 0 | DD37: =IF($C37<$F37,1,0) -> 0 | DE37: =IF($C37<$G37,1,0) -> 0 | DG37: =IF(AND(C37<>0,G37=""),1,0) -> 0
A38: P1020200 | B38: 15 a 19 años | C38: =IFERROR(VLOOKUP($A38,Filtros!$A$5:$AY$22116,2,FALSE),0) -> 221 | D38: =IFERROR(VLOOKUP($A38,Filtros!$A$5:$AY$22116,3,FALSE),0) -> 105 | E38: =IFERROR(VLOOKUP($A38,Filtros!$A$5:$AY$22116,4,FALSE),0) -> 11 | F38: =IFERROR(VLOOKUP($A38,Filtros!$A$5:$AY$22116,5,FALSE),0) -> 65 | G38: =IFERROR(VLOOKUP($A38,Filtros!$A$5:$AY$22116,6,FALSE),0) -> 23 | CB38: =IF($D38<$E38,"* Las Gestantes de 15 a 19 años con violencia de género deben estar incluidas en las Gestantes con riesgo psicosocial. ","") ->  | CC38: =IF($C38<$D38,"* Las Gestantes de 15 a 19 años con Riesgo Psicosocial deben estar incluidas en el Total de Gestantes en Control misma edad. ","") ->  | CD38: =IF($C38<$F38,"* Las Gestantes de 15 a 19 años que presentan ARO deben estar incluidas en el Total de Gestantes en Control misma edad. ","") ->  | CE38: =IF($C38<$G38,"* Las Gestantes de 15 a 19 años que pertenecen a 'Población Migrantes' deben estar incluidas en el Total de Gestantes en Control misma edad. ","") ->  | DB38: 0 | DC38: 0 | DD38: 0 | DE38: 0 | DG38: 0
A39: P1040501 | B39: 20 a 24 años | C39: =IFERROR(VLOOKUP($A39,Filtros!$A$5:$AY$22116,2,FALSE),0) -> 803 | D39: =IFERROR(VLOOKUP($A39,Filtros!$A$5:$AY$22116,3,FALSE),0) -> 190 | E39: =IFERROR(VLOOKUP($A39,Filtros!$A$5:$AY$22116,4,FALSE),0) -> 20 | F39: =IFERROR(VLOOKUP($A39,Filtros!$A$5:$AY$22116,5,FALSE),0) -> 216 | G39: =IFERROR(VLOOKUP($A39,Filtros!$A$5:$AY$22116,6,FALSE),0) -> 99 | CB39: =IF($D39<$E39,"* Las Gestantes de 20 a 24 años con violencia de género deben estar incluidas en las Gestantes con riesgo psicosocial. ","") ->  | CC39: =IF($C39<$D39,"* Las Gestantes de 20 a 24 años con Riesgo Psicosocial deben estar incluidas en el Total de Gestantes en Control misma edad. ","") ->  | CD39: =IF($C39<$F39,"* Las Gestantes de 20 a 24 años que presentan ARO deben estar incluidas en el Total de Gestantes en Control misma edad. ","") ->  | CE39: =IF($C39<$G39,"* Las Gestantes de 20 a 24 años que pertenecen a 'Población Migrantes' deben estar incluidas en el Total de Gestantes en Control misma edad. ","") ->  | DB39: 0 | DC39: 0 | DD39: 0 | DE39: 0 | DG39: 0
A40: P1060100 | B40: 25 a 29 años | C40: =IFERROR(VLOOKUP($A40,Filtros!$A$5:$AY$22116,2,FALSE),0) -> 1055 | D40: =IFERROR(VLOOKUP($A40,Filtros!$A$5:$AY$22116,3,FALSE),0) -> 206 | E40: =IFERROR(VLOOKUP($A40,Filtros!$A$5:$AY$22116,4,FALSE),0) -> 20 | F40: =IFERROR(VLOOKUP($A40,Filtros!$A$5:$AY$22116,5,FALSE),0) -> 329 | G40: =IFERROR(VLOOKUP($A40,Filtros!$A$5:$AY$22116,6,FALSE),0) -> 120 | CB40: =IF($D40<$E40,"* Las Gestantes de 25 a 29 años con violencia de género deben estar incluidas en las Gestantes con riesgo psicosocial. ","") ->  | CC40: =IF($C40<$D40,"* Las Gestantes de 25 a 29 años con Riesgo Psicosocial deben estar incluidas en el Total de Gestantes en Control misma edad. ","") ->  | CD40: =IF($C40<$F40,"* Las Gestantes de 25 a 29 años que presentan ARO deben estar incluidas en el Total de Gestantes en Control misma edad. ","") ->  | CE40: =IF($C40<$G40,"* Las Gestantes de 25 a 29 años que pertenecen a 'Población Migrantes' deben estar incluidas en el Total de Gestantes en Control misma edad. ","") ->  | DB40: 0 | DC40: 0 | DD40: 0 | DE40: 0 | DG40: 0
A41: P1060101 | B41: 30 a 34 años | C41: =IFERROR(VLOOKUP($A41,Filtros!$A$5:$AY$22116,2,FALSE),0) -> 902 | D41: =IFERROR(VLOOKUP($A41,Filtros!$A$5:$AY$22116,3,FALSE),0) -> 191 | E41: =IFERROR(VLOOKUP($A41,Filtros!$A$5:$AY$22116,4,FALSE),0) -> 14 | F41: =IFERROR(VLOOKUP($A41,Filtros!$A$5:$AY$22116,5,FALSE),0) -> 337 | G41: =IFERROR(VLOOKUP($A41,Filtros!$A$5:$AY$22116,6,FALSE),0) -> 137 | CB41: =IF($D41<$E41,"* Las Gestantes de 30 a 34 años con violencia de género deben estar incluidas en las Gestantes con riesgo psicosocial. ","") ->  | CC41: =IF($C41<$D41,"* Las Gestantes de 30 a 34 años con Riesgo Psicosocial deben estar incluidas en el Total de Gestantes en Control misma edad. ","") ->  | CD41: =IF($C41<$F41,"* Las Gestantes de 30 a 34 años que presentan ARO deben estar incluidas en el Total de Gestantes en Control misma edad. ","") ->  | CE41: =IF($C41<$G41,"* Las Gestantes de 30 a 34 años que pertenecen a 'Población Migrantes' deben estar incluidas en el Total de Gestantes en Control misma edad. ","") ->  | DB41: 0 | DC41: 0 | DD41: 0 | DE41: 0 | DG41: 0
A42: P1060102 | B42: 35 a 39 años | C42: =IFERROR(VLOOKUP($A42,Filtros!$A$5:$AY$22116,2,FALSE),0) -> 415 | D42: =IFERROR(VLOOKUP($A42,Filtros!$A$5:$AY$22116,3,FALSE),0) -> 113 | E42: =IFERROR(VLOOKUP($A42,Filtros!$A$5:$AY$22116,4,FALSE),0) -> 6 | F42: =IFERROR(VLOOKUP($A42,Filtros!$A$5:$AY$22116,5,FALSE),0) -> 194 | G42: =IFERROR(VLOOKUP($A42,Filtros!$A$5:$AY$22116,6,FALSE),0) -> 45 | CB42: =IF($D42<$E42,"* Las Gestantes de 35 a 39 años con violencia de género deben estar incluidas en las Gestantes con riesgo psicosocial. ","") ->  | CC42: =IF($C42<$D42,"* Las Gestantes de 35 a 39 años con Riesgo Psicosocial deben estar incluidas en el Total de Gestantes en Control misma edad. ","") ->  | CD42: =IF($C42<$F42,"* Las Gestantes de 35 a 39 años que presentan ARO deben estar incluidas en el Total de Gestantes en Control misma edad. ","") ->  | CE42: =IF($C42<$G42,"* Las Gestantes de 35 a 39 años que pertenecen a 'Población Migrantes' deben estar incluidas en el Total de Gestantes en Control misma edad. ","") ->  | DB42: 0 | DC42: 0 | DD42: 0 | DE42: 0 | DG42: 0
A43: P1060103 | B43: 40 a 44 años | C43: =IFERROR(VLOOKUP($A43,Filtros!$A$5:$AY$22116,2,FALSE),0) -> 112 | D43: =IFERROR(VLOOKUP($A43,Filtros!$A$5:$AY$22116,3,FALSE),0) -> 35 | E43: =IFERROR(VLOOKUP($A43,Filtros!$A$5:$AY$22116,4,FALSE),0) -> 5 | F43: =IFERROR(VLOOKUP($A43,Filtros!$A$5:$AY$22116,5,FALSE),0) -> 73 | G43: =IFERROR(VLOOKUP($A43,Filtros!$A$5:$AY$22116,6,FALSE),0) -> 14 | CB43: =IF($D43<$E43,"* Las Gestantes de 40 a 44 años con violencia de género deben estar incluidas en las Gestantes con riesgo psicosocial. ","") ->  | CC43: =IF($C43<$D43,"* Las Gestantes de 40 a 44 años con Riesgo Psicosocial deben estar incluidas en el Total de Gestantes en Control misma edad. ","") ->  | CD43: =IF($C43<$F43,"* Las Gestantes de 40 a 44 años que presentan ARO deben estar incluidas en el Total de Gestantes en Control misma edad. ","") ->  | CE43: =IF($C43<$G43,"* Las Gestantes de 40 a 44 años que pertenecen a 'Población Migrantes' deben estar incluidas en el Total de Gestantes en Control misma edad. ","") ->  | DB43: 0 | DC43: 0 | DD43: 0 | DE43: 0 | DG43: 0
A44: P1060104 | B44: 45 a 49 años | C44: =IFERROR(VLOOKUP($A44,Filtros!$A$5:$AY$22116,2,FALSE),0) -> 5 | D44: =IFERROR(VLOOKUP($A44,Filtros!$A$5:$AY$22116,3,FALSE),0) -> 4 | E44: =IFERROR(VLOOKUP($A44,Filtros!$A$5:$AY$22116,4,FALSE),0) -> 0 | F44: =IFERROR(VLOOKUP($A44,Filtros!$A$5:$AY$22116,5,FALSE),0) -> 4 | G44: =IFERROR(VLOOKUP($A44,Filtros!$A$5:$AY$22116,6,FALSE),0) -> 1 | CB44: =IF($D44<$E44,"* Las Gestantes de 45 a 49 años con violencia de género deben estar incluidas en las Gestantes con riesgo psicosocial. ","") ->  | CC44: =IF($C44<$D44,"* Las Gestantes de 45 a 49 años con Riesgo Psicosocial deben estar incluidas en el Total de Gestantes en Control misma edad. ","") ->  | CD44: =IF($C44<$F44,"* Las Gestantes de 45 a 49 años que presentan ARO deben estar incluidas en el Total de Gestantes en Control misma edad. ","") ->  | CE44: =IF($C44<$G44,"* Las Gestantes de 45 a 49 años que pertenecen a 'Población Migrantes' deben estar incluidas en el Total de Gestantes en Control misma edad. ","") ->  | DB44: 0 | DC44: 0 | DD44: 0 | DE44: 0 | DG44: 0
A45: P1060105 | B45: 50 a 54 años | C45: =IFERROR(VLOOKUP($A45,Filtros!$A$5:$AY$22116,2,FALSE),0) -> 0 | D45: =IFERROR(VLOOKUP($A45,Filtros!$A$5:$AY$22116,3,FALSE),0) -> 0 | E45: =IFERROR(VLOOKUP($A45,Filtros!$A$5:$AY$22116,4,FALSE),0) -> 0 | F45: =IFERROR(VLOOKUP($A45,Filtros!$A$5:$AY$22116,5,FALSE),0) -> 0 | G45: =IFERROR(VLOOKUP($A45,Filtros!$A$5:$AY$22116,6,FALSE),0) -> 0 | CB45: =IF($D45<$E45,"* Las Gestantes de 50 a 54 años con violencia de género deben estar incluidas en las Gestantes con riesgo psicosocial. ","") ->  | CC45: =IF($C45<$D45,"* Las Gestantes de 50 a 54 años con Riesgo Psicosocial deben estar incluidas en el Total de Gestantes en Control misma edad. ","") ->  | CD45: =IF($C45<$F45,"* Las Gestantes de 50 a 54 años que presentan ARO deben estar incluidas en el Total de Gestantes en Control misma edad. ","") ->  | CE45: =IF($C45<$G45,"* Las Gestantes de 50 a 54 años que pertenecen a 'Población Migrantes' deben estar incluidas en el Total de Gestantes en Control misma edad. ","") ->  | DB45: 0 | DC45: 0 | DD45: 0 | DE45: 0 | DG45: 0
B46: TOTAL | C46: =SUM(C37:C45) -> 3522 | D46: =SUM(D37:D45) -> 853 | E46: =SUM(E37:E45) -> 77 | F46: =SUM(F37:F45) -> 1224 | G46: =SUM(G37:G45) -> 439
B47: SECCION C: GESTANTES EN RIESGO PSICOSOCIAL CON VISITA DOMICILIARIA INTEGRAL REALIZADA
B48: N° VDI | C48: N° Gestantes con VDI | D48: TOTAL de Visitas
A50: P1040502 | B50: 1 Visita | C50: =IFERROR(VLOOKUP($A50,Filtros!$A$5:$AY$22116,2,FALSE),0) -> 361 | D50: =IFERROR(VLOOKUP($A50,Filtros!$A$5:$AY$22116,3,FALSE),0) -> 361 | E50: =($CB50&$CC50&$CD50&$CE50&$CF50&$CG50&$CH50&$CI50&$CJ50&$CK50&$CM50&$CN50&$CO50&$CP50&$CQ50&$CR50&$CS50&$CT50&$CU50&$CV50&$CW50&$CX50&$CY50&$CZ50&$DA50) ->  | CB50: =IF($D$50<>$C$50*1,"* NO ALTERE LAS FÓRMULAS, el Total de Visitas equivale a 1 visita por gestante. ","") ->  | DB50: =IF($D$50<>$C$50*1,1,0) -> 0
A51: P1040503 | B51: 2 Visitas | C51: =IFERROR(VLOOKUP($A51,Filtros!$A$5:$AY$22116,2,FALSE),0) -> 174 | D51: =IFERROR(VLOOKUP($A51,Filtros!$A$5:$AY$22116,3,FALSE),0) -> 348 | E51: =($CB51&$CC51&$CD51&$CE51&$CF51&$CG51&$CH51&$CI51&$CJ51&$CK51&$CM51&$CN51&$CO51&$CP51&$CQ51&$CR51&$CS51&$CT51&$CU51&$CV51&$CW51&$CX51&$CY51&$CZ51&$DA51) ->  | CB51: =IF($D$51<>$C$51*2,"* NO ALTERE LAS FÓRMULAS, el Total de Visitas equivale a 2 visitas por gestante. ","") ->  | DB51: =IF($D$51<>$C$51*2,1,0) -> 0
A52: P1040504 | B52: 3 Visitas | C52: =IFERROR(VLOOKUP($A52,Filtros!$A$5:$AY$22116,2,FALSE),0) -> 126 | D52: =IFERROR(VLOOKUP($A52,Filtros!$A$5:$AY$22116,3,FALSE),0) -> 378 | E52: =($CB52&$CC52&$CD52&$CE52&$CF52&$CG52&$CH52&$CI52&$CJ52&$CK52&$CM52&$CN52&$CO52&$CP52&$CQ52&$CR52&$CS52&$CT52&$CU52&$CV52&$CW52&$CX52&$CY52&$CZ52&$DA52) ->  | CB52: =IF($D$52<>$C$52*3,"* NO ALTERE LAS FÓRMULAS, el Total de Visitas equivale a 3 visitas por gestante. ","") ->  | DB52: =IF($D$52<>$C$52*3,1,0) -> 0
A53: P1040505 | B53: 4 y más visitas | C53: =IFERROR(VLOOKUP($A53,Filtros!$A$5:$AY$22116,2,FALSE),0) -> 96 | D53: =IFERROR(VLOOKUP($A53,Filtros!$A$5:$AY$22116,3,FALSE),0) -> 312 | E53: =($CB53&$CC53&$CD53&$CE53&$CF53&$CG53&$CH53&$CI53&$CJ53&$CK53&$CM53&$CN53&$CO53&$CP53&$CQ53&$CR53&$CS53&$CT53&$CU53&$CV53&$CW53&$CX53&$CY53&$CZ53&$DA53) -> 
B54: TOTAL | C54: =SUM(C50:C53) -> 757 | D54: =SUM(D50:D53) -> 1399
B55: SECCION D: GESTANTES Y MUJERES DE 8° MES POST-PARTO EN CONTROL, SEGÚN ESTADO NUTRICIONAL
B56: POBLACION | C56: ESTADO NUTRICIONAL | D56: TOTAL | E56: GRUPOS DE EDAD (en años)
E57: Menos 15 años | F57: 15 a 19 años | G57: 20 a 24 años | H57: 25 a 29 años | I57: 30 a 34 años | J57: 35 a 39 años | K57: 40 a 44 años | L57: 45 a 49 años | M57: 50 a 54 años
A58: P1030101 | B58: GESTANTES EN CONTROL (Información a la fecha de corte) | C58: OBESA | D58: =IFERROR(VLOOKUP($A58,Filtros!$A$5:$AY$22116,2,FALSE),0) -> 1359 | E58: =IFERROR(VLOOKUP($A58,Filtros!$A$5:$AY$22116,3,FALSE),0) -> 0 | F58: =IFERROR(VLOOKUP($A58,Filtros!$A$5:$AY$22116,4,FALSE),0) -> 43 | G58: =IFERROR(VLOOKUP($A58,Filtros!$A$5:$AY$22116,5,FALSE),0) -> 249 | H58: =IFERROR(VLOOKUP($A58,Filtros!$A$5:$AY$22116,6,FALSE),0) -> 432 | I58: =IFERROR(VLOOKUP($A58,Filtros!$A$5:$AY$22116,7,FALSE),0) -> 377 | J58: =IFERROR(VLOOKUP($A58,Filtros!$A$5:$AY$22116,8,FALSE),0) -> 193 | K58: =IFERROR(VLOOKUP($A58,Filtros!$A$5:$AY$22116,9,FALSE),0) -> 63 | L58: =IFERROR(VLOOKUP($A58,Filtros!$A$5:$AY$22116,10,FALSE),0) -> 2 | M58: =IFERROR(VLOOKUP($A58,Filtros!$A$5:$AY$22116,11,FALSE),0) -> 0
A59: P1030102 | C59: SOBREPESO | D59: =IFERROR(VLOOKUP($A59,Filtros!$A$5:$AY$22116,2,FALSE),0) -> 1176 | E59: =IFERROR(VLOOKUP($A59,Filtros!$A$5:$AY$22116,3,FALSE),0) -> 0 | F59: =IFERROR(VLOOKUP($A59,Filtros!$A$5:$AY$22116,4,FALSE),0) -> 69 | G59: =IFERROR(VLOOKUP($A59,Filtros!$A$5:$AY$22116,5,FALSE),0) -> 271 | H59: =IFERROR(VLOOKUP($A59,Filtros!$A$5:$AY$22116,6,FALSE),0) -> 330 | I59: =IFERROR(VLOOKUP($A59,Filtros!$A$5:$AY$22116,7,FALSE),0) -> 314 | J59: =IFERROR(VLOOKUP($A59,Filtros!$A$5:$AY$22116,8,FALSE),0) -> 154 | K59: =IFERROR(VLOOKUP($A59,Filtros!$A$5:$AY$22116,9,FALSE),0) -> 35 | L59: =IFERROR(VLOOKUP($A59,Filtros!$A$5:$AY$22116,10,FALSE),0) -> 3 | M59: =IFERROR(VLOOKUP($A59,Filtros!$A$5:$AY$22116,11,FALSE),0) -> 0
A60: P1030103 | C60: NORMAL | D60: =IFERROR(VLOOKUP($A60,Filtros!$A$5:$AY$22116,2,FALSE),0) -> 926 | E60: =IFERROR(VLOOKUP($A60,Filtros!$A$5:$AY$22116,3,FALSE),0) -> 6 | F60: =IFERROR(VLOOKUP($A60,Filtros!$A$5:$AY$22116,4,FALSE),0) -> 95 | G60: =IFERROR(VLOOKUP($A60,Filtros!$A$5:$AY$22116,5,FALSE),0) -> 259 | H60: =IFERROR(VLOOKUP($A60,Filtros!$A$5:$AY$22116,6,FALSE),0) -> 280 | I60: =IFERROR(VLOOKUP($A60,Filtros!$A$5:$AY$22116,7,FALSE),0) -> 205 | J60: =IFERROR(VLOOKUP($A60,Filtros!$A$5:$AY$22116,8,FALSE),0) -> 68 | K60: =IFERROR(VLOOKUP($A60,Filtros!$A$5:$AY$22116,9,FALSE),0) -> 13 | L60: =IFERROR(VLOOKUP($A60,Filtros!$A$5:$AY$22116,10,FALSE),0) -> 0 | M60: =IFERROR(VLOOKUP($A60,Filtros!$A$5:$AY$22116,11,FALSE),0) -> 0
A61: P1030104 | C61: BAJO PESO | D61: =IFERROR(VLOOKUP($A61,Filtros!$A$5:$AY$22116,2,FALSE),0) -> 61 | E61: =IFERROR(VLOOKUP($A61,Filtros!$A$5:$AY$22116,3,FALSE),0) -> 3 | F61: =IFERROR(VLOOKUP($A61,Filtros!$A$5:$AY$22116,4,FALSE),0) -> 14 | G61: =IFERROR(VLOOKUP($A61,Filtros!$A$5:$AY$22116,5,FALSE),0) -> 24 | H61: =IFERROR(VLOOKUP($A61,Filtros!$A$5:$AY$22116,6,FALSE),0) -> 13 | I61: =IFERROR(VLOOKUP($A61,Filtros!$A$5:$AY$22116,7,FALSE),0) -> 6 | J61: =IFERROR(VLOOKUP($A61,Filtros!$A$5:$AY$22116,8,FALSE),0) -> 0 | K61: =IFERROR(VLOOKUP($A61,Filtros!$A$5:$AY$22116,9,FALSE),0) -> 1 | L61: =IFERROR(VLOOKUP($A61,Filtros!$A$5:$AY$22116,10,FALSE),0) -> 0 | M61: =IFERROR(VLOOKUP($A61,Filtros!$A$5:$AY$22116,11,FALSE),0) -> 0
C62: TOTAL | D62: =SUM(E62:M62) -> 3522 | E62: =SUM(E58:E61) -> 9 | F62: =SUM(F58:F61) -> 221 | G62: 803 | H62: 1055 | I62: 902 | J62: 415 | K62: 112 | L62: 5 | M62: 0 | CB62: =IF($C$37<>$E62,"* Las Gestantes Menores de 15 años, según Estado Nutricional debe ser igual al Total de gestantes en Control de esa edad en Sección B. ","") ->  | CC62: =IF($C$38<>$F62,"* Las gestantes 15-19 años, según Estado Nutricional debe ser igual al Total de gestantes en Control de esa edad en Sección B. ","") ->  | CD62: =IF($C$39<>$G62,"* Las gestantes20-24 años, según Estado Nutricional debe ser igual al Total de gestantes en Control de esa edad en Sección B. ","") ->  | CE62: =IF($C$40<>$H62,"* Las gestantes 25-29 años, según Estado Nutricional debe ser igual al Total de gestantes en Control de esa edad en Sección B. ","") ->  | CF62: =IF($C$41<>$I62,"* Las gestantes30-34 años, según Estado Nutricional debe ser igual al Total de gestantes en Control de esa edad en Sección B. ","") ->  | CG62: =IF($C$42<>$J62,"* Las gestantes 35-39 años, según Estado Nutricional debe ser igual al Total de gestantes en Control de esa edad en Sección B. ","") ->  | CH62: =IF($C$43<>$K62,"* Las gestantes 40-44 años, según Estado Nutricional debe ser igual al Total de gestantes en Control de esa edad en Sección B. ","") ->  | CI62: =IF($C$44<>$L62,"* Las gestantes 45-49 años, según Estado Nutricional debe ser igual al Total de gestantes en Control de esa edad en Sección B. ","") ->  | CJ62: =IF($C$45<>$M62,"* Las gestantes 50-54 años, según Estado Nutricional debe ser igual al Total de gestantes en Control de esa edad en Sección B. ","") ->  | DB62: =IF($C$37<>$E62,1,0) -> 0 | DC62: =IF($C$38<>$F62,1,0) -> 0 | DD62: =IF($C$39<>$G62,1,0) -> 0 | DE62: =IF($C$40<>$H62,1,0) -> 0 | DF62: =IF($C$41<>$I62,1,0) -> 0 | DG62: =IF($C$42<>$J62,1,0) -> 0 | DH62: =IF($C$43<>$K62,1,0) -> 0 | DI62: =IF($C$44<>$L62,1,0) -> 0 | DJ62: =IF($C$45<>$M62,1,0) -> 0
A63: P1030201 | B63: CONTROL AL 8º MES POST-PARTO (Información del semestre) | C63: OBESA | D63: =IFERROR(VLOOKUP($A63,Filtros!$A$5:$AY$22116,2,FALSE),0) -> 119 | E63: =IFERROR(VLOOKUP($A63,Filtros!$A$5:$AY$22116,3,FALSE),0) -> 0 | F63: =IFERROR(VLOOKUP($A63,Filtros!$A$5:$AY$22116,4,FALSE),0) -> 10 | G63: =IFERROR(VLOOKUP($A63,Filtros!$A$5:$AY$22116,5,FALSE),0) -> 27 | H63: =IFERROR(VLOOKUP($A63,Filtros!$A$5:$AY$22116,6,FALSE),0) -> 37 | I63: =IFERROR(VLOOKUP($A63,Filtros!$A$5:$AY$22116,7,FALSE),0) -> 23 | J63: =IFERROR(VLOOKUP($A63,Filtros!$A$5:$AY$22116,8,FALSE),0) -> 18 | K63: =IFERROR(VLOOKUP($A63,Filtros!$A$5:$AY$22116,9,FALSE),0) -> 4 | L63: =IFERROR(VLOOKUP($A63,Filtros!$A$5:$AY$22116,10,FALSE),0) -> 0 | M63: =IFERROR(VLOOKUP($A63,Filtros!$A$5:$AY$22116,11,FALSE),0) -> 0
A64: P1030202 | C64: SOBREPESO | D64: =IFERROR(VLOOKUP($A64,Filtros!$A$5:$AY$22116,2,FALSE),0) -> 121 | E64: =IFERROR(VLOOKUP($A64,Filtros!$A$5:$AY$22116,3,FALSE),0) -> 0 | F64: =IFERROR(VLOOKUP($A64,Filtros!$A$5:$AY$22116,4,FALSE),0) -> 7 | G64: =IFERROR(VLOOKUP($A64,Filtros!$A$5:$AY$22116,5,FALSE),0) -> 34 | H64: =IFERROR(VLOOKUP($A64,Filtros!$A$5:$AY$22116,6,FALSE),0) -> 46 | I64: =IFERROR(VLOOKUP($A64,Filtros!$A$5:$AY$22116,7,FALSE),0) -> 24 | J64: =IFERROR(VLOOKUP($A64,Filtros!$A$5:$AY$22116,8,FALSE),0) -> 9 | K64: =IFERROR(VLOOKUP($A64,Filtros!$A$5:$AY$22116,9,FALSE),0) -> 1 | L64: =IFERROR(VLOOKUP($A64,Filtros!$A$5:$AY$22116,10,FALSE),0) -> 0 | M64: =IFERROR(VLOOKUP($A64,Filtros!$A$5:$AY$22116,11,FALSE),0) -> 0
A65: P1030203 | C65: NORMAL | D65: =IFERROR(VLOOKUP($A65,Filtros!$A$5:$AY$22116,2,FALSE),0) -> 79 | E65: =IFERROR(VLOOKUP($A65,Filtros!$A$5:$AY$22116,3,FALSE),0) -> 1 | F65: =IFERROR(VLOOKUP($A65,Filtros!$A$5:$AY$22116,4,FALSE),0) -> 11 | G65: =IFERROR(VLOOKUP($A65,Filtros!$A$5:$AY$22116,5,FALSE),0) -> 19 | H65: =IFERROR(VLOOKUP($A65,Filtros!$A$5:$AY$22116,6,FALSE),0) -> 30 | I65: =IFERROR(VLOOKUP($A65,Filtros!$A$5:$AY$22116,7,FALSE),0) -> 12 | J65: =IFERROR(VLOOKUP($A65,Filtros!$A$5:$AY$22116,8,FALSE),0) -> 4 | K65: =IFERROR(VLOOKUP($A65,Filtros!$A$5:$AY$22116,9,FALSE),0) -> 1 | L65: =IFERROR(VLOOKUP($A65,Filtros!$A$5:$AY$22116,10,FALSE),0) -> 1 | M65: =IFERROR(VLOOKUP($A65,Filtros!$A$5:$AY$22116,11,FALSE),0) -> 0
A66: P1030204 | C66: BAJO PESO | D66: =IFERROR(VLOOKUP($A66,Filtros!$A$5:$AY$22116,2,FALSE),0) -> 3 | E66: =IFERROR(VLOOKUP($A66,Filtros!$A$5:$AY$22116,3,FALSE),0) -> 0 | F66: =IFERROR(VLOOKUP($A66,Filtros!$A$5:$AY$22116,4,FALSE),0) -> 0 | G66: =IFERROR(VLOOKUP($A66,Filtros!$A$5:$AY$22116,5,FALSE),0) -> 2 | H66: =IFERROR(VLOOKUP($A66,Filtros!$A$5:$AY$22116,6,FALSE),0) -> 0 | I66: =IFERROR(VLOOKUP($A66,Filtros!$A$5:$AY$22116,7,FALSE),0) -> 0 | J66: =IFERROR(VLOOKUP($A66,Filtros!$A$5:$AY$22116,8,FALSE),0) -> 1 | K66: =IFERROR(VLOOKUP($A66,Filtros!$A$5:$AY$22116,9,FALSE),0) -> 0 | L66: =IFERROR(VLOOKUP($A66,Filtros!$A$5:$AY$22116,10,FALSE),0) -> 0 | M66: =IFERROR(VLOOKUP($A66,Filtros!$A$5:$AY$22116,11,FALSE),0) -> 0
C67: TOTAL | D67: =SUM(E67:M67) -> 322 | E67: =SUM(E63:E66) -> 1 | F67: =SUM(F63:F66) -> 28 | G67: =SUM(G63:G66) -> 82 | H67: =SUM(H63:H66) -> 113 | I67: 59 | J67: 32 | K67: =SUM(K63:K66) -> 6 | L67: 1 | M67: 0
B68: SECCION E: MUJERES Y GESTANTES EN CONTROL CON CONSULTA NUTRICIONAL
B69: MUJERES | C69: TOTAL
A70: P1050100 | B70: Gestantes con malnutrición por déficit (bajo peso) | C70: =IFERROR(VLOOKUP($A70,Filtros!$A$5:$AY$22116,2,FALSE),0) -> 27 | D70: =($CB70&$CC70&$CD70&$CE70&$CF70&$CG70&$CH70&$CI70&$CJ70&$CK70&$CM70&$CN70&$CO70&$CP70&$CQ70&$CR70&$CS70&$CT70&$CU70&$CV70&$CW70&$CX70&$CY70&$CZ70&$DA70) ->  | CB70: =IF($C$70<=$D$61,"","* Gestantes malnutricion no debe ser mayor que Gestantes en Control Bajo Peso (Seccion D). ") ->  | DB70: =IF($C$70<=$D$61,0,1) -> 0
A71: P1050101 | B71: Gestantes con malnutrición por exceso - Obesa | C71: =IFERROR(VLOOKUP($A71,Filtros!$A$5:$AY$22116,2,FALSE),0) -> 773 | D71: =($CB71&$CC71&$CD71&$CE71&$CF71&$CG71&$CH71&$CI71&$CJ71&$CK71&$CM71&$CN71&$CO71&$CP71&$CQ71&$CR71&$CS71&$CT71&$CU71&$CV71&$CW71&$CX71&$CY71&$CZ71&$DA71) ->  | CB71: =IF($C$71<=$D$58,"","* Gestantes malnutricion no debe ser mayor que Gestantes en Control Obesa (Seccion D). ") ->  | DB71: =IF($C$71<=$D$58,0,1) -> 0
A72: P1050102 | B72: Gestantes con malnutrición por exceso - Sobrepeso | C72: =IFERROR(VLOOKUP($A72,Filtros!$A$5:$AY$22116,2,FALSE),0) -> 569 | D72: =($CB72&$CC72&$CD72&$CE72&$CF72&$CG72&$CH72&$CI72&$CJ72&$CK72&$CM72&$CN72&$CO72&$CP72&$CQ72&$CR72&$CS72&$CT72&$CU72&$CV72&$CW72&$CX72&$CY72&$CZ72&$DA72) ->  | CB72: =IF($C$72<=$D$59,"","* Gestantes malnutricion no debe ser mayor que Gestantes en Control Sobrepeso (Seccion D). ") ->  | DB72: =IF($C$72<=$D$59,0,1) -> 0
A73: P1050103 | B73: En 3º mes post parto | C73: =IFERROR(VLOOKUP($A73,Filtros!$A$5:$AY$22116,2,FALSE),0) -> 64 | D73: =($CB73&$CC73&$CD73&$CE73&$CF73&$CG73&$CH73&$CI73&$CJ73&$CK73&$CM73&$CN73&$CO73&$CP73&$CQ73&$CR73&$CS73&$CT73&$CU73&$CV73&$CW73&$CX73&$CY73&$CZ73&$DA73) -> 
A74: P1050104 | B74: En 6º mes post parto | C74: =IFERROR(VLOOKUP($A74,Filtros!$A$5:$AY$22116,2,FALSE),0) -> 174 | D74: =($CB74&$CC74&$CD74&$CE74&$CF74&$CG74&$CH74&$CI74&$CJ74&$CK74&$CM74&$CN74&$CO74&$CP74&$CQ74&$CR74&$CS74&$CT74&$CU74&$CV74&$CW74&$CX74&$CY74&$CZ74&$DA74) -> 
B75: SECCION F: MUJERES EN CONTROL DE CLIMATERIO
B76: Población | C76: 45 a 64 años
A77: P1030301 | B77: Población en Control | C77: =IFERROR(VLOOKUP($A77,Filtros!$A$5:$AY$22116,2,FALSE),0) -> 8440 | D77: =($CB77&$CC77&$CD77&$CE77&$CF77&$CG77&$CH77&$CI77&$CJ77&$CK77&$CM77&$CN77&$CO77&$CP77&$CQ77&$CR77&$CS77&$CT77&$CU77&$CV77&$CW77&$CX77&$CY77&$CZ77&$DA77) -> 
A78: P1060040 | B78: Mujeres con pauta aplicada MRS* | C78: =IFERROR(VLOOKUP($A78,Filtros!$A$5:$AY$22116,2,FALSE),0) -> 2207 | D78: =($CB78&$CC78&$CD78&$CE78&$CF78&$CG78&$CH78&$CI78&$CJ78&$CK78&$CM78&$CN78&$CO78&$CP78&$CQ78&$CR78&$CS78&$CT78&$CU78&$CV78&$CW78&$CX78&$CY78&$CZ78&$DA78) ->  | CB78: =IF($C78>$C77,"* El Nº de mujeres con pauta aplicada MRS no debe ser mayor a la población de mujeres en control por climaterio. ","") ->  | DB78: =IF($C78>$C77,1,0) -> 0
A79: P1060050 | B79: Mujeres con MRS elevado* | C79: =IFERROR(VLOOKUP($A79,Filtros!$A$5:$AY$22116,2,FALSE),0) -> 875 | D79: =($CB79&$CC79&$CD79&$CE79&$CF79&$CG79&$CH79&$CI79&$CJ79&$CK79&$CM79&$CN79&$CO79&$CP79&$CQ79&$CR79&$CS79&$CT79&$CU79&$CV79&$CW79&$CX79&$CY79&$CZ79&$DA79) ->  | CB79: =IF($C79>$C78,"* El Nº de mujeres con puntaje elevado de MRS no debe ser mayor al Nº de mujeres con pauta aplicada MRS. ","") ->  | DB79: =IF($C79>$C78,1,0) -> 0
A80: P1060060 | B80: Mujeres con aplicación de terapia hormonal de reemplazo según MRS* | C80: =IFERROR(VLOOKUP($A80,Filtros!$A$5:$AY$22116,2,FALSE),0) -> 378 | D80: =($CB80&$CC80&$CD80&$CE80&$CF80&$CG80&$CH80&$CI80&$CJ80&$CK80&$CM80&$CN80&$CO80&$CP80&$CQ80&$CR80&$CS80&$CT80&$CU80&$CV80&$CW80&$CX80&$CY80&$CZ80&$DA80) ->  | CB80: =IF($C80>$C79,"* El Nº de mujeres con aplicación de terapia hormonal de reemplazo según MRS no debe ser mayor que el numero de mujeres con puntaje elevado de MRS. ","") ->  | DB80: =IF($C80>$C79,1,0) -> 0
A81: P1200340 | B81: Talleres educativos | C81: =IFERROR(VLOOKUP($A81,Filtros!$A$5:$AY$22116,2,FALSE),0) -> 30 | D81: =($CB81&$CC81&$CD81&$CE81&$CF81&$CG81&$CH81&$CI81&$CJ81&$CK81&$CM81&$CN81&$CO81&$CP81&$CQ81&$CR81&$CS81&$CT81&$CU81&$CV81&$CW81&$CX81&$CY81&$CZ81&$DA81) -> 
B82: * MRS: Menopause Rating Scale
B83: SECCION F.1: POBLACIÓN EN CONTROL CLIMATERIO SEGÚN TIPO TERAPIA REEMPLAZO HORMONAL
B84: MÉTODOS | D84: TOTAL | E84: GRUPO DE EDAD (en años) | J84: Pueblos Originarios | K84: Población Migrantes
E85: Menor de 45 años | F85: 45 a 49 años | G85: 50 a 54 años | H85: 55 a 60 años | I85: 60 a 64 años
A86: P1200280 | B86: Estradiol Micronizado 1mg | D86: =IFERROR(VLOOKUP($A86,Filtros!$A$5:$AY$22116,2,FALSE),0) -> 45 | E86: =IFERROR(VLOOKUP($A86,Filtros!$A$5:$AY$22116,3,FALSE),0) -> 4 | F86: =IFERROR(VLOOKUP($A86,Filtros!$A$5:$AY$22116,4,FALSE),0) -> 13 | G86: =IFERROR(VLOOKUP($A86,Filtros!$A$5:$AY$22116,5,FALSE),0) -> 15 | H86: =IFERROR(VLOOKUP($A86,Filtros!$A$5:$AY$22116,6,FALSE),0) -> 11 | I86: =IFERROR(VLOOKUP($A86,Filtros!$A$5:$AY$22116,7,FALSE),0) -> 2 | J86: =IFERROR(VLOOKUP($A86,Filtros!$A$5:$AY$22116,8,FALSE),0) -> 0 | K86: =IFERROR(VLOOKUP($A86,Filtros!$A$5:$AY$22116,9,FALSE),0) -> 2 | L86: =($CB86&$CC86&$CD86&$CE86&$CF86&$CG86&$CH86&$CI86&$CJ86&$CK86&$CM86&$CN86&$CO86&$CP86&$CQ86&$CR86&$CS86&$CT86&$CU86&$CV86&$CW86&$CX86&$CY86&$CZ86&$DA86) ->  | CB86: =IF($J86>$D86,"* La celda 'Pueblos Originarios' debe ser menor o igual al Total en control. ","") ->  | CC86: =IF($K86>$D86,"* La celda 'Población Migrantes' debe ser menor o igual al Total en control. ","") ->  | CD86: =IF(AND($D86<>0,$J86=""),"* No olvide escribir en la celda de 'Pueblos Originarios' (Digite CERO si no tiene). ","") ->  | CE86: =IF(AND($D86<>0,$K86=""),"* No olvide escribir en la celda de 'Población Migrantes' (Digite CERO si no tiene). ","") ->  | DB86: =IF($J86>$D86,1,0) -> 0 | DC86: =IF($K86>$D86,1,0) -> 0 | DD86: =IF(AND($D86<>0,$J86=""),1,0) -> 0 | DE86: =IF(AND($D86<>0,$K86=""),1,0) -> 0
A87: P1200290 | B87: Estradiol Gel | D87: =IFERROR(VLOOKUP($A87,Filtros!$A$5:$AY$22116,2,FALSE),0) -> 118 | E87: =IFERROR(VLOOKUP($A87,Filtros!$A$5:$AY$22116,3,FALSE),0) -> 3 | F87: =IFERROR(VLOOKUP($A87,Filtros!$A$5:$AY$22116,4,FALSE),0) -> 26 | G87: =IFERROR(VLOOKUP($A87,Filtros!$A$5:$AY$22116,5,FALSE),0) -> 46 | H87: =IFERROR(VLOOKUP($A87,Filtros!$A$5:$AY$22116,6,FALSE),0) -> 32 | I87: =IFERROR(VLOOKUP($A87,Filtros!$A$5:$AY$22116,7,FALSE),0) -> 11 | J87: =IFERROR(VLOOKUP($A87,Filtros!$A$5:$AY$22116,8,FALSE),0) -> 0 | K87: =IFERROR(VLOOKUP($A87,Filtros!$A$5:$AY$22116,9,FALSE),0) -> 1 | DB87: 0 | DC87: 0 | DD87: 0 | DE87: 0
A88: P1200300 | B88: Progesterona Micronizada 100mg | D88: =IFERROR(VLOOKUP($A88,Filtros!$A$5:$AY$22116,2,FALSE),0) -> 26 | E88: =IFERROR(VLOOKUP($A88,Filtros!$A$5:$AY$22116,3,FALSE),0) -> 1 | F88: =IFERROR(VLOOKUP($A88,Filtros!$A$5:$AY$22116,4,FALSE),0) -> 7 | G88: =IFERROR(VLOOKUP($A88,Filtros!$A$5:$AY$22116,5,FALSE),0) -> 9 | H88: =IFERROR(VLOOKUP($A88,Filtros!$A$5:$AY$22116,6,FALSE),0) -> 6 | I88: =IFERROR(VLOOKUP($A88,Filtros!$A$5:$AY$22116,7,FALSE),0) -> 3 | J88: =IFERROR(VLOOKUP($A88,Filtros!$A$5:$AY$22116,8,FALSE),0) -> 0 | K88: =IFERROR(VLOOKUP($A88,Filtros!$A$5:$AY$22116,9,FALSE),0) -> 0 | DB88: 0 | DC88: 0 | DD88: 0 | DE88: 0
A89: P1200310 | B89: Progesterona Micronizada 200mg | D89: =IFERROR(VLOOKUP($A89,Filtros!$A$5:$AY$22116,2,FALSE),0) -> 18 | E89: =IFERROR(VLOOKUP($A89,Filtros!$A$5:$AY$22116,3,FALSE),0) -> 0 | F89: =IFERROR(VLOOKUP($A89,Filtros!$A$5:$AY$22116,4,FALSE),0) -> 5 | G89: =IFERROR(VLOOKUP($A89,Filtros!$A$5:$AY$22116,5,FALSE),0) -> 6 | H89: =IFERROR(VLOOKUP($A89,Filtros!$A$5:$AY$22116,6,FALSE),0) -> 5 | I89: =IFERROR(VLOOKUP($A89,Filtros!$A$5:$AY$22116,7,FALSE),0) -> 2 | J89: =IFERROR(VLOOKUP($A89,Filtros!$A$5:$AY$22116,8,FALSE),0) -> 0 | K89: =IFERROR(VLOOKUP($A89,Filtros!$A$5:$AY$22116,9,FALSE),0) -> 0 | DB89: 0 | DC89: 0 | DD89: 0 | DE89: 0
A90: P1200320 | B90: Nomegestrol 5mg comp. | D90: =IFERROR(VLOOKUP($A90,Filtros!$A$5:$AY$22116,2,FALSE),0) -> 0 | E90: =IFERROR(VLOOKUP($A90,Filtros!$A$5:$AY$22116,3,FALSE),0) -> 0 | F90: =IFERROR(VLOOKUP($A90,Filtros!$A$5:$AY$22116,4,FALSE),0) -> 0 | G90: =IFERROR(VLOOKUP($A90,Filtros!$A$5:$AY$22116,5,FALSE),0) -> 0 | H90: =IFERROR(VLOOKUP($A90,Filtros!$A$5:$AY$22116,6,FALSE),0) -> 0 | I90: =IFERROR(VLOOKUP($A90,Filtros!$A$5:$AY$22116,7,FALSE),0) -> 0 | J90: =IFERROR(VLOOKUP($A90,Filtros!$A$5:$AY$22116,8,FALSE),0) -> 0 | K90: =IFERROR(VLOOKUP($A90,Filtros!$A$5:$AY$22116,9,FALSE),0) -> 0 | DB90: 0 | DC90: 0 | DD90: 0 | DE90: 0
A91: P1200330 | B91: Tibolona 2,5mg comp. | D91: =IFERROR(VLOOKUP($A91,Filtros!$A$5:$AY$22116,2,FALSE),0) -> 274 | E91: =IFERROR(VLOOKUP($A91,Filtros!$A$5:$AY$22116,3,FALSE),0) -> 6 | F91: =IFERROR(VLOOKUP($A91,Filtros!$A$5:$AY$22116,4,FALSE),0) -> 52 | G91: =IFERROR(VLOOKUP($A91,Filtros!$A$5:$AY$22116,5,FALSE),0) -> 124 | H91: =IFERROR(VLOOKUP($A91,Filtros!$A$5:$AY$22116,6,FALSE),0) -> 79 | I91: =IFERROR(VLOOKUP($A91,Filtros!$A$5:$AY$22116,7,FALSE),0) -> 13 | J91: =IFERROR(VLOOKUP($A91,Filtros!$A$5:$AY$22116,8,FALSE),0) -> 3 | K91: =IFERROR(VLOOKUP($A91,Filtros!$A$5:$AY$22116,9,FALSE),0) -> 2 | DB91: 0 | DC91: 0 | DD91: 0 | DE91: 0
B92: Total | D92: =SUM(E92:I92) -> 481 | E92: =SUM(E86:E91) -> 14 | F92: =SUM(F86:F91) -> 103 | G92: 200 | H92: 133 | I92: 31 | J92: 3 | K92: 5
B93: SECCION G: GESTANTES EN CONTROL CON ECOGRAFÍA POR TRIMESTRE DE GESTACION (EN EL SEMESTRE)
B94: Población | C94: Primer trimestre | D94: Segundo trimestre | E94: Tercer trimestre | F94: Total de Gestantes con Ecografías del extrasistema
A95: P1060106 | B95: Menor de 15 | C95: =IFERROR(VLOOKUP($A95,Filtros!$A$5:$AY$22116,2,FALSE),0) -> 7 | D95: =IFERROR(VLOOKUP($A95,Filtros!$A$5:$AY$22116,3,FALSE),0) -> 4 | E95: =IFERROR(VLOOKUP($A95,Filtros!$A$5:$AY$22116,4,FALSE),0) -> 2 | F95: =IFERROR(VLOOKUP($A95,Filtros!$A$5:$AY$22116,5,FALSE),0) -> 2 | G95: =CB95 ->  | CB95: =IF($F95>$C95+$D95+$E95, "* El total de ecografías realizadas en el extrasistema en menores de 15 años, no puede ser mayor al nº de ecografias realizadas en los tres trimestres. ", "") ->  | DB95: =IF($F95>$C95+$D95+$E95, 1,0) -> 0
A96: P1060107 | B96: 15 - 19 | C96: =IFERROR(VLOOKUP($A96,Filtros!$A$5:$AY$22116,2,FALSE),0) -> 169 | D96: =IFERROR(VLOOKUP($A96,Filtros!$A$5:$AY$22116,3,FALSE),0) -> 107 | E96: =IFERROR(VLOOKUP($A96,Filtros!$A$5:$AY$22116,4,FALSE),0) -> 51 | F96: =IFERROR(VLOOKUP($A96,Filtros!$A$5:$AY$22116,5,FALSE),0) -> 55 | G96: =CB96 ->  | CB96: =IF($F96>$C96+$D96+$E96, "* El total de ecografías realizadas en el extrasistema en menores de 15-19 años, no puede ser mayor al nº de ecografias realizadas en los tres trimestres. ", "") ->  | DB96: =IF($F96>$C96+$D96+$E96, 1,0) -> 0
A97: P1060108 | B97: 20 - 24 | C97: =IFERROR(VLOOKUP($A97,Filtros!$A$5:$AY$22116,2,FALSE),0) -> 631 | D97: =IFERROR(VLOOKUP($A97,Filtros!$A$5:$AY$22116,3,FALSE),0) -> 387 | E97: =IFERROR(VLOOKUP($A97,Filtros!$A$5:$AY$22116,4,FALSE),0) -> 216 | F97: =IFERROR(VLOOKUP($A97,Filtros!$A$5:$AY$22116,5,FALSE),0) -> 265 | CB97: =IF($F97>$C97+$D97+$E97, "* El total de ecografías realizadas en el extrasistema en menores de 20-24 años, no puede ser mayor al nº de ecografias realizadas en los tres trimestres. ", "") ->  | DB97: 0
A98: P1060109 | B98: 25 - 29 | C98: =IFERROR(VLOOKUP($A98,Filtros!$A$5:$AY$22116,2,FALSE),0) -> 801 | D98: =IFERROR(VLOOKUP($A98,Filtros!$A$5:$AY$22116,3,FALSE),0) -> 509 | E98: =IFERROR(VLOOKUP($A98,Filtros!$A$5:$AY$22116,4,FALSE),0) -> 254 | F98: =IFERROR(VLOOKUP($A98,Filtros!$A$5:$AY$22116,5,FALSE),0) -> 364 | CB98: =IF($F98>$C98+$D98+$E98, "* El total de ecografías realizadas en el extrasistema en menores de 28-29 años, no puede ser mayor al nº de ecografias realizadas en los tres trimestres. ", "") ->  | DB98: 0
A99: P1060110 | B99: 30 - 34 | C99: =IFERROR(VLOOKUP($A99,Filtros!$A$5:$AY$22116,2,FALSE),0) -> 700 | D99: =IFERROR(VLOOKUP($A99,Filtros!$A$5:$AY$22116,3,FALSE),0) -> 484 | E99: =IFERROR(VLOOKUP($A99,Filtros!$A$5:$AY$22116,4,FALSE),0) -> 224 | F99: =IFERROR(VLOOKUP($A99,Filtros!$A$5:$AY$22116,5,FALSE),0) -> 310 | CB99: =IF($F99>$C99+$D99+$E99, "* El total de ecografías realizadas en el extrasistema en menores de 30-34 años, no puede ser mayor al nº de ecografias realizadas en los tres trimestres. ", "") ->  | DB99: 0
A100: P1060111 | B100: 35 - 39 | C100: =IFERROR(VLOOKUP($A100,Filtros!$A$5:$AY$22116,2,FALSE),0) -> 334 | D100: =IFERROR(VLOOKUP($A100,Filtros!$A$5:$AY$22116,3,FALSE),0) -> 220 | E100: =IFERROR(VLOOKUP($A100,Filtros!$A$5:$AY$22116,4,FALSE),0) -> 109 | F100: =IFERROR(VLOOKUP($A100,Filtros!$A$5:$AY$22116,5,FALSE),0) -> 152 | CB100: =IF($F100>$C100+$D100+$E100, "* El total de ecografías realizadas en el extrasistema en menores de 35-39 años, no puede ser mayor al nº de ecografias realizadas en los tres trimestres. ", "") ->  | DB100: 0
A101: P1060112 | B101: 40 - 44 | C101: =IFERROR(VLOOKUP($A101,Filtros!$A$5:$AY$22116,2,FALSE),0) -> 68 | D101: =IFERROR(VLOOKUP($A101,Filtros!$A$5:$AY$22116,3,FALSE),0) -> 59 | E101: =IFERROR(VLOOKUP($A101,Filtros!$A$5:$AY$22116,4,FALSE),0) -> 22 | F101: =IFERROR(VLOOKUP($A101,Filtros!$A$5:$AY$22116,5,FALSE),0) -> 27 | CB101: =IF($F101>$C101+$D101+$E101, "* El total de ecografías realizadas en el extrasistema en menores de 40-44 años, no puede ser mayor al nº de ecografias realizadas en los tres trimestres. ", "") ->  | DB101: 0
A102: P1060113 | B102: 45 - 49 | C102: =IFERROR(VLOOKUP($A102,Filtros!$A$5:$AY$22116,2,FALSE),0) -> 5 | D102: =IFERROR(VLOOKUP($A102,Filtros!$A$5:$AY$22116,3,FALSE),0) -> 2 | E102: =IFERROR(VLOOKUP($A102,Filtros!$A$5:$AY$22116,4,FALSE),0) -> 0 | F102: =IFERROR(VLOOKUP($A102,Filtros!$A$5:$AY$22116,5,FALSE),0) -> 2 | CB102: =IF($F102>$C102+$D102+$E102, "* El total de ecografías realizadas en el extrasistema en menores de 45-49 años, no puede ser mayor al nº de ecografias realizadas en los tres trimestres. ", "") ->  | DB102: 0
A103: P1060114 | B103: 50 - 54 | C103: =IFERROR(VLOOKUP($A103,Filtros!$A$5:$AY$22116,2,FALSE),0) -> 0 | D103: =IFERROR(VLOOKUP($A103,Filtros!$A$5:$AY$22116,3,FALSE),0) -> 0 | E103: =IFERROR(VLOOKUP($A103,Filtros!$A$5:$AY$22116,4,FALSE),0) -> 0 | F103: =IFERROR(VLOOKUP($A103,Filtros!$A$5:$AY$22116,5,FALSE),0) -> 0 | CB103: =IF($F103>$C103+$D103+$E103, "* El total de ecografías realizadas en el extrasistema en menores de 50-54 años, no puede ser mayor al nº de ecografias realizadas en los tres trimestres. ", "") ->  | DB103: 0
B104: TOTAL | C104: =SUM(C95:C103) -> 2715 | D104: =SUM(D95:D103) -> 1772 | E104: =SUM(E95:E103) -> 878 | F104: =SUM(F95:F103) -> 1177
B105: SECCION H: MUJERES BAJO CONTROL DE REGULACIÓN DE FERTILIDAD SEGÚN ESTADO NUTRICIONAL
B106: POBLACION | C106: ESTADO NUTRICIONAL | D106: TOTAL | E106: GRUPOS DE EDAD (en años)
E107: Menos 15 años | F107: 15 a 19 años | G107: 20 a 24 años | H107: 25 a 29 años | I107: 30 a 34 años | J107: 35 a 39 años | K107: 40 a 44 años | L107: 45 a 49 años | M107: 50 a 54 años
A108: P1600100 | B108: MUJERES BAJO CONTROL DE REGULACIÓN DE FERTILIDAD SEGÚN ESTADO NUTRICIONAL | C108: OBESA | D108: =IFERROR(VLOOKUP($A108,Filtros!$A$5:$AY$22116,2,FALSE),0) -> 14392 | E108: =IFERROR(VLOOKUP($A108,Filtros!$A$5:$AY$22116,3,FALSE),0) -> 50 | F108: =IFERROR(VLOOKUP($A108,Filtros!$A$5:$AY$22116,4,FALSE),0) -> 1108 | G108: =IFERROR(VLOOKUP($A108,Filtros!$A$5:$AY$22116,5,FALSE),0) -> 2020 | H108: =IFERROR(VLOOKUP($A108,Filtros!$A$5:$AY$22116,6,FALSE),0) -> 2524 | I108: =IFERROR(VLOOKUP($A108,Filtros!$A$5:$AY$22116,7,FALSE),0) -> 2615 | J108: =IFERROR(VLOOKUP($A108,Filtros!$A$5:$AY$22116,8,FALSE),0) -> 2216 | K108: =IFERROR(VLOOKUP($A108,Filtros!$A$5:$AY$22116,9,FALSE),0) -> 1874 | L108: =IFERROR(VLOOKUP($A108,Filtros!$A$5:$AY$22116,10,FALSE),0) -> 1381 | M108: =IFERROR(VLOOKUP($A108,Filtros!$A$5:$AY$22116,11,FALSE),0) -> 604
A109: P1600101 | C109: SOBREPESO | D109: =IFERROR(VLOOKUP($A109,Filtros!$A$5:$AY$22116,2,FALSE),0) -> 14522 | E109: =IFERROR(VLOOKUP($A109,Filtros!$A$5:$AY$22116,3,FALSE),0) -> 77 | F109: =IFERROR(VLOOKUP($A109,Filtros!$A$5:$AY$22116,4,FALSE),0) -> 1587 | G109: =IFERROR(VLOOKUP($A109,Filtros!$A$5:$AY$22116,5,FALSE),0) -> 2248 | H109: =IFERROR(VLOOKUP($A109,Filtros!$A$5:$AY$22116,6,FALSE),0) -> 2619 | I109: =IFERROR(VLOOKUP($A109,Filtros!$A$5:$AY$22116,7,FALSE),0) -> 2474 | J109: =IFERROR(VLOOKUP($A109,Filtros!$A$5:$AY$22116,8,FALSE),0) -> 2047 | K109: =IFERROR(VLOOKUP($A109,Filtros!$A$5:$AY$22116,9,FALSE),0) -> 1588 | L109: =IFERROR(VLOOKUP($A109,Filtros!$A$5:$AY$22116,10,FALSE),0) -> 1302 | M109: =IFERROR(VLOOKUP($A109,Filtros!$A$5:$AY$22116,11,FALSE),0) -> 580
A110: P1600102 | C110: NORMAL | D110: =IFERROR(VLOOKUP($A110,Filtros!$A$5:$AY$22116,2,FALSE),0) -> 12951 | E110: =IFERROR(VLOOKUP($A110,Filtros!$A$5:$AY$22116,3,FALSE),0) -> 175 | F110: =IFERROR(VLOOKUP($A110,Filtros!$A$5:$AY$22116,4,FALSE),0) -> 2158 | G110: =IFERROR(VLOOKUP($A110,Filtros!$A$5:$AY$22116,5,FALSE),0) -> 2860 | H110: =IFERROR(VLOOKUP($A110,Filtros!$A$5:$AY$22116,6,FALSE),0) -> 2633 | I110: =IFERROR(VLOOKUP($A110,Filtros!$A$5:$AY$22116,7,FALSE),0) -> 1856 | J110: =IFERROR(VLOOKUP($A110,Filtros!$A$5:$AY$22116,8,FALSE),0) -> 1354 | K110: =IFERROR(VLOOKUP($A110,Filtros!$A$5:$AY$22116,9,FALSE),0) -> 952 | L110: =IFERROR(VLOOKUP($A110,Filtros!$A$5:$AY$22116,10,FALSE),0) -> 680 | M110: =IFERROR(VLOOKUP($A110,Filtros!$A$5:$AY$22116,11,FALSE),0) -> 283
A111: P1600103 | C111: BAJO PESO | D111: =IFERROR(VLOOKUP($A111,Filtros!$A$5:$AY$22116,2,FALSE),0) -> 752 | E111: =IFERROR(VLOOKUP($A111,Filtros!$A$5:$AY$22116,3,FALSE),0) -> 14 | F111: =IFERROR(VLOOKUP($A111,Filtros!$A$5:$AY$22116,4,FALSE),0) -> 175 | G111: =IFERROR(VLOOKUP($A111,Filtros!$A$5:$AY$22116,5,FALSE),0) -> 249 | H111: =IFERROR(VLOOKUP($A111,Filtros!$A$5:$AY$22116,6,FALSE),0) -> 138 | I111: =IFERROR(VLOOKUP($A111,Filtros!$A$5:$AY$22116,7,FALSE),0) -> 87 | J111: =IFERROR(VLOOKUP($A111,Filtros!$A$5:$AY$22116,8,FALSE),0) -> 33 | K111: =IFERROR(VLOOKUP($A111,Filtros!$A$5:$AY$22116,9,FALSE),0) -> 17 | L111: =IFERROR(VLOOKUP($A111,Filtros!$A$5:$AY$22116,10,FALSE),0) -> 26 | M111: =IFERROR(VLOOKUP($A111,Filtros!$A$5:$AY$22116,11,FALSE),0) -> 13
C112: TOTAL | D112: =SUM(E112:M112) -> 42617 | E112: =SUM(E108:E111) -> 316 | F112: =SUM(F108:F111) -> 5028 | G112: 7377 | H112: 7914 | I112: 7032 | J112: 5650 | K112: 4431 | L112: 3389 | M112: 1480
B113: NIVEL SECUNDARIO
B114: SECCIÓN I POBLACIÓN EN CONTROL POR PATOLOGÍAS DE ALTO RIESGO OBSTÉTRICO
B115: PATOLOGÍA | C115: TOTAL
A116: P1030303 | B116: Preeclampsia (PE) | C116: =IFERROR(VLOOKUP($A116,Filtros!$A$5:$AY$22116,2,FALSE),0) -> 17 | D116: =($CB107&$CC107&$CD107&$CE107&$CF107&$CG107&$CH107&$CI107&$CJ107&$CK107&$CM107&$CN107&$CO107&$CP107&$CQ107&$CR107&$CS107&$CT107&$CU107&$CV107&$CW107&$CX107&$CY107&$CZ107&$DA107) -> 
A117: P1060070 | B117: Sindrome Hipertensivo del Embarazo (SHE) | C117: =IFERROR(VLOOKUP($A117,Filtros!$A$5:$AY$22116,2,FALSE),0) -> 45
A118: P1030304 | B118: Factores de riesgo y condicionantes de Parto Prematuro | C118: =IFERROR(VLOOKUP($A118,Filtros!$A$5:$AY$22116,2,FALSE),0) -> 101
A119: P1030401 | B119: Retardo Crecimiento Intrauterino (RCIU ) | C119: =IFERROR(VLOOKUP($A119,Filtros!$A$5:$AY$22116,2,FALSE),0) -> 19
A120: P1040506 | B120: SÍFILIS | C120: =IFERROR(VLOOKUP($A120,Filtros!$A$5:$AY$22116,2,FALSE),0) -> 22
A121: P1040507 | B121: VIH | C121: =IFERROR(VLOOKUP($A121,Filtros!$A$5:$AY$22116,2,FALSE),0) -> 1
A122: P1060115 | B122: Diabetes Pre Gestacional | C122: =IFERROR(VLOOKUP($A122,Filtros!$A$5:$AY$22116,2,FALSE),0) -> 50
A123: P1060116 | B123: Diabetes Gestacional | C123: =IFERROR(VLOOKUP($A123,Filtros!$A$5:$AY$22116,2,FALSE),0) -> 219
A124: P1030403 | B124: Cesárea anterior | C124: =IFERROR(VLOOKUP($A124,Filtros!$A$5:$AY$22116,2,FALSE),0) -> 401
A125: P1060080 | B125: Malformación Congénita | C125: =IFERROR(VLOOKUP($A125,Filtros!$A$5:$AY$22116,2,FALSE),0) -> 16
A126: P1060117 | B126: Anemia | C126: =IFERROR(VLOOKUP($A126,Filtros!$A$5:$AY$22116,2,FALSE),0) -> 24
A127: P1060118 | B127: Cardiopatías | C127: =IFERROR(VLOOKUP($A127,Filtros!$A$5:$AY$22116,2,FALSE),0) -> 12
A128: P1060119 | B128: Pielonefritis | C128: =IFERROR(VLOOKUP($A128,Filtros!$A$5:$AY$22116,2,FALSE),0) -> 1
A129: P1060120 | B129: Rh(-) sensibilizada | C129: =IFERROR(VLOOKUP($A129,Filtros!$A$5:$AY$22116,2,FALSE),0) -> 16
A130: P1060121 | B130: Placenta previa | C130: =IFERROR(VLOOKUP($A130,Filtros!$A$5:$AY$22116,2,FALSE),0) -> 5
A131: P1060122 | B131: Chagas | C131: =IFERROR(VLOOKUP($A131,Filtros!$A$5:$AY$22116,2,FALSE),0) -> 15
A132: P1060123 | B132: Colestasia Intrahépatica de Embarazo | C132: =IFERROR(VLOOKUP($A132,Filtros!$A$5:$AY$22116,2,FALSE),0) -> 18
A133: P1030404 | B133: Otras patologías del embarazo | C133: =IFERROR(VLOOKUP($A133,Filtros!$A$5:$AY$22116,2,FALSE),0) -> 843
B134: TOTAL | C134: =SUM(C116:C133) -> 1825
A139: CODIGOS ELIMINADOS
A140: P1200100
A141: P1200110
A142: P1200120
A143: P1200130
A144: P1200140
A145: P1200150
A146: P1200160 | B146: =SUM(D11:T33,C37:G46,C50:D54,D58:M67,C70:C74,C77:C81,D86:K92,C95:F104,#REF!,C116:C134,E108:M111) ->  | C146: datos
A147: P1200170 | B147: =SUM(DB$10:EA136) -> 0 | C147: errores
A148: P1200180

Sheet P2
B6: REM-P2. POBLACIÓN EN CONTROL PROGRAMA NACIONAL DE SALUD DE LA INFANCIA
B7: SECCION A: POBLACIÓN EN CONTROL, SEGÚN ESTADO NUTRICIONAL PARA NIÑOS MENOR DE UN MES-59 MESES
B8: INDICADOR NUTRICIONAL Y PARÁMETROS DE MEDICIÓN | D8: TOTAL | G8: GRUPOS DE EDAD (en meses - años) Y SEXO | AI8: Pueblos Originarios | AK8: Población Migrantes
G9: Menor de 1 mes | I9: 1 mes | K9: 2 meses | M9: 3 meses | O9: 4 meses | Q9: 5 meses | S9: 6 meses | U9: 7 a 11 meses | W9: 12 a 17 meses | Y9: 18 a 23 meses | AA9: 24 a 35 meses | AC9: 36 a 41 meses | AE9: 42 a 47 meses | AG9: 48 a 59 meses
D10: Ambos sexos | E10: Hombres | F10: Mujeres | G10: Hombres | H10: Mujeres | I10: Hombres | J10: Mujeres | K10: Hombres | L10: Mujeres | M10: Hombres | N10: Mujeres | O10: Hombres | P10: Mujeres | Q10: Hombres | R10: Mujeres | S10: Hombres | T10: Mujeres | U10: Hombres | V10: Mujeres | W10: Hombres | X10: Mujeres | Y10: Hombres | Z10: Mujeres | AA10: Hombres | AB10: Mujeres | AC10: Hombres | AD10: Mujeres | AE10: Hombres | AF10: Mujeres | AG10: Hombres | AH10: Mujeres | AI10: Hombres | AJ10: Mujeres | AK10: Hombres | AL10: Mujeres
A11: P2060000 | B11: TOTAL DE NIÑOS EN CONTROL | D11: =IFERROR(VLOOKUP($A11,Filtros!$A$5:$AY$22116,2,FALSE),0) -> 26393 | E11: =IFERROR(VLOOKUP($A11,Filtros!$A$5:$AY$22116,3,FALSE),0) -> 13432 | F11: =IFERROR(VLOOKUP($A11,Filtros!$A$5:$AY$22116,4,FALSE),0) -> 12961 | G11: =IFERROR(VLOOKUP($A11,Filtros!$A$5:$AY$22116,5,FALSE),0) -> 188 | H11: =IFERROR(VLOOKUP($A11,Filtros!$A$5:$AY$22116,6,FALSE),0) -> 131 | I11: =IFERROR(VLOOKUP($A11,Filtros!$A$5:$AY$22116,7,FALSE),0) -> 208 | J11: =IFERROR(VLOOKUP($A11,Filtros!$A$5:$AY$22116,8,FALSE),0) -> 215 | K11: =IFERROR(VLOOKUP($A11,Filtros!$A$5:$AY$22116,9,FALSE),0) -> 260 | L11: =IFERROR(VLOOKUP($A11,Filtros!$A$5:$AY$22116,10,FALSE),0) -> 265 | M11: =IFERROR(VLOOKUP($A11,Filtros!$A$5:$AY$22116,11,FALSE),0) -> 255 | N11: =IFERROR(VLOOKUP($A11,Filtros!$A$5:$AY$22116,12,FALSE),0) -> 233 | O11: =IFERROR(VLOOKUP($A11,Filtros!$A$5:$AY$22116,13,FALSE),0) -> 254 | P11: =IFERROR(VLOOKUP($A11,Filtros!$A$5:$AY$22116,14,FALSE),0) -> 266 | Q11: =IFERROR(VLOOKUP($A11,Filtros!$A$5:$AY$22116,15,FALSE),0) -> 252 | R11: =IFERROR(VLOOKUP($A11,Filtros!$A$5:$AY$22116,16,FALSE),0) -> 259 | S11: =IFERROR(VLOOKUP($A11,Filtros!$A$5:$AY$22116,17,FALSE),0) -> 306 | T11: =IFERROR(VLOOKUP($A11,Filtros!$A$5:$AY$22116,18,FALSE),0) -> 319 | U11: =IFERROR(VLOOKUP($A11,Filtros!$A$5:$AY$22116,19,FALSE),0) -> 1153 | V11: =IFERROR(VLOOKUP($A11,Filtros!$A$5:$AY$22116,20,FALSE),0) -> 1170 | W11: =IFERROR(VLOOKUP($A11,Filtros!$A$5:$AY$22116,21,FALSE),0) -> 1520 | X11: =IFERROR(VLOOKUP($A11,Filtros!$A$5:$AY$22116,22,FALSE),0) -> 1471 | Y11: =IFERROR(VLOOKUP($A11,Filtros!$A$5:$AY$22116,23,FALSE),0) -> 1506 | Z11: =IFERROR(VLOOKUP($A11,Filtros!$A$5:$AY$22116,24,FALSE),0) -> 1508 | AA11: =IFERROR(VLOOKUP($A11,Filtros!$A$5:$AY$22116,25,FALSE),0) -> 2802 | AB11: =IFERROR(VLOOKUP($A11,Filtros!$A$5:$AY$22116,26,FALSE),0) -> 2623 | AC11: =IFERROR(VLOOKUP($A11,Filtros!$A$5:$AY$22116,27,FALSE),0) -> 1493 | AD11: =IFERROR(VLOOKUP($A11,Filtros!$A$5:$AY$22116,28,FALSE),0) -> 1380 | AE11: =IFERROR(VLOOKUP($A11,Filtros!$A$5:$AY$22116,29,FALSE),0) -> 1101 | AF11: =IFERROR(VLOOKUP($A11,Filtros!$A$5:$AY$22116,30,FALSE),0) -> 1108 | AG11: =IFERROR(VLOOKUP($A11,Filtros!$A$5:$AY$22116,31,FALSE),0) -> 2134 | AH11: =IFERROR(VLOOKUP($A11,Filtros!$A$5:$AY$22116,32,FALSE),0) -> 2013 | AI11: =IFERROR(VLOOKUP($A11,Filtros!$A$5:$AY$22116,33,FALSE),0) -> 73 | AJ11: =IFERROR(VLOOKUP($A11,Filtros!$A$5:$AY$22116,34,FALSE),0) -> 86 | AK11: =IFERROR(VLOOKUP($A11,Filtros!$A$5:$AY$22116,35,FALSE),0) -> 141 | AL11: =IFERROR(VLOOKUP($A11,Filtros!$A$5:$AY$22116,36,FALSE),0) -> 140 | CC11: =IF($I$11+$J$11<>$I$38+$J$38,"* El Total de niños (as) en Control de 1 mes debe ser igual al Total de niños(as) según Diagnóstico Nutricional Integrado. ","") -> * El Total de niños (as) en Control de 1 mes debe ser igual al Total de niños(as) según Diagnóstico Nutricional Integrado. | CD11: =IF($K$11+$L$11<>$K$38+$L$38,"* El Total de niños (as) en Control de 2 meses debe ser igual al Total de niños(as) según Diagnóstico Nutricional Integrado. ","") -> * El Total de niños (as) en Control de 2 meses debe ser igual al Total de niños(as) según Diagnóstico Nutricional Integrado. | CE11: =IF($M$11+$N$11<>$M$38+$N$38,"* El Total de niños (as) en Control de 3 meses debe ser igual al Total de niños(as) según Diagnóstico Nutricional Integrado. ","") -> * El Total de niños (as) en Control de 3 meses debe ser igual al Total de niños(as) según Diagnóstico Nutricional Integrado. | CF11: =IF($O$11+$P$11<>$O$38+$P$38,"* El Total de niños (as) en Control de 4 meses debe ser igual al Total de niños(as) según Diagnóstico Nutricional Integrado. ","") -> * El Total de niños (as) en Control de 4 meses debe ser igual al Total de niños(as) según Diagnóstico Nutricional Integrado. | CG11: =IF($Q$11+$R$11<>$Q$38+$R$38,"* El Total de niños (as) en Control de 5 meses debe ser igual al Total de niños(as) según Diagnóstico Nutricional Integrado. ","") -> * El Total de niños (as) en Control de 5 meses debe ser igual al Total de niños(as) según Diagnóstico Nutricional Integrado. | CH11: =IF($S$11+$T$11<>$S$38+$T$38,"* El Total de niños (as) en Control de 6 meses debe ser igual al Total de niños(as) según Diagnóstico Nutricional Integrado. ","") -> * El Total de niños (as) en Control de 6 meses debe ser igual al Total de niños(as) según Diagnóstico Nutricional Integrado. | CI11: =IF($U$11+$V$11<>$U$38+$V$38,"* El Total de niños (as) en Control de 7 a 11 meses debe ser igual al Total de niños(as) según Diagnóstico Nutricional Integrado. ","") -> * El Total de niños (as) en Control de 7 a 11 meses debe ser igual al Total de niños(as) según Diagnóstico Nutricional Integrado. | CJ11: =IF($W$11+$X$11<>$W$38+$X$38,"* El Total de niños (as) en Control de 12 a 17 meses debe ser igual al Total de niños(as) según Diagnóstico Nutricional Integrado. ","") -> * El Total de niños (as) en Control de 12 a 17 meses debe ser igual al Total de niños(as) según Diagnóstico Nutricional Integrado. | DB11: =IF($I$11+$J$11<>$I$38+$J$38,1,0) -> 1 | DC11: =IF($K$11+$L$11<>$K$38+$L$38,1,0) -> 1 | DD11: =IF($M$11+$N$11<>$M$38+$N$38,1,0) -> 1 | DE11: =IF($O$11+$P$11<>$O$38+$P$38,1,0) -> 1 | DF11: =IF($Q$11+$R$11<>$Q$38+$R$38,1,0) -> 1 | DG11: =IF($S$11+$T$11<>$S$38+$T$38,1,0) -> 1 | DH11: =IF($U$11+$V$11<>$U$38+$V$38,1,0) -> 1 | DI11: =IF($W$11+$X$11<>$W$38+$X$38,1,0) -> 1
A12: P2400100 | B12: INDICADOR PESO/EDAD | C12: + 2 D.S. (>= +2.0) | D12: =IFERROR(VLOOKUP($A12,Filtros!$A$5:$AY$22116,2,FALSE),0) -> 3098 | E12: =IFERROR(VLOOKUP($A12,Filtros!$A$5:$AY$22116,3,FALSE),0) -> 1636 | F12: =IFERROR(VLOOKUP($A12,Filtros!$A$5:$AY$22116,4,FALSE),0) -> 1462 | G12: =IFERROR(VLOOKUP($A12,Filtros!$A$5:$AY$22116,5,FALSE),0) -> 0 | H12: =IFERROR(VLOOKUP($A12,Filtros!$A$5:$AY$22116,6,FALSE),0) -> 0 | I12: =IFERROR(VLOOKUP($A12,Filtros!$A$5:$AY$22116,7,FALSE),0) -> 6 | J12: =IFERROR(VLOOKUP($A12,Filtros!$A$5:$AY$22116,8,FALSE),0) -> 3 | K12: =IFERROR(VLOOKUP($A12,Filtros!$A$5:$AY$22116,9,FALSE),0) -> 10 | L12: =IFERROR(VLOOKUP($A12,Filtros!$A$5:$AY$22116,10,FALSE),0) -> 5 | M12: =IFERROR(VLOOKUP($A12,Filtros!$A$5:$AY$22116,11,FALSE),0) -> 12 | N12: =IFERROR(VLOOKUP($A12,Filtros!$A$5:$AY$22116,12,FALSE),0) -> 10 | O12: =IFERROR(VLOOKUP($A12,Filtros!$A$5:$AY$22116,13,FALSE),0) -> 16 | P12: =IFERROR(VLOOKUP($A12,Filtros!$A$5:$AY$22116,14,FALSE),0) -> 9 | Q12: =IFERROR(VLOOKUP($A12,Filtros!$A$5:$AY$22116,15,FALSE),0) -> 18 | R12: =IFERROR(VLOOKUP($A12,Filtros!$A$5:$AY$22116,16,FALSE),0) -> 18 | S12: =IFERROR(VLOOKUP($A12,Filtros!$A$5:$AY$22116,17,FALSE),0) -> 27 | T12: =IFERROR(VLOOKUP($A12,Filtros!$A$5:$AY$22116,18,FALSE),0) -> 34 | U12: =IFERROR(VLOOKUP($A12,Filtros!$A$5:$AY$22116,19,FALSE),0) -> 104 | V12: =IFERROR(VLOOKUP($A12,Filtros!$A$5:$AY$22116,20,FALSE),0) -> 103 | W12: =IFERROR(VLOOKUP($A12,Filtros!$A$5:$AY$22116,21,FALSE),0) -> 164 | X12: =IFERROR(VLOOKUP($A12,Filtros!$A$5:$AY$22116,22,FALSE),0) -> 148 | Y12: =IFERROR(VLOOKUP($A12,Filtros!$A$5:$AY$22116,23,FALSE),0) -> 172 | Z12: =IFERROR(VLOOKUP($A12,Filtros!$A$5:$AY$22116,24,FALSE),0) -> 172 | AA12: =IFERROR(VLOOKUP($A12,Filtros!$A$5:$AY$22116,25,FALSE),0) -> 345 | AB12: =IFERROR(VLOOKUP($A12,Filtros!$A$5:$AY$22116,26,FALSE),0) -> 346 | AC12: =IFERROR(VLOOKUP($A12,Filtros!$A$5:$AY$22116,27,FALSE),0) -> 253 | AD12: =IFERROR(VLOOKUP($A12,Filtros!$A$5:$AY$22116,28,FALSE),0) -> 182 | AE12: =IFERROR(VLOOKUP($A12,Filtros!$A$5:$AY$22116,29,FALSE),0) -> 165 | AF12: =IFERROR(VLOOKUP($A12,Filtros!$A$5:$AY$22116,30,FALSE),0) -> 142 | AG12: =IFERROR(VLOOKUP($A12,Filtros!$A$5:$AY$22116,31,FALSE),0) -> 344 | AH12: =IFERROR(VLOOKUP($A12,Filtros!$A$5:$AY$22116,32,FALSE),0) -> 290 | AI12: =IFERROR(VLOOKUP($A12,Filtros!$A$5:$AY$22116,33,FALSE),0) -> 2 | AJ12: =IFERROR(VLOOKUP($A12,Filtros!$A$5:$AY$22116,34,FALSE),0) -> 9 | AK12: =IFERROR(VLOOKUP($A12,Filtros!$A$5:$AY$22116,35,FALSE),0) -> 9 | AL12: =IFERROR(VLOOKUP($A12,Filtros!$A$5:$AY$22116,36,FALSE),0) -> 11 | AM12: =CF14 & CG14 ->  | CC12: =IF($Y$11+$Z$11<>$Y$38+$Z$38,"* El Total de niños (as) en Control de 18 a 23 meses debe ser igual al Total de niños(as) según Diagnóstico Nutricional Integrado. ","") -> * El Total de niños (as) en Control de 18 a 23 meses debe ser igual al Total de niños(as) según Diagnóstico Nutricional Integrado. | CD12: =IF($AA$11+$AB$11<>$AA$38+$AB$38,"* El Total de niños (as) en Control de 24 a 35 meses debe ser igual al Total de niños(as) según Diagnóstico Nutricional Integrado. ","") -> * El Total de niños (as) en Control de 24 a 35 meses debe ser igual al Total de niños(as) según Diagnóstico Nutricional Integrado. | CE12: =IF($AC$11+$AD$11<>$AC$38+$AD$38,"* El Total de niños (as) en Control de 36 a 41 meses debe ser igual al Total de niños(as) según Diagnóstico Nutricional Integrado. ","") -> * El Total de niños (as) en Control de 36 a 41 meses debe ser igual al Total de niños(as) según Diagnóstico Nutricional Integrado. | CF12: =IF($AE$11+$AF$11<>$AE$38+$AF$38,"* El Total de niños (as) en Control de 42 a 47 meses debe ser igual al Total de niños(as) según Diagnóstico Nutricional Integrado. ","") -> * El Total de niños (as) en Control de 42 a 47 meses debe ser igual al Total de niños(as) según Diagnóstico Nutricional Integrado. | CG12: =IF($AG$11+$AH$11<>$AG$38+$AH$38,"* El Total de niños (as) en Control de 48 a 59 meses debe ser igual al Total de niños(as) según Diagnóstico Nutricional Integrado. ","") -> * El Total de niños (as) en Control de 48 a 59 meses debe ser igual al Total de niños(as) según Diagnóstico Nutricional Integrado. | CH12: =IF($D11>=$AI11+$AJ11,"","* El Total de Pueblos Originarios no debe ser mayor al total de niños en control. ") ->  | CI12: =IF($D11>=$AK11+$AL11,"","* El Total de Población Migrantes no debe ser mayor al total de niños en control. ") ->  | CJ12: =IF($AI$11+$AJ$11<>$AI$38+$AJ$38,"* El Total de niños (as) en Control de Pueblos Originarios debe ser igual al Total de niños(as) según Diagnóstico Nutricional Integrado. ","") -> * El Total de niños (as) en Control de Pueblos Originarios debe ser igual al Total de niños(as) según Diagnóstico Nutricional Integrado. | CK12: =IF($AK$11+$AL$11<>$AK$38+$AL$38,"* El Total de niños (as) en Control de Población Migrantes debe ser igual al Total de niños(as) según Diagnóstico Nutricional Integrado. ","") -> * El Total de niños (as) en Control de Población Migrantes debe ser igual al Total de niños(as) según Diagnóstico Nutricional Integrado. | DB12: =IF($Y$11+$Z$11<>$Y$38+$Z$38,1,0) -> 1 | DC12: =IF($AA$11+$AB$11<>$AA$38+$AB$38,1,0) -> 1 | DD12: =IF($AC$11+$AD$11<>$AC$38+$AD$38,1,0) -> 1 | DE12: =IF($AE$11+$AF$11<>$AE$38+$AF$38,1,0) -> 1 | DF12: =IF($AG$11+$AH$11<>$AG$38+$AH$38,1,0) -> 1 | DG12: =IF($D11>=$AI11+$AJ11,0,1) -> 0 | DH12: =IF($D11>=$AK11+$AL11,0,1) -> 0 | DI12: =IF($AI$11+$AJ$11<>$AI$38+$AJ$38,1,0) -> 1 | DJ12: =IF($AK$11+$AL$11<>$AK$38+$AL$38,1,0) -> 1
A13: P2400110 | C13: + 1 D.S. (+1.0 a +1.9) | D13: =IFERROR(VLOOKUP($A13,Filtros!$A$5:$AY$22116,2,FALSE),0) -> 5558 | E13: =IFERROR(VLOOKUP($A13,Filtros!$A$5:$AY$22116,3,FALSE),0) -> 2752 | F13: =IFERROR(VLOOKUP($A13,Filtros!$A$5:$AY$22116,4,FALSE),0) -> 2806 | G13: =IFERROR(VLOOKUP($A13,Filtros!$A$5:$AY$22116,5,FALSE),0) -> 0 | H13: =IFERROR(VLOOKUP($A13,Filtros!$A$5:$AY$22116,6,FALSE),0) -> 0 | I13: =IFERROR(VLOOKUP($A13,Filtros!$A$5:$AY$22116,7,FALSE),0) -> 20 | J13: =IFERROR(VLOOKUP($A13,Filtros!$A$5:$AY$22116,8,FALSE),0) -> 29 | K13: =IFERROR(VLOOKUP($A13,Filtros!$A$5:$AY$22116,9,FALSE),0) -> 48 | L13: =IFERROR(VLOOKUP($A13,Filtros!$A$5:$AY$22116,10,FALSE),0) -> 35 | M13: =IFERROR(VLOOKUP($A13,Filtros!$A$5:$AY$22116,11,FALSE),0) -> 51 | N13: =IFERROR(VLOOKUP($A13,Filtros!$A$5:$AY$22116,12,FALSE),0) -> 38 | O13: =IFERROR(VLOOKUP($A13,Filtros!$A$5:$AY$22116,13,FALSE),0) -> 50 | P13: =IFERROR(VLOOKUP($A13,Filtros!$A$5:$AY$22116,14,FALSE),0) -> 51 | Q13: =IFERROR(VLOOKUP($A13,Filtros!$A$5:$AY$22116,15,FALSE),0) -> 48 | R13: =IFERROR(VLOOKUP($A13,Filtros!$A$5:$AY$22116,16,FALSE),0) -> 58 | S13: =IFERROR(VLOOKUP($A13,Filtros!$A$5:$AY$22116,17,FALSE),0) -> 71 | T13: =IFERROR(VLOOKUP($A13,Filtros!$A$5:$AY$22116,18,FALSE),0) -> 70 | U13: =IFERROR(VLOOKUP($A13,Filtros!$A$5:$AY$22116,19,FALSE),0) -> 265 | V13: =IFERROR(VLOOKUP($A13,Filtros!$A$5:$AY$22116,20,FALSE),0) -> 226 | W13: =IFERROR(VLOOKUP($A13,Filtros!$A$5:$AY$22116,21,FALSE),0) -> 318 | X13: =IFERROR(VLOOKUP($A13,Filtros!$A$5:$AY$22116,22,FALSE),0) -> 350 | Y13: =IFERROR(VLOOKUP($A13,Filtros!$A$5:$AY$22116,23,FALSE),0) -> 335 | Z13: =IFERROR(VLOOKUP($A13,Filtros!$A$5:$AY$22116,24,FALSE),0) -> 340 | AA13: =IFERROR(VLOOKUP($A13,Filtros!$A$5:$AY$22116,25,FALSE),0) -> 601 | AB13: =IFERROR(VLOOKUP($A13,Filtros!$A$5:$AY$22116,26,FALSE),0) -> 653 | AC13: =IFERROR(VLOOKUP($A13,Filtros!$A$5:$AY$22116,27,FALSE),0) -> 291 | AD13: =IFERROR(VLOOKUP($A13,Filtros!$A$5:$AY$22116,28,FALSE),0) -> 312 | AE13: =IFERROR(VLOOKUP($A13,Filtros!$A$5:$AY$22116,29,FALSE),0) -> 214 | AF13: =IFERROR(VLOOKUP($A13,Filtros!$A$5:$AY$22116,30,FALSE),0) -> 232 | AG13: =IFERROR(VLOOKUP($A13,Filtros!$A$5:$AY$22116,31,FALSE),0) -> 440 | AH13: =IFERROR(VLOOKUP($A13,Filtros!$A$5:$AY$22116,32,FALSE),0) -> 412 | AI13: =IFERROR(VLOOKUP($A13,Filtros!$A$5:$AY$22116,33,FALSE),0) -> 10 | AJ13: =IFERROR(VLOOKUP($A13,Filtros!$A$5:$AY$22116,34,FALSE),0) -> 14 | AK13: =IFERROR(VLOOKUP($A13,Filtros!$A$5:$AY$22116,35,FALSE),0) -> 15 | AL13: =IFERROR(VLOOKUP($A13,Filtros!$A$5:$AY$22116,36,FALSE),0) -> 20 | AM13: =CH14 & CI14 ->  | CJ13: =IF(AND(E11<>0,AI11=""), "* No olvide escribir en la celda de Pueblos Originarios (Digite CERO si no tiene). ",IF(AND(F11<>0,AJ11=""), "* No olvide escribir en la celda de Pueblos Originarios (Digite CERO si no tiene). ","")) ->  | CK13: =IF(AND(E11<>0,AK11=""), "* No olvide escribir en la celda de Población Migrantes (Digite CERO si no tiene). ",IF(AND(F11<>0,AL11=""), "* No olvide escribir en la celda de Población Migrantes (Digite CERO si no tiene). ","")) ->  | DI13: =IF(AND(E11<>0,AI11=""), 1,IF(AND(F11<>0,AJ11=""), 1,0)) -> 0 | DJ13: =IF(AND(E11<>0,AK11=""), 1,IF(AND(F11<>0,AL11=""), 1,0)) -> 0
C14: TOTAL | D14: =SUM(E14:F14) -> 8656 | E14: =+I14+K14+M14+O14+Q14+S14+U14+W14+Y14+AA14+AC14+AE14+AG14 -> 4388 | F14: =+J14+L14+N14+P14+R14+T14+V14+X14+Z14+AB14+AD14+AF14+AH14 -> 4268 | I14: =+SUM(I12:I13) -> 26 | J14: =+SUM(J12:J13) -> 32 | K14: 58 | L14: 40 | M14: 63 | N14: 48 | O14: 66 | P14: 60 | Q14: 66 | R14: 76 | S14: 98 | T14: 104 | U14: 369 | V14: =+SUM(V12:V13) -> 329 | W14: =SUM(W12:W13) -> 482 | X14: =SUM(X12:X13) -> 498 | Y14: =SUM(Y12:Y13) -> 507 | Z14: 512 | AA14: 946 | AB14: 999 | AC14: 544 | AD14: 494 | AE14: 379 | AF14: 374 | AG14: 784 | AH14: 702 | AI14: =+SUM(AI12:AI13) -> 12 | AJ14: =+SUM(AJ12:AJ13) -> 23 | AK14: =+SUM(AK12:AK13) -> 24 | AL14: =+SUM(AL12:AL13) -> 31 | AM14: ="" & CC14 & CD14 ->  | CC14: =IF($D14>=$AI14+$AJ14,"","* El Total de Pueblos Originarios no debe ser mayor al Total Indicador peso/edad") ->  | CD14: =IF($D14>=$AK14+$AL14,"","* El Total de Población Migrante no debe ser mayor al Total Indicador peso/edad") ->  | CF14: =IF(AND(E12<>0,AI12=""), "* No olvide escribir en la celda de Pueblos Originarios (Digite CERO si no tiene). ",IF(AND(F12<>0,AJ12=""), "* No olvide escribir en la celda de Pueblos Originarios (Digite CERO si no tiene). ","")) ->  | CG14: =IF(AND(E12<>0,AK12=""), "* No olvide escribir en la celda de Población Migrantes (Digite CERO si no tiene). ",IF(AND(F12<>0,AL12=""), "* No olvide escribir en la celda de Población Migrantes (Digite CERO si no tiene). ","")) ->  | CH14: =IF(AND(E13<>0,AI13=""), "* No olvide escribir en la celda de Pueblos Originarios (Digite CERO si no tiene). ",IF(AND(F13<>0,AJ13=""), "* No olvide escribir en la celda de Pueblos Originarios (Digite CERO si no tiene). ","")) ->  | CI14: =IF(AND(E13<>0,AK13=""), "* No olvide escribir en la celda de Población Migrantes (Digite CERO si no tiene). ",IF(AND(F13<>0,AL13=""), "* No olvide escribir en la celda de Población Migrantes (Digite CERO si no tiene). ","")) ->  | DB14: =IF($D14>=$AI14+$AJ14,0,1) -> 0 | DC14: =IF($D14>=$AK14+$AL14,0,1) -> 0 | DF14: =IF(AND(E12<>0,AI12=""), 1,IF(AND(F12<>0,AJ12=""), 1,0)) -> 0 | DG14: =IF(AND(E12<>0,AK12=""), 1,IF(AND(F12<>0,AL12=""), 1,0)) -> 0 | DH14: =IF(AND(E13<>0,AK13=""), 1,IF(AND(F13<>0,AL13=""), 1,0)) -> 0 | DI14: =IF(AND(E13<>0,AK13=""), 1,IF(AND(F13<>0,AL13=""), 1,0)) -> 0
A15: P2070101 | C15: - 1 D.S. (-1.0 a -1.9) | D15: =IFERROR(VLOOKUP($A15,Filtros!$A$5:$AY$22116,2,FALSE),0) -> 1147 | E15: =IFERROR(VLOOKUP($A15,Filtros!$A$5:$AY$22116,3,FALSE),0) -> 624 | F15: =IFERROR(VLOOKUP($A15,Filtros!$A$5:$AY$22116,4,FALSE),0) -> 523 | G15: =IFERROR(VLOOKUP($A15,Filtros!$A$5:$AY$22116,5,FALSE),0) -> 0 | H15: =IFERROR(VLOOKUP($A15,Filtros!$A$5:$AY$22116,6,FALSE),0) -> 0 | I15: =IFERROR(VLOOKUP($A15,Filtros!$A$5:$AY$22116,7,FALSE),0) -> 13 | J15: =IFERROR(VLOOKUP($A15,Filtros!$A$5:$AY$22116,8,FALSE),0) -> 10 | K15: =IFERROR(VLOOKUP($A15,Filtros!$A$5:$AY$22116,9,FALSE),0) -> 30 | L15: =IFERROR(VLOOKUP($A15,Filtros!$A$5:$AY$22116,10,FALSE),0) -> 19 | M15: =IFERROR(VLOOKUP($A15,Filtros!$A$5:$AY$22116,11,FALSE),0) -> 14 | N15: =IFERROR(VLOOKUP($A15,Filtros!$A$5:$AY$22116,12,FALSE),0) -> 16 | O15: =IFERROR(VLOOKUP($A15,Filtros!$A$5:$AY$22116,13,FALSE),0) -> 15 | P15: =IFERROR(VLOOKUP($A15,Filtros!$A$5:$AY$22116,14,FALSE),0) -> 12 | Q15: =IFERROR(VLOOKUP($A15,Filtros!$A$5:$AY$22116,15,FALSE),0) -> 20 | R15: =IFERROR(VLOOKUP($A15,Filtros!$A$5:$AY$22116,16,FALSE),0) -> 16 | S15: =IFERROR(VLOOKUP($A15,Filtros!$A$5:$AY$22116,17,FALSE),0) -> 11 | T15: =IFERROR(VLOOKUP($A15,Filtros!$A$5:$AY$22116,18,FALSE),0) -> 22 | U15: =IFERROR(VLOOKUP($A15,Filtros!$A$5:$AY$22116,19,FALSE),0) -> 47 | V15: =IFERROR(VLOOKUP($A15,Filtros!$A$5:$AY$22116,20,FALSE),0) -> 57 | W15: =IFERROR(VLOOKUP($A15,Filtros!$A$5:$AY$22116,21,FALSE),0) -> 70 | X15: =IFERROR(VLOOKUP($A15,Filtros!$A$5:$AY$22116,22,FALSE),0) -> 48 | Y15: =IFERROR(VLOOKUP($A15,Filtros!$A$5:$AY$22116,23,FALSE),0) -> 73 | Z15: =IFERROR(VLOOKUP($A15,Filtros!$A$5:$AY$22116,24,FALSE),0) -> 50 | AA15: =IFERROR(VLOOKUP($A15,Filtros!$A$5:$AY$22116,25,FALSE),0) -> 132 | AB15: =IFERROR(VLOOKUP($A15,Filtros!$A$5:$AY$22116,26,FALSE),0) -> 77 | AC15: =IFERROR(VLOOKUP($A15,Filtros!$A$5:$AY$22116,27,FALSE),0) -> 67 | AD15: =IFERROR(VLOOKUP($A15,Filtros!$A$5:$AY$22116,28,FALSE),0) -> 69 | AE15: =IFERROR(VLOOKUP($A15,Filtros!$A$5:$AY$22116,29,FALSE),0) -> 53 | AF15: =IFERROR(VLOOKUP($A15,Filtros!$A$5:$AY$22116,30,FALSE),0) -> 54 | AG15: =IFERROR(VLOOKUP($A15,Filtros!$A$5:$AY$22116,31,FALSE),0) -> 79 | AH15: =IFERROR(VLOOKUP($A15,Filtros!$A$5:$AY$22116,32,FALSE),0) -> 73 | AI15: =IFERROR(VLOOKUP($A15,Filtros!$A$5:$AY$22116,33,FALSE),0) -> 4 | AJ15: =IFERROR(VLOOKUP($A15,Filtros!$A$5:$AY$22116,34,FALSE),0) -> 5 | AK15: =IFERROR(VLOOKUP($A15,Filtros!$A$5:$AY$22116,35,FALSE),0) -> 10 | AL15: =IFERROR(VLOOKUP($A15,Filtros!$A$5:$AY$22116,36,FALSE),0) -> 11 | AM15: =CJ15 & CK15 ->  | CC15: =IF($D17>=$AI17+$AJ17,"","* El Total de Pueblos Originarios no debe ser mayor al Total Indicador peso/edad") ->  | CD15: =IF($D17>=$AK17+$AL17,"","* El Total de Población Migrante no debe ser mayor al Total Indicador peso/edad") ->  | CJ15: =IF(AND(E15<>0,AI15=""), "* No olvide escribir en la celda de Pueblos Originarios (Digite CERO si no tiene). ",IF(AND(F15<>0,AJ15=""), "* No olvide escribir en la celda de Pueblos Originarios (Digite CERO si no tiene). ","")) ->  | CK15: =IF(AND(E15<>0,AK15=""), "* No olvide escribir en la celda de Población Migrantes (Digite CERO si no tiene). ",IF(AND(F15<>0,AL15=""), "* No olvide escribir en la celda de Población Migrantes (Digite CERO si no tiene). ","")) ->  | DB15: =IF($D17>=$AI17+$AJ17,0,1) -> 0 | DC15: =IF($D17>=$AK17+$AL17,0,1) -> 0 | DI15: =IF(AND(E15<>0,AI15=""), 1,IF(AND(F15<>0,AJ15=""), 1,0)) -> 0 | DJ15: =IF(AND(E15<>0,AK15=""), 1,IF(AND(F15<>0,AL15=""), 1,0)) -> 0
A16: P2070102 | C16: - 2 D.S. (<= -2.0) | D16: =IFERROR(VLOOKUP($A16,Filtros!$A$5:$AY$22116,2,FALSE),0) -> 195 | E16: =IFERROR(VLOOKUP($A16,Filtros!$A$5:$AY$22116,3,FALSE),0) -> 117 | F16: =IFERROR(VLOOKUP($A16,Filtros!$A$5:$AY$22116,4,FALSE),0) -> 78 | G16: =IFERROR(VLOOKUP($A16,Filtros!$A$5:$AY$22116,5,FALSE),0) -> 0 | H16: =IFERROR(VLOOKUP($A16,Filtros!$A$5:$AY$22116,6,FALSE),0) -> 0 | I16: =IFERROR(VLOOKUP($A16,Filtros!$A$5:$AY$22116,7,FALSE),0) -> 5 | J16: =IFERROR(VLOOKUP($A16,Filtros!$A$5:$AY$22116,8,FALSE),0) -> 4 | K16: =IFERROR(VLOOKUP($A16,Filtros!$A$5:$AY$22116,9,FALSE),0) -> 0 | L16: =IFERROR(VLOOKUP($A16,Filtros!$A$5:$AY$22116,10,FALSE),0) -> 5 | M16: =IFERROR(VLOOKUP($A16,Filtros!$A$5:$AY$22116,11,FALSE),0) -> 3 | N16: =IFERROR(VLOOKUP($A16,Filtros!$A$5:$AY$22116,12,FALSE),0) -> 3 | O16: =IFERROR(VLOOKUP($A16,Filtros!$A$5:$AY$22116,13,FALSE),0) -> 3 | P16: =IFERROR(VLOOKUP($A16,Filtros!$A$5:$AY$22116,14,FALSE),0) -> 1 | Q16: =IFERROR(VLOOKUP($A16,Filtros!$A$5:$AY$22116,15,FALSE),0) -> 1 | R16: =IFERROR(VLOOKUP($A16,Filtros!$A$5:$AY$22116,16,FALSE),0) -> 2 | S16: =IFERROR(VLOOKUP($A16,Filtros!$A$5:$AY$22116,17,FALSE),0) -> 0 | T16: =IFERROR(VLOOKUP($A16,Filtros!$A$5:$AY$22116,18,FALSE),0) -> 1 | U16: =IFERROR(VLOOKUP($A16,Filtros!$A$5:$AY$22116,19,FALSE),0) -> 11 | V16: =IFERROR(VLOOKUP($A16,Filtros!$A$5:$AY$22116,20,FALSE),0) -> 7 | W16: =IFERROR(VLOOKUP($A16,Filtros!$A$5:$AY$22116,21,FALSE),0) -> 17 | X16: =IFERROR(VLOOKUP($A16,Filtros!$A$5:$AY$22116,22,FALSE),0) -> 7 | Y16: =IFERROR(VLOOKUP($A16,Filtros!$A$5:$AY$22116,23,FALSE),0) -> 17 | Z16: =IFERROR(VLOOKUP($A16,Filtros!$A$5:$AY$22116,24,FALSE),0) -> 7 | AA16: =IFERROR(VLOOKUP($A16,Filtros!$A$5:$AY$22116,25,FALSE),0) -> 23 | AB16: =IFERROR(VLOOKUP($A16,Filtros!$A$5:$AY$22116,26,FALSE),0) -> 16 | AC16: =IFERROR(VLOOKUP($A16,Filtros!$A$5:$AY$22116,27,FALSE),0) -> 14 | AD16: =IFERROR(VLOOKUP($A16,Filtros!$A$5:$AY$22116,28,FALSE),0) -> 6 | AE16: =IFERROR(VLOOKUP($A16,Filtros!$A$5:$AY$22116,29,FALSE),0) -> 9 | AF16: =IFERROR(VLOOKUP($A16,Filtros!$A$5:$AY$22116,30,FALSE),0) -> 8 | AG16: =IFERROR(VLOOKUP($A16,Filtros!$A$5:$AY$22116,31,FALSE),0) -> 14 | AH16: =IFERROR(VLOOKUP($A16,Filtros!$A$5:$AY$22116,32,FALSE),0) -> 11 | AI16: =IFERROR(VLOOKUP($A16,Filtros!$A$5:$AY$22116,33,FALSE),0) -> 0 | AJ16: =IFERROR(VLOOKUP($A16,Filtros!$A$5:$AY$22116,34,FALSE),0) -> 0 | AK16: =IFERROR(VLOOKUP($A16,Filtros!$A$5:$AY$22116,35,FALSE),0) -> 2 | AL16: =IFERROR(VLOOKUP($A16,Filtros!$A$5:$AY$22116,36,FALSE),0) -> 2 | AM16: =CJ16 & CK16 ->  | CJ16: =IF(AND(E16<>0,AI16=""), "* No olvide escribir en la celda de Pueblos Originarios (Digite CERO si no tiene). ",IF(AND(F16<>0,AJ16=""), "* No olvide escribir en la celda de Pueblos Originarios (Digite CERO si no tiene). ","")) ->  | CK16: =IF(AND(E16<>0,AK16=""), "* No olvide escribir en la celda de Población Migrantes (Digite CERO si no tiene). ",IF(AND(F16<>0,AL16=""), "* No olvide escribir en la celda de Población Migrantes (Digite CERO si no tiene). ","")) ->  | DI16: =IF(AND(E16<>0,AI16=""), 1,IF(AND(F16<>0,AJ16=""), 1,0)) -> 0 | DJ16: =IF(AND(E16<>0,AK16=""), 1,IF(AND(F16<>0,AL16=""), 1,0)) -> 0
C17: TOTAL | D17: 1342 | E17: 741 | F17: 601 | I17: =SUM(I15:I16) -> 18 | J17: =SUM(J15:J16) -> 14 | K17: 30 | L17: 24 | M17: 17 | N17: 19 | O17: 18 | P17: 13 | Q17: 21 | R17: 18 | S17: 11 | T17: 23 | U17: 58 | V17: 64 | W17: =SUM(W15:W16) -> 87 | X17: =SUM(X15:X16) -> 55 | Y17: 90 | Z17: 57 | AA17: 155 | AB17: 93 | AC17: 81 | AD17: 75 | AE17: 62 | AF17: 62 | AG17: =SUM(AG15:AG16) -> 93 | AH17: 84 | AI17: =SUM(AI15:AI16) -> 4 | AJ17: =SUM(AJ15:AJ16) -> 5 | AK17: =SUM(AK15:AK16) -> 12 | AL17: =SUM(AL15:AL16) -> 13 | AM17: ="" & CC15 & CD15 -> 
A18: P2070201 | B18: INDICADOR PESO/TALLA | C18: + 2 D.S. (>= +2.0) | D18: =IFERROR(VLOOKUP($A18,Filtros!$A$5:$AY$22116,2,FALSE),0) -> 4165 | E18: =IFERROR(VLOOKUP($A18,Filtros!$A$5:$AY$22116,3,FALSE),0) -> 2179 | F18: =IFERROR(VLOOKUP($A18,Filtros!$A$5:$AY$22116,4,FALSE),0) -> 1986 | G18: =IFERROR(VLOOKUP($A18,Filtros!$A$5:$AY$22116,5,FALSE),0) -> 0 | H18: =IFERROR(VLOOKUP($A18,Filtros!$A$5:$AY$22116,6,FALSE),0) -> 0 | I18: =IFERROR(VLOOKUP($A18,Filtros!$A$5:$AY$22116,7,FALSE),0) -> 8 | J18: =IFERROR(VLOOKUP($A18,Filtros!$A$5:$AY$22116,8,FALSE),0) -> 4 | K18: =IFERROR(VLOOKUP($A18,Filtros!$A$5:$AY$22116,9,FALSE),0) -> 22 | L18: =IFERROR(VLOOKUP($A18,Filtros!$A$5:$AY$22116,10,FALSE),0) -> 15 | M18: =IFERROR(VLOOKUP($A18,Filtros!$A$5:$AY$22116,11,FALSE),0) -> 28 | N18: =IFERROR(VLOOKUP($A18,Filtros!$A$5:$AY$22116,12,FALSE),0) -> 19 | O18: =IFERROR(VLOOKUP($A18,Filtros!$A$5:$AY$22116,13,FALSE),0) -> 22 | P18: =IFERROR(VLOOKUP($A18,Filtros!$A$5:$AY$22116,14,FALSE),0) -> 25 | Q18: =IFERROR(VLOOKUP($A18,Filtros!$A$5:$AY$22116,15,FALSE),0) -> 24 | R18: =IFERROR(VLOOKUP($A18,Filtros!$A$5:$AY$22116,16,FALSE),0) -> 20 | S18: =IFERROR(VLOOKUP($A18,Filtros!$A$5:$AY$22116,17,FALSE),0) -> 52 | T18: =IFERROR(VLOOKUP($A18,Filtros!$A$5:$AY$22116,18,FALSE),0) -> 36 | U18: =IFERROR(VLOOKUP($A18,Filtros!$A$5:$AY$22116,19,FALSE),0) -> 188 | V18: =IFERROR(VLOOKUP($A18,Filtros!$A$5:$AY$22116,20,FALSE),0) -> 152 | W18: =IFERROR(VLOOKUP($A18,Filtros!$A$5:$AY$22116,21,FALSE),0) -> 224 | X18: =IFERROR(VLOOKUP($A18,Filtros!$A$5:$AY$22116,22,FALSE),0) -> 224 | Y18: =IFERROR(VLOOKUP($A18,Filtros!$A$5:$AY$22116,23,FALSE),0) -> 213 | Z18: =IFERROR(VLOOKUP($A18,Filtros!$A$5:$AY$22116,24,FALSE),0) -> 228 | AA18: =IFERROR(VLOOKUP($A18,Filtros!$A$5:$AY$22116,25,FALSE),0) -> 435 | AB18: =IFERROR(VLOOKUP($A18,Filtros!$A$5:$AY$22116,26,FALSE),0) -> 403 | AC18: =IFERROR(VLOOKUP($A18,Filtros!$A$5:$AY$22116,27,FALSE),0) -> 293 | AD18: =IFERROR(VLOOKUP($A18,Filtros!$A$5:$AY$22116,28,FALSE),0) -> 233 | AE18: =IFERROR(VLOOKUP($A18,Filtros!$A$5:$AY$22116,29,FALSE),0) -> 216 | AF18: =IFERROR(VLOOKUP($A18,Filtros!$A$5:$AY$22116,30,FALSE),0) -> 210 | AG18: =IFERROR(VLOOKUP($A18,Filtros!$A$5:$AY$22116,31,FALSE),0) -> 454 | AH18: =IFERROR(VLOOKUP($A18,Filtros!$A$5:$AY$22116,32,FALSE),0) -> 417 | AI18: =IFERROR(VLOOKUP($A18,Filtros!$A$5:$AY$22116,33,FALSE),0) -> 7 | AJ18: =IFERROR(VLOOKUP($A18,Filtros!$A$5:$AY$22116,34,FALSE),0) -> 17 | AK18: =IFERROR(VLOOKUP($A18,Filtros!$A$5:$AY$22116,35,FALSE),0) -> 11 | AL18: =IFERROR(VLOOKUP($A18,Filtros!$A$5:$AY$22116,36,FALSE),0) -> 11 | AM18: =CJ18 & CK18 ->  | CJ18: =IF(AND(E18<>0,AI18=""), "* No olvide escribir en la celda de Pueblos Originarios (Digite CERO si no tiene). ",IF(AND(F18<>0,AJ18=""), "* No olvide escribir en la celda de Pueblos Originarios (Digite CERO si no tiene). ","")) ->  | CK18: =IF(AND(E18<>0,AK18=""), "* No olvide escribir en la celda de Población Migrantes (Digite CERO si no tiene). ",IF(AND(F18<>0,AL18=""), "* No olvide escribir en la celda de Población Migrantes (Digite CERO si no tiene). ","")) ->  | DI18: =IF(AND(E18<>0,AI18=""), 1,IF(AND(F18<>0,AJ18=""), 1,0)) -> 0 | DJ18: =IF(AND(E18<>0,AK18=""), 1,IF(AND(F18<>0,AL18=""), 1,0)) -> 0
A19: P2070202 | C19: + 1 D.S. (+1.0 a +1.9) | D19: =IFERROR(VLOOKUP($A19,Filtros!$A$5:$AY$22116,2,FALSE),0) -> 6571 | E19: =IFERROR(VLOOKUP($A19,Filtros!$A$5:$AY$22116,3,FALSE),0) -> 3265 | F19: =IFERROR(VLOOKUP($A19,Filtros!$A$5:$AY$22116,4,FALSE),0) -> 3306 | G19: =IFERROR(VLOOKUP($A19,Filtros!$A$5:$AY$22116,5,FALSE),0) -> 0 | H19: =IFERROR(VLOOKUP($A19,Filtros!$A$5:$AY$22116,6,FALSE),0) -> 0 | I19: =IFERROR(VLOOKUP($A19,Filtros!$A$5:$AY$22116,7,FALSE),0) -> 23 | J19: =IFERROR(VLOOKUP($A19,Filtros!$A$5:$AY$22116,8,FALSE),0) -> 34 | K19: =IFERROR(VLOOKUP($A19,Filtros!$A$5:$AY$22116,9,FALSE),0) -> 48 | L19: =IFERROR(VLOOKUP($A19,Filtros!$A$5:$AY$22116,10,FALSE),0) -> 43 | M19: =IFERROR(VLOOKUP($A19,Filtros!$A$5:$AY$22116,11,FALSE),0) -> 61 | N19: =IFERROR(VLOOKUP($A19,Filtros!$A$5:$AY$22116,12,FALSE),0) -> 54 | O19: =IFERROR(VLOOKUP($A19,Filtros!$A$5:$AY$22116,13,FALSE),0) -> 67 | P19: =IFERROR(VLOOKUP($A19,Filtros!$A$5:$AY$22116,14,FALSE),0) -> 54 | Q19: =IFERROR(VLOOKUP($A19,Filtros!$A$5:$AY$22116,15,FALSE),0) -> 65 | R19: =IFERROR(VLOOKUP($A19,Filtros!$A$5:$AY$22116,16,FALSE),0) -> 80 | S19: =IFERROR(VLOOKUP($A19,Filtros!$A$5:$AY$22116,17,FALSE),0) -> 76 | T19: =IFERROR(VLOOKUP($A19,Filtros!$A$5:$AY$22116,18,FALSE),0) -> 83 | U19: =IFERROR(VLOOKUP($A19,Filtros!$A$5:$AY$22116,19,FALSE),0) -> 332 | V19: =IFERROR(VLOOKUP($A19,Filtros!$A$5:$AY$22116,20,FALSE),0) -> 322 | W19: =IFERROR(VLOOKUP($A19,Filtros!$A$5:$AY$22116,21,FALSE),0) -> 397 | X19: =IFERROR(VLOOKUP($A19,Filtros!$A$5:$AY$22116,22,FALSE),0) -> 421 | Y19: =IFERROR(VLOOKUP($A19,Filtros!$A$5:$AY$22116,23,FALSE),0) -> 403 | Z19: =IFERROR(VLOOKUP($A19,Filtros!$A$5:$AY$22116,24,FALSE),0) -> 404 | AA19: =IFERROR(VLOOKUP($A19,Filtros!$A$5:$AY$22116,25,FALSE),0) -> 685 | AB19: =IFERROR(VLOOKUP($A19,Filtros!$A$5:$AY$22116,26,FALSE),0) -> 691 | AC19: =IFERROR(VLOOKUP($A19,Filtros!$A$5:$AY$22116,27,FALSE),0) -> 340 | AD19: =IFERROR(VLOOKUP($A19,Filtros!$A$5:$AY$22116,28,FALSE),0) -> 354 | AE19: =IFERROR(VLOOKUP($A19,Filtros!$A$5:$AY$22116,29,FALSE),0) -> 268 | AF19: =IFERROR(VLOOKUP($A19,Filtros!$A$5:$AY$22116,30,FALSE),0) -> 289 | AG19: =IFERROR(VLOOKUP($A19,Filtros!$A$5:$AY$22116,31,FALSE),0) -> 500 | AH19: =IFERROR(VLOOKUP($A19,Filtros!$A$5:$AY$22116,32,FALSE),0) -> 477 | AI19: =IFERROR(VLOOKUP($A19,Filtros!$A$5:$AY$22116,33,FALSE),0) -> 15 | AJ19: =IFERROR(VLOOKUP($A19,Filtros!$A$5:$AY$22116,34,FALSE),0) -> 17 | AK19: =IFERROR(VLOOKUP($A19,Filtros!$A$5:$AY$22116,35,FALSE),0) -> 18 | AL19: =IFERROR(VLOOKUP($A19,Filtros!$A$5:$AY$22116,36,FALSE),0) -> 26 | AM19: =CJ19 & CK19 ->  | CJ19: =IF(AND(E19<>0,AI19=""), "* No olvide escribir en la celda de Pueblos Originarios (Digite CERO si no tiene). ",IF(AND(F19<>0,AJ19=""), "* No olvide escribir en la celda de Pueblos Originarios (Digite CERO si no tiene). ","")) ->  | CK19: =IF(AND(E19<>0,AK19=""), "* No olvide escribir en la celda de Población Migrantes (Digite CERO si no tiene). ",IF(AND(F19<>0,AL19=""), "* No olvide escribir en la celda de Población Migrantes (Digite CERO si no tiene). ","")) ->  | DI19: =IF(AND(E19<>0,AI19=""), 1,IF(AND(F19<>0,AJ19=""), 1,0)) -> 0 | DJ19: =IF(AND(E19<>0,AK19=""), 1,IF(AND(F19<>0,AL19=""), 1,0)) -> 0
C20: TOTAL | D20: 10736 | E20: 5444 | F20: 5292 | I20: =+SUM(I18:I19) -> 31 | J20: =+SUM(J18:J19) -> 38 | K20: =+SUM(K18:K19) -> 70 | L20: 58 | M20: 89 | N20: 73 | O20: 89 | P20: 79 | Q20: 89 | R20: 100 | S20: 128 | T20: 119 | U20: 520 | V20: 474 | W20: 621 | X20: 645 | Y20: 616 | Z20: 632 | AA20: 1120 | AB20: 1094 | AC20: 633 | AD20: 587 | AE20: 484 | AF20: 499 | AG20: 954 | AH20: 894 | AI20: 22 | AJ20: 34 | AK20: 29 | AL20: 37 | AM20: ="" & CC20 & CD20 ->  | CC20: =IF($D20>=$AI20+$AJ20,"","* El Total de Pueblos Originarios no debe ser mayor al Total Indicador peso/talla") ->  | CD20: =IF($D20>=$AK20+$AL20,"","* El Total de Población Migrante no debe ser mayor al Total Indicador peso/talla") ->  | DB20: =IF($D20>=$AI20+$AJ20,0,1) -> 0 | DC20: =IF($D20>=$AK20+$AL20,0,1) -> 0
A21: P2070301 | C21: - 1 D.S. (-1.0 a -1.9) | D21: =IFERROR(VLOOKUP($A21,Filtros!$A$5:$AY$22116,2,FALSE),0) -> 727 | E21: =IFERROR(VLOOKUP($A21,Filtros!$A$5:$AY$22116,3,FALSE),0) -> 399 | F21: =IFERROR(VLOOKUP($A21,Filtros!$A$5:$AY$22116,4,FALSE),0) -> 328 | G21: =IFERROR(VLOOKUP($A21,Filtros!$A$5:$AY$22116,5,FALSE),0) -> 0 | H21: =IFERROR(VLOOKUP($A21,Filtros!$A$5:$AY$22116,6,FALSE),0) -> 0 | I21: =IFERROR(VLOOKUP($A21,Filtros!$A$5:$AY$22116,7,FALSE),0) -> 8 | J21: =IFERROR(VLOOKUP($A21,Filtros!$A$5:$AY$22116,8,FALSE),0) -> 13 | K21: =IFERROR(VLOOKUP($A21,Filtros!$A$5:$AY$22116,9,FALSE),0) -> 7 | L21: =IFERROR(VLOOKUP($A21,Filtros!$A$5:$AY$22116,10,FALSE),0) -> 9 | M21: =IFERROR(VLOOKUP($A21,Filtros!$A$5:$AY$22116,11,FALSE),0) -> 12 | N21: =IFERROR(VLOOKUP($A21,Filtros!$A$5:$AY$22116,12,FALSE),0) -> 11 | O21: =IFERROR(VLOOKUP($A21,Filtros!$A$5:$AY$22116,13,FALSE),0) -> 13 | P21: =IFERROR(VLOOKUP($A21,Filtros!$A$5:$AY$22116,14,FALSE),0) -> 14 | Q21: =IFERROR(VLOOKUP($A21,Filtros!$A$5:$AY$22116,15,FALSE),0) -> 9 | R21: =IFERROR(VLOOKUP($A21,Filtros!$A$5:$AY$22116,16,FALSE),0) -> 7 | S21: =IFERROR(VLOOKUP($A21,Filtros!$A$5:$AY$22116,17,FALSE),0) -> 8 | T21: =IFERROR(VLOOKUP($A21,Filtros!$A$5:$AY$22116,18,FALSE),0) -> 13 | U21: =IFERROR(VLOOKUP($A21,Filtros!$A$5:$AY$22116,19,FALSE),0) -> 37 | V21: =IFERROR(VLOOKUP($A21,Filtros!$A$5:$AY$22116,20,FALSE),0) -> 25 | W21: =IFERROR(VLOOKUP($A21,Filtros!$A$5:$AY$22116,21,FALSE),0) -> 53 | X21: =IFERROR(VLOOKUP($A21,Filtros!$A$5:$AY$22116,22,FALSE),0) -> 39 | Y21: =IFERROR(VLOOKUP($A21,Filtros!$A$5:$AY$22116,23,FALSE),0) -> 37 | Z21: =IFERROR(VLOOKUP($A21,Filtros!$A$5:$AY$22116,24,FALSE),0) -> 34 | AA21: =IFERROR(VLOOKUP($A21,Filtros!$A$5:$AY$22116,25,FALSE),0) -> 96 | AB21: =IFERROR(VLOOKUP($A21,Filtros!$A$5:$AY$22116,26,FALSE),0) -> 54 | AC21: =IFERROR(VLOOKUP($A21,Filtros!$A$5:$AY$22116,27,FALSE),0) -> 50 | AD21: =IFERROR(VLOOKUP($A21,Filtros!$A$5:$AY$22116,28,FALSE),0) -> 41 | AE21: =IFERROR(VLOOKUP($A21,Filtros!$A$5:$AY$22116,29,FALSE),0) -> 22 | AF21: =IFERROR(VLOOKUP($A21,Filtros!$A$5:$AY$22116,30,FALSE),0) -> 23 | AG21: =IFERROR(VLOOKUP($A21,Filtros!$A$5:$AY$22116,31,FALSE),0) -> 47 | AH21: =IFERROR(VLOOKUP($A21,Filtros!$A$5:$AY$22116,32,FALSE),0) -> 45 | AI21: =IFERROR(VLOOKUP($A21,Filtros!$A$5:$AY$22116,33,FALSE),0) -> 0 | AJ21: =IFERROR(VLOOKUP($A21,Filtros!$A$5:$AY$22116,34,FALSE),0) -> 2 | AK21: =IFERROR(VLOOKUP($A21,Filtros!$A$5:$AY$22116,35,FALSE),0) -> 4 | AL21: =IFERROR(VLOOKUP($A21,Filtros!$A$5:$AY$22116,36,FALSE),0) -> 5 | AM21: =CJ21 & CK21 ->  | CJ21: =IF(AND(E21<>0,AI21=""), "* No olvide escribir en la celda de Pueblos Originarios (Digite CERO si no tiene). ",IF(AND(F21<>0,AJ21=""), "* No olvide escribir en la celda de Pueblos Originarios (Digite CERO si no tiene). ","")) ->  | CK21: =IF(AND(E21<>0,AK21=""), "* No olvide escribir en la celda de Población Migrantes (Digite CERO si no tiene). ",IF(AND(F21<>0,AL21=""), "* No olvide escribir en la celda de Población Migrantes (Digite CERO si no tiene). ","")) ->  | DI21: =IF(AND(E21<>0,AI21=""), 1,IF(AND(F21<>0,AJ21=""), 1,0)) -> 0 | DJ21: =IF(AND(E21<>0,AK21=""), 1,IF(AND(F21<>0,AL21=""), 1,0)) -> 0
A22: P2070302 | C22: - 2 D.S. (<= -2.0) | D22: =IFERROR(VLOOKUP($A22,Filtros!$A$5:$AY$22116,2,FALSE),0) -> 116 | E22: =IFERROR(VLOOKUP($A22,Filtros!$A$5:$AY$22116,3,FALSE),0) -> 66 | F22: =IFERROR(VLOOKUP($A22,Filtros!$A$5:$AY$22116,4,FALSE),0) -> 50 | G22: =IFERROR(VLOOKUP($A22,Filtros!$A$5:$AY$22116,5,FALSE),0) -> 0 | H22: =IFERROR(VLOOKUP($A22,Filtros!$A$5:$AY$22116,6,FALSE),0) -> 0 | I22: =IFERROR(VLOOKUP($A22,Filtros!$A$5:$AY$22116,7,FALSE),0) -> 2 | J22: =IFERROR(VLOOKUP($A22,Filtros!$A$5:$AY$22116,8,FALSE),0) -> 2 | K22: =IFERROR(VLOOKUP($A22,Filtros!$A$5:$AY$22116,9,FALSE),0) -> 2 | L22: =IFERROR(VLOOKUP($A22,Filtros!$A$5:$AY$22116,10,FALSE),0) -> 3 | M22: =IFERROR(VLOOKUP($A22,Filtros!$A$5:$AY$22116,11,FALSE),0) -> 0 | N22: =IFERROR(VLOOKUP($A22,Filtros!$A$5:$AY$22116,12,FALSE),0) -> 1 | O22: =IFERROR(VLOOKUP($A22,Filtros!$A$5:$AY$22116,13,FALSE),0) -> 2 | P22: =IFERROR(VLOOKUP($A22,Filtros!$A$5:$AY$22116,14,FALSE),0) -> 1 | Q22: =IFERROR(VLOOKUP($A22,Filtros!$A$5:$AY$22116,15,FALSE),0) -> 1 | R22: =IFERROR(VLOOKUP($A22,Filtros!$A$5:$AY$22116,16,FALSE),0) -> 4 | S22: =IFERROR(VLOOKUP($A22,Filtros!$A$5:$AY$22116,17,FALSE),0) -> 1 | T22: =IFERROR(VLOOKUP($A22,Filtros!$A$5:$AY$22116,18,FALSE),0) -> 1 | U22: =IFERROR(VLOOKUP($A22,Filtros!$A$5:$AY$22116,19,FALSE),0) -> 5 | V22: =IFERROR(VLOOKUP($A22,Filtros!$A$5:$AY$22116,20,FALSE),0) -> 1 | W22: =IFERROR(VLOOKUP($A22,Filtros!$A$5:$AY$22116,21,FALSE),0) -> 6 | X22: =IFERROR(VLOOKUP($A22,Filtros!$A$5:$AY$22116,22,FALSE),0) -> 5 | Y22: =IFERROR(VLOOKUP($A22,Filtros!$A$5:$AY$22116,23,FALSE),0) -> 10 | Z22: =IFERROR(VLOOKUP($A22,Filtros!$A$5:$AY$22116,24,FALSE),0) -> 4 | AA22: =IFERROR(VLOOKUP($A22,Filtros!$A$5:$AY$22116,25,FALSE),0) -> 16 | AB22: =IFERROR(VLOOKUP($A22,Filtros!$A$5:$AY$22116,26,FALSE),0) -> 10 | AC22: =IFERROR(VLOOKUP($A22,Filtros!$A$5:$AY$22116,27,FALSE),0) -> 5 | AD22: =IFERROR(VLOOKUP($A22,Filtros!$A$5:$AY$22116,28,FALSE),0) -> 5 | AE22: =IFERROR(VLOOKUP($A22,Filtros!$A$5:$AY$22116,29,FALSE),0) -> 5 | AF22: =IFERROR(VLOOKUP($A22,Filtros!$A$5:$AY$22116,30,FALSE),0) -> 6 | AG22: =IFERROR(VLOOKUP($A22,Filtros!$A$5:$AY$22116,31,FALSE),0) -> 11 | AH22: =IFERROR(VLOOKUP($A22,Filtros!$A$5:$AY$22116,32,FALSE),0) -> 7 | AI22: =IFERROR(VLOOKUP($A22,Filtros!$A$5:$AY$22116,33,FALSE),0) -> 0 | AJ22: =IFERROR(VLOOKUP($A22,Filtros!$A$5:$AY$22116,34,FALSE),0) -> 0 | AK22: =IFERROR(VLOOKUP($A22,Filtros!$A$5:$AY$22116,35,FALSE),0) -> 0 | AL22: =IFERROR(VLOOKUP($A22,Filtros!$A$5:$AY$22116,36,FALSE),0) -> 2 | AM22: =CJ22 & CK22 ->  | CJ22: =IF(AND(E22<>0,AI22=""), "* No olvide escribir en la celda de Pueblos Originarios (Digite CERO si no tiene). ",IF(AND(F22<>0,AJ22=""), "* No olvide escribir en la celda de Pueblos Originarios (Digite CERO si no tiene). ","")) ->  | CK22: =IF(AND(E22<>0,AK22=""), "* No olvide escribir en la celda de Población Migrantes (Digite CERO si no tiene). ",IF(AND(F22<>0,AL22=""), "* No olvide escribir en la celda de Población Migrantes (Digite CERO si no tiene). ","")) ->  | DI22: =IF(AND(E22<>0,AI22=""), 1,IF(AND(F22<>0,AJ22=""), 1,0)) -> 0 | DJ22: =IF(AND(E22<>0,AK22=""), 1,IF(AND(F22<>0,AL22=""), 1,0)) -> 0
C23: TOTAL | D23: 843 | E23: 465 | F23: 378 | I23: =SUM(I21:I22) -> 10 | J23: =SUM(J21:J22) -> 15 | K23: =SUM(K21:K22) -> 9 | L23: 12 | M23: 12 | N23: 12 | O23: 15 | P23: 15 | Q23: 10 | R23: 11 | S23: 9 | T23: 14 | U23: 42 | V23: 26 | W23: 59 | X23: 44 | Y23: 47 | Z23: 38 | AA23: 112 | AB23: 64 | AC23: 55 | AD23: 46 | AE23: 27 | AF23: 29 | AG23: 58 | AH23: 52 | AI23: 0 | AJ23: 2 | AK23: 4 | AL23: 7 | AM23: ="" & CC23 & CD23 ->  | CC23: =IF($D23>=$AI23+$AJ23,"","* El Total de Pueblos Originarios no debe ser mayor al Total Indicador peso/talla. ") ->  | CD23: =IF($D23>=$AK23+$AL23,"","* El Total de Población Migrantes no debe ser mayor al Total Indicador peso/talla. ") ->  | DB23: =IF($D23>=$AI23+$AJ23,0,1) -> 0 | DC23: =IF($D23>=$AK23+$AL23,0,1) -> 0
A24: P2400120 | B24: INDICADOR TALLA/EDAD | C24: + 2 D.S. (>= +2.0) | D24: =IFERROR(VLOOKUP($A24,Filtros!$A$5:$AY$22116,2,FALSE),0) -> 866 | E24: =IFERROR(VLOOKUP($A24,Filtros!$A$5:$AY$22116,3,FALSE),0) -> 471 | F24: =IFERROR(VLOOKUP($A24,Filtros!$A$5:$AY$22116,4,FALSE),0) -> 395 | G24: =IFERROR(VLOOKUP($A24,Filtros!$A$5:$AY$22116,5,FALSE),0) -> 0 | H24: =IFERROR(VLOOKUP($A24,Filtros!$A$5:$AY$22116,6,FALSE),0) -> 0 | I24: =IFERROR(VLOOKUP($A24,Filtros!$A$5:$AY$22116,7,FALSE),0) -> 4 | J24: =IFERROR(VLOOKUP($A24,Filtros!$A$5:$AY$22116,8,FALSE),0) -> 3 | K24: =IFERROR(VLOOKUP($A24,Filtros!$A$5:$AY$22116,9,FALSE),0) -> 3 | L24: =IFERROR(VLOOKUP($A24,Filtros!$A$5:$AY$22116,10,FALSE),0) -> 5 | M24: =IFERROR(VLOOKUP($A24,Filtros!$A$5:$AY$22116,11,FALSE),0) -> 8 | N24: =IFERROR(VLOOKUP($A24,Filtros!$A$5:$AY$22116,12,FALSE),0) -> 8 | O24: =IFERROR(VLOOKUP($A24,Filtros!$A$5:$AY$22116,13,FALSE),0) -> 5 | P24: =IFERROR(VLOOKUP($A24,Filtros!$A$5:$AY$22116,14,FALSE),0) -> 3 | Q24: =IFERROR(VLOOKUP($A24,Filtros!$A$5:$AY$22116,15,FALSE),0) -> 3 | R24: =IFERROR(VLOOKUP($A24,Filtros!$A$5:$AY$22116,16,FALSE),0) -> 8 | S24: =IFERROR(VLOOKUP($A24,Filtros!$A$5:$AY$22116,17,FALSE),0) -> 8 | T24: =IFERROR(VLOOKUP($A24,Filtros!$A$5:$AY$22116,18,FALSE),0) -> 12 | U24: =IFERROR(VLOOKUP($A24,Filtros!$A$5:$AY$22116,19,FALSE),0) -> 33 | V24: =IFERROR(VLOOKUP($A24,Filtros!$A$5:$AY$22116,20,FALSE),0) -> 27 | W24: =IFERROR(VLOOKUP($A24,Filtros!$A$5:$AY$22116,21,FALSE),0) -> 54 | X24: =IFERROR(VLOOKUP($A24,Filtros!$A$5:$AY$22116,22,FALSE),0) -> 34 | Y24: =IFERROR(VLOOKUP($A24,Filtros!$A$5:$AY$22116,23,FALSE),0) -> 53 | Z24: =IFERROR(VLOOKUP($A24,Filtros!$A$5:$AY$22116,24,FALSE),0) -> 35 | AA24: =IFERROR(VLOOKUP($A24,Filtros!$A$5:$AY$22116,25,FALSE),0) -> 127 | AB24: =IFERROR(VLOOKUP($A24,Filtros!$A$5:$AY$22116,26,FALSE),0) -> 123 | AC24: =IFERROR(VLOOKUP($A24,Filtros!$A$5:$AY$22116,27,FALSE),0) -> 55 | AD24: =IFERROR(VLOOKUP($A24,Filtros!$A$5:$AY$22116,28,FALSE),0) -> 37 | AE24: =IFERROR(VLOOKUP($A24,Filtros!$A$5:$AY$22116,29,FALSE),0) -> 38 | AF24: =IFERROR(VLOOKUP($A24,Filtros!$A$5:$AY$22116,30,FALSE),0) -> 40 | AG24: =IFERROR(VLOOKUP($A24,Filtros!$A$5:$AY$22116,31,FALSE),0) -> 80 | AH24: =IFERROR(VLOOKUP($A24,Filtros!$A$5:$AY$22116,32,FALSE),0) -> 60 | AI24: =IFERROR(VLOOKUP($A24,Filtros!$A$5:$AY$22116,33,FALSE),0) -> 10 | AJ24: =IFERROR(VLOOKUP($A24,Filtros!$A$5:$AY$22116,34,FALSE),0) -> 4 | AK24: =IFERROR(VLOOKUP($A24,Filtros!$A$5:$AY$22116,35,FALSE),0) -> 4 | AL24: =IFERROR(VLOOKUP($A24,Filtros!$A$5:$AY$22116,36,FALSE),0) -> 7 | AM24: =CJ24 & CK24 ->  | CJ24: =IF(AND(E24<>0,AI24=""), "* No olvide escribir en la celda de Pueblos Originarios (Digite CERO si no tiene). ",IF(AND(F24<>0,AJ24=""), "* No olvide escribir en la celda de Pueblos Originarios (Digite CERO si no tiene). ","")) ->  | CK24: =IF(AND(E24<>0,AK24=""), "* No olvide escribir en la celda de Población Migrantes (Digite CERO si no tiene). ",IF(AND(F24<>0,AL24=""), "* No olvide escribir en la celda de Población Migrantes (Digite CERO si no tiene). ","")) ->  | DI24: =IF(AND(E24<>0,AI24=""), 1,IF(AND(F24<>0,AJ24=""), 1,0)) -> 0 | DJ24: =IF(AND(E24<>0,AK24=""), 1,IF(AND(F24<>0,AL24=""), 1,0)) -> 0
A25: P2400130 | C25: + 1 D.S. (+1.0 a +1.9) | D25: =IFERROR(VLOOKUP($A25,Filtros!$A$5:$AY$22116,2,FALSE),0) -> 3405 | E25: =IFERROR(VLOOKUP($A25,Filtros!$A$5:$AY$22116,3,FALSE),0) -> 1760 | F25: =IFERROR(VLOOKUP($A25,Filtros!$A$5:$AY$22116,4,FALSE),0) -> 1645 | G25: =IFERROR(VLOOKUP($A25,Filtros!$A$5:$AY$22116,5,FALSE),0) -> 0 | H25: =IFERROR(VLOOKUP($A25,Filtros!$A$5:$AY$22116,6,FALSE),0) -> 0 | I25: =IFERROR(VLOOKUP($A25,Filtros!$A$5:$AY$22116,7,FALSE),0) -> 18 | J25: =IFERROR(VLOOKUP($A25,Filtros!$A$5:$AY$22116,8,FALSE),0) -> 26 | K25: =IFERROR(VLOOKUP($A25,Filtros!$A$5:$AY$22116,9,FALSE),0) -> 22 | L25: =IFERROR(VLOOKUP($A25,Filtros!$A$5:$AY$22116,10,FALSE),0) -> 22 | M25: =IFERROR(VLOOKUP($A25,Filtros!$A$5:$AY$22116,11,FALSE),0) -> 20 | N25: =IFERROR(VLOOKUP($A25,Filtros!$A$5:$AY$22116,12,FALSE),0) -> 24 | O25: =IFERROR(VLOOKUP($A25,Filtros!$A$5:$AY$22116,13,FALSE),0) -> 23 | P25: =IFERROR(VLOOKUP($A25,Filtros!$A$5:$AY$22116,14,FALSE),0) -> 27 | Q25: =IFERROR(VLOOKUP($A25,Filtros!$A$5:$AY$22116,15,FALSE),0) -> 30 | R25: =IFERROR(VLOOKUP($A25,Filtros!$A$5:$AY$22116,16,FALSE),0) -> 31 | S25: =IFERROR(VLOOKUP($A25,Filtros!$A$5:$AY$22116,17,FALSE),0) -> 43 | T25: =IFERROR(VLOOKUP($A25,Filtros!$A$5:$AY$22116,18,FALSE),0) -> 47 | U25: =IFERROR(VLOOKUP($A25,Filtros!$A$5:$AY$22116,19,FALSE),0) -> 143 | V25: =IFERROR(VLOOKUP($A25,Filtros!$A$5:$AY$22116,20,FALSE),0) -> 114 | W25: =IFERROR(VLOOKUP($A25,Filtros!$A$5:$AY$22116,21,FALSE),0) -> 205 | X25: =IFERROR(VLOOKUP($A25,Filtros!$A$5:$AY$22116,22,FALSE),0) -> 198 | Y25: =IFERROR(VLOOKUP($A25,Filtros!$A$5:$AY$22116,23,FALSE),0) -> 213 | Z25: =IFERROR(VLOOKUP($A25,Filtros!$A$5:$AY$22116,24,FALSE),0) -> 213 | AA25: =IFERROR(VLOOKUP($A25,Filtros!$A$5:$AY$22116,25,FALSE),0) -> 390 | AB25: =IFERROR(VLOOKUP($A25,Filtros!$A$5:$AY$22116,26,FALSE),0) -> 382 | AC25: =IFERROR(VLOOKUP($A25,Filtros!$A$5:$AY$22116,27,FALSE),0) -> 217 | AD25: =IFERROR(VLOOKUP($A25,Filtros!$A$5:$AY$22116,28,FALSE),0) -> 176 | AE25: =IFERROR(VLOOKUP($A25,Filtros!$A$5:$AY$22116,29,FALSE),0) -> 148 | AF25: =IFERROR(VLOOKUP($A25,Filtros!$A$5:$AY$22116,30,FALSE),0) -> 126 | AG25: =IFERROR(VLOOKUP($A25,Filtros!$A$5:$AY$22116,31,FALSE),0) -> 288 | AH25: =IFERROR(VLOOKUP($A25,Filtros!$A$5:$AY$22116,32,FALSE),0) -> 259 | AI25: =IFERROR(VLOOKUP($A25,Filtros!$A$5:$AY$22116,33,FALSE),0) -> 4 | AJ25: =IFERROR(VLOOKUP($A25,Filtros!$A$5:$AY$22116,34,FALSE),0) -> 4 | AK25: =IFERROR(VLOOKUP($A25,Filtros!$A$5:$AY$22116,35,FALSE),0) -> 11 | AL25: =IFERROR(VLOOKUP($A25,Filtros!$A$5:$AY$22116,36,FALSE),0) -> 21 | AM25: =CJ25 & CK25 ->  | CJ25: =IF(AND(E25<>0,AI25=""), "* No olvide escribir en la celda de Pueblos Originarios (Digite CERO si no tiene). ",IF(AND(F25<>0,AJ25=""), "* No olvide escribir en la celda de Pueblos Originarios (Digite CERO si no tiene). ","")) ->  | CK25: =IF(AND(E25<>0,AK25=""), "* No olvide escribir en la celda de Población Migrantes (Digite CERO si no tiene). ",IF(AND(F25<>0,AL25=""), "* No olvide escribir en la celda de Población Migrantes (Digite CERO si no tiene). ","")) ->  | DI25: =IF(AND(E25<>0,AI25=""), 1,IF(AND(F25<>0,AJ25=""), 1,0)) -> 0 | DJ25: =IF(AND(E25<>0,AK25=""), 1,IF(AND(F25<>0,AL25=""), 1,0)) -> 0
C26: TOTAL | D26: 4271 | E26: 2231 | F26: 2040 | I26: =SUM(I24:I25) -> 22 | J26: =SUM(J24:J25) -> 29 | K26: 25 | L26: 27 | M26: 28 | N26: 32 | O26: 28 | P26: 30 | Q26: 33 | R26: 39 | S26: 51 | T26: 59 | U26: 176 | V26: 141 | W26: 259 | X26: 232 | Y26: 266 | Z26: 248 | AA26: 517 | AB26: 505 | AC26: 272 | AD26: 213 | AE26: 186 | AF26: 166 | AG26: 368 | AH26: 319 | AI26: 14 | AJ26: 8 | AK26: 15 | AL26: 28 | AM26: ="" & CC26 & CD26 ->  | CC26: =IF($D26>=$AI26+$AJ26,"","* El Total de Pueblos Originarios no debe ser mayor al Total Indicador peso/talla. ") ->  | CD26: =IF($D26>=$AK26+$AL26,"","* El Total de Población Migrantes no debe ser mayor al Total Indicador peso/talla. ") ->  | DB26: =IF($D26>=$AI26+$AJ26,0,1) -> 0 | DC26: =IF($D26>=$AK26+$AL26,0,1) -> 0
A27: P2070401 | C27: - 1 D.S. (-1.0 a -1.9) | D27: =IFERROR(VLOOKUP($A27,Filtros!$A$5:$AY$22116,2,FALSE),0) -> 2881 | E27: =IFERROR(VLOOKUP($A27,Filtros!$A$5:$AY$22116,3,FALSE),0) -> 1576 | F27: =IFERROR(VLOOKUP($A27,Filtros!$A$5:$AY$22116,4,FALSE),0) -> 1305 | G27: =IFERROR(VLOOKUP($A27,Filtros!$A$5:$AY$22116,5,FALSE),0) -> 0 | H27: =IFERROR(VLOOKUP($A27,Filtros!$A$5:$AY$22116,6,FALSE),0) -> 0 | I27: =IFERROR(VLOOKUP($A27,Filtros!$A$5:$AY$22116,7,FALSE),0) -> 21 | J27: =IFERROR(VLOOKUP($A27,Filtros!$A$5:$AY$22116,8,FALSE),0) -> 23 | K27: =IFERROR(VLOOKUP($A27,Filtros!$A$5:$AY$22116,9,FALSE),0) -> 39 | L27: =IFERROR(VLOOKUP($A27,Filtros!$A$5:$AY$22116,10,FALSE),0) -> 36 | M27: =IFERROR(VLOOKUP($A27,Filtros!$A$5:$AY$22116,11,FALSE),0) -> 25 | N27: =IFERROR(VLOOKUP($A27,Filtros!$A$5:$AY$22116,12,FALSE),0) -> 29 | O27: =IFERROR(VLOOKUP($A27,Filtros!$A$5:$AY$22116,13,FALSE),0) -> 34 | P27: =IFERROR(VLOOKUP($A27,Filtros!$A$5:$AY$22116,14,FALSE),0) -> 26 | Q27: =IFERROR(VLOOKUP($A27,Filtros!$A$5:$AY$22116,15,FALSE),0) -> 30 | R27: =IFERROR(VLOOKUP($A27,Filtros!$A$5:$AY$22116,16,FALSE),0) -> 29 | S27: =IFERROR(VLOOKUP($A27,Filtros!$A$5:$AY$22116,17,FALSE),0) -> 42 | T27: =IFERROR(VLOOKUP($A27,Filtros!$A$5:$AY$22116,18,FALSE),0) -> 35 | U27: =IFERROR(VLOOKUP($A27,Filtros!$A$5:$AY$22116,19,FALSE),0) -> 141 | V27: =IFERROR(VLOOKUP($A27,Filtros!$A$5:$AY$22116,20,FALSE),0) -> 153 | W27: =IFERROR(VLOOKUP($A27,Filtros!$A$5:$AY$22116,21,FALSE),0) -> 183 | X27: =IFERROR(VLOOKUP($A27,Filtros!$A$5:$AY$22116,22,FALSE),0) -> 156 | Y27: =IFERROR(VLOOKUP($A27,Filtros!$A$5:$AY$22116,23,FALSE),0) -> 167 | Z27: =IFERROR(VLOOKUP($A27,Filtros!$A$5:$AY$22116,24,FALSE),0) -> 144 | AA27: =IFERROR(VLOOKUP($A27,Filtros!$A$5:$AY$22116,25,FALSE),0) -> 361 | AB27: =IFERROR(VLOOKUP($A27,Filtros!$A$5:$AY$22116,26,FALSE),0) -> 208 | AC27: =IFERROR(VLOOKUP($A27,Filtros!$A$5:$AY$22116,27,FALSE),0) -> 174 | AD27: =IFERROR(VLOOKUP($A27,Filtros!$A$5:$AY$22116,28,FALSE),0) -> 137 | AE27: =IFERROR(VLOOKUP($A27,Filtros!$A$5:$AY$22116,29,FALSE),0) -> 145 | AF27: =IFERROR(VLOOKUP($A27,Filtros!$A$5:$AY$22116,30,FALSE),0) -> 135 | AG27: =IFERROR(VLOOKUP($A27,Filtros!$A$5:$AY$22116,31,FALSE),0) -> 214 | AH27: =IFERROR(VLOOKUP($A27,Filtros!$A$5:$AY$22116,32,FALSE),0) -> 194 | AI27: =IFERROR(VLOOKUP($A27,Filtros!$A$5:$AY$22116,33,FALSE),0) -> 5 | AJ27: =IFERROR(VLOOKUP($A27,Filtros!$A$5:$AY$22116,34,FALSE),0) -> 4 | AK27: =IFERROR(VLOOKUP($A27,Filtros!$A$5:$AY$22116,35,FALSE),0) -> 11 | AL27: =IFERROR(VLOOKUP($A27,Filtros!$A$5:$AY$22116,36,FALSE),0) -> 18 | AM27: =CJ27 & CK27 ->  | CJ27: =IF(AND(E27<>0,AI27=""), "* No olvide escribir en la celda de Pueblos Originarios (Digite CERO si no tiene). ",IF(AND(F27<>0,AJ27=""), "* No olvide escribir en la celda de Pueblos Originarios (Digite CERO si no tiene). ","")) ->  | CK27: =IF(AND(E27<>0,AK27=""), "* No olvide escribir en la celda de Población Migrantes (Digite CERO si no tiene). ",IF(AND(F27<>0,AL27=""), "* No olvide escribir en la celda de Población Migrantes (Digite CERO si no tiene). ","")) ->  | DI27: =IF(AND(E27<>0,AI27=""), 1,IF(AND(F27<>0,AJ27=""), 1,0)) -> 0 | DJ27: =IF(AND(E27<>0,AK27=""), 1,IF(AND(F27<>0,AL27=""), 1,0)) -> 0
A28: P2070402 | C28: - 2 D.S. (<= -2.0) | D28: =IFERROR(VLOOKUP($A28,Filtros!$A$5:$AY$22116,2,FALSE),0) -> 555 | E28: =IFERROR(VLOOKUP($A28,Filtros!$A$5:$AY$22116,3,FALSE),0) -> 323 | F28: =IFERROR(VLOOKUP($A28,Filtros!$A$5:$AY$22116,4,FALSE),0) -> 232 | G28: =IFERROR(VLOOKUP($A28,Filtros!$A$5:$AY$22116,5,FALSE),0) -> 0 | H28: =IFERROR(VLOOKUP($A28,Filtros!$A$5:$AY$22116,6,FALSE),0) -> 0 | I28: =IFERROR(VLOOKUP($A28,Filtros!$A$5:$AY$22116,7,FALSE),0) -> 4 | J28: =IFERROR(VLOOKUP($A28,Filtros!$A$5:$AY$22116,8,FALSE),0) -> 5 | K28: =IFERROR(VLOOKUP($A28,Filtros!$A$5:$AY$22116,9,FALSE),0) -> 11 | L28: =IFERROR(VLOOKUP($A28,Filtros!$A$5:$AY$22116,10,FALSE),0) -> 8 | M28: =IFERROR(VLOOKUP($A28,Filtros!$A$5:$AY$22116,11,FALSE),0) -> 9 | N28: =IFERROR(VLOOKUP($A28,Filtros!$A$5:$AY$22116,12,FALSE),0) -> 11 | O28: =IFERROR(VLOOKUP($A28,Filtros!$A$5:$AY$22116,13,FALSE),0) -> 8 | P28: =IFERROR(VLOOKUP($A28,Filtros!$A$5:$AY$22116,14,FALSE),0) -> 4 | Q28: =IFERROR(VLOOKUP($A28,Filtros!$A$5:$AY$22116,15,FALSE),0) -> 12 | R28: =IFERROR(VLOOKUP($A28,Filtros!$A$5:$AY$22116,16,FALSE),0) -> 2 | S28: =IFERROR(VLOOKUP($A28,Filtros!$A$5:$AY$22116,17,FALSE),0) -> 14 | T28: =IFERROR(VLOOKUP($A28,Filtros!$A$5:$AY$22116,18,FALSE),0) -> 7 | U28: =IFERROR(VLOOKUP($A28,Filtros!$A$5:$AY$22116,19,FALSE),0) -> 34 | V28: =IFERROR(VLOOKUP($A28,Filtros!$A$5:$AY$22116,20,FALSE),0) -> 26 | W28: =IFERROR(VLOOKUP($A28,Filtros!$A$5:$AY$22116,21,FALSE),0) -> 52 | X28: =IFERROR(VLOOKUP($A28,Filtros!$A$5:$AY$22116,22,FALSE),0) -> 26 | Y28: =IFERROR(VLOOKUP($A28,Filtros!$A$5:$AY$22116,23,FALSE),0) -> 45 | Z28: =IFERROR(VLOOKUP($A28,Filtros!$A$5:$AY$22116,24,FALSE),0) -> 29 | AA28: =IFERROR(VLOOKUP($A28,Filtros!$A$5:$AY$22116,25,FALSE),0) -> 52 | AB28: =IFERROR(VLOOKUP($A28,Filtros!$A$5:$AY$22116,26,FALSE),0) -> 39 | AC28: =IFERROR(VLOOKUP($A28,Filtros!$A$5:$AY$22116,27,FALSE),0) -> 26 | AD28: =IFERROR(VLOOKUP($A28,Filtros!$A$5:$AY$22116,28,FALSE),0) -> 26 | AE28: =IFERROR(VLOOKUP($A28,Filtros!$A$5:$AY$22116,29,FALSE),0) -> 19 | AF28: =IFERROR(VLOOKUP($A28,Filtros!$A$5:$AY$22116,30,FALSE),0) -> 17 | AG28: =IFERROR(VLOOKUP($A28,Filtros!$A$5:$AY$22116,31,FALSE),0) -> 37 | AH28: =IFERROR(VLOOKUP($A28,Filtros!$A$5:$AY$22116,32,FALSE),0) -> 32 | AI28: =IFERROR(VLOOKUP($A28,Filtros!$A$5:$AY$22116,33,FALSE),0) -> 1 | AJ28: =IFERROR(VLOOKUP($A28,Filtros!$A$5:$AY$22116,34,FALSE),0) -> 2 | AK28: =IFERROR(VLOOKUP($A28,Filtros!$A$5:$AY$22116,35,FALSE),0) -> 4 | AL28: =IFERROR(VLOOKUP($A28,Filtros!$A$5:$AY$22116,36,FALSE),0) -> 1 | AM28: =CJ28 & CK28 ->  | CJ28: =IF(AND(E28<>0,AI28=""), "* No olvide escribir en la celda de Pueblos Originarios (Digite CERO si no tiene). ",IF(AND(F28<>0,AJ28=""), "* No olvide escribir en la celda de Pueblos Originarios (Digite CERO si no tiene). ","")) ->  | CK28: =IF(AND(E28<>0,AK28=""), "* No olvide escribir en la celda de Población Migrantes (Digite CERO si no tiene). ",IF(AND(F28<>0,AL28=""), "* No olvide escribir en la celda de Población Migrantes (Digite CERO si no tiene). ","")) ->  | DI28: =IF(AND(E28<>0,AI28=""), 1,IF(AND(F28<>0,AJ28=""), 1,0)) -> 0 | DJ28: =IF(AND(E28<>0,AK28=""), 1,IF(AND(F28<>0,AL28=""), 1,0)) -> 0
C29: TOTAL | D29: 3436 | E29: 1899 | F29: 1537 | I29: =SUM(I27:I28) -> 25 | J29: =SUM(J27:J28) -> 28 | K29: 50 | L29: 44 | M29: 34 | N29: 40 | O29: 42 | P29: 30 | Q29: 42 | R29: 31 | S29: 56 | T29: 42 | U29: 175 | V29: 179 | W29: 235 | X29: 182 | Y29: 212 | Z29: 173 | AA29: 413 | AB29: 247 | AC29: 200 | AD29: 163 | AE29: 164 | AF29: 152 | AG29: 251 | AH29: 226 | AI29: 6 | AJ29: 6 | AK29: 15 | AL29: 19 | AM29: ="" & CC29 & CD29 ->  | CC29: =IF($D29>=$AI29+$AJ29,"","* El Total de Pueblos Originarios no debe ser mayor al Total Indicador peso/talla. ") ->  | CD29: =IF($D29>=$AK29+$AL29,"","* El Total de Población Migrantes no debe ser mayor al Total Indicador peso/talla. ") ->  | DB29: =IF($D29>=$AI29+$AJ29,0,1) -> 0 | DC29: =IF($D29>=$AK29+$AL29,0,1) -> 0
A30: P2400140 | C30: PROMEDIO (-0,9 A + 0,9) | D30: =IFERROR(VLOOKUP($A30,Filtros!$A$5:$AY$22116,2,FALSE),0) -> 13889 | E30: =IFERROR(VLOOKUP($A30,Filtros!$A$5:$AY$22116,3,FALSE),0) -> 6873 | F30: =IFERROR(VLOOKUP($A30,Filtros!$A$5:$AY$22116,4,FALSE),0) -> 7016 | G30: =IFERROR(VLOOKUP($A30,Filtros!$A$5:$AY$22116,5,FALSE),0) -> 0 | H30: =IFERROR(VLOOKUP($A30,Filtros!$A$5:$AY$22116,6,FALSE),0) -> 0 | I30: =IFERROR(VLOOKUP($A30,Filtros!$A$5:$AY$22116,7,FALSE),0) -> 133 | J30: =IFERROR(VLOOKUP($A30,Filtros!$A$5:$AY$22116,8,FALSE),0) -> 121 | K30: =IFERROR(VLOOKUP($A30,Filtros!$A$5:$AY$22116,9,FALSE),0) -> 157 | L30: =IFERROR(VLOOKUP($A30,Filtros!$A$5:$AY$22116,10,FALSE),0) -> 159 | M30: =IFERROR(VLOOKUP($A30,Filtros!$A$5:$AY$22116,11,FALSE),0) -> 147 | N30: =IFERROR(VLOOKUP($A30,Filtros!$A$5:$AY$22116,12,FALSE),0) -> 131 | O30: =IFERROR(VLOOKUP($A30,Filtros!$A$5:$AY$22116,13,FALSE),0) -> 143 | P30: =IFERROR(VLOOKUP($A30,Filtros!$A$5:$AY$22116,14,FALSE),0) -> 166 | Q30: =IFERROR(VLOOKUP($A30,Filtros!$A$5:$AY$22116,15,FALSE),0) -> 134 | R30: =IFERROR(VLOOKUP($A30,Filtros!$A$5:$AY$22116,16,FALSE),0) -> 153 | S30: =IFERROR(VLOOKUP($A30,Filtros!$A$5:$AY$22116,17,FALSE),0) -> 163 | T30: =IFERROR(VLOOKUP($A30,Filtros!$A$5:$AY$22116,18,FALSE),0) -> 182 | U30: =IFERROR(VLOOKUP($A30,Filtros!$A$5:$AY$22116,19,FALSE),0) -> 629 | V30: =IFERROR(VLOOKUP($A30,Filtros!$A$5:$AY$22116,20,FALSE),0) -> 670 | W30: =IFERROR(VLOOKUP($A30,Filtros!$A$5:$AY$22116,21,FALSE),0) -> 775 | X30: =IFERROR(VLOOKUP($A30,Filtros!$A$5:$AY$22116,22,FALSE),0) -> 861 | Y30: =IFERROR(VLOOKUP($A30,Filtros!$A$5:$AY$22116,23,FALSE),0) -> 789 | Z30: =IFERROR(VLOOKUP($A30,Filtros!$A$5:$AY$22116,24,FALSE),0) -> 871 | AA30: =IFERROR(VLOOKUP($A30,Filtros!$A$5:$AY$22116,25,FALSE),0) -> 1412 | AB30: =IFERROR(VLOOKUP($A30,Filtros!$A$5:$AY$22116,26,FALSE),0) -> 1394 | AC30: =IFERROR(VLOOKUP($A30,Filtros!$A$5:$AY$22116,27,FALSE),0) -> 756 | AD30: =IFERROR(VLOOKUP($A30,Filtros!$A$5:$AY$22116,28,FALSE),0) -> 690 | AE30: =IFERROR(VLOOKUP($A30,Filtros!$A$5:$AY$22116,29,FALSE),0) -> 575 | AF30: =IFERROR(VLOOKUP($A30,Filtros!$A$5:$AY$22116,30,FALSE),0) -> 597 | AG30: =IFERROR(VLOOKUP($A30,Filtros!$A$5:$AY$22116,31,FALSE),0) -> 1060 | AH30: =IFERROR(VLOOKUP($A30,Filtros!$A$5:$AY$22116,32,FALSE),0) -> 1021 | AI30: =IFERROR(VLOOKUP($A30,Filtros!$A$5:$AY$22116,33,FALSE),0) -> 20 | AJ30: =IFERROR(VLOOKUP($A30,Filtros!$A$5:$AY$22116,34,FALSE),0) -> 24 | AK30: =IFERROR(VLOOKUP($A30,Filtros!$A$5:$AY$22116,35,FALSE),0) -> 71 | AL30: =IFERROR(VLOOKUP($A30,Filtros!$A$5:$AY$22116,36,FALSE),0) -> 57 | AM30: =CJ30 & CK30 ->  | CJ30: =IF(AND(E30<>0,AI30=""), "* No olvide escribir en la celda de Pueblos Originarios (Digite CERO si no tiene). ",IF(AND(F30<>0,AJ30=""), "* No olvide escribir en la celda de Pueblos Originarios (Digite CERO si no tiene). ","")) ->  | CK30: =IF(AND(E30<>0,AK30=""), "* No olvide escribir en la celda de Población Migrantes (Digite CERO si no tiene). ",IF(AND(F30<>0,AL30=""), "* No olvide escribir en la celda de Población Migrantes (Digite CERO si no tiene). ","")) ->  | DI30: =IF(AND(E30<>0,AI30=""), 1,IF(AND(F30<>0,AJ30=""), 1,0)) -> 0 | DJ30: =IF(AND(E30<>0,AK30=""), 1,IF(AND(F30<>0,AL30=""), 1,0)) -> 0
A31: P2070501 | B31: DIAGNOSTICO NUTRICIONAL INTEGRADO | C31: RIESGO DE DESNUTRIR/ DEFICIT PONDERAL* | D31: =IFERROR(VLOOKUP($A31,Filtros!$A$5:$AY$22116,2,FALSE),0) -> 720 | E31: =IFERROR(VLOOKUP($A31,Filtros!$A$5:$AY$22116,3,FALSE),0) -> 403 | F31: =IFERROR(VLOOKUP($A31,Filtros!$A$5:$AY$22116,4,FALSE),0) -> 317 | G31: =IFERROR(VLOOKUP($A31,Filtros!$A$5:$AY$22116,5,FALSE),0) -> 0 | H31: =IFERROR(VLOOKUP($A31,Filtros!$A$5:$AY$22116,6,FALSE),0) -> 0 | I31: =IFERROR(VLOOKUP($A31,Filtros!$A$5:$AY$22116,7,FALSE),0) -> 13 | J31: =IFERROR(VLOOKUP($A31,Filtros!$A$5:$AY$22116,8,FALSE),0) -> 7 | K31: =IFERROR(VLOOKUP($A31,Filtros!$A$5:$AY$22116,9,FALSE),0) -> 23 | L31: =IFERROR(VLOOKUP($A31,Filtros!$A$5:$AY$22116,10,FALSE),0) -> 8 | M31: =IFERROR(VLOOKUP($A31,Filtros!$A$5:$AY$22116,11,FALSE),0) -> 13 | N31: =IFERROR(VLOOKUP($A31,Filtros!$A$5:$AY$22116,12,FALSE),0) -> 13 | O31: =IFERROR(VLOOKUP($A31,Filtros!$A$5:$AY$22116,13,FALSE),0) -> 10 | P31: =IFERROR(VLOOKUP($A31,Filtros!$A$5:$AY$22116,14,FALSE),0) -> 8 | Q31: =IFERROR(VLOOKUP($A31,Filtros!$A$5:$AY$22116,15,FALSE),0) -> 18 | R31: =IFERROR(VLOOKUP($A31,Filtros!$A$5:$AY$22116,16,FALSE),0) -> 15 | S31: =IFERROR(VLOOKUP($A31,Filtros!$A$5:$AY$22116,17,FALSE),0) -> 11 | T31: =IFERROR(VLOOKUP($A31,Filtros!$A$5:$AY$22116,18,FALSE),0) -> 19 | U31: =IFERROR(VLOOKUP($A31,Filtros!$A$5:$AY$22116,19,FALSE),0) -> 41 | V31: =IFERROR(VLOOKUP($A31,Filtros!$A$5:$AY$22116,20,FALSE),0) -> 41 | W31: =IFERROR(VLOOKUP($A31,Filtros!$A$5:$AY$22116,21,FALSE),0) -> 53 | X31: =IFERROR(VLOOKUP($A31,Filtros!$A$5:$AY$22116,22,FALSE),0) -> 37 | Y31: =IFERROR(VLOOKUP($A31,Filtros!$A$5:$AY$22116,23,FALSE),0) -> 32 | Z31: =IFERROR(VLOOKUP($A31,Filtros!$A$5:$AY$22116,24,FALSE),0) -> 26 | AA31: =IFERROR(VLOOKUP($A31,Filtros!$A$5:$AY$22116,25,FALSE),0) -> 88 | AB31: =IFERROR(VLOOKUP($A31,Filtros!$A$5:$AY$22116,26,FALSE),0) -> 47 | AC31: =IFERROR(VLOOKUP($A31,Filtros!$A$5:$AY$22116,27,FALSE),0) -> 44 | AD31: =IFERROR(VLOOKUP($A31,Filtros!$A$5:$AY$22116,28,FALSE),0) -> 39 | AE31: =IFERROR(VLOOKUP($A31,Filtros!$A$5:$AY$22116,29,FALSE),0) -> 20 | AF31: =IFERROR(VLOOKUP($A31,Filtros!$A$5:$AY$22116,30,FALSE),0) -> 19 | AG31: =IFERROR(VLOOKUP($A31,Filtros!$A$5:$AY$22116,31,FALSE),0) -> 37 | AH31: =IFERROR(VLOOKUP($A31,Filtros!$A$5:$AY$22116,32,FALSE),0) -> 38 | AI31: =IFERROR(VLOOKUP($A31,Filtros!$A$5:$AY$22116,33,FALSE),0) -> 0 | AJ31: =IFERROR(VLOOKUP($A31,Filtros!$A$5:$AY$22116,34,FALSE),0) -> 2 | AK31: =IFERROR(VLOOKUP($A31,Filtros!$A$5:$AY$22116,35,FALSE),0) -> 6 | AL31: =IFERROR(VLOOKUP($A31,Filtros!$A$5:$AY$22116,36,FALSE),0) -> 5 | DI31: 0 | DJ31: 0
A32: P2070502 | C32: DESNUTRIDO | D32: =IFERROR(VLOOKUP($A32,Filtros!$A$5:$AY$22116,2,FALSE),0) -> 66 | E32: =IFERROR(VLOOKUP($A32,Filtros!$A$5:$AY$22116,3,FALSE),0) -> 35 | F32: =IFERROR(VLOOKUP($A32,Filtros!$A$5:$AY$22116,4,FALSE),0) -> 31 | G32: =IFERROR(VLOOKUP($A32,Filtros!$A$5:$AY$22116,5,FALSE),0) -> 0 | H32: =IFERROR(VLOOKUP($A32,Filtros!$A$5:$AY$22116,6,FALSE),0) -> 0 | I32: =IFERROR(VLOOKUP($A32,Filtros!$A$5:$AY$22116,7,FALSE),0) -> 1 | J32: =IFERROR(VLOOKUP($A32,Filtros!$A$5:$AY$22116,8,FALSE),0) -> 2 | K32: =IFERROR(VLOOKUP($A32,Filtros!$A$5:$AY$22116,9,FALSE),0) -> 0 | L32: =IFERROR(VLOOKUP($A32,Filtros!$A$5:$AY$22116,10,FALSE),0) -> 2 | M32: =IFERROR(VLOOKUP($A32,Filtros!$A$5:$AY$22116,11,FALSE),0) -> 0 | N32: =IFERROR(VLOOKUP($A32,Filtros!$A$5:$AY$22116,12,FALSE),0) -> 0 | O32: =IFERROR(VLOOKUP($A32,Filtros!$A$5:$AY$22116,13,FALSE),0) -> 1 | P32: =IFERROR(VLOOKUP($A32,Filtros!$A$5:$AY$22116,14,FALSE),0) -> 1 | Q32: =IFERROR(VLOOKUP($A32,Filtros!$A$5:$AY$22116,15,FALSE),0) -> 1 | R32: =IFERROR(VLOOKUP($A32,Filtros!$A$5:$AY$22116,16,FALSE),0) -> 1 | S32: =IFERROR(VLOOKUP($A32,Filtros!$A$5:$AY$22116,17,FALSE),0) -> 0 | T32: =IFERROR(VLOOKUP($A32,Filtros!$A$5:$AY$22116,18,FALSE),0) -> 0 | U32: =IFERROR(VLOOKUP($A32,Filtros!$A$5:$AY$22116,19,FALSE),0) -> 6 | V32: =IFERROR(VLOOKUP($A32,Filtros!$A$5:$AY$22116,20,FALSE),0) -> 6 | W32: =IFERROR(VLOOKUP($A32,Filtros!$A$5:$AY$22116,21,FALSE),0) -> 2 | X32: =IFERROR(VLOOKUP($A32,Filtros!$A$5:$AY$22116,22,FALSE),0) -> 1 | Y32: =IFERROR(VLOOKUP($A32,Filtros!$A$5:$AY$22116,23,FALSE),0) -> 4 | Z32: =IFERROR(VLOOKUP($A32,Filtros!$A$5:$AY$22116,24,FALSE),0) -> 2 | AA32: =IFERROR(VLOOKUP($A32,Filtros!$A$5:$AY$22116,25,FALSE),0) -> 9 | AB32: =IFERROR(VLOOKUP($A32,Filtros!$A$5:$AY$22116,26,FALSE),0) -> 6 | AC32: =IFERROR(VLOOKUP($A32,Filtros!$A$5:$AY$22116,27,FALSE),0) -> 4 | AD32: =IFERROR(VLOOKUP($A32,Filtros!$A$5:$AY$22116,28,FALSE),0) -> 1 | AE32: =IFERROR(VLOOKUP($A32,Filtros!$A$5:$AY$22116,29,FALSE),0) -> 0 | AF32: =IFERROR(VLOOKUP($A32,Filtros!$A$5:$AY$22116,30,FALSE),0) -> 5 | AG32: =IFERROR(VLOOKUP($A32,Filtros!$A$5:$AY$22116,31,FALSE),0) -> 7 | AH32: =IFERROR(VLOOKUP($A32,Filtros!$A$5:$AY$22116,32,FALSE),0) -> 4 | AI32: =IFERROR(VLOOKUP($A32,Filtros!$A$5:$AY$22116,33,FALSE),0) -> 0 | AJ32: =IFERROR(VLOOKUP($A32,Filtros!$A$5:$AY$22116,34,FALSE),0) -> 0 | AK32: =IFERROR(VLOOKUP($A32,Filtros!$A$5:$AY$22116,35,FALSE),0) -> 0 | AL32: =IFERROR(VLOOKUP($A32,Filtros!$A$5:$AY$22116,36,FALSE),0) -> 1 | DI32: 0 | DJ32: 0
A33: P2070503 | C33: SOBREPESO / RIESGO OBESIDAD | D33: =IFERROR(VLOOKUP($A33,Filtros!$A$5:$AY$22116,2,FALSE),0) -> 6641 | E33: =IFERROR(VLOOKUP($A33,Filtros!$A$5:$AY$22116,3,FALSE),0) -> 3308 | F33: =IFERROR(VLOOKUP($A33,Filtros!$A$5:$AY$22116,4,FALSE),0) -> 3333 | G33: =IFERROR(VLOOKUP($A33,Filtros!$A$5:$AY$22116,5,FALSE),0) -> 0 | H33: =IFERROR(VLOOKUP($A33,Filtros!$A$5:$AY$22116,6,FALSE),0) -> 0 | I33: =IFERROR(VLOOKUP($A33,Filtros!$A$5:$AY$22116,7,FALSE),0) -> 27 | J33: =IFERROR(VLOOKUP($A33,Filtros!$A$5:$AY$22116,8,FALSE),0) -> 34 | K33: =IFERROR(VLOOKUP($A33,Filtros!$A$5:$AY$22116,9,FALSE),0) -> 52 | L33: =IFERROR(VLOOKUP($A33,Filtros!$A$5:$AY$22116,10,FALSE),0) -> 44 | M33: =IFERROR(VLOOKUP($A33,Filtros!$A$5:$AY$22116,11,FALSE),0) -> 61 | N33: =IFERROR(VLOOKUP($A33,Filtros!$A$5:$AY$22116,12,FALSE),0) -> 56 | O33: =IFERROR(VLOOKUP($A33,Filtros!$A$5:$AY$22116,13,FALSE),0) -> 72 | P33: =IFERROR(VLOOKUP($A33,Filtros!$A$5:$AY$22116,14,FALSE),0) -> 58 | Q33: =IFERROR(VLOOKUP($A33,Filtros!$A$5:$AY$22116,15,FALSE),0) -> 68 | R33: =IFERROR(VLOOKUP($A33,Filtros!$A$5:$AY$22116,16,FALSE),0) -> 80 | S33: =IFERROR(VLOOKUP($A33,Filtros!$A$5:$AY$22116,17,FALSE),0) -> 80 | T33: =IFERROR(VLOOKUP($A33,Filtros!$A$5:$AY$22116,18,FALSE),0) -> 84 | U33: =IFERROR(VLOOKUP($A33,Filtros!$A$5:$AY$22116,19,FALSE),0) -> 323 | V33: =IFERROR(VLOOKUP($A33,Filtros!$A$5:$AY$22116,20,FALSE),0) -> 324 | W33: =IFERROR(VLOOKUP($A33,Filtros!$A$5:$AY$22116,21,FALSE),0) -> 400 | X33: =IFERROR(VLOOKUP($A33,Filtros!$A$5:$AY$22116,22,FALSE),0) -> 428 | Y33: =IFERROR(VLOOKUP($A33,Filtros!$A$5:$AY$22116,23,FALSE),0) -> 411 | Z33: =IFERROR(VLOOKUP($A33,Filtros!$A$5:$AY$22116,24,FALSE),0) -> 400 | AA33: =IFERROR(VLOOKUP($A33,Filtros!$A$5:$AY$22116,25,FALSE),0) -> 705 | AB33: =IFERROR(VLOOKUP($A33,Filtros!$A$5:$AY$22116,26,FALSE),0) -> 700 | AC33: =IFERROR(VLOOKUP($A33,Filtros!$A$5:$AY$22116,27,FALSE),0) -> 340 | AD33: =IFERROR(VLOOKUP($A33,Filtros!$A$5:$AY$22116,28,FALSE),0) -> 364 | AE33: =IFERROR(VLOOKUP($A33,Filtros!$A$5:$AY$22116,29,FALSE),0) -> 260 | AF33: =IFERROR(VLOOKUP($A33,Filtros!$A$5:$AY$22116,30,FALSE),0) -> 278 | AG33: =IFERROR(VLOOKUP($A33,Filtros!$A$5:$AY$22116,31,FALSE),0) -> 509 | AH33: =IFERROR(VLOOKUP($A33,Filtros!$A$5:$AY$22116,32,FALSE),0) -> 483 | AI33: =IFERROR(VLOOKUP($A33,Filtros!$A$5:$AY$22116,33,FALSE),0) -> 17 | AJ33: =IFERROR(VLOOKUP($A33,Filtros!$A$5:$AY$22116,34,FALSE),0) -> 17 | AK33: =IFERROR(VLOOKUP($A33,Filtros!$A$5:$AY$22116,35,FALSE),0) -> 32 | AL33: =IFERROR(VLOOKUP($A33,Filtros!$A$5:$AY$22116,36,FALSE),0) -> 27 | DI33: 0 | DJ33: 0
A34: P2070504 | C34: OBESO | D34: =IFERROR(VLOOKUP($A34,Filtros!$A$5:$AY$22116,2,FALSE),0) -> 4061 | E34: =IFERROR(VLOOKUP($A34,Filtros!$A$5:$AY$22116,3,FALSE),0) -> 2121 | F34: =IFERROR(VLOOKUP($A34,Filtros!$A$5:$AY$22116,4,FALSE),0) -> 1940 | G34: =IFERROR(VLOOKUP($A34,Filtros!$A$5:$AY$22116,5,FALSE),0) -> 0 | H34: =IFERROR(VLOOKUP($A34,Filtros!$A$5:$AY$22116,6,FALSE),0) -> 0 | I34: =IFERROR(VLOOKUP($A34,Filtros!$A$5:$AY$22116,7,FALSE),0) -> 9 | J34: =IFERROR(VLOOKUP($A34,Filtros!$A$5:$AY$22116,8,FALSE),0) -> 3 | K34: =IFERROR(VLOOKUP($A34,Filtros!$A$5:$AY$22116,9,FALSE),0) -> 19 | L34: =IFERROR(VLOOKUP($A34,Filtros!$A$5:$AY$22116,10,FALSE),0) -> 16 | M34: =IFERROR(VLOOKUP($A34,Filtros!$A$5:$AY$22116,11,FALSE),0) -> 26 | N34: =IFERROR(VLOOKUP($A34,Filtros!$A$5:$AY$22116,12,FALSE),0) -> 17 | O34: =IFERROR(VLOOKUP($A34,Filtros!$A$5:$AY$22116,13,FALSE),0) -> 22 | P34: =IFERROR(VLOOKUP($A34,Filtros!$A$5:$AY$22116,14,FALSE),0) -> 17 | Q34: =IFERROR(VLOOKUP($A34,Filtros!$A$5:$AY$22116,15,FALSE),0) -> 24 | R34: =IFERROR(VLOOKUP($A34,Filtros!$A$5:$AY$22116,16,FALSE),0) -> 19 | S34: =IFERROR(VLOOKUP($A34,Filtros!$A$5:$AY$22116,17,FALSE),0) -> 48 | T34: =IFERROR(VLOOKUP($A34,Filtros!$A$5:$AY$22116,18,FALSE),0) -> 38 | U34: =IFERROR(VLOOKUP($A34,Filtros!$A$5:$AY$22116,19,FALSE),0) -> 182 | V34: =IFERROR(VLOOKUP($A34,Filtros!$A$5:$AY$22116,20,FALSE),0) -> 142 | W34: =IFERROR(VLOOKUP($A34,Filtros!$A$5:$AY$22116,21,FALSE),0) -> 213 | X34: =IFERROR(VLOOKUP($A34,Filtros!$A$5:$AY$22116,22,FALSE),0) -> 222 | Y34: =IFERROR(VLOOKUP($A34,Filtros!$A$5:$AY$22116,23,FALSE),0) -> 212 | Z34: =IFERROR(VLOOKUP($A34,Filtros!$A$5:$AY$22116,24,FALSE),0) -> 226 | AA34: =IFERROR(VLOOKUP($A34,Filtros!$A$5:$AY$22116,25,FALSE),0) -> 419 | AB34: =IFERROR(VLOOKUP($A34,Filtros!$A$5:$AY$22116,26,FALSE),0) -> 402 | AC34: =IFERROR(VLOOKUP($A34,Filtros!$A$5:$AY$22116,27,FALSE),0) -> 299 | AD34: =IFERROR(VLOOKUP($A34,Filtros!$A$5:$AY$22116,28,FALSE),0) -> 231 | AE34: =IFERROR(VLOOKUP($A34,Filtros!$A$5:$AY$22116,29,FALSE),0) -> 209 | AF34: =IFERROR(VLOOKUP($A34,Filtros!$A$5:$AY$22116,30,FALSE),0) -> 199 | AG34: =IFERROR(VLOOKUP($A34,Filtros!$A$5:$AY$22116,31,FALSE),0) -> 439 | AH34: =IFERROR(VLOOKUP($A34,Filtros!$A$5:$AY$22116,32,FALSE),0) -> 408 | AI34: =IFERROR(VLOOKUP($A34,Filtros!$A$5:$AY$22116,33,FALSE),0) -> 6 | AJ34: =IFERROR(VLOOKUP($A34,Filtros!$A$5:$AY$22116,34,FALSE),0) -> 17 | AK34: =IFERROR(VLOOKUP($A34,Filtros!$A$5:$AY$22116,35,FALSE),0) -> 9 | AL34: =IFERROR(VLOOKUP($A34,Filtros!$A$5:$AY$22116,36,FALSE),0) -> 10 | DI34: 0 | DJ34: 0
A35: P2070505 | C35: NORMAL | D35: =IFERROR(VLOOKUP($A35,Filtros!$A$5:$AY$22116,2,FALSE),0) -> 16105 | E35: =IFERROR(VLOOKUP($A35,Filtros!$A$5:$AY$22116,3,FALSE),0) -> 8085 | F35: =IFERROR(VLOOKUP($A35,Filtros!$A$5:$AY$22116,4,FALSE),0) -> 8020 | G35: =IFERROR(VLOOKUP($A35,Filtros!$A$5:$AY$22116,5,FALSE),0) -> 0 | H35: =IFERROR(VLOOKUP($A35,Filtros!$A$5:$AY$22116,6,FALSE),0) -> 0 | I35: =IFERROR(VLOOKUP($A35,Filtros!$A$5:$AY$22116,7,FALSE),0) -> 181 | J35: =IFERROR(VLOOKUP($A35,Filtros!$A$5:$AY$22116,8,FALSE),0) -> 184 | K35: =IFERROR(VLOOKUP($A35,Filtros!$A$5:$AY$22116,9,FALSE),0) -> 194 | L35: =IFERROR(VLOOKUP($A35,Filtros!$A$5:$AY$22116,10,FALSE),0) -> 208 | M35: =IFERROR(VLOOKUP($A35,Filtros!$A$5:$AY$22116,11,FALSE),0) -> 162 | N35: =IFERROR(VLOOKUP($A35,Filtros!$A$5:$AY$22116,12,FALSE),0) -> 158 | O35: =IFERROR(VLOOKUP($A35,Filtros!$A$5:$AY$22116,13,FALSE),0) -> 177 | P35: =IFERROR(VLOOKUP($A35,Filtros!$A$5:$AY$22116,14,FALSE),0) -> 200 | Q35: =IFERROR(VLOOKUP($A35,Filtros!$A$5:$AY$22116,15,FALSE),0) -> 169 | R35: =IFERROR(VLOOKUP($A35,Filtros!$A$5:$AY$22116,16,FALSE),0) -> 160 | S35: =IFERROR(VLOOKUP($A35,Filtros!$A$5:$AY$22116,17,FALSE),0) -> 206 | T35: =IFERROR(VLOOKUP($A35,Filtros!$A$5:$AY$22116,18,FALSE),0) -> 208 | U35: =IFERROR(VLOOKUP($A35,Filtros!$A$5:$AY$22116,19,FALSE),0) -> 649 | V35: =IFERROR(VLOOKUP($A35,Filtros!$A$5:$AY$22116,20,FALSE),0) -> 712 | W35: =IFERROR(VLOOKUP($A35,Filtros!$A$5:$AY$22116,21,FALSE),0) -> 932 | X35: =IFERROR(VLOOKUP($A35,Filtros!$A$5:$AY$22116,22,FALSE),0) -> 882 | Y35: =IFERROR(VLOOKUP($A35,Filtros!$A$5:$AY$22116,23,FALSE),0) -> 930 | Z35: =IFERROR(VLOOKUP($A35,Filtros!$A$5:$AY$22116,24,FALSE),0) -> 935 | AA35: =IFERROR(VLOOKUP($A35,Filtros!$A$5:$AY$22116,25,FALSE),0) -> 1695 | AB35: =IFERROR(VLOOKUP($A35,Filtros!$A$5:$AY$22116,26,FALSE),0) -> 1662 | AC35: =IFERROR(VLOOKUP($A35,Filtros!$A$5:$AY$22116,27,FALSE),0) -> 886 | AD35: =IFERROR(VLOOKUP($A35,Filtros!$A$5:$AY$22116,28,FALSE),0) -> 857 | AE35: =IFERROR(VLOOKUP($A35,Filtros!$A$5:$AY$22116,29,FALSE),0) -> 651 | AF35: =IFERROR(VLOOKUP($A35,Filtros!$A$5:$AY$22116,30,FALSE),0) -> 640 | AG35: =IFERROR(VLOOKUP($A35,Filtros!$A$5:$AY$22116,31,FALSE),0) -> 1253 | AH35: =IFERROR(VLOOKUP($A35,Filtros!$A$5:$AY$22116,32,FALSE),0) -> 1214 | AI35: =IFERROR(VLOOKUP($A35,Filtros!$A$5:$AY$22116,33,FALSE),0) -> 52 | AJ35: =IFERROR(VLOOKUP($A35,Filtros!$A$5:$AY$22116,34,FALSE),0) -> 53 | AK35: =IFERROR(VLOOKUP($A35,Filtros!$A$5:$AY$22116,35,FALSE),0) -> 96 | AL35: =IFERROR(VLOOKUP($A35,Filtros!$A$5:$AY$22116,36,FALSE),0) -> 101 | DI35: 0 | DJ35: 0
C36: SUBTOTAL | D36: =SUM(E36:F36) -> 27593 | E36: =+I36+K36+M36+O36+Q36+S36+U36+W36+Y36+AA36+AC36+AE36+AG36 -> 13952 | F36: 13641 | I36: =SUM(I31:I35) -> 231 | J36: 230 | K36: 288 | L36: 278 | M36: 262 | N36: 244 | O36: 282 | P36: 284 | Q36: 280 | R36: 275 | S36: 345 | T36: 349 | U36: 1201 | V36: 1225 | W36: 1600 | X36: 1570 | Y36: 1589 | Z36: 1589 | AA36: 2916 | AB36: 2817 | AC36: 1573 | AD36: 1492 | AE36: 1140 | AF36: 1141 | AG36: 2245 | AH36: 2147 | AI36: 75 | AJ36: 89 | AK36: 143 | AL36: 144 | AM36: ="" & CC36 & CD36 ->  | CC36: =IF($D36>=$AI36+$AJ36,"","* El Total de Pueblos Originarios no debe ser mayor al Total Indicador peso/talla. ") ->  | CD36: =IF($D36>=$AK36+$AL36,"","* El Total de Población Migrantes no debe ser mayor al Total Indicador peso/talla. ") ->  | DB36: =IF($D36>=$AI36+$AJ36,0,1) -> 0 | DC36: =IF($D36>=$AK36+$AL36,0,1) -> 0
A37: P2070506 | C37: DESNUTRICIÓN SECUNDARIA | D37: =IFERROR(VLOOKUP($A37,Filtros!$A$5:$AY$22116,2,FALSE),0) -> 24 | E37: =IFERROR(VLOOKUP($A37,Filtros!$A$5:$AY$22116,3,FALSE),0) -> 14 | F37: =IFERROR(VLOOKUP($A37,Filtros!$A$5:$AY$22116,4,FALSE),0) -> 10 | G37: =IFERROR(VLOOKUP($A37,Filtros!$A$5:$AY$22116,5,FALSE),0) -> 0 | H37: =IFERROR(VLOOKUP($A37,Filtros!$A$5:$AY$22116,6,FALSE),0) -> 0 | I37: =IFERROR(VLOOKUP($A37,Filtros!$A$5:$AY$22116,7,FALSE),0) -> 0 | J37: =IFERROR(VLOOKUP($A37,Filtros!$A$5:$AY$22116,8,FALSE),0) -> 1 | K37: =IFERROR(VLOOKUP($A37,Filtros!$A$5:$AY$22116,9,FALSE),0) -> 0 | L37: =IFERROR(VLOOKUP($A37,Filtros!$A$5:$AY$22116,10,FALSE),0) -> 1 | M37: =IFERROR(VLOOKUP($A37,Filtros!$A$5:$AY$22116,11,FALSE),0) -> 1 | N37: =IFERROR(VLOOKUP($A37,Filtros!$A$5:$AY$22116,12,FALSE),0) -> 0 | O37: =IFERROR(VLOOKUP($A37,Filtros!$A$5:$AY$22116,13,FALSE),0) -> 1 | P37: =IFERROR(VLOOKUP($A37,Filtros!$A$5:$AY$22116,14,FALSE),0) -> 0 | Q37: =IFERROR(VLOOKUP($A37,Filtros!$A$5:$AY$22116,15,FALSE),0) -> 0 | R37: =IFERROR(VLOOKUP($A37,Filtros!$A$5:$AY$22116,16,FALSE),0) -> 0 | S37: =IFERROR(VLOOKUP($A37,Filtros!$A$5:$AY$22116,17,FALSE),0) -> 0 | T37: =IFERROR(VLOOKUP($A37,Filtros!$A$5:$AY$22116,18,FALSE),0) -> 0 | U37: =IFERROR(VLOOKUP($A37,Filtros!$A$5:$AY$22116,19,FALSE),0) -> 2 | V37: =IFERROR(VLOOKUP($A37,Filtros!$A$5:$AY$22116,20,FALSE),0) -> 1 | W37: =IFERROR(VLOOKUP($A37,Filtros!$A$5:$AY$22116,21,FALSE),0) -> 2 | X37: =IFERROR(VLOOKUP($A37,Filtros!$A$5:$AY$22116,22,FALSE),0) -> 1 | Y37: =IFERROR(VLOOKUP($A37,Filtros!$A$5:$AY$22116,23,FALSE),0) -> 1 | Z37: =IFERROR(VLOOKUP($A37,Filtros!$A$5:$AY$22116,24,FALSE),0) -> 2 | AA37: =IFERROR(VLOOKUP($A37,Filtros!$A$5:$AY$22116,25,FALSE),0) -> 1 | AB37: =IFERROR(VLOOKUP($A37,Filtros!$A$5:$AY$22116,26,FALSE),0) -> 1 | AC37: =IFERROR(VLOOKUP($A37,Filtros!$A$5:$AY$22116,27,FALSE),0) -> 1 | AD37: =IFERROR(VLOOKUP($A37,Filtros!$A$5:$AY$22116,28,FALSE),0) -> 1 | AE37: =IFERROR(VLOOKUP($A37,Filtros!$A$5:$AY$22116,29,FALSE),0) -> 2 | AF37: =IFERROR(VLOOKUP($A37,Filtros!$A$5:$AY$22116,30,FALSE),0) -> 1 | AG37: =IFERROR(VLOOKUP($A37,Filtros!$A$5:$AY$22116,31,FALSE),0) -> 3 | AH37: =IFERROR(VLOOKUP($A37,Filtros!$A$5:$AY$22116,32,FALSE),0) -> 1 | AI37: =IFERROR(VLOOKUP($A37,Filtros!$A$5:$AY$22116,33,FALSE),0) -> 0 | AJ37: =IFERROR(VLOOKUP($A37,Filtros!$A$5:$AY$22116,34,FALSE),0) -> 0 | AK37: =IFERROR(VLOOKUP($A37,Filtros!$A$5:$AY$22116,35,FALSE),0) -> 0 | AL37: =IFERROR(VLOOKUP($A37,Filtros!$A$5:$AY$22116,36,FALSE),0) -> 1 | AM37: =CJ37 & CK37 ->  | CJ37: =IF(AND(E37<>0,AI37=""), "* No olvide escribir en la celda de Pueblos Originarios (Digite CERO si no tiene). ",IF(AND(F37<>0,AJ37=""), "* No olvide escribir en la celda de Pueblos Originarios (Digite CERO si no tiene). ","")) ->  | CK37: =IF(AND(E37<>0,AK37=""), "* No olvide escribir en la celda de Población Migrantes (Digite CERO si no tiene). ",IF(AND(F37<>0,AL37=""), "* No olvide escribir en la celda de Población Migrantes (Digite CERO si no tiene). ","")) ->  | DI37: =IF(AND(E37<>0,AI37=""), 1,IF(AND(F37<>0,AJ37=""), 1,0)) -> 0 | DJ37: =IF(AND(E37<>0,AK37=""), 1,IF(AND(F37<>0,AL37=""), 1,0)) -> 0
C38: T O T A L | D38: =SUM(E38:F38) -> 27617 | E38: 13966 | F38: 13651 | I38: =SUM(I31:I35)+I37 -> 231 | J38: 231 | K38: 288 | L38: 279 | M38: 263 | N38: 244 | O38: 283 | P38: 284 | Q38: 280 | R38: 275 | S38: 345 | T38: 349 | U38: 1203 | V38: 1226 | W38: 1602 | X38: 1571 | Y38: 1590 | Z38: 1591 | AA38: 2917 | AB38: 2818 | AC38: 1574 | AD38: 1493 | AE38: 1142 | AF38: 1142 | AG38: 2248 | AH38: 2148 | AI38: 75 | AJ38: 89 | AK38: 143 | AL38: 145 | AM38: ="" & CC38 & CD38 ->  | CC38: =IF($D38>=$AI38+$AJ38,"","* El Total de Pueblos Originarios no debe ser mayor al Total Indicador peso/talla. ") ->  | CD38: =IF($D38>=$AK38+$AL38,"","* El Total de Población Migrantes no debe ser mayor al Total Indicador peso/talla. ") ->  | DB38: =IF($D38>=$AI38+$AJ38,0,1) -> 0 | DC38: =IF($D38>=$AK38+$AL38,0,1) -> 0
B39: SECCION A.1: POBLACIÓN EN CONTROL, SEGÚN ESTADO NUTRICIONAL PARA NIÑOS DE 60 MESES-9 AÑOS 11 MESES
B40: INDICADOR NUTRICIONAL Y PARÁMETROS DE MEDICIÓN | D40: TOTAL | G40: GRUPOS DE EDAD (en meses - años) Y SEXO
G41: 60 a 71 meses | I41: 6 a 9 años 11 meses | K41: Pueblos Originarios | M41: Población Migrantes
D42: Ambos sexos | E42: Hombres | F42: Mujeres | G42: Hombres | H42: Mujeres | I42: Hombres | J42: Mujeres | K42: Hombres | L42: Mujeres | M42: Hombres | N42: Mujeres
A43: P2400150 | B43: TOTAL DE NIÑOS EN CONTROL | D43: =IFERROR(VLOOKUP($A43,Filtros!$A$5:$AY$22116,2,FALSE),0) -> 13299 | E43: =IFERROR(VLOOKUP($A43,Filtros!$A$5:$AY$22116,3,FALSE),0) -> 6859 | F43: =IFERROR(VLOOKUP($A43,Filtros!$A$5:$AY$22116,4,FALSE),0) -> 6440 | G43: =IFERROR(VLOOKUP($A43,Filtros!$A$5:$AY$22116,5,FALSE),0) -> 2143 | H43: =IFERROR(VLOOKUP($A43,Filtros!$A$5:$AY$22116,6,FALSE),0) -> 1981 | I43: =IFERROR(VLOOKUP($A43,Filtros!$A$5:$AY$22116,7,FALSE),0) -> 4716 | J43: =IFERROR(VLOOKUP($A43,Filtros!$A$5:$AY$22116,8,FALSE),0) -> 4459 | K43: =IFERROR(VLOOKUP($A43,Filtros!$A$5:$AY$22116,9,FALSE),0) -> 32 | L43: =IFERROR(VLOOKUP($A43,Filtros!$A$5:$AY$22116,10,FALSE),0) -> 14 | M43: =IFERROR(VLOOKUP($A43,Filtros!$A$5:$AY$22116,11,FALSE),0) -> 115 | N43: =IFERROR(VLOOKUP($A43,Filtros!$A$5:$AY$22116,12,FALSE),0) -> 98 | O43: =CC43 & CD43 & CE43 & CF43 & CG43 & CH43 & CJ43 & CK43 ->  | CC43: =IF(G43<>G71,"* El Total de niños en control no debe ser distinto al total del Diagnóstico Nutricional Integrado. ","") ->  | CD43: =IF(H43<>H71,"* El Total de niñas en control no debe ser distinto al total del Diagnóstico Nutricional Integrado. ","") ->  | CE43: =IF(I43<>I71,"* El Total de niños en control no debe ser distinto al total del Diagnóstico Nutricional Integrado. ","") ->  | CF43: =IF(J43<>J71,"* El Total de niñas en control no debe ser distinto al total del Diagnóstico Nutricional Integrado. ","") ->  | CG43: =IF($D43>=$K43+$L43,"","* El Total de Pueblos Originarios no debe ser mayor al total de niños en control. ") ->  | CH43: =IF($D43>=$M43+$N43,"","* El Total de Pueblación Migrantes no debe ser mayor al total de niños en control. ") ->  | CJ43: =IF(AND(E43<>0,K43=""), "* No olvide escribir en la celda de Pueblos Originarios (Digite CERO si no tiene). ",IF(AND(F43<>0,L43=""), "* No olvide escribir en la celda de Pueblos Originarios (Digite CERO si no tiene). ","")) ->  | CK43: =IF(AND(E43<>0,M43=""), "* No olvide escribir en la celda de Población Migrantes (Digite CERO si no tiene). ",IF(AND(F43<>0,N43=""), "* No olvide escribir en la celda de Población Migrantes (Digite CERO si no tiene). ","")) ->  | DB43: =IF(G43<>G71,1,0) -> 0 | DC43: =IF(H43<>H71,1,0) -> 0 | DD43: =IF(I43<>I71,1,0) -> 0 | DE43: =IF(J43<>J71,1,0) -> 0 | DF43: =IF($D43>=$K43+$L43,0,1) -> 0 | DG43: =IF($D43>=$M43+$N43,0,1) -> 0 | DI43: =IF(AND(E43<>0,K43=""), 1,IF(AND(F43<>0,L43=""), 1,0)) -> 0 | DJ43: =IF(AND(E43<>0,M43=""), 1,IF(AND(F43<>0,N43=""), 1,0)) -> 0
A44: P2400160 | B44: INDICADOR IMC / EDAD | C44: + 3 D.S. (>= 3 ) | D44: =IFERROR(VLOOKUP($A44,Filtros!$A$5:$AY$22116,2,FALSE),0) -> 990 | E44: =IFERROR(VLOOKUP($A44,Filtros!$A$5:$AY$22116,3,FALSE),0) -> 649 | F44: =IFERROR(VLOOKUP($A44,Filtros!$A$5:$AY$22116,4,FALSE),0) -> 341 | G44: =IFERROR(VLOOKUP($A44,Filtros!$A$5:$AY$22116,5,FALSE),0) -> 122 | H44: =IFERROR(VLOOKUP($A44,Filtros!$A$5:$AY$22116,6,FALSE),0) -> 78 | I44: =IFERROR(VLOOKUP($A44,Filtros!$A$5:$AY$22116,7,FALSE),0) -> 527 | J44: =IFERROR(VLOOKUP($A44,Filtros!$A$5:$AY$22116,8,FALSE),0) -> 263 | K44: =IFERROR(VLOOKUP($A44,Filtros!$A$5:$AY$22116,9,FALSE),0) -> 6 | L44: =IFERROR(VLOOKUP($A44,Filtros!$A$5:$AY$22116,10,FALSE),0) -> 0 | M44: =IFERROR(VLOOKUP($A44,Filtros!$A$5:$AY$22116,11,FALSE),0) -> 2 | N44: =IFERROR(VLOOKUP($A44,Filtros!$A$5:$AY$22116,12,FALSE),0) -> 3 | O44: =CJ44 & CK44 ->  | CJ44: =IF(AND(E44<>0,K44=""), "* No olvide escribir en la celda de Pueblos Originarios (Digite CERO si no tiene). ",IF(AND(F44<>0,L44=""), "* No olvide escribir en la celda de Pueblos Originarios (Digite CERO si no tiene). ","")) ->  | CK44: =IF(AND(E44<>0,M44=""), "* No olvide escribir en la celda de Población Migrantes (Digite CERO si no tiene). ",IF(AND(F44<>0,N44=""), "* No olvide escribir en la celda de Población Migrantes (Digite CERO si no tiene). ","")) ->  | DI44: =IF(AND(E44<>0,K44=""), 1,IF(AND(F44<>0,L44=""), 1,0)) -> 0 | DJ44: =IF(AND(E44<>0,M44=""), 1,IF(AND(F44<>0,N44=""), 1,0)) -> 0
A45: P2400170 | C45: + 2 D.S. (>= +2.0 a +2.9) | D45: =IFERROR(VLOOKUP($A45,Filtros!$A$5:$AY$22116,2,FALSE),0) -> 2368 | E45: =IFERROR(VLOOKUP($A45,Filtros!$A$5:$AY$22116,3,FALSE),0) -> 1168 | F45: =IFERROR(VLOOKUP($A45,Filtros!$A$5:$AY$22116,4,FALSE),0) -> 1200 | G45: =IFERROR(VLOOKUP($A45,Filtros!$A$5:$AY$22116,5,FALSE),0) -> 342 | H45: =IFERROR(VLOOKUP($A45,Filtros!$A$5:$AY$22116,6,FALSE),0) -> 358 | I45: =IFERROR(VLOOKUP($A45,Filtros!$A$5:$AY$22116,7,FALSE),0) -> 826 | J45: =IFERROR(VLOOKUP($A45,Filtros!$A$5:$AY$22116,8,FALSE),0) -> 842 | K45: =IFERROR(VLOOKUP($A45,Filtros!$A$5:$AY$22116,9,FALSE),0) -> 8 | L45: =IFERROR(VLOOKUP($A45,Filtros!$A$5:$AY$22116,10,FALSE),0) -> 3 | M45: =IFERROR(VLOOKUP($A45,Filtros!$A$5:$AY$22116,11,FALSE),0) -> 14 | N45: =IFERROR(VLOOKUP($A45,Filtros!$A$5:$AY$22116,12,FALSE),0) -> 15 | O45: =CJ45 & CK45 ->  | CJ45: =IF(AND(E45<>0,K45=""), "* No olvide escribir en la celda de Pueblos Originarios (Digite CERO si no tiene). ",IF(AND(F45<>0,L45=""), "* No olvide escribir en la celda de Pueblos Originarios (Digite CERO si no tiene). ","")) ->  | CK45: =IF(AND(E45<>0,M45=""), "* No olvide escribir en la celda de Población Migrantes (Digite CERO si no tiene). ",IF(AND(F45<>0,N45=""), "* No olvide escribir en la celda de Población Migrantes (Digite CERO si no tiene). ","")) ->  | DI45: =IF(AND(E45<>0,K45=""), 1,IF(AND(F45<>0,L45=""), 1,0)) -> 0 | DJ45: =IF(AND(E45<>0,M45=""), 1,IF(AND(F45<>0,N45=""), 1,0)) -> 0
A46: P2400180 | C46: + 1 D.S. (>= +1.0 a +1.9) | D46: =IFERROR(VLOOKUP($A46,Filtros!$A$5:$AY$22116,2,FALSE),0) -> 2807 | E46: =IFERROR(VLOOKUP($A46,Filtros!$A$5:$AY$22116,3,FALSE),0) -> 1371 | F46: =IFERROR(VLOOKUP($A46,Filtros!$A$5:$AY$22116,4,FALSE),0) -> 1436 | G46: =IFERROR(VLOOKUP($A46,Filtros!$A$5:$AY$22116,5,FALSE),0) -> 441 | H46: =IFERROR(VLOOKUP($A46,Filtros!$A$5:$AY$22116,6,FALSE),0) -> 426 | I46: =IFERROR(VLOOKUP($A46,Filtros!$A$5:$AY$22116,7,FALSE),0) -> 930 | J46: =IFERROR(VLOOKUP($A46,Filtros!$A$5:$AY$22116,8,FALSE),0) -> 1010 | K46: =IFERROR(VLOOKUP($A46,Filtros!$A$5:$AY$22116,9,FALSE),0) -> 1 | L46: =IFERROR(VLOOKUP($A46,Filtros!$A$5:$AY$22116,10,FALSE),0) -> 2 | M46: =IFERROR(VLOOKUP($A46,Filtros!$A$5:$AY$22116,11,FALSE),0) -> 21 | N46: =IFERROR(VLOOKUP($A46,Filtros!$A$5:$AY$22116,12,FALSE),0) -> 21 | O46: =CJ46 & CK46 ->  | CJ46: =IF(AND(E46<>0,K46=""), "* No olvide escribir en la celda de Pueblos Originarios (Digite CERO si no tiene). ",IF(AND(F46<>0,L46=""), "* No olvide escribir en la celda de Pueblos Originarios (Digite CERO si no tiene). ","")) ->  | CK46: =IF(AND(E46<>0,M46=""), "* No olvide escribir en la celda de Población Migrantes (Digite CERO si no tiene). ",IF(AND(F46<>0,N46=""), "* No olvide escribir en la celda de Población Migrantes (Digite CERO si no tiene). ","")) ->  | DI46: =IF(AND(E46<>0,K46=""), 1,IF(AND(F46<>0,L46=""), 1,0)) -> 0 | DJ46: =IF(AND(E46<>0,M46=""), 1,IF(AND(F46<>0,N46=""), 1,0)) -> 0
C47: TOTAL | D47: =+E47+F47 -> 6165 | E47: =+G47+I47 -> 3188 | F47: =+H47+J47 -> 2977 | G47: =SUM(G44:G46) -> 905 | H47: =SUM(H44:H46) -> 862 | I47: 2283 | J47: 2115 | K47: 15 | L47: 5 | M47: 37 | N47: 39 | O47: =CG47 & CH47 ->  | CG47: =IF($D47>=$K47+$L47,"","* El Total de Pueblos Originarios no debe ser mayor al total de niños en control. ") ->  | CH47: =IF($D47>=$M47+$N47,"","* El Total de Pueblación Migrantes no debe ser mayor al total de niños en control. ") ->  | DF47: =IF($D47>=$K47+$L47,0,1) -> 0 | DG47: =IF($D47>=$M47+$N47,0,1) -> 0
A48: P2400190 | C48: - 1 D.S. (<= -1.0 a -1.9) | D48: =IFERROR(VLOOKUP($A48,Filtros!$A$5:$AY$22116,2,FALSE),0) -> 291 | E48: =IFERROR(VLOOKUP($A48,Filtros!$A$5:$AY$22116,3,FALSE),0) -> 136 | F48: =IFERROR(VLOOKUP($A48,Filtros!$A$5:$AY$22116,4,FALSE),0) -> 155 | G48: =IFERROR(VLOOKUP($A48,Filtros!$A$5:$AY$22116,5,FALSE),0) -> 48 | H48: =IFERROR(VLOOKUP($A48,Filtros!$A$5:$AY$22116,6,FALSE),0) -> 45 | I48: =IFERROR(VLOOKUP($A48,Filtros!$A$5:$AY$22116,7,FALSE),0) -> 88 | J48: =IFERROR(VLOOKUP($A48,Filtros!$A$5:$AY$22116,8,FALSE),0) -> 110 | K48: =IFERROR(VLOOKUP($A48,Filtros!$A$5:$AY$22116,9,FALSE),0) -> 0 | L48: =IFERROR(VLOOKUP($A48,Filtros!$A$5:$AY$22116,10,FALSE),0) -> 0 | M48: =IFERROR(VLOOKUP($A48,Filtros!$A$5:$AY$22116,11,FALSE),0) -> 3 | N48: =IFERROR(VLOOKUP($A48,Filtros!$A$5:$AY$22116,12,FALSE),0) -> 5 | O48: =CJ48 & CK48 ->  | CJ48: =IF(AND(E48<>0,K48=""), "* No olvide escribir en la celda de Pueblos Originarios (Digite CERO si no tiene). ",IF(AND(F48<>0,L48=""), "* No olvide escribir en la celda de Pueblos Originarios (Digite CERO si no tiene). ","")) ->  | CK48: =IF(AND(E48<>0,M48=""), "* No olvide escribir en la celda de Población Migrantes (Digite CERO si no tiene). ",IF(AND(F48<>0,N48=""), "* No olvide escribir en la celda de Población Migrantes (Digite CERO si no tiene). ","")) ->  | DI48: =IF(AND(E48<>0,K48=""), 1,IF(AND(F48<>0,L48=""), 1,0)) -> 0 | DJ48: =IF(AND(E48<>0,M48=""), 1,IF(AND(F48<>0,N48=""), 1,0)) -> 0
A49: P2400200 | C49: - 2 D.S. (<= -2.0) | D49: =IFERROR(VLOOKUP($A49,Filtros!$A$5:$AY$22116,2,FALSE),0) -> 35 | E49: =IFERROR(VLOOKUP($A49,Filtros!$A$5:$AY$22116,3,FALSE),0) -> 22 | F49: =IFERROR(VLOOKUP($A49,Filtros!$A$5:$AY$22116,4,FALSE),0) -> 13 | G49: =IFERROR(VLOOKUP($A49,Filtros!$A$5:$AY$22116,5,FALSE),0) -> 6 | H49: =IFERROR(VLOOKUP($A49,Filtros!$A$5:$AY$22116,6,FALSE),0) -> 3 | I49: =IFERROR(VLOOKUP($A49,Filtros!$A$5:$AY$22116,7,FALSE),0) -> 16 | J49: =IFERROR(VLOOKUP($A49,Filtros!$A$5:$AY$22116,8,FALSE),0) -> 10 | K49: =IFERROR(VLOOKUP($A49,Filtros!$A$5:$AY$22116,9,FALSE),0) -> 0 | L49: =IFERROR(VLOOKUP($A49,Filtros!$A$5:$AY$22116,10,FALSE),0) -> 0 | M49: =IFERROR(VLOOKUP($A49,Filtros!$A$5:$AY$22116,11,FALSE),0) -> 0 | N49: =IFERROR(VLOOKUP($A49,Filtros!$A$5:$AY$22116,12,FALSE),0) -> 0 | O49: =CJ49 & CK49 ->  | CJ49: =IF(AND(E49<>0,K49=""), "* No olvide escribir en la celda de Pueblos Originarios (Digite CERO si no tiene). ",IF(AND(F49<>0,L49=""), "* No olvide escribir en la celda de Pueblos Originarios (Digite CERO si no tiene). ","")) ->  | CK49: =IF(AND(E49<>0,M49=""), "* No olvide escribir en la celda de Población Migrantes (Digite CERO si no tiene). ",IF(AND(F49<>0,N49=""), "* No olvide escribir en la celda de Población Migrantes (Digite CERO si no tiene). ","")) ->  | DI49: =IF(AND(E49<>0,K49=""), 1,IF(AND(F49<>0,L49=""), 1,0)) -> 0 | DJ49: =IF(AND(E49<>0,M49=""), 1,IF(AND(F49<>0,N49=""), 1,0)) -> 0
C50: TOTAL | D50: 326 | E50: 158 | F50: 168 | G50: =SUM(G48:G49) -> 54 | H50: =SUM(H48:H49) -> 48 | I50: 104 | J50: 120 | K50: 0 | L50: 0 | M50: 3 | N50: 5 | O50: =CG50 & CH50 ->  | CG50: =IF($D50>=$K50+$L50,"","* El Total de Pueblos Originarios no debe ser mayor al total de niños en control. ") ->  | CH50: =IF($D50>=$M50+$N50,"","* El Total de Pueblación Migrantes no debe ser mayor al total de niños en control. ") ->  | DF50: =IF($D50>=$K50+$L50,0,1) -> 0 | DG50: =IF($D50>=$M50+$N50,0,1) -> 0
A51: P2400210 | C51: PROMEDIO (-0,9 A + 0,9) | D51: 0 | E51: 0 | F51: 0 | O51: =CJ51 & CK51 ->  | CJ51: =IF(AND(E51<>0,K51=""), "* No olvide escribir en la celda de Pueblos Originarios (Digite CERO si no tiene). ",IF(AND(F51<>0,L51=""), "* No olvide escribir en la celda de Pueblos Originarios (Digite CERO si no tiene). ","")) ->  | CK51: =IF(AND(E51<>0,M51=""), "* No olvide escribir en la celda de Población Migrantes (Digite CERO si no tiene). ",IF(AND(F51<>0,N51=""), "* No olvide escribir en la celda de Población Migrantes (Digite CERO si no tiene). ","")) ->  | DI51: =IF(AND(E51<>0,K51=""), 1,IF(AND(F51<>0,L51=""), 1,0)) -> 0 | DJ51: =IF(AND(E51<>0,M51=""), 1,IF(AND(F51<>0,N51=""), 1,0)) -> 0
A52: P2400220 | B52: INDICADOR TALLA/EDAD | C52: + 2 D.S. (>= +2.0) | D52: =IFERROR(VLOOKUP($A52,Filtros!$A$5:$AY$22116,2,FALSE),0) -> 502 | E52: =IFERROR(VLOOKUP($A52,Filtros!$A$5:$AY$22116,3,FALSE),0) -> 275 | F52: =IFERROR(VLOOKUP($A52,Filtros!$A$5:$AY$22116,4,FALSE),0) -> 227 | G52: =IFERROR(VLOOKUP($A52,Filtros!$A$5:$AY$22116,5,FALSE),0) -> 82 | H52: =IFERROR(VLOOKUP($A52,Filtros!$A$5:$AY$22116,6,FALSE),0) -> 69 | I52: =IFERROR(VLOOKUP($A52,Filtros!$A$5:$AY$22116,7,FALSE),0) -> 193 | J52: =IFERROR(VLOOKUP($A52,Filtros!$A$5:$AY$22116,8,FALSE),0) -> 158 | K52: =IFERROR(VLOOKUP($A52,Filtros!$A$5:$AY$22116,9,FALSE),0) -> 2 | L52: =IFERROR(VLOOKUP($A52,Filtros!$A$5:$AY$22116,10,FALSE),0) -> 0 | M52: =IFERROR(VLOOKUP($A52,Filtros!$A$5:$AY$22116,11,FALSE),0) -> 3 | N52: =IFERROR(VLOOKUP($A52,Filtros!$A$5:$AY$22116,12,FALSE),0) -> 1 | O52: =CJ52 & CK52 ->  | CJ52: =IF(AND(E52<>0,K52=""), "* No olvide escribir en la celda de Pueblos Originarios (Digite CERO si no tiene). ",IF(AND(F52<>0,L52=""), "* No olvide escribir en la celda de Pueblos Originarios (Digite CERO si no tiene). ","")) ->  | CK52: =IF(AND(E52<>0,M52=""), "* No olvide escribir en la celda de Población Migrantes (Digite CERO si no tiene). ",IF(AND(F52<>0,N52=""), "* No olvide escribir en la celda de Población Migrantes (Digite CERO si no tiene). ","")) ->  | DI52: =IF(AND(E52<>0,K52=""), 1,IF(AND(F52<>0,L52=""), 1,0)) -> 0 | DJ52: =IF(AND(E52<>0,M52=""), 1,IF(AND(F52<>0,N52=""), 1,0)) -> 0
A53: P2400230 | C53: + 1 D.S. (+1.0 a +1.9) | D53: =IFERROR(VLOOKUP($A53,Filtros!$A$5:$AY$22116,2,FALSE),0) -> 1730 | E53: =IFERROR(VLOOKUP($A53,Filtros!$A$5:$AY$22116,3,FALSE),0) -> 914 | F53: =IFERROR(VLOOKUP($A53,Filtros!$A$5:$AY$22116,4,FALSE),0) -> 816 | G53: =IFERROR(VLOOKUP($A53,Filtros!$A$5:$AY$22116,5,FALSE),0) -> 294 | H53: =IFERROR(VLOOKUP($A53,Filtros!$A$5:$AY$22116,6,FALSE),0) -> 246 | I53: =IFERROR(VLOOKUP($A53,Filtros!$A$5:$AY$22116,7,FALSE),0) -> 620 | J53: =IFERROR(VLOOKUP($A53,Filtros!$A$5:$AY$22116,8,FALSE),0) -> 570 | K53: =IFERROR(VLOOKUP($A53,Filtros!$A$5:$AY$22116,9,FALSE),0) -> 5 | L53: =IFERROR(VLOOKUP($A53,Filtros!$A$5:$AY$22116,10,FALSE),0) -> 0 | M53: =IFERROR(VLOOKUP($A53,Filtros!$A$5:$AY$22116,11,FALSE),0) -> 5 | N53: =IFERROR(VLOOKUP($A53,Filtros!$A$5:$AY$22116,12,FALSE),0) -> 10 | O53: =CJ53 & CK53 ->  | CJ53: =IF(AND(E53<>0,K53=""), "* No olvide escribir en la celda de Pueblos Originarios (Digite CERO si no tiene). ",IF(AND(F53<>0,L53=""), "* No olvide escribir en la celda de Pueblos Originarios (Digite CERO si no tiene). ","")) ->  | CK53: =IF(AND(E53<>0,M53=""), "* No olvide escribir en la celda de Población Migrantes (Digite CERO si no tiene). ",IF(AND(F53<>0,N53=""), "* No olvide escribir en la celda de Población Migrantes (Digite CERO si no tiene). ","")) ->  | DI53: =IF(AND(E53<>0,K53=""), 1,IF(AND(F53<>0,L53=""), 1,0)) -> 0 | DJ53: =IF(AND(E53<>0,M53=""), 1,IF(AND(F53<>0,N53=""), 1,0)) -> 0
C54: TOTAL | D54: 2232 | E54: 1189 | F54: 1043 | G54: =SUM(G52:G53) -> 376 | H54: =SUM(H52:H53) -> 315 | I54: 813 | J54: 728 | K54: 7 | L54: 0 | M54: 8 | N54: 11 | O54: =CG54 & CH54 ->  | CG54: =IF($D54>=$K54+$L54,"","* El Total de Pueblos Originarios no debe ser mayor al total de niños en control. ") ->  | CH54: =IF($D54>=$M54+$N54,"","* El Total de Pueblación Migrantes no debe ser mayor al total de niños en control. ") ->  | DF54: =IF($D54>=$K54+$L54,0,1) -> 0 | DG54: =IF($D54>=$M54+$N54,0,1) -> 0
A55: P2400240 | C55: - 1 D.S. (-1.0 a -1.9) | D55: =IFERROR(VLOOKUP($A55,Filtros!$A$5:$AY$22116,2,FALSE),0) -> 1023 | E55: =IFERROR(VLOOKUP($A55,Filtros!$A$5:$AY$22116,3,FALSE),0) -> 542 | F55: =IFERROR(VLOOKUP($A55,Filtros!$A$5:$AY$22116,4,FALSE),0) -> 481 | G55: =IFERROR(VLOOKUP($A55,Filtros!$A$5:$AY$22116,5,FALSE),0) -> 200 | H55: =IFERROR(VLOOKUP($A55,Filtros!$A$5:$AY$22116,6,FALSE),0) -> 164 | I55: =IFERROR(VLOOKUP($A55,Filtros!$A$5:$AY$22116,7,FALSE),0) -> 342 | J55: =IFERROR(VLOOKUP($A55,Filtros!$A$5:$AY$22116,8,FALSE),0) -> 317 | K55: =IFERROR(VLOOKUP($A55,Filtros!$A$5:$AY$22116,9,FALSE),0) -> 2 | L55: =IFERROR(VLOOKUP($A55,Filtros!$A$5:$AY$22116,10,FALSE),0) -> 3 | M55: =IFERROR(VLOOKUP($A55,Filtros!$A$5:$AY$22116,11,FALSE),0) -> 3 | N55: =IFERROR(VLOOKUP($A55,Filtros!$A$5:$AY$22116,12,FALSE),0) -> 4 | O55: =CJ55 & CK55 ->  | CJ55: =IF(AND(E55<>0,K55=""), "* No olvide escribir en la celda de Pueblos Originarios (Digite CERO si no tiene). ",IF(AND(F55<>0,L55=""), "* No olvide escribir en la celda de Pueblos Originarios (Digite CERO si no tiene). ","")) ->  | CK55: =IF(AND(E55<>0,M55=""), "* No olvide escribir en la celda de Población Migrantes (Digite CERO si no tiene). ",IF(AND(F55<>0,N55=""), "* No olvide escribir en la celda de Población Migrantes (Digite CERO si no tiene). ","")) ->  | DI55: =IF(AND(E55<>0,K55=""), 1,IF(AND(F55<>0,L55=""), 1,0)) -> 0 | DJ55: =IF(AND(E55<>0,M55=""), 1,IF(AND(F55<>0,N55=""), 1,0)) -> 0
A56: P2400250 | C56: - 2 D.S. (<= -2.0) | D56: =IFERROR(VLOOKUP($A56,Filtros!$A$5:$AY$22116,2,FALSE),0) -> 131 | E56: =IFERROR(VLOOKUP($A56,Filtros!$A$5:$AY$22116,3,FALSE),0) -> 74 | F56: =IFERROR(VLOOKUP($A56,Filtros!$A$5:$AY$22116,4,FALSE),0) -> 57 | G56: =IFERROR(VLOOKUP($A56,Filtros!$A$5:$AY$22116,5,FALSE),0) -> 24 | H56: =IFERROR(VLOOKUP($A56,Filtros!$A$5:$AY$22116,6,FALSE),0) -> 10 | I56: =IFERROR(VLOOKUP($A56,Filtros!$A$5:$AY$22116,7,FALSE),0) -> 50 | J56: =IFERROR(VLOOKUP($A56,Filtros!$A$5:$AY$22116,8,FALSE),0) -> 47 | K56: =IFERROR(VLOOKUP($A56,Filtros!$A$5:$AY$22116,9,FALSE),0) -> 0 | L56: =IFERROR(VLOOKUP($A56,Filtros!$A$5:$AY$22116,10,FALSE),0) -> 0 | M56: =IFERROR(VLOOKUP($A56,Filtros!$A$5:$AY$22116,11,FALSE),0) -> 0 | N56: =IFERROR(VLOOKUP($A56,Filtros!$A$5:$AY$22116,12,FALSE),0) -> 1 | O56: =CJ56 & CK56 ->  | CJ56: =IF(AND(E56<>0,K56=""), "* No olvide escribir en la celda de Pueblos Originarios (Digite CERO si no tiene). ",IF(AND(F56<>0,L56=""), "* No olvide escribir en la celda de Pueblos Originarios (Digite CERO si no tiene). ","")) ->  | CK56: =IF(AND(E56<>0,M56=""), "* No olvide escribir en la celda de Población Migrantes (Digite CERO si no tiene). ",IF(AND(F56<>0,N56=""), "* No olvide escribir en la celda de Población Migrantes (Digite CERO si no tiene). ","")) ->  | DI56: =IF(AND(E56<>0,K56=""), 1,IF(AND(F56<>0,L56=""), 1,0)) -> 0 | DJ56: =IF(AND(E56<>0,M56=""), 1,IF(AND(F56<>0,N56=""), 1,0)) -> 0
C57: TOTAL | D57: 1154 | E57: 616 | F57: 538 | G57: =SUM(G55:G56) -> 224 | H57: =SUM(H55:H56) -> 174 | I57: 392 | J57: 364 | K57: 2 | L57: 3 | M57: 3 | N57: 5 | O57: =CG57 & CH57 ->  | CG57: =IF($D57>=$K57+$L57,"","* El Total de Pueblos Originarios no debe ser mayor al total de niños en control. ") ->  | CH57: =IF($D57>=$M57+$N57,"","* El Total de Pueblación Migrantes no debe ser mayor al total de niños en control. ") ->  | DF57: =IF($D57>=$K57+$L57,0,1) -> 0 | DG57: =IF($D57>=$M57+$N57,0,1) -> 0
A58: P2400260 | C58: PROMEDIO (-0,9 A + 0,9) | D58: =IFERROR(VLOOKUP($A58,Filtros!$A$5:$AY$22116,2,FALSE),0) -> 6252 | E58: =IFERROR(VLOOKUP($A58,Filtros!$A$5:$AY$22116,3,FALSE),0) -> 3236 | F58: =IFERROR(VLOOKUP($A58,Filtros!$A$5:$AY$22116,4,FALSE),0) -> 3016 | G58: =IFERROR(VLOOKUP($A58,Filtros!$A$5:$AY$22116,5,FALSE),0) -> 933 | H58: =IFERROR(VLOOKUP($A58,Filtros!$A$5:$AY$22116,6,FALSE),0) -> 923 | I58: =IFERROR(VLOOKUP($A58,Filtros!$A$5:$AY$22116,7,FALSE),0) -> 2303 | J58: =IFERROR(VLOOKUP($A58,Filtros!$A$5:$AY$22116,8,FALSE),0) -> 2093 | K58: =IFERROR(VLOOKUP($A58,Filtros!$A$5:$AY$22116,9,FALSE),0) -> 12 | L58: =IFERROR(VLOOKUP($A58,Filtros!$A$5:$AY$22116,10,FALSE),0) -> 4 | M58: =IFERROR(VLOOKUP($A58,Filtros!$A$5:$AY$22116,11,FALSE),0) -> 52 | N58: =IFERROR(VLOOKUP($A58,Filtros!$A$5:$AY$22116,12,FALSE),0) -> 36 | O58: =CJ58 & CK58 ->  | CJ58: =IF(AND(E58<>0,K58=""), "* No olvide escribir en la celda de Pueblos Originarios (Digite CERO si no tiene). ",IF(AND(F58<>0,L58=""), "* No olvide escribir en la celda de Pueblos Originarios (Digite CERO si no tiene). ","")) ->  | CK58: =IF(AND(E58<>0,M58=""), "* No olvide escribir en la celda de Población Migrantes (Digite CERO si no tiene). ",IF(AND(F58<>0,N58=""), "* No olvide escribir en la celda de Población Migrantes (Digite CERO si no tiene). ","")) ->  | DI58: =IF(AND(E58<>0,K58=""), 1,IF(AND(F58<>0,L58=""), 1,0)) -> 0 | DJ58: =IF(AND(E58<>0,M58=""), 1,IF(AND(F58<>0,N58=""), 1,0)) -> 0
A59: P2400270 | B59: INDICADOR PERIMETRO DE CINTURA / EDAD | C59: NORMAL (<p75) | D59: =IFERROR(VLOOKUP($A59,Filtros!$A$5:$AY$22116,2,FALSE),0) -> 5369 | E59: =IFERROR(VLOOKUP($A59,Filtros!$A$5:$AY$22116,3,FALSE),0) -> 2719 | F59: =IFERROR(VLOOKUP($A59,Filtros!$A$5:$AY$22116,4,FALSE),0) -> 2650 | G59: =IFERROR(VLOOKUP($A59,Filtros!$A$5:$AY$22116,5,FALSE),0) -> 814 | H59: =IFERROR(VLOOKUP($A59,Filtros!$A$5:$AY$22116,6,FALSE),0) -> 808 | I59: =IFERROR(VLOOKUP($A59,Filtros!$A$5:$AY$22116,7,FALSE),0) -> 1905 | J59: =IFERROR(VLOOKUP($A59,Filtros!$A$5:$AY$22116,8,FALSE),0) -> 1842 | K59: =IFERROR(VLOOKUP($A59,Filtros!$A$5:$AY$22116,9,FALSE),0) -> 8 | L59: =IFERROR(VLOOKUP($A59,Filtros!$A$5:$AY$22116,10,FALSE),0) -> 3 | M59: =IFERROR(VLOOKUP($A59,Filtros!$A$5:$AY$22116,11,FALSE),0) -> 13 | N59: =IFERROR(VLOOKUP($A59,Filtros!$A$5:$AY$22116,12,FALSE),0) -> 24 | O59: =CJ59 & CK59 ->  | CJ59: =IF(AND(E59<>0,K59=""), "* No olvide escribir en la celda de Pueblos Originarios (Digite CERO si no tiene). ",IF(AND(F59<>0,L59=""), "* No olvide escribir en la celda de Pueblos Originarios (Digite CERO si no tiene). ","")) ->  | CK59: =IF(AND(E59<>0,M59=""), "* No olvide escribir en la celda de Población Migrantes (Digite CERO si no tiene). ",IF(AND(F59<>0,N59=""), "* No olvide escribir en la celda de Población Migrantes (Digite CERO si no tiene). ","")) ->  | DI59: =IF(AND(E59<>0,K59=""), 1,IF(AND(F59<>0,L59=""), 1,0)) -> 0 | DJ59: =IF(AND(E59<>0,M59=""), 1,IF(AND(F59<>0,N59=""), 1,0)) -> 0
A60: P2400280 | C60: RIESGO DE OBESIDAD ABDOMINAL (75<p<90) | D60: =IFERROR(VLOOKUP($A60,Filtros!$A$5:$AY$22116,2,FALSE),0) -> 1675 | E60: =IFERROR(VLOOKUP($A60,Filtros!$A$5:$AY$22116,3,FALSE),0) -> 869 | F60: =IFERROR(VLOOKUP($A60,Filtros!$A$5:$AY$22116,4,FALSE),0) -> 806 | G60: =IFERROR(VLOOKUP($A60,Filtros!$A$5:$AY$22116,5,FALSE),0) -> 226 | H60: =IFERROR(VLOOKUP($A60,Filtros!$A$5:$AY$22116,6,FALSE),0) -> 217 | I60: =IFERROR(VLOOKUP($A60,Filtros!$A$5:$AY$22116,7,FALSE),0) -> 643 | J60: =IFERROR(VLOOKUP($A60,Filtros!$A$5:$AY$22116,8,FALSE),0) -> 589 | K60: =IFERROR(VLOOKUP($A60,Filtros!$A$5:$AY$22116,9,FALSE),0) -> 4 | L60: =IFERROR(VLOOKUP($A60,Filtros!$A$5:$AY$22116,10,FALSE),0) -> 1 | M60: =IFERROR(VLOOKUP($A60,Filtros!$A$5:$AY$22116,11,FALSE),0) -> 1 | N60: =IFERROR(VLOOKUP($A60,Filtros!$A$5:$AY$22116,12,FALSE),0) -> 1 | O60: =CJ60 & CK60 ->  | CJ60: =IF(AND(E60<>0,K60=""), "* No olvide escribir en la celda de Pueblos Originarios (Digite CERO si no tiene). ",IF(AND(F60<>0,L60=""), "* No olvide escribir en la celda de Pueblos Originarios (Digite CERO si no tiene). ","")) ->  | CK60: =IF(AND(E60<>0,M60=""), "* No olvide escribir en la celda de Población Migrantes (Digite CERO si no tiene). ",IF(AND(F60<>0,N60=""), "* No olvide escribir en la celda de Población Migrantes (Digite CERO si no tiene). ","")) ->  | DI60: =IF(AND(E60<>0,K60=""), 1,IF(AND(F60<>0,L60=""), 1,0)) -> 0 | DJ60: =IF(AND(E60<>0,M60=""), 1,IF(AND(F60<>0,N60=""), 1,0)) -> 0
A61: P2400290 | C61: OBESIDAD ABDOMINAL (>p90) | D61: =IFERROR(VLOOKUP($A61,Filtros!$A$5:$AY$22116,2,FALSE),0) -> 1866 | E61: =IFERROR(VLOOKUP($A61,Filtros!$A$5:$AY$22116,3,FALSE),0) -> 1023 | F61: =IFERROR(VLOOKUP($A61,Filtros!$A$5:$AY$22116,4,FALSE),0) -> 843 | G61: =IFERROR(VLOOKUP($A61,Filtros!$A$5:$AY$22116,5,FALSE),0) -> 240 | H61: =IFERROR(VLOOKUP($A61,Filtros!$A$5:$AY$22116,6,FALSE),0) -> 243 | I61: =IFERROR(VLOOKUP($A61,Filtros!$A$5:$AY$22116,7,FALSE),0) -> 783 | J61: =IFERROR(VLOOKUP($A61,Filtros!$A$5:$AY$22116,8,FALSE),0) -> 600 | K61: =IFERROR(VLOOKUP($A61,Filtros!$A$5:$AY$22116,9,FALSE),0) -> 8 | L61: =IFERROR(VLOOKUP($A61,Filtros!$A$5:$AY$22116,10,FALSE),0) -> 2 | M61: =IFERROR(VLOOKUP($A61,Filtros!$A$5:$AY$22116,11,FALSE),0) -> 3 | N61: =IFERROR(VLOOKUP($A61,Filtros!$A$5:$AY$22116,12,FALSE),0) -> 3 | O61: =CJ61 & CK61 ->  | CJ61: =IF(AND(E61<>0,K61=""), "* No olvide escribir en la celda de Pueblos Originarios (Digite CERO si no tiene). ",IF(AND(F61<>0,L61=""), "* No olvide escribir en la celda de Pueblos Originarios (Digite CERO si no tiene). ","")) ->  | CK61: =IF(AND(E61<>0,M61=""), "* No olvide escribir en la celda de Población Migrantes (Digite CERO si no tiene). ",IF(AND(F61<>0,N61=""), "* No olvide escribir en la celda de Población Migrantes (Digite CERO si no tiene). ","")) ->  | DI61: =IF(AND(E61<>0,K61=""), 1,IF(AND(F61<>0,L61=""), 1,0)) -> 0 | DJ61: =IF(AND(E61<>0,M61=""), 1,IF(AND(F61<>0,N61=""), 1,0)) -> 0
C62: TOTAL | D62: =+E62+F62 -> 8910 | E62: =+G62+I62 -> 4611 | F62: 4299 | G62: =SUM(G59:G61) -> 1280 | H62: =SUM(H59:H61) -> 1268 | I62: 3331 | J62: 3031 | K62: 20 | L62: 6 | M62: 17 | N62: 28 | O62: =CG62 & CH62 ->  | CG62: =IF($D62>=$K62+$L62,"","* El Total de Pueblos Originarios no debe ser mayor al total de niños en control. ") ->  | CH62: =IF($D62>=$M62+$N62,"","* El Total de Pueblación Migrantes no debe ser mayor al total de niños en control. ") ->  | DF62: =IF($D62>=$K62+$L62,0,1) -> 0 | DG62: =IF($D62>=$M62+$N62,0,1) -> 0
A63: P2400300 | B63: DIAGNOSTICO NUTRICIONAL INTEGRADO | C63: RIESGO DE DESNUTRIR/ DEFICIT PONDERAL* | D63: =IFERROR(VLOOKUP($A63,Filtros!$A$5:$AY$22116,2,FALSE),0) -> 249 | E63: =IFERROR(VLOOKUP($A63,Filtros!$A$5:$AY$22116,3,FALSE),0) -> 118 | F63: =IFERROR(VLOOKUP($A63,Filtros!$A$5:$AY$22116,4,FALSE),0) -> 131 | G63: =IFERROR(VLOOKUP($A63,Filtros!$A$5:$AY$22116,5,FALSE),0) -> 42 | H63: =IFERROR(VLOOKUP($A63,Filtros!$A$5:$AY$22116,6,FALSE),0) -> 38 | I63: =IFERROR(VLOOKUP($A63,Filtros!$A$5:$AY$22116,7,FALSE),0) -> 76 | J63: =IFERROR(VLOOKUP($A63,Filtros!$A$5:$AY$22116,8,FALSE),0) -> 93 | K63: =IFERROR(VLOOKUP($A63,Filtros!$A$5:$AY$22116,9,FALSE),0) -> 0 | L63: =IFERROR(VLOOKUP($A63,Filtros!$A$5:$AY$22116,10,FALSE),0) -> 0 | M63: =IFERROR(VLOOKUP($A63,Filtros!$A$5:$AY$22116,11,FALSE),0) -> 3 | N63: =IFERROR(VLOOKUP($A63,Filtros!$A$5:$AY$22116,12,FALSE),0) -> 5 | O63: =CJ63 & CK63 ->  | CJ63: =IF(AND(E63<>0,K63=""), "* No olvide escribir en la celda de Pueblos Originarios (Digite CERO si no tiene). ",IF(AND(F63<>0,L63=""), "* No olvide escribir en la celda de Pueblos Originarios (Digite CERO si no tiene). ","")) ->  | CK63: =IF(AND(E63<>0,M63=""), "* No olvide escribir en la celda de Población Migrantes (Digite CERO si no tiene). ",IF(AND(F63<>0,N63=""), "* No olvide escribir en la celda de Población Migrantes (Digite CERO si no tiene). ","")) ->  | DI63: =IF(AND(E63<>0,K63=""), 1,IF(AND(F63<>0,L63=""), 1,0)) -> 0 | DJ63: =IF(AND(E63<>0,M63=""), 1,IF(AND(F63<>0,N63=""), 1,0)) -> 0
A64: P2400310 | C64: DESNUTRIDO | D64: =IFERROR(VLOOKUP($A64,Filtros!$A$5:$AY$22116,2,FALSE),0) -> 30 | E64: =IFERROR(VLOOKUP($A64,Filtros!$A$5:$AY$22116,3,FALSE),0) -> 16 | F64: =IFERROR(VLOOKUP($A64,Filtros!$A$5:$AY$22116,4,FALSE),0) -> 14 | G64: =IFERROR(VLOOKUP($A64,Filtros!$A$5:$AY$22116,5,FALSE),0) -> 4 | H64: =IFERROR(VLOOKUP($A64,Filtros!$A$5:$AY$22116,6,FALSE),0) -> 4 | I64: =IFERROR(VLOOKUP($A64,Filtros!$A$5:$AY$22116,7,FALSE),0) -> 12 | J64: =IFERROR(VLOOKUP($A64,Filtros!$A$5:$AY$22116,8,FALSE),0) -> 10 | K64: =IFERROR(VLOOKUP($A64,Filtros!$A$5:$AY$22116,9,FALSE),0) -> 0 | L64: =IFERROR(VLOOKUP($A64,Filtros!$A$5:$AY$22116,10,FALSE),0) -> 0 | M64: =IFERROR(VLOOKUP($A64,Filtros!$A$5:$AY$22116,11,FALSE),0) -> 0 | N64: =IFERROR(VLOOKUP($A64,Filtros!$A$5:$AY$22116,12,FALSE),0) -> 0 | DI64: 0 | DJ64: 0
A65: P2400320 | C65: SOBREPESO / RIESGO OBESIDAD | D65: =IFERROR(VLOOKUP($A65,Filtros!$A$5:$AY$22116,2,FALSE),0) -> 2894 | E65: =IFERROR(VLOOKUP($A65,Filtros!$A$5:$AY$22116,3,FALSE),0) -> 1411 | F65: =IFERROR(VLOOKUP($A65,Filtros!$A$5:$AY$22116,4,FALSE),0) -> 1483 | G65: =IFERROR(VLOOKUP($A65,Filtros!$A$5:$AY$22116,5,FALSE),0) -> 462 | H65: =IFERROR(VLOOKUP($A65,Filtros!$A$5:$AY$22116,6,FALSE),0) -> 445 | I65: =IFERROR(VLOOKUP($A65,Filtros!$A$5:$AY$22116,7,FALSE),0) -> 949 | J65: =IFERROR(VLOOKUP($A65,Filtros!$A$5:$AY$22116,8,FALSE),0) -> 1038 | K65: =IFERROR(VLOOKUP($A65,Filtros!$A$5:$AY$22116,9,FALSE),0) -> 4 | L65: =IFERROR(VLOOKUP($A65,Filtros!$A$5:$AY$22116,10,FALSE),0) -> 4 | M65: =IFERROR(VLOOKUP($A65,Filtros!$A$5:$AY$22116,11,FALSE),0) -> 15 | N65: =IFERROR(VLOOKUP($A65,Filtros!$A$5:$AY$22116,12,FALSE),0) -> 15 | DI65: 0 | DJ65: 0
A66: P2400330 | C66: OBESO | D66: =IFERROR(VLOOKUP($A66,Filtros!$A$5:$AY$22116,2,FALSE),0) -> 2435 | E66: =IFERROR(VLOOKUP($A66,Filtros!$A$5:$AY$22116,3,FALSE),0) -> 1207 | F66: =IFERROR(VLOOKUP($A66,Filtros!$A$5:$AY$22116,4,FALSE),0) -> 1228 | G66: =IFERROR(VLOOKUP($A66,Filtros!$A$5:$AY$22116,5,FALSE),0) -> 355 | H66: =IFERROR(VLOOKUP($A66,Filtros!$A$5:$AY$22116,6,FALSE),0) -> 363 | I66: =IFERROR(VLOOKUP($A66,Filtros!$A$5:$AY$22116,7,FALSE),0) -> 852 | J66: =IFERROR(VLOOKUP($A66,Filtros!$A$5:$AY$22116,8,FALSE),0) -> 865 | K66: =IFERROR(VLOOKUP($A66,Filtros!$A$5:$AY$22116,9,FALSE),0) -> 5 | L66: =IFERROR(VLOOKUP($A66,Filtros!$A$5:$AY$22116,10,FALSE),0) -> 3 | M66: =IFERROR(VLOOKUP($A66,Filtros!$A$5:$AY$22116,11,FALSE),0) -> 8 | N66: =IFERROR(VLOOKUP($A66,Filtros!$A$5:$AY$22116,12,FALSE),0) -> 10 | DI66: 0 | DJ66: 0
A67: P2400340 | C67: OBESO SEVERO | D67: =IFERROR(VLOOKUP($A67,Filtros!$A$5:$AY$22116,2,FALSE),0) -> 965 | E67: =IFERROR(VLOOKUP($A67,Filtros!$A$5:$AY$22116,3,FALSE),0) -> 634 | F67: =IFERROR(VLOOKUP($A67,Filtros!$A$5:$AY$22116,4,FALSE),0) -> 331 | G67: =IFERROR(VLOOKUP($A67,Filtros!$A$5:$AY$22116,5,FALSE),0) -> 119 | H67: =IFERROR(VLOOKUP($A67,Filtros!$A$5:$AY$22116,6,FALSE),0) -> 71 | I67: =IFERROR(VLOOKUP($A67,Filtros!$A$5:$AY$22116,7,FALSE),0) -> 515 | J67: =IFERROR(VLOOKUP($A67,Filtros!$A$5:$AY$22116,8,FALSE),0) -> 260 | K67: =IFERROR(VLOOKUP($A67,Filtros!$A$5:$AY$22116,9,FALSE),0) -> 6 | L67: =IFERROR(VLOOKUP($A67,Filtros!$A$5:$AY$22116,10,FALSE),0) -> 0 | M67: =IFERROR(VLOOKUP($A67,Filtros!$A$5:$AY$22116,11,FALSE),0) -> 2 | N67: =IFERROR(VLOOKUP($A67,Filtros!$A$5:$AY$22116,12,FALSE),0) -> 4 | DI67: 0 | DJ67: 0
A68: P2400350 | C68: NORMAL | D68: =IFERROR(VLOOKUP($A68,Filtros!$A$5:$AY$22116,2,FALSE),0) -> 6722 | E68: =IFERROR(VLOOKUP($A68,Filtros!$A$5:$AY$22116,3,FALSE),0) -> 3469 | F68: =IFERROR(VLOOKUP($A68,Filtros!$A$5:$AY$22116,4,FALSE),0) -> 3253 | G68: =IFERROR(VLOOKUP($A68,Filtros!$A$5:$AY$22116,5,FALSE),0) -> 1160 | H68: =IFERROR(VLOOKUP($A68,Filtros!$A$5:$AY$22116,6,FALSE),0) -> 1060 | I68: =IFERROR(VLOOKUP($A68,Filtros!$A$5:$AY$22116,7,FALSE),0) -> 2309 | J68: =IFERROR(VLOOKUP($A68,Filtros!$A$5:$AY$22116,8,FALSE),0) -> 2193 | K68: =IFERROR(VLOOKUP($A68,Filtros!$A$5:$AY$22116,9,FALSE),0) -> 16 | L68: =IFERROR(VLOOKUP($A68,Filtros!$A$5:$AY$22116,10,FALSE),0) -> 7 | M68: =IFERROR(VLOOKUP($A68,Filtros!$A$5:$AY$22116,11,FALSE),0) -> 88 | N68: =IFERROR(VLOOKUP($A68,Filtros!$A$5:$AY$22116,12,FALSE),0) -> 67 | DI68: 0 | DJ68: 0
C69: SUBTOTAL | D69: =+E69+F69 -> 13295 | E69: 6855 | F69: 6440 | G69: =SUM(G63:G68) -> 2142 | H69: =SUM(H63:H68) -> 1981 | I69: 4713 | J69: 4459 | K69: 31 | L69: 14 | M69: 116 | N69: 101 | O69: =CG69 & CH69 ->  | CG69: =IF($D69>=$K69+$L69,"","* El Total de Pueblos Originarios no debe ser mayor al total de niños en control. ") ->  | CH69: =IF($D69>=$M69+$N69,"","* El Total de Pueblación Migrantes no debe ser mayor al total de niños en control. ") ->  | DF69: =IF($D69>=$K69+$L69,0,1) -> 0 | DG69: =IF($D69>=$M69+$N69,0,1) -> 0
A70: P2400360 | C70: DESNUTRICIÓN SECUNDARIA | D70: =IFERROR(VLOOKUP($A70,Filtros!$A$5:$AY$22116,2,FALSE),0) -> 4 | E70: =IFERROR(VLOOKUP($A70,Filtros!$A$5:$AY$22116,3,FALSE),0) -> 4 | F70: =IFERROR(VLOOKUP($A70,Filtros!$A$5:$AY$22116,4,FALSE),0) -> 0 | G70: =IFERROR(VLOOKUP($A70,Filtros!$A$5:$AY$22116,5,FALSE),0) -> 1 | H70: =IFERROR(VLOOKUP($A70,Filtros!$A$5:$AY$22116,6,FALSE),0) -> 0 | I70: =IFERROR(VLOOKUP($A70,Filtros!$A$5:$AY$22116,7,FALSE),0) -> 3 | J70: =IFERROR(VLOOKUP($A70,Filtros!$A$5:$AY$22116,8,FALSE),0) -> 0 | K70: =IFERROR(VLOOKUP($A70,Filtros!$A$5:$AY$22116,9,FALSE),0) -> 0 | L70: =IFERROR(VLOOKUP($A70,Filtros!$A$5:$AY$22116,10,FALSE),0) -> 0 | M70: =IFERROR(VLOOKUP($A70,Filtros!$A$5:$AY$22116,11,FALSE),0) -> 0 | N70: =IFERROR(VLOOKUP($A70,Filtros!$A$5:$AY$22116,12,FALSE),0) -> 0 | O70: =CJ70 & CK70 ->  | CJ70: =IF(AND(E70<>0,K70=""), "* No olvide escribir en la celda de Pueblos Originarios (Digite CERO si no tiene). ",IF(AND(F70<>0,L70=""), "* No olvide escribir en la celda de Pueblos Originarios (Digite CERO si no tiene). ","")) ->  | CK70: =IF(AND(E70<>0,M70=""), "* No olvide escribir en la celda de Población Migrantes (Digite CERO si no tiene). ",IF(AND(F70<>0,N70=""), "* No olvide escribir en la celda de Población Migrantes (Digite CERO si no tiene). ","")) ->  | DI70: =IF(AND(E70<>0,K70=""), 1,IF(AND(F70<>0,L70=""), 1,0)) -> 0 | DJ70: =IF(AND(E70<>0,M70=""), 1,IF(AND(F70<>0,N70=""), 1,0)) -> 0
C71: T O T A L | D71: =SUM(D63:D68)+D70 -> 13299 | E71: 6859 | F71: 6440 | G71: 2143 | H71: 1981 | I71: 4716 | J71: 4459 | K71: 31 | L71: 14 | M71: 116 | N71: 101 | O71: =CG71 & CH71 ->  | CG71: =IF($D71>=$K71+$L71,"","* El Total de Pueblos Originarios no debe ser mayor al total de niños en control. ") ->  | CH71: =IF($D71>=$M71+$N71,"","* El Total de Pueblación Migrantes no debe ser mayor al total de niños en control. ") ->  | DF71: =IF($D71>=$K71+$L71,0,1) -> 0 | DG71: =IF($D71>=$M71+$N71,0,1) -> 0
B72: NOTA(*): El Diagnóstico Nutricional Integrado de Déficit para los niños (as) 5 años y más denomina Déficit Ponderal al Riesgo de Desnutrir.
B73: SECCION B: POBLACION EN CONTROL SEGÚN RESULTADO DE EVALUACIÓN DEL DESARROLLO PSICOMOTOR
B74: RESULTADO Y GRUPOS DE EDAD | D74: TOTAL | E74: Hombres | F74: Mujeres
A75: P2100200 | B75: RIESGO | C75: Menor de 12 meses | D75: =IFERROR(VLOOKUP($A75,Filtros!$A$5:$AY$22116,2,FALSE),0) -> 87 | E75: =IFERROR(VLOOKUP($A75,Filtros!$A$5:$AY$22116,3,FALSE),0) -> 56 | F75: =IFERROR(VLOOKUP($A75,Filtros!$A$5:$AY$22116,4,FALSE),0) -> 31 | G75: =CG75 & CH75 ->  | CG75: =IF($G11+$I11+$K11+$M11+$O11+$Q11+$S11+$U11<$E75+$E80,"* La suma de Población Masculina Menor de 12 meses según resultado de 'Riesgo y Retraso' no puede ser mayor que la Población Masculina bajo control de la sección A. ","") ->  | CH75: =IF($H11+$J11+$L11+$N11+$P11+$R11+$T11+$V11<$F75+$F80,"* La suma de Población Femenina de Menor de 12 meses según resultado de 'Riesgo y Retraso' no puede ser mayor que la Población Femenina bajo control de la sección A. ","") ->  | DF75: =IF($G11+$I11+$K11+$M11+$O11+$Q11+$S11+$U11<$E75+$E80,1,0) -> 0 | DG75: =IF($H11+$J11+$L11+$N11+$P11+$R11+$T11+$V11<$F75+$F80,1,0) -> 0
A76: P2300100 | C76: 12 a 17 meses | D76: =IFERROR(VLOOKUP($A76,Filtros!$A$5:$AY$22116,2,FALSE),0) -> 36 | E76: =IFERROR(VLOOKUP($A76,Filtros!$A$5:$AY$22116,3,FALSE),0) -> 19 | F76: =IFERROR(VLOOKUP($A76,Filtros!$A$5:$AY$22116,4,FALSE),0) -> 17 | G76: =CG76 & CH76 ->  | CG76: =IF($W$11<$E$76+$E$81,"* La suma de Población Masculina de 12 a 17 meses según resultado de 'Riesgo y Retraso' no puede ser mayor que la Población Masculina bajo control de la sección A. ","") ->  | CH76: =IF($X$11<$F$76+$F$81,"* La suma de Población Femenina de 12 a 17 meses según resultado de 'Riesgo y Retraso' no puede ser mayor que la Población Femenina bajo control de la sección A. ","") ->  | DF76: =IF($W$11<$E$76+$E$81,1,0) -> 0 | DG76: =IF($X$11<$F$76+$F$81,1,0) -> 0
A77: P2300200 | C77: 18 a 23 meses | D77: =IFERROR(VLOOKUP($A77,Filtros!$A$5:$AY$22116,2,FALSE),0) -> 236 | E77: =IFERROR(VLOOKUP($A77,Filtros!$A$5:$AY$22116,3,FALSE),0) -> 135 | F77: =IFERROR(VLOOKUP($A77,Filtros!$A$5:$AY$22116,4,FALSE),0) -> 101 | G77: =CG77 & CH77 ->  | CG77: =IF($Y$11<$E$77+$E$82,"* La suma de Población Masculina de 18 a 23 meses según resultado de 'Riesgo y Retraso' no puede ser mayor que la Población Masculina bajo control de la sección A. ","") ->  | CH77: =IF($Z$11<$F$77+$F$82,"* La suma de Población Femenina de 18 a 23 meses según resultado de 'Riesgo y Retraso' no puede ser mayor que la Población Femenina bajo control de la sección A. ","") ->  | DF77: =IF($Y$11<$E$77+$E$82,1,0) -> 0 | DG77: =IF($Z$11<$F$77+$F$82,1,0) -> 0
A78: P2100400 | C78: 24 a 47 meses | D78: =IFERROR(VLOOKUP($A78,Filtros!$A$5:$AY$22116,2,FALSE),0) -> 234 | E78: =IFERROR(VLOOKUP($A78,Filtros!$A$5:$AY$22116,3,FALSE),0) -> 175 | F78: =IFERROR(VLOOKUP($A78,Filtros!$A$5:$AY$22116,4,FALSE),0) -> 59 | G78: =CG78 & CH78 ->  | CG78: =IF($AA11+$AE11+$AC11<$E78+$E83,"* La suma de Población Masculina de 24 a 47 meses según resultado de 'Riesgo y Retraso' no puede ser mayor que la Población Masculina bajo control de la sección A. ","") ->  | CH78: =IF($AB11+$AF11+$AD11<$F78+$F83,"* La suma de Población Femenina de 24 a 47 meses según resultado de 'Riesgo y Retraso' no puede ser mayor que la Población Femenina bajo control de la sección A. ","") ->  | DF78: =IF($AA11+$AE11+$AC11<$E78+$E83,1,0) -> 0 | DG78: =IF($AB11+$AF11+$AD11<$F78+$F83,1,0) -> 0
A79: P2100500 | C79: 48 a 59 meses | D79: =IFERROR(VLOOKUP($A79,Filtros!$A$5:$AY$22116,2,FALSE),0) -> 16 | E79: =IFERROR(VLOOKUP($A79,Filtros!$A$5:$AY$22116,3,FALSE),0) -> 14 | F79: =IFERROR(VLOOKUP($A79,Filtros!$A$5:$AY$22116,4,FALSE),0) -> 2 | G79: =CG79 & CH79 ->  | CG79: =IF($AG$11<$E$79+$E$84,"* La suma de Población Masculina de 48 a 59 meses según resultado de 'Riesgo y Retraso' no puede ser mayor que la Población Masculina bajo control de la sección A. ","") ->  | CH79: =IF($AH$11<$F$79+$F$84,"* La suma de Población Femenina de 48 a 59 meses según resultado de 'Riesgo y Retraso' no puede ser mayor que la Población Femenina bajo control de la sección A. ","") ->  | DF79: =IF($AG$11<$E$79+$E$84,1,0) -> 0 | DG79: =IF($AH$11<$F$79+$F$84,1,0) -> 0
A80: P2100600 | B80: RETRASO | C80: Menor de 12 meses | D80: =IFERROR(VLOOKUP($A80,Filtros!$A$5:$AY$22116,2,FALSE),0) -> 21 | E80: =IFERROR(VLOOKUP($A80,Filtros!$A$5:$AY$22116,3,FALSE),0) -> 13 | F80: =IFERROR(VLOOKUP($A80,Filtros!$A$5:$AY$22116,4,FALSE),0) -> 8
A81: P2300300 | C81: 12 a 17 meses | D81: =IFERROR(VLOOKUP($A81,Filtros!$A$5:$AY$22116,2,FALSE),0) -> 13 | E81: =IFERROR(VLOOKUP($A81,Filtros!$A$5:$AY$22116,3,FALSE),0) -> 8 | F81: =IFERROR(VLOOKUP($A81,Filtros!$A$5:$AY$22116,4,FALSE),0) -> 5
A82: P2300400 | C82: 18 a 23 meses | D82: =IFERROR(VLOOKUP($A82,Filtros!$A$5:$AY$22116,2,FALSE),0) -> 86 | E82: =IFERROR(VLOOKUP($A82,Filtros!$A$5:$AY$22116,3,FALSE),0) -> 55 | F82: =IFERROR(VLOOKUP($A82,Filtros!$A$5:$AY$22116,4,FALSE),0) -> 31
A83: P2200900 | C83: 24 a 47 meses | D83: =IFERROR(VLOOKUP($A83,Filtros!$A$5:$AY$22116,2,FALSE),0) -> 79 | E83: =IFERROR(VLOOKUP($A83,Filtros!$A$5:$AY$22116,3,FALSE),0) -> 53 | F83: =IFERROR(VLOOKUP($A83,Filtros!$A$5:$AY$22116,4,FALSE),0) -> 26
A84: P2300000 | C84: 48 a 59 meses | D84: =IFERROR(VLOOKUP($A84,Filtros!$A$5:$AY$22116,2,FALSE),0) -> 12 | E84: =IFERROR(VLOOKUP($A84,Filtros!$A$5:$AY$22116,3,FALSE),0) -> 10 | F84: =IFERROR(VLOOKUP($A84,Filtros!$A$5:$AY$22116,4,FALSE),0) -> 2
B85: SECCION C: POBLACIÓN MENOR DE 1 AÑO EN CONTROL, SEGÚN SCORE RIESGO EN IRA Y VISITA DOMICILIARIA INTEGRAL
B86: RESULTADO | D86: TOTAL | E86: Diada, menor de 10 días | F86: 1 mes | G86: 2 meses | H86: 3 meses | I86: 4 meses | J86: 5 meses | K86: 6 meses | L86: 7 a 12 meses | M86: Total de Niños y Niñas que han recibido VDI
A88: P2090300 | B88: SCORE DE RIESGO | C88: LEVE | D88: =IFERROR(VLOOKUP($A88,Filtros!$A$5:$AY$22116,2,FALSE),0) -> 6078 | E88: =IFERROR(VLOOKUP($A88,Filtros!$A$5:$AY$22116,3,FALSE),0) -> 398 | F88: =IFERROR(VLOOKUP($A88,Filtros!$A$5:$AY$22116,4,FALSE),0) -> 657 | G88: =IFERROR(VLOOKUP($A88,Filtros!$A$5:$AY$22116,5,FALSE),0) -> 743 | H88: =IFERROR(VLOOKUP($A88,Filtros!$A$5:$AY$22116,6,FALSE),0) -> 473 | I88: =IFERROR(VLOOKUP($A88,Filtros!$A$5:$AY$22116,7,FALSE),0) -> 667 | J88: =IFERROR(VLOOKUP($A88,Filtros!$A$5:$AY$22116,8,FALSE),0) -> 522 | K88: =IFERROR(VLOOKUP($A88,Filtros!$A$5:$AY$22116,9,FALSE),0) -> 723 | L88: =IFERROR(VLOOKUP($A88,Filtros!$A$5:$AY$22116,10,FALSE),0) -> 1895 | M88: =IFERROR(VLOOKUP($A88,Filtros!$A$5:$AY$22116,11,FALSE),0) -> 0
A89: P2090400 | C89: MODERADO | D89: =IFERROR(VLOOKUP($A89,Filtros!$A$5:$AY$22116,2,FALSE),0) -> 876 | E89: =IFERROR(VLOOKUP($A89,Filtros!$A$5:$AY$22116,3,FALSE),0) -> 24 | F89: =IFERROR(VLOOKUP($A89,Filtros!$A$5:$AY$22116,4,FALSE),0) -> 63 | G89: =IFERROR(VLOOKUP($A89,Filtros!$A$5:$AY$22116,5,FALSE),0) -> 91 | H89: =IFERROR(VLOOKUP($A89,Filtros!$A$5:$AY$22116,6,FALSE),0) -> 65 | I89: =IFERROR(VLOOKUP($A89,Filtros!$A$5:$AY$22116,7,FALSE),0) -> 103 | J89: =IFERROR(VLOOKUP($A89,Filtros!$A$5:$AY$22116,8,FALSE),0) -> 72 | K89: =IFERROR(VLOOKUP($A89,Filtros!$A$5:$AY$22116,9,FALSE),0) -> 111 | L89: =IFERROR(VLOOKUP($A89,Filtros!$A$5:$AY$22116,10,FALSE),0) -> 347 | M89: =IFERROR(VLOOKUP($A89,Filtros!$A$5:$AY$22116,11,FALSE),0) -> 175 | N89: =CH89 ->  | CH89: =IF($D89<$M89, "* Niños visitados no puede ser mayor que el total Score Moderado. ","") ->  | DF89: =IF($D89<$M89, 1,0) -> 0
A90: P2100100 | C90: GRAVE | D90: =IFERROR(VLOOKUP($A90,Filtros!$A$5:$AY$22116,2,FALSE),0) -> 338 | E90: =IFERROR(VLOOKUP($A90,Filtros!$A$5:$AY$22116,3,FALSE),0) -> 3 | F90: =IFERROR(VLOOKUP($A90,Filtros!$A$5:$AY$22116,4,FALSE),0) -> 27 | G90: =IFERROR(VLOOKUP($A90,Filtros!$A$5:$AY$22116,5,FALSE),0) -> 44 | H90: =IFERROR(VLOOKUP($A90,Filtros!$A$5:$AY$22116,6,FALSE),0) -> 28 | I90: =IFERROR(VLOOKUP($A90,Filtros!$A$5:$AY$22116,7,FALSE),0) -> 39 | J90: =IFERROR(VLOOKUP($A90,Filtros!$A$5:$AY$22116,8,FALSE),0) -> 38 | K90: =IFERROR(VLOOKUP($A90,Filtros!$A$5:$AY$22116,9,FALSE),0) -> 46 | L90: =IFERROR(VLOOKUP($A90,Filtros!$A$5:$AY$22116,10,FALSE),0) -> 113 | M90: =IFERROR(VLOOKUP($A90,Filtros!$A$5:$AY$22116,11,FALSE),0) -> 103 | N90: =CH90 ->  | CH90: =IF($D90<$M90, "* Niños visitados no puede ser mayor que el total Score Grave. ","") ->  | DF90: =IF($D90<$M90,1,0) -> 0
C91: TOTAL | D91: =SUM(E91:K91) -> 4937 | E91: =SUM(E88:E90) -> 425 | F91: 747 | G91: 878 | H91: 566 | I91: 809 | J91: 632 | K91: 880 | L91: =SUM(L88:L90) -> 2355 | M91: =SUM(M89:M90) -> 278
B92: SECCION D: POBLACIÓN EN CONTROL EN EL SEMESTRE CON CONSULTA NUTRICIONAL, SEGÚN ESTRATEGIA
B93: NIÑO/A CON CONSULTA NUTRICIONAL EN | D93: TOTAL
A95: P2200700 | B95: Del 5to mes | D95: =IFERROR(VLOOKUP($A95,Filtros!$A$5:$AY$22116,2,FALSE),0) -> 1957
A96: P2200800 | B96: De los 3 años y 6 meses | D96: =IFERROR(VLOOKUP($A96,Filtros!$A$5:$AY$22116,2,FALSE),0) -> 1081
B97: SECCION E: POBLACIÓN INASISTENTE A CONTROL DEL NIÑO SANO (AL CORTE)
B98: EDAD | D98: TOTAL
A100: P2300410 | B100: Menor de 6 meses | D100: =IFERROR(VLOOKUP($A100,Filtros!$A$5:$AY$22116,2,FALSE),0) -> 369
A101: P2300420 | B101: De 6 a 11 meses | D101: =IFERROR(VLOOKUP($A101,Filtros!$A$5:$AY$22116,2,FALSE),0) -> 509
A102: P2300460 | B102: 12 - 17 meses | D102: =IFERROR(VLOOKUP($A102,Filtros!$A$5:$AY$22116,2,FALSE),0) -> 602
A103: P2300470 | B103: 18 - 23 meses | D103: =IFERROR(VLOOKUP($A103,Filtros!$A$5:$AY$22116,2,FALSE),0) -> 700
A104: P2300480 | B104: 24 - 35 meses | D104: =IFERROR(VLOOKUP($A104,Filtros!$A$5:$AY$22116,2,FALSE),0) -> 2028
A105: P2300490 | B105: 36 - 47 meses | D105: =IFERROR(VLOOKUP($A105,Filtros!$A$5:$AY$22116,2,FALSE),0) -> 2118
A106: P2300500 | B106: 48 - 59 meses | D106: =IFERROR(VLOOKUP($A106,Filtros!$A$5:$AY$22116,2,FALSE),0) -> 2514
A107: P2300510 | B107: 60 - 71 meses | D107: =IFERROR(VLOOKUP($A107,Filtros!$A$5:$AY$22116,2,FALSE),0) -> 2900
A108: P2300520 | B108: De 6 a 9 años | D108: =IFERROR(VLOOKUP($A108,Filtros!$A$5:$AY$22116,2,FALSE),0) -> 10895
B109: TOTAL | D109: =SUM(D100:D108) -> 22635
B110: SECCION F: POBLACIÓN INFANTIL SEGÚN DIAGNÓSTICO DE PRESIÓN ARTERIAL (Incluida en sección A y A1)
B111: CLASIFICACIÓN | D111: Total | G111: GRUPOS DE EDAD (en meses) | M111: Derivación Nivel Secundario
G112: 36 a 47 meses | I112: 48 a 71 meses | K112: 6-9 años
D113: Total | E113: Hombres | F113: Mujeres | G113: Hombres | H113: Mujeres | I113: Hombres | J113: Mujeres | K113: Hombres | L113: Mujeres
A114: P2300530 | B114: NORMAL (PA menor al percentil 90) | D114: =IFERROR(VLOOKUP($A114,Filtros!$A$5:$AY$22116,2,FALSE),0) -> 7524 | E114: =IFERROR(VLOOKUP($A114,Filtros!$A$5:$AY$22116,3,FALSE),0) -> 3743 | F114: =IFERROR(VLOOKUP($A114,Filtros!$A$5:$AY$22116,4,FALSE),0) -> 3781 | G114: =IFERROR(VLOOKUP($A114,Filtros!$A$5:$AY$22116,5,FALSE),0) -> 490 | H114: =IFERROR(VLOOKUP($A114,Filtros!$A$5:$AY$22116,6,FALSE),0) -> 490 | I114: =IFERROR(VLOOKUP($A114,Filtros!$A$5:$AY$22116,7,FALSE),0) -> 1248 | J114: =IFERROR(VLOOKUP($A114,Filtros!$A$5:$AY$22116,8,FALSE),0) -> 1307 | K114: =IFERROR(VLOOKUP($A114,Filtros!$A$5:$AY$22116,9,FALSE),0) -> 2005 | L114: =IFERROR(VLOOKUP($A114,Filtros!$A$5:$AY$22116,10,FALSE),0) -> 1984 | M114: =IFERROR(VLOOKUP($A114,Filtros!$A$5:$AY$22116,11,FALSE),0) -> 1 | CO114: =IF($G114<=SUM($AC$11:$AF$11),"","* Niños(as) de 36 a 47 ms clasificados debe ser menor o igual al Total de la población de niños bajo control de en sección A misma edad. ") ->  | CP114: =IF($J114<=SUM($AG$11:$AH$11,$G$43:$H$43),"","* Niños(as) de 48 a 71 meses clasificados debe ser menor o igual al Total de la población de niños bajo control de en sección A y A1 de la misma edad. ") ->  | CQ114: =IF($L114<=SUM($I$43:$J$43),"","* Niños(as) de 6 a 9 años clasificados debe ser menor o igual al Total de la población de niños bajo control de en sección A1 misma edad ") ->  | DK114: =IF($G114<=SUM($AC$11:$AF$11),0,1) -> 0 | DL114: =IF($J114<=SUM($AG$11:$AH$11,$G$43:$H$43),0,1) -> 0 | DM114: =IF($L114<=SUM($I$43:$J$43),0,1) -> 0
A115: P2300540 | B115: PRESIÓN ARTERIAL ELEVADA | D115: =IFERROR(VLOOKUP($A115,Filtros!$A$5:$AY$22116,2,FALSE),0) -> 454 | E115: =IFERROR(VLOOKUP($A115,Filtros!$A$5:$AY$22116,3,FALSE),0) -> 240 | F115: =IFERROR(VLOOKUP($A115,Filtros!$A$5:$AY$22116,4,FALSE),0) -> 214 | G115: =IFERROR(VLOOKUP($A115,Filtros!$A$5:$AY$22116,5,FALSE),0) -> 25 | H115: =IFERROR(VLOOKUP($A115,Filtros!$A$5:$AY$22116,6,FALSE),0) -> 24 | I115: =IFERROR(VLOOKUP($A115,Filtros!$A$5:$AY$22116,7,FALSE),0) -> 74 | J115: =IFERROR(VLOOKUP($A115,Filtros!$A$5:$AY$22116,8,FALSE),0) -> 74 | K115: =IFERROR(VLOOKUP($A115,Filtros!$A$5:$AY$22116,9,FALSE),0) -> 141 | L115: =IFERROR(VLOOKUP($A115,Filtros!$A$5:$AY$22116,10,FALSE),0) -> 116 | M115: =IFERROR(VLOOKUP($A115,Filtros!$A$5:$AY$22116,11,FALSE),0) -> 0 | CO115: =IF($G115<=SUM($AC$11:$AF$11),"","* Niños(as) de 36 a 47 ms clasificados debe ser menor o igual al Total de la población de niños bajo control de en sección A misma edad. ") ->  | CP115: =IF($J115<=SUM($AG$11:$AH$11,$G$43:$H$43),"","* Niños(as) de 48 a 71 meses clasificados debe ser menor o igual al Total de la población de niños bajo control de en sección A y A1 de la misma edad. ") ->  | CQ115: =IF($L115<=SUM($I$43:$J$43),"","* Niños(as) de 6 a 9 años clasificados debe ser menor o igual al Total de la población de niños bajo control de en sección A1 misma edad ") ->  | DK115: =IF($G115<=SUM($AC$11:$AF$11),0,1) -> 0 | DL115: =IF($J115<=SUM($AG$11:$AH$11,$G$43:$H$43),0,1) -> 0 | DM115: =IF($L115<=SUM($I$43:$J$43),0,1) -> 0
A116: P2300550 | B116: HTA ESTADIO I | D116: =IFERROR(VLOOKUP($A116,Filtros!$A$5:$AY$22116,2,FALSE),0) -> 162 | E116: =IFERROR(VLOOKUP($A116,Filtros!$A$5:$AY$22116,3,FALSE),0) -> 80 | F116: =IFERROR(VLOOKUP($A116,Filtros!$A$5:$AY$22116,4,FALSE),0) -> 82 | G116: =IFERROR(VLOOKUP($A116,Filtros!$A$5:$AY$22116,5,FALSE),0) -> 9 | H116: =IFERROR(VLOOKUP($A116,Filtros!$A$5:$AY$22116,6,FALSE),0) -> 12 | I116: =IFERROR(VLOOKUP($A116,Filtros!$A$5:$AY$22116,7,FALSE),0) -> 23 | J116: =IFERROR(VLOOKUP($A116,Filtros!$A$5:$AY$22116,8,FALSE),0) -> 27 | K116: =IFERROR(VLOOKUP($A116,Filtros!$A$5:$AY$22116,9,FALSE),0) -> 48 | L116: =IFERROR(VLOOKUP($A116,Filtros!$A$5:$AY$22116,10,FALSE),0) -> 43 | M116: =IFERROR(VLOOKUP($A116,Filtros!$A$5:$AY$22116,11,FALSE),0) -> 3 | CO116: =IF($G116<=SUM($AC$11:$AF$11),"","* Niños(as) de 36 a 47 ms clasificados debe ser menor o igual al Total de la población de niños bajo control de en sección A misma edad. ") ->  | CP116: =IF($J116<=SUM($AG$11:$AH$11,$G$43:$H$43),"","* Niños(as) de 48 a 71 meses clasificados debe ser menor o igual al Total de la población de niños bajo control de en sección A y A1 de la misma edad. ") ->  | CQ116: =IF($L116<=SUM($I$43:$J$43),"","* Niños(as) de 6 a 9 años clasificados debe ser menor o igual al Total de la población de niños bajo control de en sección A1 misma edad ") ->  | DK116: =IF($G116<=SUM($AC$11:$AF$11),0,1) -> 0 | DL116: =IF($J116<=SUM($AG$11:$AH$11,$G$43:$H$43),0,1) -> 0 | DM116: =IF($L116<=SUM($I$43:$J$43),0,1) -> 0
A117: P2300560 | B117: HTA ESTADIO II | D117: =IFERROR(VLOOKUP($A117,Filtros!$A$5:$AY$22116,2,FALSE),0) -> 51 | E117: =IFERROR(VLOOKUP($A117,Filtros!$A$5:$AY$22116,3,FALSE),0) -> 23 | F117: =IFERROR(VLOOKUP($A117,Filtros!$A$5:$AY$22116,4,FALSE),0) -> 28 | G117: =IFERROR(VLOOKUP($A117,Filtros!$A$5:$AY$22116,5,FALSE),0) -> 1 | H117: =IFERROR(VLOOKUP($A117,Filtros!$A$5:$AY$22116,6,FALSE),0) -> 4 | I117: =IFERROR(VLOOKUP($A117,Filtros!$A$5:$AY$22116,7,FALSE),0) -> 6 | J117: =IFERROR(VLOOKUP($A117,Filtros!$A$5:$AY$22116,8,FALSE),0) -> 7 | K117: =IFERROR(VLOOKUP($A117,Filtros!$A$5:$AY$22116,9,FALSE),0) -> 16 | L117: =IFERROR(VLOOKUP($A117,Filtros!$A$5:$AY$22116,10,FALSE),0) -> 17 | M117: =IFERROR(VLOOKUP($A117,Filtros!$A$5:$AY$22116,11,FALSE),0) -> 4 | CO117: =IF($G117<=SUM($AC$11:$AF$11),"","* Niños(as) de 36 a 47 ms clasificados debe ser menor o igual al Total de la población de niños bajo control de en sección A misma edad. ") ->  | CP117: =IF($J117<=SUM($AG$11:$AH$11,$G$43:$H$43),"","* Niños(as) de 48 a 71 meses clasificados debe ser menor o igual al Total de la población de niños bajo control de en sección A y A1 de la misma edad. ") ->  | CQ117: =IF($L117<=SUM($I$43:$J$43),"","* Niños(as) de 6 a 9 años clasificados debe ser menor o igual al Total de la población de niños bajo control de en sección A1 misma edad ") ->  | DK117: =IF($G117<=SUM($AC$11:$AF$11),0,1) -> 0 | DL117: =IF($J117<=SUM($AG$11:$AH$11,$G$43:$H$43),0,1) -> 0 | DM117: =IF($L117<=SUM($I$43:$J$43),0,1) -> 0
D118: =SUM(E118:F118) -> 8191 | E118: =+G118+I118+K118 -> 4086 | F118: =+H118+J118+L118 -> 4105 | G118: =SUM(G114:G117) -> 525 | H118: =SUM(H114:H117) -> 530 | I118: =SUM(I114:I117) -> 1351 | J118: 1415 | K118: 2210 | L118: =SUM(L114:L117) -> 2160 | M118: =SUM(M114:M117) -> 8 | CO118: =IF($G118<=SUM(AC11:AF11),"","* Niños(as) de 36 a 47 ms clasificados debe ser menor o igual al Total de la población de niños bajo control de en sección A misma edad. ") ->  | CP118: =IF($J118<=SUM($AG$11:$AH$11,$G$43:$H$43),"","* Niños(as) de 48 a 71 meses clasificados debe ser menor o igual al Total de la población de niños bajo control de en sección A y A1 de la misma edad. ") ->  | CQ118: =IF($L118<=SUM($I$43:$J$43),"","* Niños(as) de 6 a 9 años clasificados debe ser menor o igual al Total de la población de niños bajo control de en sección A1 misma edad ") ->  | DK118: =IF($G118<=SUM($AC$11:$AF$11),0,1) -> 0 | DL118: =IF($J118<=SUM($AG$11:$AH$11,$G$43:$H$43),0,1) -> 0 | DM118: =IF($L118<=SUM($I$43:$J$43),0,1) -> 0
B119: SECCION G: POBLACIÓN INFANTIL EUTRÓFICA, SEGÚN RIESGO DE MALNUTRICIÓN POR EXCESO (Incluida en sección A y A1)
B120: RESULTADO | D120: TOTAL | E120: GRUPOS DE EDAD (en meses)
E121: 4 a 11 meses | F121: 12 a 23 meses | G121: 24 a 35 meses | H121: 36 a 47 meses | I121: 48 a 59 meses | J121: 60 a 71 meses
A122: P2300570 | B122: SIN RIESGO | D122: =IFERROR(VLOOKUP($A122,Filtros!$A$5:$AY$22116,2,FALSE),0) -> 5628 | E122: =IFERROR(VLOOKUP($A122,Filtros!$A$5:$AY$22116,3,FALSE),0) -> 891 | F122: =IFERROR(VLOOKUP($A122,Filtros!$A$5:$AY$22116,4,FALSE),0) -> 1177 | G122: =IFERROR(VLOOKUP($A122,Filtros!$A$5:$AY$22116,5,FALSE),0) -> 1091 | H122: =IFERROR(VLOOKUP($A122,Filtros!$A$5:$AY$22116,6,FALSE),0) -> 930 | I122: =IFERROR(VLOOKUP($A122,Filtros!$A$5:$AY$22116,7,FALSE),0) -> 857 | J122: =IFERROR(VLOOKUP($A122,Filtros!$A$5:$AY$22116,8,FALSE),0) -> 682 | CG122: =IF($E122<=SUM($O$35:$V$35),"","* Niños(as) de 4 a 11 ms clasificados debe ser menor o igual al Total niños diagnostidos en NORMAL sección A misma edad. ") ->  | CH122: =IF($F122<=SUM($W$35:$Z$35),"","* Niños(as) de 12 a 23 ms clasificados debe ser menor o igual al Total niños diagnosticados en NORMAL en sección A misma edad. ") ->  | CI122: =IF($G122<=SUM($AA$35:$AB$35),"","* Niños(as) de 24 a 35 ms clasificados debe ser menor o igual al Total niños diagnosticados en NORMAL en sección A misma edad. ") ->  | CJ122: =IF($H122<=SUM($AC$35:$AF$35),"","* Niños(as) de 36 a 47 ms clasificados debe ser menor o igual al Total niños diagnosticos en NORMAL en sección A misma edad. ") ->  | CK122: =IF($I122<=SUM($AG$35:$AH$35),"","* Niños(as) de 48 a 59 ms clasificados debe ser menor o igual al Total niños diagnosticados en NORMAL en sección A misma edad. ") ->  | CL122: =IF($J122<=SUM($G$68:$H$68),"","* Niños(as) de 60 a 71 ms clasificados debe ser menor o igual al Total niños diagnosticados en NORMAL en sección A1 misma edad. ") ->  | DF122: =IF($E122<=SUM($O$35:$V$35),0,1) -> 0 | DG122: =IF($F122<=SUM($W$35:$Z$35),0,1) -> 0 | DH122: =IF($G122<=SUM($AA$35:$AB$35),0,1) -> 0 | DI122: =IF($H122<=SUM($AC$35:$AF$35),0,1) -> 0 | DJ122: =IF($I122<=SUM($AG$35:$AH$35),0,1) -> 0 | DK122: =IF($J122<=SUM($G$68:$H$68),0,1) -> 0
A123: P2300580 | B123: CON RIESGO | D123: =IFERROR(VLOOKUP($A123,Filtros!$A$5:$AY$22116,2,FALSE),0) -> 2734 | E123: =IFERROR(VLOOKUP($A123,Filtros!$A$5:$AY$22116,3,FALSE),0) -> 501 | F123: =IFERROR(VLOOKUP($A123,Filtros!$A$5:$AY$22116,4,FALSE),0) -> 592 | G123: =IFERROR(VLOOKUP($A123,Filtros!$A$5:$AY$22116,5,FALSE),0) -> 525 | H123: =IFERROR(VLOOKUP($A123,Filtros!$A$5:$AY$22116,6,FALSE),0) -> 399 | I123: =IFERROR(VLOOKUP($A123,Filtros!$A$5:$AY$22116,7,FALSE),0) -> 414 | J123: =IFERROR(VLOOKUP($A123,Filtros!$A$5:$AY$22116,8,FALSE),0) -> 303 | CG123: =IF($E123<=SUM($O$35:$V$35),"","* Niños(as) de 4 a 11 ms clasificados debe ser menor o igual al Total niños diagnostidos en NORMAL sección A misma edad. ") ->  | CH123: =IF($F123<=SUM($W$35:$Z$35),"","* Niños(as) de 12 a 23 ms clasificados debe ser menor o igual al Total niños diagnosticados en NORMAL en sección A misma edad. ") ->  | CI123: =IF($G123<=SUM($AA$35:$AB$35),"","* Niños(as) de 24 a 35 ms clasificados debe ser menor o igual al Total niños diagnosticados en NORMAL en sección A misma edad. ") ->  | CJ123: =IF($H123<=SUM($AC$35:$AF$35),"","* Niños(as) de 36 a 47 ms clasificados debe ser menor o igual al Total niños diagnosticos en NORMAL en sección A misma edad. ") ->  | CK123: =IF($I123<=SUM($AG$35:$AH$35),"","* Niños(as) de 48 a 59 ms clasificados debe ser menor o igual al Total niños diagnosticados en NORMAL en sección A misma edad. ") ->  | CL123: =IF($J123<=SUM($G$68:$H$68),"","* Niños(as) de 60 a 71 ms clasificados debe ser menor o igual al Total niños diagnosticados en NORMAL en sección A1 misma edad. ") ->  | DF123: =IF($E123<=SUM($O$35:$V$35),0,1) -> 0 | DG123: =IF($F123<=SUM($W$35:$Z$35),0,1) -> 0 | DH123: =IF($G123<=SUM($AA$35:$AB$35),0,1) -> 0 | DI123: =IF($H123<=SUM($AC$35:$AF$35),0,1) -> 0 | DJ123: =IF($I123<=SUM($AG$35:$AH$35),0,1) -> 0 | DK123: =IF($J123<=SUM($G$68:$H$68),0,1) -> 0
B124: TOTAL | D124: =SUM(E124:J124) -> 8362 | E124: =SUM(E122:E123) -> 1392 | F124: 1769 | G124: 1616 | H124: 1329 | I124: 1271 | J124: 985 | K124: =CG124 & CH124 & CI124 & CJ124 & CK124 & CL124 ->  | CG124: =IF($E124<=SUM($O$35:$V$35),"","* Niños(as) de 4 a 11 ms clasificados debe ser menor o igual al Total niños diagnostidos en NORMAL sección A misma edad. ") ->  | CH124: =IF($F124<=SUM($W$35:$Z$35),"","* Niños(as) de 12 a 23 ms clasificados debe ser menor o igual al Total niños diagnosticados en NORMAL en sección A misma edad. ") ->  | CI124: =IF($G124<=SUM($AA$35:$AB$35),"","* Niños(as) de 24 a 35 ms clasificados debe ser menor o igual al Total niños diagnosticados en NORMAL en sección A misma edad. ") ->  | CJ124: =IF($H124<=SUM($AC$35:$AF$35),"","* Niños(as) de 36 a 47 ms clasificados debe ser menor o igual al Total niños diagnosticos en NORMAL en sección A misma edad. ") ->  | CK124: =IF($I124<=SUM($AG$35:$AH$35),"","* Niños(as) de 48 a 59 ms clasificados debe ser menor o igual al Total niños diagnosticados en NORMAL en sección A misma edad. ") ->  | CL124: =IF($J124<=SUM($G$68:$H$68),"","* Niños(as) de 60 a 71 ms clasificados debe ser menor o igual al Total niños diagnosticados en NORMAL en sección A1 misma edad. ") ->  | DF124: =IF($E124<=SUM($O$35:$V$35),0,1) -> 0 | DG124: =IF($F124<=SUM($W$35:$Z$35),0,1) -> 0 | DH124: =IF($G124<=SUM($AA$35:$AB$35),0,1) -> 0 | DI124: =IF($H124<=SUM($AC$35:$AF$35),0,1) -> 0 | DJ124: =IF($I124<=SUM($AG$35:$AH$35),0,1) -> 0 | DK124: =IF($J124<=SUM($G$68:$H$68),0,1) -> 0
B125: SECCION H: POBLACIÓN SEGÚN DIAGNÓSTICO DE NIÑOS, NIÑAS Y ADOLESCENTES CON NECESIDADES ESPECIALES DE ATENCIÓN EN SALUD (NANEAS) (incluidas en sección A y A.1)
B126: DISGNOSTICOS | D126: TOTAL | G126: GRUPOS DE EDAD (en meses - años) Y SEXO | AS126: Pueblos Originarios | AU126: Población Migrantes
G127: Menor de 1 mes | I127: 1 mes | K127: 2 meses | M127: 3 meses | O127: 4 meses | Q127: 5 meses | S127: 6 meses | U127: 7 a 11 meses | W127: 12 a 17 meses | Y127: 18 a 23 meses | AA127: 24 a 35 meses | AC127: 36 a 41 meses | AE127: 42 a 47 meses | AG127: 48 a 59 meses | AI127: 60 a 71 meses | AK127: 6 a 7 años | AM127: 8 a 9 años | AO127: 10 a 14 años | AQ127: 15 a 19 años
D128: Ambos sexos | E128: Hombres | F128: Mujeres | G128: Hombres | H128: Mujeres | I128: Hombres | J128: Mujeres | K128: Hombres | L128: Mujeres | M128: Hombres | N128: Mujeres | O128: Hombres | P128: Mujeres | Q128: Hombres | R128: Mujeres | S128: Hombres | T128: Mujeres | U128: Hombres | V128: Mujeres | W128: Hombres | X128: Mujeres | Y128: Hombres | Z128: Mujeres | AA128: Hombres | AB128: Mujeres | AC128: Hombres | AD128: Mujeres | AE128: Hombres | AF128: Mujeres | AG128: Hombres | AH128: Mujeres | AI128: Hombres | AJ128: Mujeres | AK128: Hombres | AL128: Mujeres | AM128: Hombres | AN128: Mujeres | AO128: Hombres | AP128: Mujeres | AQ128: Hombres | AR128: Mujeres | AS128: Hombres | AT128: Mujeres | AU128: Hombres | AV128: Mujeres
A129: P2500100 | B129: PRESIÓN ARTERIAL ELEVADA | D129: =IFERROR(VLOOKUP($A129,Filtros!$A$5:$AY$22116,2,FALSE),0) -> 101 | E129: =IFERROR(VLOOKUP($A129,Filtros!$A$5:$AY$22116,3,FALSE),0) -> 58 | F129: =IFERROR(VLOOKUP($A129,Filtros!$A$5:$AY$22116,4,FALSE),0) -> 43 | G129: =IFERROR(VLOOKUP($A129,Filtros!$A$5:$AY$22116,5,FALSE),0) -> 0 | H129: =IFERROR(VLOOKUP($A129,Filtros!$A$5:$AY$22116,6,FALSE),0) -> 0 | I129: =IFERROR(VLOOKUP($A129,Filtros!$A$5:$AY$22116,7,FALSE),0) -> 0 | J129: =IFERROR(VLOOKUP($A129,Filtros!$A$5:$AY$22116,8,FALSE),0) -> 0 | K129: =IFERROR(VLOOKUP($A129,Filtros!$A$5:$AY$22116,9,FALSE),0) -> 0 | L129: =IFERROR(VLOOKUP($A129,Filtros!$A$5:$AY$22116,10,FALSE),0) -> 0 | M129: =IFERROR(VLOOKUP($A129,Filtros!$A$5:$AY$22116,11,FALSE),0) -> 0 | N129: =IFERROR(VLOOKUP($A129,Filtros!$A$5:$AY$22116,12,FALSE),0) -> 0 | O129: =IFERROR(VLOOKUP($A129,Filtros!$A$5:$AY$22116,13,FALSE),0) -> 0 | P129: =IFERROR(VLOOKUP($A129,Filtros!$A$5:$AY$22116,14,FALSE),0) -> 0 | Q129: =IFERROR(VLOOKUP($A129,Filtros!$A$5:$AY$22116,15,FALSE),0) -> 0 | R129: =IFERROR(VLOOKUP($A129,Filtros!$A$5:$AY$22116,16,FALSE),0) -> 0 | S129: =IFERROR(VLOOKUP($A129,Filtros!$A$5:$AY$22116,17,FALSE),0) -> 0 | T129: =IFERROR(VLOOKUP($A129,Filtros!$A$5:$AY$22116,18,FALSE),0) -> 0 | U129: =IFERROR(VLOOKUP($A129,Filtros!$A$5:$AY$22116,19,FALSE),0) -> 0 | V129: =IFERROR(VLOOKUP($A129,Filtros!$A$5:$AY$22116,20,FALSE),0) -> 0 | W129: =IFERROR(VLOOKUP($A129,Filtros!$A$5:$AY$22116,21,FALSE),0) -> 0 | X129: =IFERROR(VLOOKUP($A129,Filtros!$A$5:$AY$22116,22,FALSE),0) -> 0 | Y129: =IFERROR(VLOOKUP($A129,Filtros!$A$5:$AY$22116,23,FALSE),0) -> 0 | Z129: =IFERROR(VLOOKUP($A129,Filtros!$A$5:$AY$22116,24,FALSE),0) -> 0 | AA129: =IFERROR(VLOOKUP($A129,Filtros!$A$5:$AY$22116,25,FALSE),0) -> 0 | AB129: =IFERROR(VLOOKUP($A129,Filtros!$A$5:$AY$22116,26,FALSE),0) -> 0 | AC129: =IFERROR(VLOOKUP($A129,Filtros!$A$5:$AY$22116,27,FALSE),0) -> 5 | AD129: =IFERROR(VLOOKUP($A129,Filtros!$A$5:$AY$22116,28,FALSE),0) -> 2 | AE129: =IFERROR(VLOOKUP($A129,Filtros!$A$5:$AY$22116,29,FALSE),0) -> 2 | AF129: =IFERROR(VLOOKUP($A129,Filtros!$A$5:$AY$22116,30,FALSE),0) -> 0 | AG129: =IFERROR(VLOOKUP($A129,Filtros!$A$5:$AY$22116,31,FALSE),0) -> 11 | AH129: =IFERROR(VLOOKUP($A129,Filtros!$A$5:$AY$22116,32,FALSE),0) -> 8 | AI129: =IFERROR(VLOOKUP($A129,Filtros!$A$5:$AY$22116,33,FALSE),0) -> 11 | AJ129: =IFERROR(VLOOKUP($A129,Filtros!$A$5:$AY$22116,34,FALSE),0) -> 7 | AK129: =IFERROR(VLOOKUP($A129,Filtros!$A$5:$AY$22116,35,FALSE),0) -> 19 | AL129: =IFERROR(VLOOKUP($A129,Filtros!$A$5:$AY$22116,36,FALSE),0) -> 13 | AM129: =IFERROR(VLOOKUP($A129,Filtros!$A$5:$AY$22116,37,FALSE),0) -> 10 | AN129: =IFERROR(VLOOKUP($A129,Filtros!$A$5:$AY$22116,38,FALSE),0) -> 13 | AO129: =IFERROR(VLOOKUP($A129,Filtros!$A$5:$AY$22116,39,FALSE),0) -> 0 | AP129: =IFERROR(VLOOKUP($A129,Filtros!$A$5:$AY$22116,40,FALSE),0) -> 0 | AQ129: =IFERROR(VLOOKUP($A129,Filtros!$A$5:$AY$22116,41,FALSE),0) -> 0 | AR129: =IFERROR(VLOOKUP($A129,Filtros!$A$5:$AY$22116,42,FALSE),0) -> 0 | AS129: =IFERROR(VLOOKUP($A129,Filtros!$A$5:$AY$22116,43,FALSE),0) -> 0 | AT129: =IFERROR(VLOOKUP($A129,Filtros!$A$5:$AY$22116,44,FALSE),0) -> 0 | AU129: =IFERROR(VLOOKUP($A129,Filtros!$A$5:$AY$22116,45,FALSE),0) -> 0 | AV129: =IFERROR(VLOOKUP($A129,Filtros!$A$5:$AY$22116,46,FALSE),0) -> 0 | AW129: =CG129&CH129&CI129&CJ129 ->  | CG129: =IF(DF129=1,"* No olvide escribir en las celdas de ""Pueblos Originarios"" (Digite Cero si no tiene).","") ->  | CH129: =IF(DG129=1,"* No olvide escribir en las celdas de ""Población Migrante"" (Digite Cero si no tiene).","") ->  | CI129: =IF(DH129=1,"* La suma de las celdas de ""Pueblos Originarios""no debe superar el Total.","") ->  | CJ129: =IF(DI129=1,"* La suma de las celdas de ""Población Migrante"" no debe superar el Total.","") ->  | DF129: =IF(AND($D129<>0,OR(AS129="",AT129="")),1,0) -> 0 | DG129: =IF(AND($D129<>0,OR(AU129="",AV129="")),1,0) -> 0 | DH129: =IF((AS129+AT129)>$D129,1,0) -> 0 | DI129: =IF((AV129+AU129)>$D129,1,0) -> 0
A130: P2500200 | B130: DIABETES TIPO I | D130: =IFERROR(VLOOKUP($A130,Filtros!$A$5:$AY$22116,2,FALSE),0) -> 9 | E130: =IFERROR(VLOOKUP($A130,Filtros!$A$5:$AY$22116,3,FALSE),0) -> 3 | F130: =IFERROR(VLOOKUP($A130,Filtros!$A$5:$AY$22116,4,FALSE),0) -> 6 | G130: =IFERROR(VLOOKUP($A130,Filtros!$A$5:$AY$22116,5,FALSE),0) -> 0 | H130: =IFERROR(VLOOKUP($A130,Filtros!$A$5:$AY$22116,6,FALSE),0) -> 0 | I130: =IFERROR(VLOOKUP($A130,Filtros!$A$5:$AY$22116,7,FALSE),0) -> 0 | J130: =IFERROR(VLOOKUP($A130,Filtros!$A$5:$AY$22116,8,FALSE),0) -> 0 | K130: =IFERROR(VLOOKUP($A130,Filtros!$A$5:$AY$22116,9,FALSE),0) -> 0 | L130: =IFERROR(VLOOKUP($A130,Filtros!$A$5:$AY$22116,10,FALSE),0) -> 0 | M130: =IFERROR(VLOOKUP($A130,Filtros!$A$5:$AY$22116,11,FALSE),0) -> 0 | N130: =IFERROR(VLOOKUP($A130,Filtros!$A$5:$AY$22116,12,FALSE),0) -> 0 | O130: =IFERROR(VLOOKUP($A130,Filtros!$A$5:$AY$22116,13,FALSE),0) -> 0 | P130: =IFERROR(VLOOKUP($A130,Filtros!$A$5:$AY$22116,14,FALSE),0) -> 0 | Q130: =IFERROR(VLOOKUP($A130,Filtros!$A$5:$AY$22116,15,FALSE),0) -> 0 | R130: =IFERROR(VLOOKUP($A130,Filtros!$A$5:$AY$22116,16,FALSE),0) -> 0 | S130: =IFERROR(VLOOKUP($A130,Filtros!$A$5:$AY$22116,17,FALSE),0) -> 0 | T130: =IFERROR(VLOOKUP($A130,Filtros!$A$5:$AY$22116,18,FALSE),0) -> 0 | U130: =IFERROR(VLOOKUP($A130,Filtros!$A$5:$AY$22116,19,FALSE),0) -> 0 | V130: =IFERROR(VLOOKUP($A130,Filtros!$A$5:$AY$22116,20,FALSE),0) -> 0 | W130: =IFERROR(VLOOKUP($A130,Filtros!$A$5:$AY$22116,21,FALSE),0) -> 0 | X130: =IFERROR(VLOOKUP($A130,Filtros!$A$5:$AY$22116,22,FALSE),0) -> 0 | Y130: =IFERROR(VLOOKUP($A130,Filtros!$A$5:$AY$22116,23,FALSE),0) -> 0 | Z130: =IFERROR(VLOOKUP($A130,Filtros!$A$5:$AY$22116,24,FALSE),0) -> 0 | AA130: =IFERROR(VLOOKUP($A130,Filtros!$A$5:$AY$22116,25,FALSE),0) -> 0 | AB130: =IFERROR(VLOOKUP($A130,Filtros!$A$5:$AY$22116,26,FALSE),0) -> 0 | AC130: =IFERROR(VLOOKUP($A130,Filtros!$A$5:$AY$22116,27,FALSE),0) -> 0 | AD130: =IFERROR(VLOOKUP($A130,Filtros!$A$5:$AY$22116,28,FALSE),0) -> 1 | AE130: =IFERROR(VLOOKUP($A130,Filtros!$A$5:$AY$22116,29,FALSE),0) -> 0 | AF130: =IFERROR(VLOOKUP($A130,Filtros!$A$5:$AY$22116,30,FALSE),0) -> 0 | AG130: =IFERROR(VLOOKUP($A130,Filtros!$A$5:$AY$22116,31,FALSE),0) -> 0 | AH130: =IFERROR(VLOOKUP($A130,Filtros!$A$5:$AY$22116,32,FALSE),0) -> 0 | AI130: =IFERROR(VLOOKUP($A130,Filtros!$A$5:$AY$22116,33,FALSE),0) -> 1 | AJ130: =IFERROR(VLOOKUP($A130,Filtros!$A$5:$AY$22116,34,FALSE),0) -> 2 | AK130: =IFERROR(VLOOKUP($A130,Filtros!$A$5:$AY$22116,35,FALSE),0) -> 1 | AL130: =IFERROR(VLOOKUP($A130,Filtros!$A$5:$AY$22116,36,FALSE),0) -> 1 | AM130: =IFERROR(VLOOKUP($A130,Filtros!$A$5:$AY$22116,37,FALSE),0) -> 0 | AN130: =IFERROR(VLOOKUP($A130,Filtros!$A$5:$AY$22116,38,FALSE),0) -> 0 | AO130: =IFERROR(VLOOKUP($A130,Filtros!$A$5:$AY$22116,39,FALSE),0) -> 1 | AP130: =IFERROR(VLOOKUP($A130,Filtros!$A$5:$AY$22116,40,FALSE),0) -> 2 | AQ130: =IFERROR(VLOOKUP($A130,Filtros!$A$5:$AY$22116,41,FALSE),0) -> 0 | AR130: =IFERROR(VLOOKUP($A130,Filtros!$A$5:$AY$22116,42,FALSE),0) -> 0 | AS130: =IFERROR(VLOOKUP($A130,Filtros!$A$5:$AY$22116,43,FALSE),0) -> 0 | AT130: =IFERROR(VLOOKUP($A130,Filtros!$A$5:$AY$22116,44,FALSE),0) -> 0 | AU130: =IFERROR(VLOOKUP($A130,Filtros!$A$5:$AY$22116,45,FALSE),0) -> 0 | AV130: =IFERROR(VLOOKUP($A130,Filtros!$A$5:$AY$22116,46,FALSE),0) -> 1 | AW130: =CG130&CH130&CI130&CJ130 ->  | CG130: =IF(DF130=1,"* No olvide escribir en las celdas de ""Pueblos Originarios"" (Digite Cero si no tiene).","") ->  | CH130: =IF(DG130=1,"* No olvide escribir en las celdas de ""Población Migrante"" (Digite Cero si no tiene).","") ->  | CI130: =IF(DH130=1,"* La suma de las celdas de ""Pueblos Originarios""no debe superar el Total.","") ->  | CJ130: =IF(DI130=1,"* La suma de las celdas de ""Población Migrante"" no debe superar el Total.","") ->  | DF130: =IF(AND($D130<>0,OR(AS130="",AT130="")),1,0) -> 0 | DG130: =IF(AND($D130<>0,OR(AU130="",AV130="")),1,0) -> 0 | DH130: =IF((AS130+AT130)>$D130,1,0) -> 0 | DI130: =IF((AV130+AU130)>$D130,1,0) -> 0
A131: P2500300 | B131: DIABETES TIPO II | D131: =IFERROR(VLOOKUP($A131,Filtros!$A$5:$AY$22116,2,FALSE),0) -> 0 | E131: =IFERROR(VLOOKUP($A131,Filtros!$A$5:$AY$22116,3,FALSE),0) -> 0 | F131: =IFERROR(VLOOKUP($A131,Filtros!$A$5:$AY$22116,4,FALSE),0) -> 0 | G131: =IFERROR(VLOOKUP($A131,Filtros!$A$5:$AY$22116,5,FALSE),0) -> 0 | H131: =IFERROR(VLOOKUP($A131,Filtros!$A$5:$AY$22116,6,FALSE),0) -> 0 | I131: =IFERROR(VLOOKUP($A131,Filtros!$A$5:$AY$22116,7,FALSE),0) -> 0 | J131: =IFERROR(VLOOKUP($A131,Filtros!$A$5:$AY$22116,8,FALSE),0) -> 0 | K131: =IFERROR(VLOOKUP($A131,Filtros!$A$5:$AY$22116,9,FALSE),0) -> 0 | L131: =IFERROR(VLOOKUP($A131,Filtros!$A$5:$AY$22116,10,FALSE),0) -> 0 | M131: =IFERROR(VLOOKUP($A131,Filtros!$A$5:$AY$22116,11,FALSE),0) -> 0 | N131: =IFERROR(VLOOKUP($A131,Filtros!$A$5:$AY$22116,12,FALSE),0) -> 0 | O131: =IFERROR(VLOOKUP($A131,Filtros!$A$5:$AY$22116,13,FALSE),0) -> 0 | P131: =IFERROR(VLOOKUP($A131,Filtros!$A$5:$AY$22116,14,FALSE),0) -> 0 | Q131: =IFERROR(VLOOKUP($A131,Filtros!$A$5:$AY$22116,15,FALSE),0) -> 0 | R131: =IFERROR(VLOOKUP($A131,Filtros!$A$5:$AY$22116,16,FALSE),0) -> 0 | S131: =IFERROR(VLOOKUP($A131,Filtros!$A$5:$AY$22116,17,FALSE),0) -> 0 | T131: =IFERROR(VLOOKUP($A131,Filtros!$A$5:$AY$22116,18,FALSE),0) -> 0 | U131: =IFERROR(VLOOKUP($A131,Filtros!$A$5:$AY$22116,19,FALSE),0) -> 0 | V131: =IFERROR(VLOOKUP($A131,Filtros!$A$5:$AY$22116,20,FALSE),0) -> 0 | W131: =IFERROR(VLOOKUP($A131,Filtros!$A$5:$AY$22116,21,FALSE),0) -> 0 | X131: =IFERROR(VLOOKUP($A131,Filtros!$A$5:$AY$22116,22,FALSE),0) -> 0 | Y131: =IFERROR(VLOOKUP($A131,Filtros!$A$5:$AY$22116,23,FALSE),0) -> 0 | Z131: =IFERROR(VLOOKUP($A131,Filtros!$A$5:$AY$22116,24,FALSE),0) -> 0 | AA131: =IFERROR(VLOOKUP($A131,Filtros!$A$5:$AY$22116,25,FALSE),0) -> 0 | AB131: =IFERROR(VLOOKUP($A131,Filtros!$A$5:$AY$22116,26,FALSE),0) -> 0 | AC131: =IFERROR(VLOOKUP($A131,Filtros!$A$5:$AY$22116,27,FALSE),0) -> 0 | AD131: =IFERROR(VLOOKUP($A131,Filtros!$A$5:$AY$22116,28,FALSE),0) -> 0 | AE131: =IFERROR(VLOOKUP($A131,Filtros!$A$5:$AY$22116,29,FALSE),0) -> 0 | AF131: =IFERROR(VLOOKUP($A131,Filtros!$A$5:$AY$22116,30,FALSE),0) -> 0 | AG131: =IFERROR(VLOOKUP($A131,Filtros!$A$5:$AY$22116,31,FALSE),0) -> 0 | AH131: =IFERROR(VLOOKUP($A131,Filtros!$A$5:$AY$22116,32,FALSE),0) -> 0 | AI131: =IFERROR(VLOOKUP($A131,Filtros!$A$5:$AY$22116,33,FALSE),0) -> 0 | AJ131: =IFERROR(VLOOKUP($A131,Filtros!$A$5:$AY$22116,34,FALSE),0) -> 0 | AK131: =IFERROR(VLOOKUP($A131,Filtros!$A$5:$AY$22116,35,FALSE),0) -> 0 | AL131: =IFERROR(VLOOKUP($A131,Filtros!$A$5:$AY$22116,36,FALSE),0) -> 0 | AM131: =IFERROR(VLOOKUP($A131,Filtros!$A$5:$AY$22116,37,FALSE),0) -> 0 | AN131: =IFERROR(VLOOKUP($A131,Filtros!$A$5:$AY$22116,38,FALSE),0) -> 0 | AO131: =IFERROR(VLOOKUP($A131,Filtros!$A$5:$AY$22116,39,FALSE),0) -> 0 | AP131: =IFERROR(VLOOKUP($A131,Filtros!$A$5:$AY$22116,40,FALSE),0) -> 0 | AQ131: =IFERROR(VLOOKUP($A131,Filtros!$A$5:$AY$22116,41,FALSE),0) -> 0 | AR131: =IFERROR(VLOOKUP($A131,Filtros!$A$5:$AY$22116,42,FALSE),0) -> 0 | AS131: =IFERROR(VLOOKUP($A131,Filtros!$A$5:$AY$22116,43,FALSE),0) -> 0 | AT131: =IFERROR(VLOOKUP($A131,Filtros!$A$5:$AY$22116,44,FALSE),0) -> 0 | AU131: =IFERROR(VLOOKUP($A131,Filtros!$A$5:$AY$22116,45,FALSE),0) -> 0 | AV131: =IFERROR(VLOOKUP($A131,Filtros!$A$5:$AY$22116,46,FALSE),0) -> 0 | DF131: 0 | DG131: 0 | DH131: 0 | DI131: 0
A132: P2500400 | B132: SÍNDROME DE DOWN | D132: =IFERROR(VLOOKUP($A132,Filtros!$A$5:$AY$22116,2,FALSE),0) -> 93 | E132: =IFERROR(VLOOKUP($A132,Filtros!$A$5:$AY$22116,3,FALSE),0) -> 41 | F132: =IFERROR(VLOOKUP($A132,Filtros!$A$5:$AY$22116,4,FALSE),0) -> 52 | G132: =IFERROR(VLOOKUP($A132,Filtros!$A$5:$AY$22116,5,FALSE),0) -> 0 | H132: =IFERROR(VLOOKUP($A132,Filtros!$A$5:$AY$22116,6,FALSE),0) -> 0 | I132: =IFERROR(VLOOKUP($A132,Filtros!$A$5:$AY$22116,7,FALSE),0) -> 0 | J132: =IFERROR(VLOOKUP($A132,Filtros!$A$5:$AY$22116,8,FALSE),0) -> 0 | K132: =IFERROR(VLOOKUP($A132,Filtros!$A$5:$AY$22116,9,FALSE),0) -> 0 | L132: =IFERROR(VLOOKUP($A132,Filtros!$A$5:$AY$22116,10,FALSE),0) -> 0 | M132: =IFERROR(VLOOKUP($A132,Filtros!$A$5:$AY$22116,11,FALSE),0) -> 0 | N132: =IFERROR(VLOOKUP($A132,Filtros!$A$5:$AY$22116,12,FALSE),0) -> 1 | O132: =IFERROR(VLOOKUP($A132,Filtros!$A$5:$AY$22116,13,FALSE),0) -> 0 | P132: =IFERROR(VLOOKUP($A132,Filtros!$A$5:$AY$22116,14,FALSE),0) -> 2 | Q132: =IFERROR(VLOOKUP($A132,Filtros!$A$5:$AY$22116,15,FALSE),0) -> 0 | R132: =IFERROR(VLOOKUP($A132,Filtros!$A$5:$AY$22116,16,FALSE),0) -> 0 | S132: =IFERROR(VLOOKUP($A132,Filtros!$A$5:$AY$22116,17,FALSE),0) -> 2 | T132: =IFERROR(VLOOKUP($A132,Filtros!$A$5:$AY$22116,18,FALSE),0) -> 2 | U132: =IFERROR(VLOOKUP($A132,Filtros!$A$5:$AY$22116,19,FALSE),0) -> 1 | V132: =IFERROR(VLOOKUP($A132,Filtros!$A$5:$AY$22116,20,FALSE),0) -> 3 | W132: =IFERROR(VLOOKUP($A132,Filtros!$A$5:$AY$22116,21,FALSE),0) -> 2 | X132: =IFERROR(VLOOKUP($A132,Filtros!$A$5:$AY$22116,22,FALSE),0) -> 9 | Y132: =IFERROR(VLOOKUP($A132,Filtros!$A$5:$AY$22116,23,FALSE),0) -> 3 | Z132: =IFERROR(VLOOKUP($A132,Filtros!$A$5:$AY$22116,24,FALSE),0) -> 0 | AA132: =IFERROR(VLOOKUP($A132,Filtros!$A$5:$AY$22116,25,FALSE),0) -> 7 | AB132: =IFERROR(VLOOKUP($A132,Filtros!$A$5:$AY$22116,26,FALSE),0) -> 5 | AC132: =IFERROR(VLOOKUP($A132,Filtros!$A$5:$AY$22116,27,FALSE),0) -> 2 | AD132: =IFERROR(VLOOKUP($A132,Filtros!$A$5:$AY$22116,28,FALSE),0) -> 4 | AE132: =IFERROR(VLOOKUP($A132,Filtros!$A$5:$AY$22116,29,FALSE),0) -> 4 | AF132: =IFERROR(VLOOKUP($A132,Filtros!$A$5:$AY$22116,30,FALSE),0) -> 4 | AG132: =IFERROR(VLOOKUP($A132,Filtros!$A$5:$AY$22116,31,FALSE),0) -> 4 | AH132: =IFERROR(VLOOKUP($A132,Filtros!$A$5:$AY$22116,32,FALSE),0) -> 6 | AI132: =IFERROR(VLOOKUP($A132,Filtros!$A$5:$AY$22116,33,FALSE),0) -> 2 | AJ132: =IFERROR(VLOOKUP($A132,Filtros!$A$5:$AY$22116,34,FALSE),0) -> 5 | AK132: =IFERROR(VLOOKUP($A132,Filtros!$A$5:$AY$22116,35,FALSE),0) -> 8 | AL132: =IFERROR(VLOOKUP($A132,Filtros!$A$5:$AY$22116,36,FALSE),0) -> 6 | AM132: =IFERROR(VLOOKUP($A132,Filtros!$A$5:$AY$22116,37,FALSE),0) -> 4 | AN132: =IFERROR(VLOOKUP($A132,Filtros!$A$5:$AY$22116,38,FALSE),0) -> 2 | AO132: =IFERROR(VLOOKUP($A132,Filtros!$A$5:$AY$22116,39,FALSE),0) -> 0 | AP132: =IFERROR(VLOOKUP($A132,Filtros!$A$5:$AY$22116,40,FALSE),0) -> 1 | AQ132: =IFERROR(VLOOKUP($A132,Filtros!$A$5:$AY$22116,41,FALSE),0) -> 2 | AR132: =IFERROR(VLOOKUP($A132,Filtros!$A$5:$AY$22116,42,FALSE),0) -> 2 | AS132: =IFERROR(VLOOKUP($A132,Filtros!$A$5:$AY$22116,43,FALSE),0) -> 0 | AT132: =IFERROR(VLOOKUP($A132,Filtros!$A$5:$AY$22116,44,FALSE),0) -> 0 | AU132: =IFERROR(VLOOKUP($A132,Filtros!$A$5:$AY$22116,45,FALSE),0) -> 0 | AV132: =IFERROR(VLOOKUP($A132,Filtros!$A$5:$AY$22116,46,FALSE),0) -> 0 | DF132: 0 | DG132: 0 | DH132: 0 | DI132: 0
A133: P2500500 | B133: TRASTORNO DE ESPECTRO AUTISTA | D133: =IFERROR(VLOOKUP($A133,Filtros!$A$5:$AY$22116,2,FALSE),0) -> 348 | E133: =IFERROR(VLOOKUP($A133,Filtros!$A$5:$AY$22116,3,FALSE),0) -> 272 | F133: =IFERROR(VLOOKUP($A133,Filtros!$A$5:$AY$22116,4,FALSE),0) -> 76 | G133: =IFERROR(VLOOKUP($A133,Filtros!$A$5:$AY$22116,5,FALSE),0) -> 0 | H133: =IFERROR(VLOOKUP($A133,Filtros!$A$5:$AY$22116,6,FALSE),0) -> 0 | I133: =IFERROR(VLOOKUP($A133,Filtros!$A$5:$AY$22116,7,FALSE),0) -> 0 | J133: =IFERROR(VLOOKUP($A133,Filtros!$A$5:$AY$22116,8,FALSE),0) -> 0 | K133: =IFERROR(VLOOKUP($A133,Filtros!$A$5:$AY$22116,9,FALSE),0) -> 0 | L133: =IFERROR(VLOOKUP($A133,Filtros!$A$5:$AY$22116,10,FALSE),0) -> 0 | M133: =IFERROR(VLOOKUP($A133,Filtros!$A$5:$AY$22116,11,FALSE),0) -> 0 | N133: =IFERROR(VLOOKUP($A133,Filtros!$A$5:$AY$22116,12,FALSE),0) -> 0 | O133: =IFERROR(VLOOKUP($A133,Filtros!$A$5:$AY$22116,13,FALSE),0) -> 0 | P133: =IFERROR(VLOOKUP($A133,Filtros!$A$5:$AY$22116,14,FALSE),0) -> 0 | Q133: =IFERROR(VLOOKUP($A133,Filtros!$A$5:$AY$22116,15,FALSE),0) -> 0 | R133: =IFERROR(VLOOKUP($A133,Filtros!$A$5:$AY$22116,16,FALSE),0) -> 0 | S133: =IFERROR(VLOOKUP($A133,Filtros!$A$5:$AY$22116,17,FALSE),0) -> 0 | T133: =IFERROR(VLOOKUP($A133,Filtros!$A$5:$AY$22116,18,FALSE),0) -> 0 | U133: =IFERROR(VLOOKUP($A133,Filtros!$A$5:$AY$22116,19,FALSE),0) -> 0 | V133: =IFERROR(VLOOKUP($A133,Filtros!$A$5:$AY$22116,20,FALSE),0) -> 0 | W133: =IFERROR(VLOOKUP($A133,Filtros!$A$5:$AY$22116,21,FALSE),0) -> 3 | X133: =IFERROR(VLOOKUP($A133,Filtros!$A$5:$AY$22116,22,FALSE),0) -> 2 | Y133: =IFERROR(VLOOKUP($A133,Filtros!$A$5:$AY$22116,23,FALSE),0) -> 8 | Z133: =IFERROR(VLOOKUP($A133,Filtros!$A$5:$AY$22116,24,FALSE),0) -> 6 | AA133: =IFERROR(VLOOKUP($A133,Filtros!$A$5:$AY$22116,25,FALSE),0) -> 25 | AB133: =IFERROR(VLOOKUP($A133,Filtros!$A$5:$AY$22116,26,FALSE),0) -> 5 | AC133: =IFERROR(VLOOKUP($A133,Filtros!$A$5:$AY$22116,27,FALSE),0) -> 42 | AD133: =IFERROR(VLOOKUP($A133,Filtros!$A$5:$AY$22116,28,FALSE),0) -> 14 | AE133: =IFERROR(VLOOKUP($A133,Filtros!$A$5:$AY$22116,29,FALSE),0) -> 13 | AF133: =IFERROR(VLOOKUP($A133,Filtros!$A$5:$AY$22116,30,FALSE),0) -> 8 | AG133: =IFERROR(VLOOKUP($A133,Filtros!$A$5:$AY$22116,31,FALSE),0) -> 37 | AH133: =IFERROR(VLOOKUP($A133,Filtros!$A$5:$AY$22116,32,FALSE),0) -> 13 | AI133: =IFERROR(VLOOKUP($A133,Filtros!$A$5:$AY$22116,33,FALSE),0) -> 51 | AJ133: =IFERROR(VLOOKUP($A133,Filtros!$A$5:$AY$22116,34,FALSE),0) -> 9 | AK133: =IFERROR(VLOOKUP($A133,Filtros!$A$5:$AY$22116,35,FALSE),0) -> 44 | AL133: =IFERROR(VLOOKUP($A133,Filtros!$A$5:$AY$22116,36,FALSE),0) -> 6 | AM133: =IFERROR(VLOOKUP($A133,Filtros!$A$5:$AY$22116,37,FALSE),0) -> 24 | AN133: =IFERROR(VLOOKUP($A133,Filtros!$A$5:$AY$22116,38,FALSE),0) -> 5 | AO133: =IFERROR(VLOOKUP($A133,Filtros!$A$5:$AY$22116,39,FALSE),0) -> 15 | AP133: =IFERROR(VLOOKUP($A133,Filtros!$A$5:$AY$22116,40,FALSE),0) -> 5 | AQ133: =IFERROR(VLOOKUP($A133,Filtros!$A$5:$AY$22116,41,FALSE),0) -> 10 | AR133: =IFERROR(VLOOKUP($A133,Filtros!$A$5:$AY$22116,42,FALSE),0) -> 3 | AS133: =IFERROR(VLOOKUP($A133,Filtros!$A$5:$AY$22116,43,FALSE),0) -> 0 | AT133: =IFERROR(VLOOKUP($A133,Filtros!$A$5:$AY$22116,44,FALSE),0) -> 1 | AU133: =IFERROR(VLOOKUP($A133,Filtros!$A$5:$AY$22116,45,FALSE),0) -> 1 | AV133: =IFERROR(VLOOKUP($A133,Filtros!$A$5:$AY$22116,46,FALSE),0) -> 0 | DF133: 0 | DG133: 0 | DH133: 0 | DI133: 0
A134: P2500600 | B134: FIBROSIS QUÍSTICA | D134: =IFERROR(VLOOKUP($A134,Filtros!$A$5:$AY$22116,2,FALSE),0) -> 9 | E134: =IFERROR(VLOOKUP($A134,Filtros!$A$5:$AY$22116,3,FALSE),0) -> 6 | F134: =IFERROR(VLOOKUP($A134,Filtros!$A$5:$AY$22116,4,FALSE),0) -> 3 | G134: =IFERROR(VLOOKUP($A134,Filtros!$A$5:$AY$22116,5,FALSE),0) -> 0 | H134: =IFERROR(VLOOKUP($A134,Filtros!$A$5:$AY$22116,6,FALSE),0) -> 0 | I134: =IFERROR(VLOOKUP($A134,Filtros!$A$5:$AY$22116,7,FALSE),0) -> 0 | J134: =IFERROR(VLOOKUP($A134,Filtros!$A$5:$AY$22116,8,FALSE),0) -> 0 | K134: =IFERROR(VLOOKUP($A134,Filtros!$A$5:$AY$22116,9,FALSE),0) -> 0 | L134: =IFERROR(VLOOKUP($A134,Filtros!$A$5:$AY$22116,10,FALSE),0) -> 0 | M134: =IFERROR(VLOOKUP($A134,Filtros!$A$5:$AY$22116,11,FALSE),0) -> 0 | N134: =IFERROR(VLOOKUP($A134,Filtros!$A$5:$AY$22116,12,FALSE),0) -> 0 | O134: =IFERROR(VLOOKUP($A134,Filtros!$A$5:$AY$22116,13,FALSE),0) -> 0 | P134: =IFERROR(VLOOKUP($A134,Filtros!$A$5:$AY$22116,14,FALSE),0) -> 0 | Q134: =IFERROR(VLOOKUP($A134,Filtros!$A$5:$AY$22116,15,FALSE),0) -> 0 | R134: =IFERROR(VLOOKUP($A134,Filtros!$A$5:$AY$22116,16,FALSE),0) -> 0 | S134: =IFERROR(VLOOKUP($A134,Filtros!$A$5:$AY$22116,17,FALSE),0) -> 0 | T134: =IFERROR(VLOOKUP($A134,Filtros!$A$5:$AY$22116,18,FALSE),0) -> 0 | U134: =IFERROR(VLOOKUP($A134,Filtros!$A$5:$AY$22116,19,FALSE),0) -> 0 | V134: =IFERROR(VLOOKUP($A134,Filtros!$A$5:$AY$22116,20,FALSE),0) -> 0 | W134: =IFERROR(VLOOKUP($A134,Filtros!$A$5:$AY$22116,21,FALSE),0) -> 0 | X134: =IFERROR(VLOOKUP($A134,Filtros!$A$5:$AY$22116,22,FALSE),0) -> 0 | Y134: =IFERROR(VLOOKUP($A134,Filtros!$A$5:$AY$22116,23,FALSE),0) -> 0 | Z134: =IFERROR(VLOOKUP($A134,Filtros!$A$5:$AY$22116,24,FALSE),0) -> 0 | AA134: =IFERROR(VLOOKUP($A134,Filtros!$A$5:$AY$22116,25,FALSE),0) -> 4 | AB134: =IFERROR(VLOOKUP($A134,Filtros!$A$5:$AY$22116,26,FALSE),0) -> 1 | AC134: =IFERROR(VLOOKUP($A134,Filtros!$A$5:$AY$22116,27,FALSE),0) -> 0 | AD134: =IFERROR(VLOOKUP($A134,Filtros!$A$5:$AY$22116,28,FALSE),0) -> 0 | AE134: =IFERROR(VLOOKUP($A134,Filtros!$A$5:$AY$22116,29,FALSE),0) -> 1 | AF134: =IFERROR(VLOOKUP($A134,Filtros!$A$5:$AY$22116,30,FALSE),0) -> 0 | AG134: =IFERROR(VLOOKUP($A134,Filtros!$A$5:$AY$22116,31,FALSE),0) -> 1 | AH134: =IFERROR(VLOOKUP($A134,Filtros!$A$5:$AY$22116,32,FALSE),0) -> 0 | AI134: =IFERROR(VLOOKUP($A134,Filtros!$A$5:$AY$22116,33,FALSE),0) -> 0 | AJ134: =IFERROR(VLOOKUP($A134,Filtros!$A$5:$AY$22116,34,FALSE),0) -> 0 | AK134: =IFERROR(VLOOKUP($A134,Filtros!$A$5:$AY$22116,35,FALSE),0) -> 0 | AL134: =IFERROR(VLOOKUP($A134,Filtros!$A$5:$AY$22116,36,FALSE),0) -> 0 | AM134: =IFERROR(VLOOKUP($A134,Filtros!$A$5:$AY$22116,37,FALSE),0) -> 0 | AN134: =IFERROR(VLOOKUP($A134,Filtros!$A$5:$AY$22116,38,FALSE),0) -> 1 | AO134: =IFERROR(VLOOKUP($A134,Filtros!$A$5:$AY$22116,39,FALSE),0) -> 0 | AP134: =IFERROR(VLOOKUP($A134,Filtros!$A$5:$AY$22116,40,FALSE),0) -> 1 | AQ134: =IFERROR(VLOOKUP($A134,Filtros!$A$5:$AY$22116,41,FALSE),0) -> 0 | AR134: =IFERROR(VLOOKUP($A134,Filtros!$A$5:$AY$22116,42,FALSE),0) -> 0 | AS134: =IFERROR(VLOOKUP($A134,Filtros!$A$5:$AY$22116,43,FALSE),0) -> 0 | AT134: =IFERROR(VLOOKUP($A134,Filtros!$A$5:$AY$22116,44,FALSE),0) -> 0 | AU134: =IFERROR(VLOOKUP($A134,Filtros!$A$5:$AY$22116,45,FALSE),0) -> 1 | AV134: =IFERROR(VLOOKUP($A134,Filtros!$A$5:$AY$22116,46,FALSE),0) -> 0 | DF134: 0 | DG134: 0 | DH134: 0 | DI134: 0
A135: P2500700 | B135: PARÁLISIS CEREBRAL | D135: =IFERROR(VLOOKUP($A135,Filtros!$A$5:$AY$22116,2,FALSE),0) -> 48 | E135: =IFERROR(VLOOKUP($A135,Filtros!$A$5:$AY$22116,3,FALSE),0) -> 29 | F135: =IFERROR(VLOOKUP($A135,Filtros!$A$5:$AY$22116,4,FALSE),0) -> 19 | G135: =IFERROR(VLOOKUP($A135,Filtros!$A$5:$AY$22116,5,FALSE),0) -> 0 | H135: =IFERROR(VLOOKUP($A135,Filtros!$A$5:$AY$22116,6,FALSE),0) -> 0 | I135: =IFERROR(VLOOKUP($A135,Filtros!$A$5:$AY$22116,7,FALSE),0) -> 0 | J135: =IFERROR(VLOOKUP($A135,Filtros!$A$5:$AY$22116,8,FALSE),0) -> 0 | K135: =IFERROR(VLOOKUP($A135,Filtros!$A$5:$AY$22116,9,FALSE),0) -> 0 | L135: =IFERROR(VLOOKUP($A135,Filtros!$A$5:$AY$22116,10,FALSE),0) -> 0 | M135: =IFERROR(VLOOKUP($A135,Filtros!$A$5:$AY$22116,11,FALSE),0) -> 0 | N135: =IFERROR(VLOOKUP($A135,Filtros!$A$5:$AY$22116,12,FALSE),0) -> 0 | O135: =IFERROR(VLOOKUP($A135,Filtros!$A$5:$AY$22116,13,FALSE),0) -> 0 | P135: =IFERROR(VLOOKUP($A135,Filtros!$A$5:$AY$22116,14,FALSE),0) -> 0 | Q135: =IFERROR(VLOOKUP($A135,Filtros!$A$5:$AY$22116,15,FALSE),0) -> 0 | R135: =IFERROR(VLOOKUP($A135,Filtros!$A$5:$AY$22116,16,FALSE),0) -> 0 | S135: =IFERROR(VLOOKUP($A135,Filtros!$A$5:$AY$22116,17,FALSE),0) -> 0 | T135: =IFERROR(VLOOKUP($A135,Filtros!$A$5:$AY$22116,18,FALSE),0) -> 1 | U135: =IFERROR(VLOOKUP($A135,Filtros!$A$5:$AY$22116,19,FALSE),0) -> 1 | V135: =IFERROR(VLOOKUP($A135,Filtros!$A$5:$AY$22116,20,FALSE),0) -> 0 | W135: =IFERROR(VLOOKUP($A135,Filtros!$A$5:$AY$22116,21,FALSE),0) -> 1 | X135: =IFERROR(VLOOKUP($A135,Filtros!$A$5:$AY$22116,22,FALSE),0) -> 3 | Y135: =IFERROR(VLOOKUP($A135,Filtros!$A$5:$AY$22116,23,FALSE),0) -> 1 | Z135: =IFERROR(VLOOKUP($A135,Filtros!$A$5:$AY$22116,24,FALSE),0) -> 1 | AA135: =IFERROR(VLOOKUP($A135,Filtros!$A$5:$AY$22116,25,FALSE),0) -> 0 | AB135: =IFERROR(VLOOKUP($A135,Filtros!$A$5:$AY$22116,26,FALSE),0) -> 1 | AC135: =IFERROR(VLOOKUP($A135,Filtros!$A$5:$AY$22116,27,FALSE),0) -> 3 | AD135: =IFERROR(VLOOKUP($A135,Filtros!$A$5:$AY$22116,28,FALSE),0) -> 0 | AE135: =IFERROR(VLOOKUP($A135,Filtros!$A$5:$AY$22116,29,FALSE),0) -> 1 | AF135: =IFERROR(VLOOKUP($A135,Filtros!$A$5:$AY$22116,30,FALSE),0) -> 2 | AG135: =IFERROR(VLOOKUP($A135,Filtros!$A$5:$AY$22116,31,FALSE),0) -> 5 | AH135: =IFERROR(VLOOKUP($A135,Filtros!$A$5:$AY$22116,32,FALSE),0) -> 1 | AI135: =IFERROR(VLOOKUP($A135,Filtros!$A$5:$AY$22116,33,FALSE),0) -> 3 | AJ135: =IFERROR(VLOOKUP($A135,Filtros!$A$5:$AY$22116,34,FALSE),0) -> 2 | AK135: =IFERROR(VLOOKUP($A135,Filtros!$A$5:$AY$22116,35,FALSE),0) -> 3 | AL135: =IFERROR(VLOOKUP($A135,Filtros!$A$5:$AY$22116,36,FALSE),0) -> 1 | AM135: =IFERROR(VLOOKUP($A135,Filtros!$A$5:$AY$22116,37,FALSE),0) -> 3 | AN135: =IFERROR(VLOOKUP($A135,Filtros!$A$5:$AY$22116,38,FALSE),0) -> 2 | AO135: =IFERROR(VLOOKUP($A135,Filtros!$A$5:$AY$22116,39,FALSE),0) -> 5 | AP135: =IFERROR(VLOOKUP($A135,Filtros!$A$5:$AY$22116,40,FALSE),0) -> 4 | AQ135: =IFERROR(VLOOKUP($A135,Filtros!$A$5:$AY$22116,41,FALSE),0) -> 3 | AR135: =IFERROR(VLOOKUP($A135,Filtros!$A$5:$AY$22116,42,FALSE),0) -> 1 | AS135: =IFERROR(VLOOKUP($A135,Filtros!$A$5:$AY$22116,43,FALSE),0) -> 0 | AT135: =IFERROR(VLOOKUP($A135,Filtros!$A$5:$AY$22116,44,FALSE),0) -> 0 | AU135: =IFERROR(VLOOKUP($A135,Filtros!$A$5:$AY$22116,45,FALSE),0) -> 0 | AV135: =IFERROR(VLOOKUP($A135,Filtros!$A$5:$AY$22116,46,FALSE),0) -> 0 | DF135: 0 | DG135: 0 | DH135: 0 | DI135: 0
A136: P2500800 | B136: ENFERMEDADES RENALES CRÓNICAS | D136: =IFERROR(VLOOKUP($A136,Filtros!$A$5:$AY$22116,2,FALSE),0) -> 17 | E136: =IFERROR(VLOOKUP($A136,Filtros!$A$5:$AY$22116,3,FALSE),0) -> 11 | F136: =IFERROR(VLOOKUP($A136,Filtros!$A$5:$AY$22116,4,FALSE),0) -> 6 | G136: =IFERROR(VLOOKUP($A136,Filtros!$A$5:$AY$22116,5,FALSE),0) -> 0 | H136: =IFERROR(VLOOKUP($A136,Filtros!$A$5:$AY$22116,6,FALSE),0) -> 0 | I136: =IFERROR(VLOOKUP($A136,Filtros!$A$5:$AY$22116,7,FALSE),0) -> 0 | J136: =IFERROR(VLOOKUP($A136,Filtros!$A$5:$AY$22116,8,FALSE),0) -> 0 | K136: =IFERROR(VLOOKUP($A136,Filtros!$A$5:$AY$22116,9,FALSE),0) -> 0 | L136: =IFERROR(VLOOKUP($A136,Filtros!$A$5:$AY$22116,10,FALSE),0) -> 0 | M136: =IFERROR(VLOOKUP($A136,Filtros!$A$5:$AY$22116,11,FALSE),0) -> 0 | N136: =IFERROR(VLOOKUP($A136,Filtros!$A$5:$AY$22116,12,FALSE),0) -> 0 | O136: =IFERROR(VLOOKUP($A136,Filtros!$A$5:$AY$22116,13,FALSE),0) -> 1 | P136: =IFERROR(VLOOKUP($A136,Filtros!$A$5:$AY$22116,14,FALSE),0) -> 0 | Q136: =IFERROR(VLOOKUP($A136,Filtros!$A$5:$AY$22116,15,FALSE),0) -> 2 | R136: =IFERROR(VLOOKUP($A136,Filtros!$A$5:$AY$22116,16,FALSE),0) -> 0 | S136: =IFERROR(VLOOKUP($A136,Filtros!$A$5:$AY$22116,17,FALSE),0) -> 0 | T136: =IFERROR(VLOOKUP($A136,Filtros!$A$5:$AY$22116,18,FALSE),0) -> 1 | U136: =IFERROR(VLOOKUP($A136,Filtros!$A$5:$AY$22116,19,FALSE),0) -> 1 | V136: =IFERROR(VLOOKUP($A136,Filtros!$A$5:$AY$22116,20,FALSE),0) -> 0 | W136: =IFERROR(VLOOKUP($A136,Filtros!$A$5:$AY$22116,21,FALSE),0) -> 1 | X136: =IFERROR(VLOOKUP($A136,Filtros!$A$5:$AY$22116,22,FALSE),0) -> 0 | Y136: =IFERROR(VLOOKUP($A136,Filtros!$A$5:$AY$22116,23,FALSE),0) -> 1 | Z136: =IFERROR(VLOOKUP($A136,Filtros!$A$5:$AY$22116,24,FALSE),0) -> 0 | AA136: =IFERROR(VLOOKUP($A136,Filtros!$A$5:$AY$22116,25,FALSE),0) -> 0 | AB136: =IFERROR(VLOOKUP($A136,Filtros!$A$5:$AY$22116,26,FALSE),0) -> 1 | AC136: =IFERROR(VLOOKUP($A136,Filtros!$A$5:$AY$22116,27,FALSE),0) -> 1 | AD136: =IFERROR(VLOOKUP($A136,Filtros!$A$5:$AY$22116,28,FALSE),0) -> 0 | AE136: =IFERROR(VLOOKUP($A136,Filtros!$A$5:$AY$22116,29,FALSE),0) -> 2 | AF136: =IFERROR(VLOOKUP($A136,Filtros!$A$5:$AY$22116,30,FALSE),0) -> 2 | AG136: =IFERROR(VLOOKUP($A136,Filtros!$A$5:$AY$22116,31,FALSE),0) -> 1 | AH136: =IFERROR(VLOOKUP($A136,Filtros!$A$5:$AY$22116,32,FALSE),0) -> 1 | AI136: =IFERROR(VLOOKUP($A136,Filtros!$A$5:$AY$22116,33,FALSE),0) -> 1 | AJ136: =IFERROR(VLOOKUP($A136,Filtros!$A$5:$AY$22116,34,FALSE),0) -> 0 | AK136: =IFERROR(VLOOKUP($A136,Filtros!$A$5:$AY$22116,35,FALSE),0) -> 0 | AL136: =IFERROR(VLOOKUP($A136,Filtros!$A$5:$AY$22116,36,FALSE),0) -> 1 | AM136: =IFERROR(VLOOKUP($A136,Filtros!$A$5:$AY$22116,37,FALSE),0) -> 0 | AN136: =IFERROR(VLOOKUP($A136,Filtros!$A$5:$AY$22116,38,FALSE),0) -> 0 | AO136: =IFERROR(VLOOKUP($A136,Filtros!$A$5:$AY$22116,39,FALSE),0) -> 0 | AP136: =IFERROR(VLOOKUP($A136,Filtros!$A$5:$AY$22116,40,FALSE),0) -> 0 | AQ136: =IFERROR(VLOOKUP($A136,Filtros!$A$5:$AY$22116,41,FALSE),0) -> 0 | AR136: =IFERROR(VLOOKUP($A136,Filtros!$A$5:$AY$22116,42,FALSE),0) -> 0 | AS136: =IFERROR(VLOOKUP($A136,Filtros!$A$5:$AY$22116,43,FALSE),0) -> 0 | AT136: =IFERROR(VLOOKUP($A136,Filtros!$A$5:$AY$22116,44,FALSE),0) -> 0 | AU136: =IFERROR(VLOOKUP($A136,Filtros!$A$5:$AY$22116,45,FALSE),0) -> 0 | AV136: =IFERROR(VLOOKUP($A136,Filtros!$A$5:$AY$22116,46,FALSE),0) -> 0 | AW136: =CG136&CH136&CI136&CJ136 ->  | DF136: 0 | DG136: 0 | DH136: 0 | DI136: 0
A137: P2500900 | B137: ENFERMEDADES CARDIACAS CRÓNICAS | D137: =IFERROR(VLOOKUP($A137,Filtros!$A$5:$AY$22116,2,FALSE),0) -> 43 | E137: =IFERROR(VLOOKUP($A137,Filtros!$A$5:$AY$22116,3,FALSE),0) -> 21 | F137: =IFERROR(VLOOKUP($A137,Filtros!$A$5:$AY$22116,4,FALSE),0) -> 22 | G137: =IFERROR(VLOOKUP($A137,Filtros!$A$5:$AY$22116,5,FALSE),0) -> 0 | H137: =IFERROR(VLOOKUP($A137,Filtros!$A$5:$AY$22116,6,FALSE),0) -> 0 | I137: =IFERROR(VLOOKUP($A137,Filtros!$A$5:$AY$22116,7,FALSE),0) -> 0 | J137: =IFERROR(VLOOKUP($A137,Filtros!$A$5:$AY$22116,8,FALSE),0) -> 0 | K137: =IFERROR(VLOOKUP($A137,Filtros!$A$5:$AY$22116,9,FALSE),0) -> 1 | L137: =IFERROR(VLOOKUP($A137,Filtros!$A$5:$AY$22116,10,FALSE),0) -> 2 | M137: =IFERROR(VLOOKUP($A137,Filtros!$A$5:$AY$22116,11,FALSE),0) -> 0 | N137: =IFERROR(VLOOKUP($A137,Filtros!$A$5:$AY$22116,12,FALSE),0) -> 1 | O137: =IFERROR(VLOOKUP($A137,Filtros!$A$5:$AY$22116,13,FALSE),0) -> 0 | P137: =IFERROR(VLOOKUP($A137,Filtros!$A$5:$AY$22116,14,FALSE),0) -> 0 | Q137: =IFERROR(VLOOKUP($A137,Filtros!$A$5:$AY$22116,15,FALSE),0) -> 1 | R137: =IFERROR(VLOOKUP($A137,Filtros!$A$5:$AY$22116,16,FALSE),0) -> 1 | S137: =IFERROR(VLOOKUP($A137,Filtros!$A$5:$AY$22116,17,FALSE),0) -> 0 | T137: =IFERROR(VLOOKUP($A137,Filtros!$A$5:$AY$22116,18,FALSE),0) -> 1 | U137: =IFERROR(VLOOKUP($A137,Filtros!$A$5:$AY$22116,19,FALSE),0) -> 3 | V137: =IFERROR(VLOOKUP($A137,Filtros!$A$5:$AY$22116,20,FALSE),0) -> 1 | W137: =IFERROR(VLOOKUP($A137,Filtros!$A$5:$AY$22116,21,FALSE),0) -> 4 | X137: =IFERROR(VLOOKUP($A137,Filtros!$A$5:$AY$22116,22,FALSE),0) -> 1 | Y137: =IFERROR(VLOOKUP($A137,Filtros!$A$5:$AY$22116,23,FALSE),0) -> 0 | Z137: =IFERROR(VLOOKUP($A137,Filtros!$A$5:$AY$22116,24,FALSE),0) -> 1 | AA137: =IFERROR(VLOOKUP($A137,Filtros!$A$5:$AY$22116,25,FALSE),0) -> 3 | AB137: =IFERROR(VLOOKUP($A137,Filtros!$A$5:$AY$22116,26,FALSE),0) -> 4 | AC137: =IFERROR(VLOOKUP($A137,Filtros!$A$5:$AY$22116,27,FALSE),0) -> 0 | AD137: =IFERROR(VLOOKUP($A137,Filtros!$A$5:$AY$22116,28,FALSE),0) -> 1 | AE137: =IFERROR(VLOOKUP($A137,Filtros!$A$5:$AY$22116,29,FALSE),0) -> 0 | AF137: =IFERROR(VLOOKUP($A137,Filtros!$A$5:$AY$22116,30,FALSE),0) -> 0 | AG137: =IFERROR(VLOOKUP($A137,Filtros!$A$5:$AY$22116,31,FALSE),0) -> 1 | AH137: =IFERROR(VLOOKUP($A137,Filtros!$A$5:$AY$22116,32,FALSE),0) -> 1 | AI137: =IFERROR(VLOOKUP($A137,Filtros!$A$5:$AY$22116,33,FALSE),0) -> 3 | AJ137: =IFERROR(VLOOKUP($A137,Filtros!$A$5:$AY$22116,34,FALSE),0) -> 2 | AK137: =IFERROR(VLOOKUP($A137,Filtros!$A$5:$AY$22116,35,FALSE),0) -> 2 | AL137: =IFERROR(VLOOKUP($A137,Filtros!$A$5:$AY$22116,36,FALSE),0) -> 5 | AM137: =IFERROR(VLOOKUP($A137,Filtros!$A$5:$AY$22116,37,FALSE),0) -> 3 | AN137: =IFERROR(VLOOKUP($A137,Filtros!$A$5:$AY$22116,38,FALSE),0) -> 1 | AO137: =IFERROR(VLOOKUP($A137,Filtros!$A$5:$AY$22116,39,FALSE),0) -> 0 | AP137: =IFERROR(VLOOKUP($A137,Filtros!$A$5:$AY$22116,40,FALSE),0) -> 0 | AQ137: =IFERROR(VLOOKUP($A137,Filtros!$A$5:$AY$22116,41,FALSE),0) -> 0 | AR137: =IFERROR(VLOOKUP($A137,Filtros!$A$5:$AY$22116,42,FALSE),0) -> 0 | AS137: =IFERROR(VLOOKUP($A137,Filtros!$A$5:$AY$22116,43,FALSE),0) -> 0 | AT137: =IFERROR(VLOOKUP($A137,Filtros!$A$5:$AY$22116,44,FALSE),0) -> 0 | AU137: =IFERROR(VLOOKUP($A137,Filtros!$A$5:$AY$22116,45,FALSE),0) -> 0 | AV137: =IFERROR(VLOOKUP($A137,Filtros!$A$5:$AY$22116,46,FALSE),0) -> 0 | DF137: 0 | DG137: 0 | DH137: 0 | DI137: 0
A138: P2501000 | B138: ENFERMEDADES GÁSTRICAS CRÓNICAS | D138: =IFERROR(VLOOKUP($A138,Filtros!$A$5:$AY$22116,2,FALSE),0) -> 30 | E138: =IFERROR(VLOOKUP($A138,Filtros!$A$5:$AY$22116,3,FALSE),0) -> 13 | F138: =IFERROR(VLOOKUP($A138,Filtros!$A$5:$AY$22116,4,FALSE),0) -> 17 | G138: =IFERROR(VLOOKUP($A138,Filtros!$A$5:$AY$22116,5,FALSE),0) -> 0 | H138: =IFERROR(VLOOKUP($A138,Filtros!$A$5:$AY$22116,6,FALSE),0) -> 0 | I138: =IFERROR(VLOOKUP($A138,Filtros!$A$5:$AY$22116,7,FALSE),0) -> 0 | J138: =IFERROR(VLOOKUP($A138,Filtros!$A$5:$AY$22116,8,FALSE),0) -> 0 | K138: =IFERROR(VLOOKUP($A138,Filtros!$A$5:$AY$22116,9,FALSE),0) -> 0 | L138: =IFERROR(VLOOKUP($A138,Filtros!$A$5:$AY$22116,10,FALSE),0) -> 0 | M138: =IFERROR(VLOOKUP($A138,Filtros!$A$5:$AY$22116,11,FALSE),0) -> 0 | N138: =IFERROR(VLOOKUP($A138,Filtros!$A$5:$AY$22116,12,FALSE),0) -> 1 | O138: =IFERROR(VLOOKUP($A138,Filtros!$A$5:$AY$22116,13,FALSE),0) -> 0 | P138: =IFERROR(VLOOKUP($A138,Filtros!$A$5:$AY$22116,14,FALSE),0) -> 0 | Q138: =IFERROR(VLOOKUP($A138,Filtros!$A$5:$AY$22116,15,FALSE),0) -> 1 | R138: =IFERROR(VLOOKUP($A138,Filtros!$A$5:$AY$22116,16,FALSE),0) -> 0 | S138: =IFERROR(VLOOKUP($A138,Filtros!$A$5:$AY$22116,17,FALSE),0) -> 0 | T138: =IFERROR(VLOOKUP($A138,Filtros!$A$5:$AY$22116,18,FALSE),0) -> 0 | U138: =IFERROR(VLOOKUP($A138,Filtros!$A$5:$AY$22116,19,FALSE),0) -> 0 | V138: =IFERROR(VLOOKUP($A138,Filtros!$A$5:$AY$22116,20,FALSE),0) -> 2 | W138: =IFERROR(VLOOKUP($A138,Filtros!$A$5:$AY$22116,21,FALSE),0) -> 0 | X138: =IFERROR(VLOOKUP($A138,Filtros!$A$5:$AY$22116,22,FALSE),0) -> 1 | Y138: =IFERROR(VLOOKUP($A138,Filtros!$A$5:$AY$22116,23,FALSE),0) -> 2 | Z138: =IFERROR(VLOOKUP($A138,Filtros!$A$5:$AY$22116,24,FALSE),0) -> 1 | AA138: =IFERROR(VLOOKUP($A138,Filtros!$A$5:$AY$22116,25,FALSE),0) -> 1 | AB138: =IFERROR(VLOOKUP($A138,Filtros!$A$5:$AY$22116,26,FALSE),0) -> 2 | AC138: =IFERROR(VLOOKUP($A138,Filtros!$A$5:$AY$22116,27,FALSE),0) -> 1 | AD138: =IFERROR(VLOOKUP($A138,Filtros!$A$5:$AY$22116,28,FALSE),0) -> 0 | AE138: =IFERROR(VLOOKUP($A138,Filtros!$A$5:$AY$22116,29,FALSE),0) -> 1 | AF138: =IFERROR(VLOOKUP($A138,Filtros!$A$5:$AY$22116,30,FALSE),0) -> 0 | AG138: =IFERROR(VLOOKUP($A138,Filtros!$A$5:$AY$22116,31,FALSE),0) -> 1 | AH138: =IFERROR(VLOOKUP($A138,Filtros!$A$5:$AY$22116,32,FALSE),0) -> 0 | AI138: =IFERROR(VLOOKUP($A138,Filtros!$A$5:$AY$22116,33,FALSE),0) -> 0 | AJ138: =IFERROR(VLOOKUP($A138,Filtros!$A$5:$AY$22116,34,FALSE),0) -> 6 | AK138: =IFERROR(VLOOKUP($A138,Filtros!$A$5:$AY$22116,35,FALSE),0) -> 2 | AL138: =IFERROR(VLOOKUP($A138,Filtros!$A$5:$AY$22116,36,FALSE),0) -> 2 | AM138: =IFERROR(VLOOKUP($A138,Filtros!$A$5:$AY$22116,37,FALSE),0) -> 4 | AN138: =IFERROR(VLOOKUP($A138,Filtros!$A$5:$AY$22116,38,FALSE),0) -> 1 | AO138: =IFERROR(VLOOKUP($A138,Filtros!$A$5:$AY$22116,39,FALSE),0) -> 0 | AP138: =IFERROR(VLOOKUP($A138,Filtros!$A$5:$AY$22116,40,FALSE),0) -> 1 | AQ138: =IFERROR(VLOOKUP($A138,Filtros!$A$5:$AY$22116,41,FALSE),0) -> 0 | AR138: =IFERROR(VLOOKUP($A138,Filtros!$A$5:$AY$22116,42,FALSE),0) -> 0 | AS138: =IFERROR(VLOOKUP($A138,Filtros!$A$5:$AY$22116,43,FALSE),0) -> 0 | AT138: =IFERROR(VLOOKUP($A138,Filtros!$A$5:$AY$22116,44,FALSE),0) -> 0 | AU138: =IFERROR(VLOOKUP($A138,Filtros!$A$5:$AY$22116,45,FALSE),0) -> 0 | AV138: =IFERROR(VLOOKUP($A138,Filtros!$A$5:$AY$22116,46,FALSE),0) -> 0 | DF138: 0 | DG138: 0 | DH138: 0 | DI138: 0
A139: P2501100 | B139: ENFERMEDADES DEL OJO | D139: =IFERROR(VLOOKUP($A139,Filtros!$A$5:$AY$22116,2,FALSE),0) -> 26 | E139: =IFERROR(VLOOKUP($A139,Filtros!$A$5:$AY$22116,3,FALSE),0) -> 13 | F139: =IFERROR(VLOOKUP($A139,Filtros!$A$5:$AY$22116,4,FALSE),0) -> 13 | G139: =IFERROR(VLOOKUP($A139,Filtros!$A$5:$AY$22116,5,FALSE),0) -> 0 | H139: =IFERROR(VLOOKUP($A139,Filtros!$A$5:$AY$22116,6,FALSE),0) -> 0 | I139: =IFERROR(VLOOKUP($A139,Filtros!$A$5:$AY$22116,7,FALSE),0) -> 0 | J139: =IFERROR(VLOOKUP($A139,Filtros!$A$5:$AY$22116,8,FALSE),0) -> 0 | K139: =IFERROR(VLOOKUP($A139,Filtros!$A$5:$AY$22116,9,FALSE),0) -> 0 | L139: =IFERROR(VLOOKUP($A139,Filtros!$A$5:$AY$22116,10,FALSE),0) -> 0 | M139: =IFERROR(VLOOKUP($A139,Filtros!$A$5:$AY$22116,11,FALSE),0) -> 0 | N139: =IFERROR(VLOOKUP($A139,Filtros!$A$5:$AY$22116,12,FALSE),0) -> 1 | O139: =IFERROR(VLOOKUP($A139,Filtros!$A$5:$AY$22116,13,FALSE),0) -> 1 | P139: =IFERROR(VLOOKUP($A139,Filtros!$A$5:$AY$22116,14,FALSE),0) -> 1 | Q139: =IFERROR(VLOOKUP($A139,Filtros!$A$5:$AY$22116,15,FALSE),0) -> 0 | R139: =IFERROR(VLOOKUP($A139,Filtros!$A$5:$AY$22116,16,FALSE),0) -> 0 | S139: =IFERROR(VLOOKUP($A139,Filtros!$A$5:$AY$22116,17,FALSE),0) -> 0 | T139: =IFERROR(VLOOKUP($A139,Filtros!$A$5:$AY$22116,18,FALSE),0) -> 0 | U139: =IFERROR(VLOOKUP($A139,Filtros!$A$5:$AY$22116,19,FALSE),0) -> 0 | V139: =IFERROR(VLOOKUP($A139,Filtros!$A$5:$AY$22116,20,FALSE),0) -> 0 | W139: =IFERROR(VLOOKUP($A139,Filtros!$A$5:$AY$22116,21,FALSE),0) -> 0 | X139: =IFERROR(VLOOKUP($A139,Filtros!$A$5:$AY$22116,22,FALSE),0) -> 0 | Y139: =IFERROR(VLOOKUP($A139,Filtros!$A$5:$AY$22116,23,FALSE),0) -> 0 | Z139: =IFERROR(VLOOKUP($A139,Filtros!$A$5:$AY$22116,24,FALSE),0) -> 1 | AA139: =IFERROR(VLOOKUP($A139,Filtros!$A$5:$AY$22116,25,FALSE),0) -> 0 | AB139: =IFERROR(VLOOKUP($A139,Filtros!$A$5:$AY$22116,26,FALSE),0) -> 2 | AC139: =IFERROR(VLOOKUP($A139,Filtros!$A$5:$AY$22116,27,FALSE),0) -> 1 | AD139: =IFERROR(VLOOKUP($A139,Filtros!$A$5:$AY$22116,28,FALSE),0) -> 1 | AE139: =IFERROR(VLOOKUP($A139,Filtros!$A$5:$AY$22116,29,FALSE),0) -> 0 | AF139: =IFERROR(VLOOKUP($A139,Filtros!$A$5:$AY$22116,30,FALSE),0) -> 0 | AG139: =IFERROR(VLOOKUP($A139,Filtros!$A$5:$AY$22116,31,FALSE),0) -> 3 | AH139: =IFERROR(VLOOKUP($A139,Filtros!$A$5:$AY$22116,32,FALSE),0) -> 1 | AI139: =IFERROR(VLOOKUP($A139,Filtros!$A$5:$AY$22116,33,FALSE),0) -> 3 | AJ139: =IFERROR(VLOOKUP($A139,Filtros!$A$5:$AY$22116,34,FALSE),0) -> 1 | AK139: =IFERROR(VLOOKUP($A139,Filtros!$A$5:$AY$22116,35,FALSE),0) -> 1 | AL139: =IFERROR(VLOOKUP($A139,Filtros!$A$5:$AY$22116,36,FALSE),0) -> 2 | AM139: =IFERROR(VLOOKUP($A139,Filtros!$A$5:$AY$22116,37,FALSE),0) -> 2 | AN139: =IFERROR(VLOOKUP($A139,Filtros!$A$5:$AY$22116,38,FALSE),0) -> 2 | AO139: =IFERROR(VLOOKUP($A139,Filtros!$A$5:$AY$22116,39,FALSE),0) -> 2 | AP139: =IFERROR(VLOOKUP($A139,Filtros!$A$5:$AY$22116,40,FALSE),0) -> 1 | AQ139: =IFERROR(VLOOKUP($A139,Filtros!$A$5:$AY$22116,41,FALSE),0) -> 0 | AR139: =IFERROR(VLOOKUP($A139,Filtros!$A$5:$AY$22116,42,FALSE),0) -> 0 | AS139: =IFERROR(VLOOKUP($A139,Filtros!$A$5:$AY$22116,43,FALSE),0) -> 0 | AT139: =IFERROR(VLOOKUP($A139,Filtros!$A$5:$AY$22116,44,FALSE),0) -> 0 | AU139: =IFERROR(VLOOKUP($A139,Filtros!$A$5:$AY$22116,45,FALSE),0) -> 0 | AV139: =IFERROR(VLOOKUP($A139,Filtros!$A$5:$AY$22116,46,FALSE),0) -> 0 | DF139: 0 | DG139: 0 | DH139: 0 | DI139: 0
A140: P2501200 | B140: ENFERMEDADES DEL OÍDO | D140: =IFERROR(VLOOKUP($A140,Filtros!$A$5:$AY$22116,2,FALSE),0) -> 24 | E140: =IFERROR(VLOOKUP($A140,Filtros!$A$5:$AY$22116,3,FALSE),0) -> 16 | F140: =IFERROR(VLOOKUP($A140,Filtros!$A$5:$AY$22116,4,FALSE),0) -> 8 | G140: =IFERROR(VLOOKUP($A140,Filtros!$A$5:$AY$22116,5,FALSE),0) -> 0 | H140: =IFERROR(VLOOKUP($A140,Filtros!$A$5:$AY$22116,6,FALSE),0) -> 0 | I140: =IFERROR(VLOOKUP($A140,Filtros!$A$5:$AY$22116,7,FALSE),0) -> 0 | J140: =IFERROR(VLOOKUP($A140,Filtros!$A$5:$AY$22116,8,FALSE),0) -> 0 | K140: =IFERROR(VLOOKUP($A140,Filtros!$A$5:$AY$22116,9,FALSE),0) -> 0 | L140: =IFERROR(VLOOKUP($A140,Filtros!$A$5:$AY$22116,10,FALSE),0) -> 0 | M140: =IFERROR(VLOOKUP($A140,Filtros!$A$5:$AY$22116,11,FALSE),0) -> 0 | N140: =IFERROR(VLOOKUP($A140,Filtros!$A$5:$AY$22116,12,FALSE),0) -> 1 | O140: =IFERROR(VLOOKUP($A140,Filtros!$A$5:$AY$22116,13,FALSE),0) -> 1 | P140: =IFERROR(VLOOKUP($A140,Filtros!$A$5:$AY$22116,14,FALSE),0) -> 0 | Q140: =IFERROR(VLOOKUP($A140,Filtros!$A$5:$AY$22116,15,FALSE),0) -> 0 | R140: =IFERROR(VLOOKUP($A140,Filtros!$A$5:$AY$22116,16,FALSE),0) -> 1 | S140: =IFERROR(VLOOKUP($A140,Filtros!$A$5:$AY$22116,17,FALSE),0) -> 0 | T140: =IFERROR(VLOOKUP($A140,Filtros!$A$5:$AY$22116,18,FALSE),0) -> 0 | U140: =IFERROR(VLOOKUP($A140,Filtros!$A$5:$AY$22116,19,FALSE),0) -> 0 | V140: =IFERROR(VLOOKUP($A140,Filtros!$A$5:$AY$22116,20,FALSE),0) -> 0 | W140: =IFERROR(VLOOKUP($A140,Filtros!$A$5:$AY$22116,21,FALSE),0) -> 1 | X140: =IFERROR(VLOOKUP($A140,Filtros!$A$5:$AY$22116,22,FALSE),0) -> 1 | Y140: =IFERROR(VLOOKUP($A140,Filtros!$A$5:$AY$22116,23,FALSE),0) -> 2 | Z140: =IFERROR(VLOOKUP($A140,Filtros!$A$5:$AY$22116,24,FALSE),0) -> 0 | AA140: =IFERROR(VLOOKUP($A140,Filtros!$A$5:$AY$22116,25,FALSE),0) -> 1 | AB140: =IFERROR(VLOOKUP($A140,Filtros!$A$5:$AY$22116,26,FALSE),0) -> 1 | AC140: =IFERROR(VLOOKUP($A140,Filtros!$A$5:$AY$22116,27,FALSE),0) -> 0 | AD140: =IFERROR(VLOOKUP($A140,Filtros!$A$5:$AY$22116,28,FALSE),0) -> 0 | AE140: =IFERROR(VLOOKUP($A140,Filtros!$A$5:$AY$22116,29,FALSE),0) -> 2 | AF140: =IFERROR(VLOOKUP($A140,Filtros!$A$5:$AY$22116,30,FALSE),0) -> 1 | AG140: =IFERROR(VLOOKUP($A140,Filtros!$A$5:$AY$22116,31,FALSE),0) -> 1 | AH140: =IFERROR(VLOOKUP($A140,Filtros!$A$5:$AY$22116,32,FALSE),0) -> 0 | AI140: =IFERROR(VLOOKUP($A140,Filtros!$A$5:$AY$22116,33,FALSE),0) -> 2 | AJ140: =IFERROR(VLOOKUP($A140,Filtros!$A$5:$AY$22116,34,FALSE),0) -> 0 | AK140: =IFERROR(VLOOKUP($A140,Filtros!$A$5:$AY$22116,35,FALSE),0) -> 2 | AL140: =IFERROR(VLOOKUP($A140,Filtros!$A$5:$AY$22116,36,FALSE),0) -> 2 | AM140: =IFERROR(VLOOKUP($A140,Filtros!$A$5:$AY$22116,37,FALSE),0) -> 2 | AN140: =IFERROR(VLOOKUP($A140,Filtros!$A$5:$AY$22116,38,FALSE),0) -> 0 | AO140: =IFERROR(VLOOKUP($A140,Filtros!$A$5:$AY$22116,39,FALSE),0) -> 2 | AP140: =IFERROR(VLOOKUP($A140,Filtros!$A$5:$AY$22116,40,FALSE),0) -> 1 | AQ140: =IFERROR(VLOOKUP($A140,Filtros!$A$5:$AY$22116,41,FALSE),0) -> 0 | AR140: =IFERROR(VLOOKUP($A140,Filtros!$A$5:$AY$22116,42,FALSE),0) -> 0 | AS140: =IFERROR(VLOOKUP($A140,Filtros!$A$5:$AY$22116,43,FALSE),0) -> 0 | AT140: =IFERROR(VLOOKUP($A140,Filtros!$A$5:$AY$22116,44,FALSE),0) -> 0 | AU140: =IFERROR(VLOOKUP($A140,Filtros!$A$5:$AY$22116,45,FALSE),0) -> 0 | AV140: =IFERROR(VLOOKUP($A140,Filtros!$A$5:$AY$22116,46,FALSE),0) -> 0 | DF140: 0 | DG140: 0 | DH140: 0 | DI140: 0
A141: P2501300 | B141: ENFERMEDADES DE LA PIEL | D141: =IFERROR(VLOOKUP($A141,Filtros!$A$5:$AY$22116,2,FALSE),0) -> 3 | E141: =IFERROR(VLOOKUP($A141,Filtros!$A$5:$AY$22116,3,FALSE),0) -> 1 | F141: =IFERROR(VLOOKUP($A141,Filtros!$A$5:$AY$22116,4,FALSE),0) -> 2 | G141: =IFERROR(VLOOKUP($A141,Filtros!$A$5:$AY$22116,5,FALSE),0) -> 0 | H141: =IFERROR(VLOOKUP($A141,Filtros!$A$5:$AY$22116,6,FALSE),0) -> 0 | I141: =IFERROR(VLOOKUP($A141,Filtros!$A$5:$AY$22116,7,FALSE),0) -> 0 | J141: =IFERROR(VLOOKUP($A141,Filtros!$A$5:$AY$22116,8,FALSE),0) -> 0 | K141: =IFERROR(VLOOKUP($A141,Filtros!$A$5:$AY$22116,9,FALSE),0) -> 0 | L141: =IFERROR(VLOOKUP($A141,Filtros!$A$5:$AY$22116,10,FALSE),0) -> 0 | M141: =IFERROR(VLOOKUP($A141,Filtros!$A$5:$AY$22116,11,FALSE),0) -> 0 | N141: =IFERROR(VLOOKUP($A141,Filtros!$A$5:$AY$22116,12,FALSE),0) -> 0 | O141: =IFERROR(VLOOKUP($A141,Filtros!$A$5:$AY$22116,13,FALSE),0) -> 0 | P141: =IFERROR(VLOOKUP($A141,Filtros!$A$5:$AY$22116,14,FALSE),0) -> 0 | Q141: =IFERROR(VLOOKUP($A141,Filtros!$A$5:$AY$22116,15,FALSE),0) -> 0 | R141: =IFERROR(VLOOKUP($A141,Filtros!$A$5:$AY$22116,16,FALSE),0) -> 0 | S141: =IFERROR(VLOOKUP($A141,Filtros!$A$5:$AY$22116,17,FALSE),0) -> 0 | T141: =IFERROR(VLOOKUP($A141,Filtros!$A$5:$AY$22116,18,FALSE),0) -> 0 | U141: =IFERROR(VLOOKUP($A141,Filtros!$A$5:$AY$22116,19,FALSE),0) -> 0 | V141: =IFERROR(VLOOKUP($A141,Filtros!$A$5:$AY$22116,20,FALSE),0) -> 0 | W141: =IFERROR(VLOOKUP($A141,Filtros!$A$5:$AY$22116,21,FALSE),0) -> 0 | X141: =IFERROR(VLOOKUP($A141,Filtros!$A$5:$AY$22116,22,FALSE),0) -> 0 | Y141: =IFERROR(VLOOKUP($A141,Filtros!$A$5:$AY$22116,23,FALSE),0) -> 0 | Z141: =IFERROR(VLOOKUP($A141,Filtros!$A$5:$AY$22116,24,FALSE),0) -> 1 | AA141: =IFERROR(VLOOKUP($A141,Filtros!$A$5:$AY$22116,25,FALSE),0) -> 1 | AB141: =IFERROR(VLOOKUP($A141,Filtros!$A$5:$AY$22116,26,FALSE),0) -> 0 | AC141: =IFERROR(VLOOKUP($A141,Filtros!$A$5:$AY$22116,27,FALSE),0) -> 0 | AD141: =IFERROR(VLOOKUP($A141,Filtros!$A$5:$AY$22116,28,FALSE),0) -> 0 | AE141: =IFERROR(VLOOKUP($A141,Filtros!$A$5:$AY$22116,29,FALSE),0) -> 0 | AF141: =IFERROR(VLOOKUP($A141,Filtros!$A$5:$AY$22116,30,FALSE),0) -> 0 | AG141: =IFERROR(VLOOKUP($A141,Filtros!$A$5:$AY$22116,31,FALSE),0) -> 0 | AH141: =IFERROR(VLOOKUP($A141,Filtros!$A$5:$AY$22116,32,FALSE),0) -> 1 | AI141: =IFERROR(VLOOKUP($A141,Filtros!$A$5:$AY$22116,33,FALSE),0) -> 0 | AJ141: =IFERROR(VLOOKUP($A141,Filtros!$A$5:$AY$22116,34,FALSE),0) -> 0 | AK141: =IFERROR(VLOOKUP($A141,Filtros!$A$5:$AY$22116,35,FALSE),0) -> 0 | AL141: =IFERROR(VLOOKUP($A141,Filtros!$A$5:$AY$22116,36,FALSE),0) -> 0 | AM141: =IFERROR(VLOOKUP($A141,Filtros!$A$5:$AY$22116,37,FALSE),0) -> 0 | AN141: =IFERROR(VLOOKUP($A141,Filtros!$A$5:$AY$22116,38,FALSE),0) -> 0 | AO141: =IFERROR(VLOOKUP($A141,Filtros!$A$5:$AY$22116,39,FALSE),0) -> 0 | AP141: =IFERROR(VLOOKUP($A141,Filtros!$A$5:$AY$22116,40,FALSE),0) -> 0 | AQ141: =IFERROR(VLOOKUP($A141,Filtros!$A$5:$AY$22116,41,FALSE),0) -> 0 | AR141: =IFERROR(VLOOKUP($A141,Filtros!$A$5:$AY$22116,42,FALSE),0) -> 0 | AS141: =IFERROR(VLOOKUP($A141,Filtros!$A$5:$AY$22116,43,FALSE),0) -> 0 | AT141: =IFERROR(VLOOKUP($A141,Filtros!$A$5:$AY$22116,44,FALSE),0) -> 0 | AU141: =IFERROR(VLOOKUP($A141,Filtros!$A$5:$AY$22116,45,FALSE),0) -> 0 | AV141: =IFERROR(VLOOKUP($A141,Filtros!$A$5:$AY$22116,46,FALSE),0) -> 0 | DF141: 0 | DG141: 0 | DH141: 0 | DI141: 0
A142: P2501400 | B142: NEOPLASIAS | D142: =IFERROR(VLOOKUP($A142,Filtros!$A$5:$AY$22116,2,FALSE),0) -> 7 | E142: =IFERROR(VLOOKUP($A142,Filtros!$A$5:$AY$22116,3,FALSE),0) -> 1 | F142: =IFERROR(VLOOKUP($A142,Filtros!$A$5:$AY$22116,4,FALSE),0) -> 6 | G142: =IFERROR(VLOOKUP($A142,Filtros!$A$5:$AY$22116,5,FALSE),0) -> 0 | H142: =IFERROR(VLOOKUP($A142,Filtros!$A$5:$AY$22116,6,FALSE),0) -> 0 | I142: =IFERROR(VLOOKUP($A142,Filtros!$A$5:$AY$22116,7,FALSE),0) -> 0 | J142: =IFERROR(VLOOKUP($A142,Filtros!$A$5:$AY$22116,8,FALSE),0) -> 0 | K142: =IFERROR(VLOOKUP($A142,Filtros!$A$5:$AY$22116,9,FALSE),0) -> 0 | L142: =IFERROR(VLOOKUP($A142,Filtros!$A$5:$AY$22116,10,FALSE),0) -> 0 | M142: =IFERROR(VLOOKUP($A142,Filtros!$A$5:$AY$22116,11,FALSE),0) -> 0 | N142: =IFERROR(VLOOKUP($A142,Filtros!$A$5:$AY$22116,12,FALSE),0) -> 0 | O142: =IFERROR(VLOOKUP($A142,Filtros!$A$5:$AY$22116,13,FALSE),0) -> 0 | P142: =IFERROR(VLOOKUP($A142,Filtros!$A$5:$AY$22116,14,FALSE),0) -> 0 | Q142: =IFERROR(VLOOKUP($A142,Filtros!$A$5:$AY$22116,15,FALSE),0) -> 0 | R142: =IFERROR(VLOOKUP($A142,Filtros!$A$5:$AY$22116,16,FALSE),0) -> 0 | S142: =IFERROR(VLOOKUP($A142,Filtros!$A$5:$AY$22116,17,FALSE),0) -> 0 | T142: =IFERROR(VLOOKUP($A142,Filtros!$A$5:$AY$22116,18,FALSE),0) -> 0 | U142: =IFERROR(VLOOKUP($A142,Filtros!$A$5:$AY$22116,19,FALSE),0) -> 0 | V142: =IFERROR(VLOOKUP($A142,Filtros!$A$5:$AY$22116,20,FALSE),0) -> 0 | W142: =IFERROR(VLOOKUP($A142,Filtros!$A$5:$AY$22116,21,FALSE),0) -> 0 | X142: =IFERROR(VLOOKUP($A142,Filtros!$A$5:$AY$22116,22,FALSE),0) -> 0 | Y142: =IFERROR(VLOOKUP($A142,Filtros!$A$5:$AY$22116,23,FALSE),0) -> 0 | Z142: =IFERROR(VLOOKUP($A142,Filtros!$A$5:$AY$22116,24,FALSE),0) -> 0 | AA142: =IFERROR(VLOOKUP($A142,Filtros!$A$5:$AY$22116,25,FALSE),0) -> 0 | AB142: =IFERROR(VLOOKUP($A142,Filtros!$A$5:$AY$22116,26,FALSE),0) -> 0 | AC142: =IFERROR(VLOOKUP($A142,Filtros!$A$5:$AY$22116,27,FALSE),0) -> 0 | AD142: =IFERROR(VLOOKUP($A142,Filtros!$A$5:$AY$22116,28,FALSE),0) -> 0 | AE142: =IFERROR(VLOOKUP($A142,Filtros!$A$5:$AY$22116,29,FALSE),0) -> 0 | AF142: =IFERROR(VLOOKUP($A142,Filtros!$A$5:$AY$22116,30,FALSE),0) -> 0 | AG142: =IFERROR(VLOOKUP($A142,Filtros!$A$5:$AY$22116,31,FALSE),0) -> 0 | AH142: =IFERROR(VLOOKUP($A142,Filtros!$A$5:$AY$22116,32,FALSE),0) -> 1 | AI142: =IFERROR(VLOOKUP($A142,Filtros!$A$5:$AY$22116,33,FALSE),0) -> 0 | AJ142: =IFERROR(VLOOKUP($A142,Filtros!$A$5:$AY$22116,34,FALSE),0) -> 0 | AK142: =IFERROR(VLOOKUP($A142,Filtros!$A$5:$AY$22116,35,FALSE),0) -> 1 | AL142: =IFERROR(VLOOKUP($A142,Filtros!$A$5:$AY$22116,36,FALSE),0) -> 2 | AM142: =IFERROR(VLOOKUP($A142,Filtros!$A$5:$AY$22116,37,FALSE),0) -> 0 | AN142: =IFERROR(VLOOKUP($A142,Filtros!$A$5:$AY$22116,38,FALSE),0) -> 3 | AO142: =IFERROR(VLOOKUP($A142,Filtros!$A$5:$AY$22116,39,FALSE),0) -> 0 | AP142: =IFERROR(VLOOKUP($A142,Filtros!$A$5:$AY$22116,40,FALSE),0) -> 0 | AQ142: =IFERROR(VLOOKUP($A142,Filtros!$A$5:$AY$22116,41,FALSE),0) -> 0 | AR142: =IFERROR(VLOOKUP($A142,Filtros!$A$5:$AY$22116,42,FALSE),0) -> 0 | AS142: =IFERROR(VLOOKUP($A142,Filtros!$A$5:$AY$22116,43,FALSE),0) -> 0 | AT142: =IFERROR(VLOOKUP($A142,Filtros!$A$5:$AY$22116,44,FALSE),0) -> 0 | AU142: =IFERROR(VLOOKUP($A142,Filtros!$A$5:$AY$22116,45,FALSE),0) -> 0 | AV142: =IFERROR(VLOOKUP($A142,Filtros!$A$5:$AY$22116,46,FALSE),0) -> 0 | DF142: 0 | DG142: 0 | DH142: 0 | DI142: 0
A143: P2501500 | B143: MALFORMACIONES CONGÉNITAS, DEFORMIDADES Y ANOMALÍAS CROMOSÓMICAS | D143: =IFERROR(VLOOKUP($A143,Filtros!$A$5:$AY$22116,2,FALSE),0) -> 210 | E143: =IFERROR(VLOOKUP($A143,Filtros!$A$5:$AY$22116,3,FALSE),0) -> 104 | F143: =IFERROR(VLOOKUP($A143,Filtros!$A$5:$AY$22116,4,FALSE),0) -> 106 | G143: =IFERROR(VLOOKUP($A143,Filtros!$A$5:$AY$22116,5,FALSE),0) -> 0 | H143: =IFERROR(VLOOKUP($A143,Filtros!$A$5:$AY$22116,6,FALSE),0) -> 1 | I143: =IFERROR(VLOOKUP($A143,Filtros!$A$5:$AY$22116,7,FALSE),0) -> 1 | J143: =IFERROR(VLOOKUP($A143,Filtros!$A$5:$AY$22116,8,FALSE),0) -> 0 | K143: =IFERROR(VLOOKUP($A143,Filtros!$A$5:$AY$22116,9,FALSE),0) -> 1 | L143: =IFERROR(VLOOKUP($A143,Filtros!$A$5:$AY$22116,10,FALSE),0) -> 0 | M143: =IFERROR(VLOOKUP($A143,Filtros!$A$5:$AY$22116,11,FALSE),0) -> 1 | N143: =IFERROR(VLOOKUP($A143,Filtros!$A$5:$AY$22116,12,FALSE),0) -> 1 | O143: =IFERROR(VLOOKUP($A143,Filtros!$A$5:$AY$22116,13,FALSE),0) -> 0 | P143: =IFERROR(VLOOKUP($A143,Filtros!$A$5:$AY$22116,14,FALSE),0) -> 0 | Q143: =IFERROR(VLOOKUP($A143,Filtros!$A$5:$AY$22116,15,FALSE),0) -> 3 | R143: =IFERROR(VLOOKUP($A143,Filtros!$A$5:$AY$22116,16,FALSE),0) -> 0 | S143: =IFERROR(VLOOKUP($A143,Filtros!$A$5:$AY$22116,17,FALSE),0) -> 3 | T143: =IFERROR(VLOOKUP($A143,Filtros!$A$5:$AY$22116,18,FALSE),0) -> 0 | U143: =IFERROR(VLOOKUP($A143,Filtros!$A$5:$AY$22116,19,FALSE),0) -> 3 | V143: =IFERROR(VLOOKUP($A143,Filtros!$A$5:$AY$22116,20,FALSE),0) -> 7 | W143: =IFERROR(VLOOKUP($A143,Filtros!$A$5:$AY$22116,21,FALSE),0) -> 8 | X143: =IFERROR(VLOOKUP($A143,Filtros!$A$5:$AY$22116,22,FALSE),0) -> 12 | Y143: =IFERROR(VLOOKUP($A143,Filtros!$A$5:$AY$22116,23,FALSE),0) -> 1 | Z143: =IFERROR(VLOOKUP($A143,Filtros!$A$5:$AY$22116,24,FALSE),0) -> 5 | AA143: =IFERROR(VLOOKUP($A143,Filtros!$A$5:$AY$22116,25,FALSE),0) -> 3 | AB143: =IFERROR(VLOOKUP($A143,Filtros!$A$5:$AY$22116,26,FALSE),0) -> 9 | AC143: =IFERROR(VLOOKUP($A143,Filtros!$A$5:$AY$22116,27,FALSE),0) -> 8 | AD143: =IFERROR(VLOOKUP($A143,Filtros!$A$5:$AY$22116,28,FALSE),0) -> 10 | AE143: =IFERROR(VLOOKUP($A143,Filtros!$A$5:$AY$22116,29,FALSE),0) -> 4 | AF143: =IFERROR(VLOOKUP($A143,Filtros!$A$5:$AY$22116,30,FALSE),0) -> 3 | AG143: =IFERROR(VLOOKUP($A143,Filtros!$A$5:$AY$22116,31,FALSE),0) -> 12 | AH143: =IFERROR(VLOOKUP($A143,Filtros!$A$5:$AY$22116,32,FALSE),0) -> 10 | AI143: =IFERROR(VLOOKUP($A143,Filtros!$A$5:$AY$22116,33,FALSE),0) -> 16 | AJ143: =IFERROR(VLOOKUP($A143,Filtros!$A$5:$AY$22116,34,FALSE),0) -> 13 | AK143: =IFERROR(VLOOKUP($A143,Filtros!$A$5:$AY$22116,35,FALSE),0) -> 14 | AL143: =IFERROR(VLOOKUP($A143,Filtros!$A$5:$AY$22116,36,FALSE),0) -> 14 | AM143: =IFERROR(VLOOKUP($A143,Filtros!$A$5:$AY$22116,37,FALSE),0) -> 19 | AN143: =IFERROR(VLOOKUP($A143,Filtros!$A$5:$AY$22116,38,FALSE),0) -> 14 | AO143: =IFERROR(VLOOKUP($A143,Filtros!$A$5:$AY$22116,39,FALSE),0) -> 6 | AP143: =IFERROR(VLOOKUP($A143,Filtros!$A$5:$AY$22116,40,FALSE),0) -> 7 | AQ143: =IFERROR(VLOOKUP($A143,Filtros!$A$5:$AY$22116,41,FALSE),0) -> 1 | AR143: =IFERROR(VLOOKUP($A143,Filtros!$A$5:$AY$22116,42,FALSE),0) -> 0 | AS143: =IFERROR(VLOOKUP($A143,Filtros!$A$5:$AY$22116,43,FALSE),0) -> 0 | AT143: =IFERROR(VLOOKUP($A143,Filtros!$A$5:$AY$22116,44,FALSE),0) -> 0 | AU143: =IFERROR(VLOOKUP($A143,Filtros!$A$5:$AY$22116,45,FALSE),0) -> 1 | AV143: =IFERROR(VLOOKUP($A143,Filtros!$A$5:$AY$22116,46,FALSE),0) -> 0 | DF143: 0 | DG143: 0 | DH143: 0 | DI143: 0
A144: P2501600 | B144: PREMATUROS | D144: =IFERROR(VLOOKUP($A144,Filtros!$A$5:$AY$22116,2,FALSE),0) -> 1363 | E144: =IFERROR(VLOOKUP($A144,Filtros!$A$5:$AY$22116,3,FALSE),0) -> 727 | F144: =IFERROR(VLOOKUP($A144,Filtros!$A$5:$AY$22116,4,FALSE),0) -> 636 | G144: =IFERROR(VLOOKUP($A144,Filtros!$A$5:$AY$22116,5,FALSE),0) -> 2 | H144: =IFERROR(VLOOKUP($A144,Filtros!$A$5:$AY$22116,6,FALSE),0) -> 0 | I144: =IFERROR(VLOOKUP($A144,Filtros!$A$5:$AY$22116,7,FALSE),0) -> 5 | J144: =IFERROR(VLOOKUP($A144,Filtros!$A$5:$AY$22116,8,FALSE),0) -> 6 | K144: =IFERROR(VLOOKUP($A144,Filtros!$A$5:$AY$22116,9,FALSE),0) -> 13 | L144: =IFERROR(VLOOKUP($A144,Filtros!$A$5:$AY$22116,10,FALSE),0) -> 18 | M144: =IFERROR(VLOOKUP($A144,Filtros!$A$5:$AY$22116,11,FALSE),0) -> 12 | N144: =IFERROR(VLOOKUP($A144,Filtros!$A$5:$AY$22116,12,FALSE),0) -> 10 | O144: =IFERROR(VLOOKUP($A144,Filtros!$A$5:$AY$22116,13,FALSE),0) -> 10 | P144: =IFERROR(VLOOKUP($A144,Filtros!$A$5:$AY$22116,14,FALSE),0) -> 10 | Q144: =IFERROR(VLOOKUP($A144,Filtros!$A$5:$AY$22116,15,FALSE),0) -> 8 | R144: =IFERROR(VLOOKUP($A144,Filtros!$A$5:$AY$22116,16,FALSE),0) -> 15 | S144: =IFERROR(VLOOKUP($A144,Filtros!$A$5:$AY$22116,17,FALSE),0) -> 9 | T144: =IFERROR(VLOOKUP($A144,Filtros!$A$5:$AY$22116,18,FALSE),0) -> 19 | U144: =IFERROR(VLOOKUP($A144,Filtros!$A$5:$AY$22116,19,FALSE),0) -> 55 | V144: =IFERROR(VLOOKUP($A144,Filtros!$A$5:$AY$22116,20,FALSE),0) -> 78 | W144: =IFERROR(VLOOKUP($A144,Filtros!$A$5:$AY$22116,21,FALSE),0) -> 71 | X144: =IFERROR(VLOOKUP($A144,Filtros!$A$5:$AY$22116,22,FALSE),0) -> 59 | Y144: =IFERROR(VLOOKUP($A144,Filtros!$A$5:$AY$22116,23,FALSE),0) -> 57 | Z144: =IFERROR(VLOOKUP($A144,Filtros!$A$5:$AY$22116,24,FALSE),0) -> 56 | AA144: =IFERROR(VLOOKUP($A144,Filtros!$A$5:$AY$22116,25,FALSE),0) -> 108 | AB144: =IFERROR(VLOOKUP($A144,Filtros!$A$5:$AY$22116,26,FALSE),0) -> 97 | AC144: =IFERROR(VLOOKUP($A144,Filtros!$A$5:$AY$22116,27,FALSE),0) -> 57 | AD144: =IFERROR(VLOOKUP($A144,Filtros!$A$5:$AY$22116,28,FALSE),0) -> 48 | AE144: =IFERROR(VLOOKUP($A144,Filtros!$A$5:$AY$22116,29,FALSE),0) -> 38 | AF144: =IFERROR(VLOOKUP($A144,Filtros!$A$5:$AY$22116,30,FALSE),0) -> 29 | AG144: =IFERROR(VLOOKUP($A144,Filtros!$A$5:$AY$22116,31,FALSE),0) -> 88 | AH144: =IFERROR(VLOOKUP($A144,Filtros!$A$5:$AY$22116,32,FALSE),0) -> 58 | AI144: =IFERROR(VLOOKUP($A144,Filtros!$A$5:$AY$22116,33,FALSE),0) -> 72 | AJ144: =IFERROR(VLOOKUP($A144,Filtros!$A$5:$AY$22116,34,FALSE),0) -> 44 | AK144: =IFERROR(VLOOKUP($A144,Filtros!$A$5:$AY$22116,35,FALSE),0) -> 81 | AL144: =IFERROR(VLOOKUP($A144,Filtros!$A$5:$AY$22116,36,FALSE),0) -> 52 | AM144: =IFERROR(VLOOKUP($A144,Filtros!$A$5:$AY$22116,37,FALSE),0) -> 35 | AN144: =IFERROR(VLOOKUP($A144,Filtros!$A$5:$AY$22116,38,FALSE),0) -> 32 | AO144: =IFERROR(VLOOKUP($A144,Filtros!$A$5:$AY$22116,39,FALSE),0) -> 6 | AP144: =IFERROR(VLOOKUP($A144,Filtros!$A$5:$AY$22116,40,FALSE),0) -> 5 | AQ144: =IFERROR(VLOOKUP($A144,Filtros!$A$5:$AY$22116,41,FALSE),0) -> 0 | AR144: =IFERROR(VLOOKUP($A144,Filtros!$A$5:$AY$22116,42,FALSE),0) -> 0 | AS144: =IFERROR(VLOOKUP($A144,Filtros!$A$5:$AY$22116,43,FALSE),0) -> 0 | AT144: =IFERROR(VLOOKUP($A144,Filtros!$A$5:$AY$22116,44,FALSE),0) -> 4 | AU144: =IFERROR(VLOOKUP($A144,Filtros!$A$5:$AY$22116,45,FALSE),0) -> 5 | AV144: =IFERROR(VLOOKUP($A144,Filtros!$A$5:$AY$22116,46,FALSE),0) -> 1 | DF144: 0 | DG144: 0 | DH144: 0 | DI144: 0
A145: P2501700 | B145: HOSPITALIZACIÓN DOMICILIARIA | D145: =IFERROR(VLOOKUP($A145,Filtros!$A$5:$AY$22116,2,FALSE),0) -> 0 | E145: =IFERROR(VLOOKUP($A145,Filtros!$A$5:$AY$22116,3,FALSE),0) -> 0 | F145: =IFERROR(VLOOKUP($A145,Filtros!$A$5:$AY$22116,4,FALSE),0) -> 0 | G145: =IFERROR(VLOOKUP($A145,Filtros!$A$5:$AY$22116,5,FALSE),0) -> 0 | H145: =IFERROR(VLOOKUP($A145,Filtros!$A$5:$AY$22116,6,FALSE),0) -> 0 | I145: =IFERROR(VLOOKUP($A145,Filtros!$A$5:$AY$22116,7,FALSE),0) -> 0 | J145: =IFERROR(VLOOKUP($A145,Filtros!$A$5:$AY$22116,8,FALSE),0) -> 0 | K145: =IFERROR(VLOOKUP($A145,Filtros!$A$5:$AY$22116,9,FALSE),0) -> 0 | L145: =IFERROR(VLOOKUP($A145,Filtros!$A$5:$AY$22116,10,FALSE),0) -> 0 | M145: =IFERROR(VLOOKUP($A145,Filtros!$A$5:$AY$22116,11,FALSE),0) -> 0 | N145: =IFERROR(VLOOKUP($A145,Filtros!$A$5:$AY$22116,12,FALSE),0) -> 0 | O145: =IFERROR(VLOOKUP($A145,Filtros!$A$5:$AY$22116,13,FALSE),0) -> 0 | P145: =IFERROR(VLOOKUP($A145,Filtros!$A$5:$AY$22116,14,FALSE),0) -> 0 | Q145: =IFERROR(VLOOKUP($A145,Filtros!$A$5:$AY$22116,15,FALSE),0) -> 0 | R145: =IFERROR(VLOOKUP($A145,Filtros!$A$5:$AY$22116,16,FALSE),0) -> 0 | S145: =IFERROR(VLOOKUP($A145,Filtros!$A$5:$AY$22116,17,FALSE),0) -> 0 | T145: =IFERROR(VLOOKUP($A145,Filtros!$A$5:$AY$22116,18,FALSE),0) -> 0 | U145: =IFERROR(VLOOKUP($A145,Filtros!$A$5:$AY$22116,19,FALSE),0) -> 0 | V145: =IFERROR(VLOOKUP($A145,Filtros!$A$5:$AY$22116,20,FALSE),0) -> 0 | W145: =IFERROR(VLOOKUP($A145,Filtros!$A$5:$AY$22116,21,FALSE),0) -> 0 | X145: =IFERROR(VLOOKUP($A145,Filtros!$A$5:$AY$22116,22,FALSE),0) -> 0 | Y145: =IFERROR(VLOOKUP($A145,Filtros!$A$5:$AY$22116,23,FALSE),0) -> 0 | Z145: =IFERROR(VLOOKUP($A145,Filtros!$A$5:$AY$22116,24,FALSE),0) -> 0 | AA145: =IFERROR(VLOOKUP($A145,Filtros!$A$5:$AY$22116,25,FALSE),0) -> 0 | AB145: =IFERROR(VLOOKUP($A145,Filtros!$A$5:$AY$22116,26,FALSE),0) -> 0 | AC145: =IFERROR(VLOOKUP($A145,Filtros!$A$5:$AY$22116,27,FALSE),0) -> 0 | AD145: =IFERROR(VLOOKUP($A145,Filtros!$A$5:$AY$22116,28,FALSE),0) -> 0 | AE145: =IFERROR(VLOOKUP($A145,Filtros!$A$5:$AY$22116,29,FALSE),0) -> 0 | AF145: =IFERROR(VLOOKUP($A145,Filtros!$A$5:$AY$22116,30,FALSE),0) -> 0 | AG145: =IFERROR(VLOOKUP($A145,Filtros!$A$5:$AY$22116,31,FALSE),0) -> 0 | AH145: =IFERROR(VLOOKUP($A145,Filtros!$A$5:$AY$22116,32,FALSE),0) -> 0 | AI145: =IFERROR(VLOOKUP($A145,Filtros!$A$5:$AY$22116,33,FALSE),0) -> 0 | AJ145: =IFERROR(VLOOKUP($A145,Filtros!$A$5:$AY$22116,34,FALSE),0) -> 0 | AK145: =IFERROR(VLOOKUP($A145,Filtros!$A$5:$AY$22116,35,FALSE),0) -> 0 | AL145: =IFERROR(VLOOKUP($A145,Filtros!$A$5:$AY$22116,36,FALSE),0) -> 0 | AM145: =IFERROR(VLOOKUP($A145,Filtros!$A$5:$AY$22116,37,FALSE),0) -> 0 | AN145: =IFERROR(VLOOKUP($A145,Filtros!$A$5:$AY$22116,38,FALSE),0) -> 0 | AO145: =IFERROR(VLOOKUP($A145,Filtros!$A$5:$AY$22116,39,FALSE),0) -> 0 | AP145: =IFERROR(VLOOKUP($A145,Filtros!$A$5:$AY$22116,40,FALSE),0) -> 0 | AQ145: =IFERROR(VLOOKUP($A145,Filtros!$A$5:$AY$22116,41,FALSE),0) -> 0 | AR145: =IFERROR(VLOOKUP($A145,Filtros!$A$5:$AY$22116,42,FALSE),0) -> 0 | AS145: =IFERROR(VLOOKUP($A145,Filtros!$A$5:$AY$22116,43,FALSE),0) -> 0 | AT145: =IFERROR(VLOOKUP($A145,Filtros!$A$5:$AY$22116,44,FALSE),0) -> 0 | AU145: =IFERROR(VLOOKUP($A145,Filtros!$A$5:$AY$22116,45,FALSE),0) -> 0 | AV145: =IFERROR(VLOOKUP($A145,Filtros!$A$5:$AY$22116,46,FALSE),0) -> 0 | DF145: 0 | DG145: 0 | DH145: 0 | DI145: 0
B146: TOTAL | D146: =SUM(E146:F146) -> 2331 | E146: =SUM(E129:E145) -> 1316 | F146: =SUM(F129:F145) -> 1015 | G146: =SUM(G129:G145) -> 2 | H146: =SUM(H129:H145) -> 1 | I146: 6 | J146: 6 | K146: 15 | L146: 20 | M146: 13 | N146: 16 | O146: 13 | P146: 13 | Q146: 15 | R146: 17 | S146: 14 | T146: 24 | U146: 64 | V146: 91 | W146: 91 | X146: 88 | Y146: 75 | Z146: 72 | AA146: 153 | AB146: 128 | AC146: 120 | AD146: 81 | AE146: 68 | AF146: 49 | AG146: 165 | AH146: 101 | AI146: 165 | AJ146: 91 | AK146: =SUM(AK129:AK145) -> 178 | AL146: 107 | AM146: 106 | AN146: 76 | AO146: 37 | AP146: 28 | AQ146: =SUM(AQ129:AQ145) -> 16 | AR146: 6 | AS146: 0 | AT146: 5 | AU146: 8 | AV146: 2
B161: =SUM(D11:AL38,D43:N71,D75:F84,D88:M91,D95:D96,D100:D109,F114:L118,D122:J124,D129:AV146) -> 989742 | C161: datos
B162: =SUM(DB11:EA146) -> 15 | C162: errores

Sheet P3
B7: REM-P3. POBLACIÓN EN CONTROL OTROS PROGRAMAS
B8: SECCIÓN A: EXISTENCIA DE POBLACIÓN EN CONTROL
B9: PROGRAMAS | D9: TOTAL | G9: GRUPOS DE EDAD (en años) Y SEXO | AO9: Con espirometría vigente | AP9: Población Migrantes
G10: 0 a 4 años | I10: 5 a 9 años | K10: 10 a 14 años | M10: 15 a 19 años | O10: 20 a 24 años | Q10: 25 a 29 años | S10: 30 a 34 años | U10: 35 a 39 años | W10: 40 a 44 años | Y10: 45 a 49 años | AA10: 50 a 54 años | AC10: 55 a 59 años | AE10: 60 a 64 años | AG10: 65 a 69 años | AI10: 70 a 74 años | AK10: 75 a 79 años | AM10: 80 y más años
D11: Ambos sexos | E11: Hombres | F11: Mujeres | G11: Hombres | H11: Mujeres | I11: Hombres | J11: Mujeres | K11: Hombres | L11: Mujeres | M11: Hombres | N11: Mujeres | O11: Hombres | P11: Mujeres | Q11: Hombres | R11: Mujeres | S11: Hombres | T11: Mujeres | U11: Hombres | V11: Mujeres | W11: Hombres | X11: Mujeres | Y11: Hombres | Z11: Mujeres | AA11: Hombres | AB11: Mujeres | AC11: Hombres | AD11: Mujeres | AE11: Hombres | AF11: Mujeres | AG11: Hombres | AH11: Mujeres | AI11: Hombres | AJ11: Mujeres | AK11: Hombres | AL11: Mujeres | AM11: Hombres | AN11: Mujeres | AP11: Hombres | AQ11: Mujeres
A12: P3160950 | B12: SÍNDROME BRONQUIAL OBSTRUCTIVA RECURRENTE (SBOR) | C12: LEVE | D12: =IFERROR(VLOOKUP($A12,Filtros!$A$5:$AY$22116,2,FALSE),0) -> 440 | E12: =IFERROR(VLOOKUP($A12,Filtros!$A$5:$AY$22116,3,FALSE),0) -> 253 | F12: =IFERROR(VLOOKUP($A12,Filtros!$A$5:$AY$22116,4,FALSE),0) -> 187 | G12: =IFERROR(VLOOKUP($A12,Filtros!$A$5:$AY$22116,5,FALSE),0) -> 253 | H12: =IFERROR(VLOOKUP($A12,Filtros!$A$5:$AY$22116,6,FALSE),0) -> 187 | I12: =IFERROR(VLOOKUP($A12,Filtros!$A$5:$AY$22116,7,FALSE),0) -> 0 | J12: =IFERROR(VLOOKUP($A12,Filtros!$A$5:$AY$22116,8,FALSE),0) -> 0 | K12: =IFERROR(VLOOKUP($A12,Filtros!$A$5:$AY$22116,9,FALSE),0) -> 0 | L12: =IFERROR(VLOOKUP($A12,Filtros!$A$5:$AY$22116,10,FALSE),0) -> 0 | M12: =IFERROR(VLOOKUP($A12,Filtros!$A$5:$AY$22116,11,FALSE),0) -> 0 | N12: =IFERROR(VLOOKUP($A12,Filtros!$A$5:$AY$22116,12,FALSE),0) -> 0 | O12: =IFERROR(VLOOKUP($A12,Filtros!$A$5:$AY$22116,13,FALSE),0) -> 0 | P12: =IFERROR(VLOOKUP($A12,Filtros!$A$5:$AY$22116,14,FALSE),0) -> 0 | Q12: =IFERROR(VLOOKUP($A12,Filtros!$A$5:$AY$22116,15,FALSE),0) -> 0 | R12: =IFERROR(VLOOKUP($A12,Filtros!$A$5:$AY$22116,16,FALSE),0) -> 0 | S12: =IFERROR(VLOOKUP($A12,Filtros!$A$5:$AY$22116,17,FALSE),0) -> 0 | T12: =IFERROR(VLOOKUP($A12,Filtros!$A$5:$AY$22116,18,FALSE),0) -> 0 | U12: =IFERROR(VLOOKUP($A12,Filtros!$A$5:$AY$22116,19,FALSE),0) -> 0 | V12: =IFERROR(VLOOKUP($A12,Filtros!$A$5:$AY$22116,20,FALSE),0) -> 0 | W12: =IFERROR(VLOOKUP($A12,Filtros!$A$5:$AY$22116,21,FALSE),0) -> 0 | X12: =IFERROR(VLOOKUP($A12,Filtros!$A$5:$AY$22116,22,FALSE),0) -> 0 | Y12: =IFERROR(VLOOKUP($A12,Filtros!$A$5:$AY$22116,23,FALSE),0) -> 0 | Z12: =IFERROR(VLOOKUP($A12,Filtros!$A$5:$AY$22116,24,FALSE),0) -> 0 | AA12: =IFERROR(VLOOKUP($A12,Filtros!$A$5:$AY$22116,25,FALSE),0) -> 0 | AB12: =IFERROR(VLOOKUP($A12,Filtros!$A$5:$AY$22116,26,FALSE),0) -> 0 | AC12: =IFERROR(VLOOKUP($A12,Filtros!$A$5:$AY$22116,27,FALSE),0) -> 0 | AD12: =IFERROR(VLOOKUP($A12,Filtros!$A$5:$AY$22116,28,FALSE),0) -> 0 | AE12: =IFERROR(VLOOKUP($A12,Filtros!$A$5:$AY$22116,29,FALSE),0) -> 0 | AF12: =IFERROR(VLOOKUP($A12,Filtros!$A$5:$AY$22116,30,FALSE),0) -> 0 | AG12: =IFERROR(VLOOKUP($A12,Filtros!$A$5:$AY$22116,31,FALSE),0) -> 0 | AH12: =IFERROR(VLOOKUP($A12,Filtros!$A$5:$AY$22116,32,FALSE),0) -> 0 | AI12: =IFERROR(VLOOKUP($A12,Filtros!$A$5:$AY$22116,33,FALSE),0) -> 0 | AJ12: =IFERROR(VLOOKUP($A12,Filtros!$A$5:$AY$22116,34,FALSE),0) -> 0 | AK12: =IFERROR(VLOOKUP($A12,Filtros!$A$5:$AY$22116,35,FALSE),0) -> 0 | AL12: =IFERROR(VLOOKUP($A12,Filtros!$A$5:$AY$22116,36,FALSE),0) -> 0 | AM12: =IFERROR(VLOOKUP($A12,Filtros!$A$5:$AY$22116,37,FALSE),0) -> 0 | AN12: =IFERROR(VLOOKUP($A12,Filtros!$A$5:$AY$22116,38,FALSE),0) -> 0 | AO12: =IFERROR(VLOOKUP($A12,Filtros!$A$5:$AY$22116,39,FALSE),0) -> 0 | AP12: =IFERROR(VLOOKUP($A12,Filtros!$A$5:$AY$22116,40,FALSE),0) -> 1 | AQ12: =IFERROR(VLOOKUP($A12,Filtros!$A$5:$AY$22116,41,FALSE),0) -> 3 | AR12: =CC12 & CD12 & CF12 ->  | CC12: =IF($AO12<=$G12+$H12,"","* La Población bajo control con Espirometría Vigente no debe ser mayor al Total de Población en Control. ") ->  | CD12: =IF($D12>=$AP12+$AQ12,"","* La Población Migrantes no debe ser mayor al Total de Población en Control. ") ->  | CF12: =IF(AND(E12<>0,AP12=""),"* No olvide escribir en la celda de Población Migrantes (Digite CERO si no tiene). ",IF(AND(F12<>0,AQ12=""),"* No olvide escribir en la celda de Población Migrantes (Digite CERO si no tiene). ","")) ->  | CK12: =IF($AO12<=$G12+$H12,0,1) -> 0 | CL12: =IF($D12>=$AP12+$AQ12,0,1) -> 0 | CN12: =IF(AND(E12<>0,AP12=""),1,IF(AND(F12<>0,AQ12=""),1,0)) -> 0
A13: P3160960 | C13: MODERADO | D13: =IFERROR(VLOOKUP($A13,Filtros!$A$5:$AY$22116,2,FALSE),0) -> 335 | E13: =IFERROR(VLOOKUP($A13,Filtros!$A$5:$AY$22116,3,FALSE),0) -> 202 | F13: =IFERROR(VLOOKUP($A13,Filtros!$A$5:$AY$22116,4,FALSE),0) -> 133 | G13: =IFERROR(VLOOKUP($A13,Filtros!$A$5:$AY$22116,5,FALSE),0) -> 202 | H13: =IFERROR(VLOOKUP($A13,Filtros!$A$5:$AY$22116,6,FALSE),0) -> 133 | I13: =IFERROR(VLOOKUP($A13,Filtros!$A$5:$AY$22116,7,FALSE),0) -> 0 | J13: =IFERROR(VLOOKUP($A13,Filtros!$A$5:$AY$22116,8,FALSE),0) -> 0 | K13: =IFERROR(VLOOKUP($A13,Filtros!$A$5:$AY$22116,9,FALSE),0) -> 0 | L13: =IFERROR(VLOOKUP($A13,Filtros!$A$5:$AY$22116,10,FALSE),0) -> 0 | M13: =IFERROR(VLOOKUP($A13,Filtros!$A$5:$AY$22116,11,FALSE),0) -> 0 | N13: =IFERROR(VLOOKUP($A13,Filtros!$A$5:$AY$22116,12,FALSE),0) -> 0 | O13: =IFERROR(VLOOKUP($A13,Filtros!$A$5:$AY$22116,13,FALSE),0) -> 0 | P13: =IFERROR(VLOOKUP($A13,Filtros!$A$5:$AY$22116,14,FALSE),0) -> 0 | Q13: =IFERROR(VLOOKUP($A13,Filtros!$A$5:$AY$22116,15,FALSE),0) -> 0 | R13: =IFERROR(VLOOKUP($A13,Filtros!$A$5:$AY$22116,16,FALSE),0) -> 0 | S13: =IFERROR(VLOOKUP($A13,Filtros!$A$5:$AY$22116,17,FALSE),0) -> 0 | T13: =IFERROR(VLOOKUP($A13,Filtros!$A$5:$AY$22116,18,FALSE),0) -> 0 | U13: =IFERROR(VLOOKUP($A13,Filtros!$A$5:$AY$22116,19,FALSE),0) -> 0 | V13: =IFERROR(VLOOKUP($A13,Filtros!$A$5:$AY$22116,20,FALSE),0) -> 0 | W13: =IFERROR(VLOOKUP($A13,Filtros!$A$5:$AY$22116,21,FALSE),0) -> 0 | X13: =IFERROR(VLOOKUP($A13,Filtros!$A$5:$AY$22116,22,FALSE),0) -> 0 | Y13: =IFERROR(VLOOKUP($A13,Filtros!$A$5:$AY$22116,23,FALSE),0) -> 0 | Z13: =IFERROR(VLOOKUP($A13,Filtros!$A$5:$AY$22116,24,FALSE),0) -> 0 | AA13: =IFERROR(VLOOKUP($A13,Filtros!$A$5:$AY$22116,25,FALSE),0) -> 0 | AB13: =IFERROR(VLOOKUP($A13,Filtros!$A$5:$AY$22116,26,FALSE),0) -> 0 | AC13: =IFERROR(VLOOKUP($A13,Filtros!$A$5:$AY$22116,27,FALSE),0) -> 0 | AD13: =IFERROR(VLOOKUP($A13,Filtros!$A$5:$AY$22116,28,FALSE),0) -> 0 | AE13: =IFERROR(VLOOKUP($A13,Filtros!$A$5:$AY$22116,29,FALSE),0) -> 0 | AF13: =IFERROR(VLOOKUP($A13,Filtros!$A$5:$AY$22116,30,FALSE),0) -> 0 | AG13: =IFERROR(VLOOKUP($A13,Filtros!$A$5:$AY$22116,31,FALSE),0) -> 0 | AH13: =IFERROR(VLOOKUP($A13,Filtros!$A$5:$AY$22116,32,FALSE),0) -> 0 | AI13: =IFERROR(VLOOKUP($A13,Filtros!$A$5:$AY$22116,33,FALSE),0) -> 0 | AJ13: =IFERROR(VLOOKUP($A13,Filtros!$A$5:$AY$22116,34,FALSE),0) -> 0 | AK13: =IFERROR(VLOOKUP($A13,Filtros!$A$5:$AY$22116,35,FALSE),0) -> 0 | AL13: =IFERROR(VLOOKUP($A13,Filtros!$A$5:$AY$22116,36,FALSE),0) -> 0 | AM13: =IFERROR(VLOOKUP($A13,Filtros!$A$5:$AY$22116,37,FALSE),0) -> 0 | AN13: =IFERROR(VLOOKUP($A13,Filtros!$A$5:$AY$22116,38,FALSE),0) -> 0 | AO13: =IFERROR(VLOOKUP($A13,Filtros!$A$5:$AY$22116,39,FALSE),0) -> 0 | AP13: =IFERROR(VLOOKUP($A13,Filtros!$A$5:$AY$22116,40,FALSE),0) -> 0 | AQ13: =IFERROR(VLOOKUP($A13,Filtros!$A$5:$AY$22116,41,FALSE),0) -> 0 | CC13: =IF($AO13<=$G13+$H13,"","* La Población bajo control con Espirometría Vigente no debe ser mayor al Total de Población en Control. ") ->  | CK13: =IF($AO13<=$G13+$H13,0,1) -> 0 | CL13: =IF($D13>=$AP13+$AQ13,0,1) -> 0 | CN13: 0
A14: P3160970 | C14: SEVERO | D14: =IFERROR(VLOOKUP($A14,Filtros!$A$5:$AY$22116,2,FALSE),0) -> 0 | E14: =IFERROR(VLOOKUP($A14,Filtros!$A$5:$AY$22116,3,FALSE),0) -> 0 | F14: =IFERROR(VLOOKUP($A14,Filtros!$A$5:$AY$22116,4,FALSE),0) -> 0 | G14: =IFERROR(VLOOKUP($A14,Filtros!$A$5:$AY$22116,5,FALSE),0) -> 0 | H14: =IFERROR(VLOOKUP($A14,Filtros!$A$5:$AY$22116,6,FALSE),0) -> 0 | I14: =IFERROR(VLOOKUP($A14,Filtros!$A$5:$AY$22116,7,FALSE),0) -> 0 | J14: =IFERROR(VLOOKUP($A14,Filtros!$A$5:$AY$22116,8,FALSE),0) -> 0 | K14: =IFERROR(VLOOKUP($A14,Filtros!$A$5:$AY$22116,9,FALSE),0) -> 0 | L14: =IFERROR(VLOOKUP($A14,Filtros!$A$5:$AY$22116,10,FALSE),0) -> 0 | M14: =IFERROR(VLOOKUP($A14,Filtros!$A$5:$AY$22116,11,FALSE),0) -> 0 | N14: =IFERROR(VLOOKUP($A14,Filtros!$A$5:$AY$22116,12,FALSE),0) -> 0 | O14: =IFERROR(VLOOKUP($A14,Filtros!$A$5:$AY$22116,13,FALSE),0) -> 0 | P14: =IFERROR(VLOOKUP($A14,Filtros!$A$5:$AY$22116,14,FALSE),0) -> 0 | Q14: =IFERROR(VLOOKUP($A14,Filtros!$A$5:$AY$22116,15,FALSE),0) -> 0 | R14: =IFERROR(VLOOKUP($A14,Filtros!$A$5:$AY$22116,16,FALSE),0) -> 0 | S14: =IFERROR(VLOOKUP($A14,Filtros!$A$5:$AY$22116,17,FALSE),0) -> 0 | T14: =IFERROR(VLOOKUP($A14,Filtros!$A$5:$AY$22116,18,FALSE),0) -> 0 | U14: =IFERROR(VLOOKUP($A14,Filtros!$A$5:$AY$22116,19,FALSE),0) -> 0 | V14: =IFERROR(VLOOKUP($A14,Filtros!$A$5:$AY$22116,20,FALSE),0) -> 0 | W14: =IFERROR(VLOOKUP($A14,Filtros!$A$5:$AY$22116,21,FALSE),0) -> 0 | X14: =IFERROR(VLOOKUP($A14,Filtros!$A$5:$AY$22116,22,FALSE),0) -> 0 | Y14: =IFERROR(VLOOKUP($A14,Filtros!$A$5:$AY$22116,23,FALSE),0) -> 0 | Z14: =IFERROR(VLOOKUP($A14,Filtros!$A$5:$AY$22116,24,FALSE),0) -> 0 | AA14: =IFERROR(VLOOKUP($A14,Filtros!$A$5:$AY$22116,25,FALSE),0) -> 0 | AB14: =IFERROR(VLOOKUP($A14,Filtros!$A$5:$AY$22116,26,FALSE),0) -> 0 | AC14: =IFERROR(VLOOKUP($A14,Filtros!$A$5:$AY$22116,27,FALSE),0) -> 0 | AD14: =IFERROR(VLOOKUP($A14,Filtros!$A$5:$AY$22116,28,FALSE),0) -> 0 | AE14: =IFERROR(VLOOKUP($A14,Filtros!$A$5:$AY$22116,29,FALSE),0) -> 0 | AF14: =IFERROR(VLOOKUP($A14,Filtros!$A$5:$AY$22116,30,FALSE),0) -> 0 | AG14: =IFERROR(VLOOKUP($A14,Filtros!$A$5:$AY$22116,31,FALSE),0) -> 0 | AH14: =IFERROR(VLOOKUP($A14,Filtros!$A$5:$AY$22116,32,FALSE),0) -> 0 | AI14: =IFERROR(VLOOKUP($A14,Filtros!$A$5:$AY$22116,33,FALSE),0) -> 0 | AJ14: =IFERROR(VLOOKUP($A14,Filtros!$A$5:$AY$22116,34,FALSE),0) -> 0 | AK14: =IFERROR(VLOOKUP($A14,Filtros!$A$5:$AY$22116,35,FALSE),0) -> 0 | AL14: =IFERROR(VLOOKUP($A14,Filtros!$A$5:$AY$22116,36,FALSE),0) -> 0 | AM14: =IFERROR(VLOOKUP($A14,Filtros!$A$5:$AY$22116,37,FALSE),0) -> 0 | AN14: =IFERROR(VLOOKUP($A14,Filtros!$A$5:$AY$22116,38,FALSE),0) -> 0 | AO14: =IFERROR(VLOOKUP($A14,Filtros!$A$5:$AY$22116,39,FALSE),0) -> 0 | AP14: =IFERROR(VLOOKUP($A14,Filtros!$A$5:$AY$22116,40,FALSE),0) -> 0 | AQ14: =IFERROR(VLOOKUP($A14,Filtros!$A$5:$AY$22116,41,FALSE),0) -> 0 | CC14: =IF($AO14<=$G14+$H14,"","* La Población bajo control con Espirometría Vigente no debe ser mayor al Total de Población en Control. ") ->  | CK14: =IF($AO14<=$G14+$H14,0,1) -> 0 | CL14: 0 | CN14: 0
